Workbook

Sheet Cover Page
A3: ='ePSM Header Data Page'!H4 -> MIAMI DADE COLLEGE
A4: ='ePSM Header Data Page'!H5 -> Plan Sponsor ID 0000000080646693
A6: =IF(Template2="Summary by Product","Summary by Product",'ePSM Header Data Page'!H6) -> Standard Report For Fully Insured AHF Products
A10: ='ePSM Header Data Page'!H8 -> Current Data For Claims Processed/Paid January 01, 2016 - March 31, 2016
A11: =IF(Template="AHF","", IF(Template2="Aexcel","", 'ePSM Header Data Page'!H9)) -> 
A14: ='ePSM Header Data Page'!H11 -> Fully Insured AHF OA HNOLY with Pharmacy

Sheet Report Criteria
A1: ='ePSM Header Data Page'!H3 -> MIAMI DADE COLLEGE - Plan Sponsor ID 0000000080646693
A2: Report Parameters
A3: ='Cover Page'!A14:M14 -> Fully Insured AHF OA HNOLY with Pharmacy
A4: =IF(UserEnteredText1="_","",TRIM(UserEnteredText1)) -> 
A5: =IF(UserEnteredText2="_","",TRIM(UserEnteredText2)) -> 
A6: ='Cover Page'!A10 -> Current Data For Claims Processed/Paid January 01, 2016 - March 31, 2016
A7: =IF(Template2="Aexcel","", IF(Template="AHF","",'Cover Page'!A11)) -> 
A8: ='ePSM Header Data Page'!J3 -> 
A9: =IF(OR(Template="Medical Drill Down",Template="FI Community Rated",Template="AHF",Template2="Summary by Product"),"", IF(Template2="Behavioral Health",'ePSM Header Data Page'!J8, IF(Template2="Aexcel",'ePSM Header Data Page'!J11, 'ePSM Header Data Page'!J4))) -> 
B11: =IF(Template3="FI Community Rated Medicare","Standard Report Template: "&'ePSM Fund Code'!C13&" Medicare" &MID('ePSM Header Data Page'!O8,3,16), IF(Template2="Behavioral Health","Standard Report Template: "&'ePSM Fund Code'!C13&" "&'ePSM Header Data Page'!O7, IF(Template2="Aexcel","Standard Report Template: "&'ePSM Fund Code'!C13&" "&'ePSM Header Data Page'!O7, IF(Template2="Summary by Product","Standard Report Template: Summary by Product", IF(Template="FI Community Rated","Standard Report Template: "&'ePSM Fund Code'!C13&" Medical "&RIGHT('ePSM Header Data Page'!O4,15), "Standard Report Template: "&'ePSM Fund Code'!C13&" "&'ePSM Header Data Page'!O4))))) -> Standard Report Template: Fully Insured AHF | F11: =IF(Template2="Summary by Product","", IF(Template2="Aexcel","", "Large Claimant Threshold: " & TEXT(CatClaimantThreshold, "$0,000"))) -> Large Claimant Threshold: $50,000
B12: Funding Arrangement and Product: | D12: Account Structure: | F12: =IF(Template2="Aexcel","","Network Service Area:") -> Network Service Area:
B14: =MID(U14,6,70) -> Fully Insured AHF OA HNOLY with Pharmacy | D14: =IF(AND(AG14="All-",AH14="All-",AI14="All-",AJ14="All",AG$15=0),"Plan Sponsor Level",IF(AND(NOT(AG14="All-"),AG14="All"),"Plan Sponsor Level",IF(AND(AH14="",AI14="",AJ14="",NOT(AG14="")),TEXT(X14,"00000000"),CONCATENATE(AG14,AH14,AI14,AJ14)))) -> Plan Sponsor Level | F14: =IF(Template2="Aexcel","", IF(NOT(MID(AD14,6,1)="-"),"", IF(AND(MID(AD14,6,1)="-",MID(AD14,1,1)=" "),"All", IF(NOT(MID(AD14,5,1)=" "),MID(AD14,1,5)&" - "&MID(AD14,7,50), IF(MID(AD14,5,1)=" ",MID(AD14,1,4)&" - "&MID(AD14,7,50),MID(AD14,1,5)))))) -> All | T14: =IF(MID(U14,4,1)="B","Self Insured","Fully Insured") -> Fully Insured | U14: 91-A-Fully Insured AHF OA HNOLY with Pharmacy | X14: - - - - | Z14: =MID(X14,25,5) ->  | AA14: =MID(X14,19,5) ->  | AB14: =MID(X14,10,8) ->  | AC14: =IF(OR(LEFT(AD14,6)=" -",AD14=""),FALSE,TRUE) -> FALSE | AD14: - | AG14: =IF(MID(X14,1,9)=" -","All-",MID(X14,1,9)) -> All- | AH14: =IF(MID(X14,10,9)=" -","All-",MID(X14,10,9)) -> All- | AI14: =IF(MID(X14,19,6)=" -","All-",MID(X14,19,6)) -> All- | AJ14: =IF(MID(X14,25,5)=" ","All",MID(X14,25,5)) -> All
AA15: =COUNTIF(AC14:AC15,TRUE) -> 0
X16: =COUNTIF(Z14:Z15,">""") -> 0 | Y16: =COUNTIF(AA14:AA15,">""") -> 0 | Z16: =COUNTIF(AB14:AB15,">""") -> 0

Sheet Additional Report Criteria (hidden)
A1: ='ePSM Header Data Page'!H3 -> MIAMI DADE COLLEGE - Plan Sponsor ID 0000000080646693
A2: Additional Report Parameters
A3: ='Cover Page'!A14:M14 -> Fully Insured AHF OA HNOLY with Pharmacy
A4: =IF(UserEnteredText1="_","",TRIM(UserEnteredText1)) -> 
A5: =IF(UserEnteredText2="_","",TRIM(UserEnteredText2)) -> 
A6: ='Cover Page'!A10 -> Current Data For Claims Processed/Paid January 01, 2016 - March 31, 2016
A7: =IF(Template="AHF","",'Cover Page'!A11) -> 
A8: ='ePSM Header Data Page'!J3 -> 
A9: =IF(OR(Template="Medical Drill Down",Template="FI Community Rated",Template="AHF",Template2="Summary by Product"),"",'ePSM Header Data Page'!J4) -> 
B11: =IF(Template2="Summary by Product","Summary by Product", IF(Template = "FI Community Rated","Standard Report Template: " & 'ePSM Fund Code'!C13 & " Medical " &RIGHT( 'ePSM Header Data Page'!O4,15), "Standard Report Template: " & 'ePSM Fund Code'!C13 & " " & 'ePSM Header Data Page'!O4)) -> Standard Report Template: Fully Insured AHF
B12: Exclude Large Claimant Data at Threshold: | D12: Exclude Major Diagnostic Categories: | F12: Primary Payor:
B14: ='ePSM Header Data Page'!K3 -> N/A | D14: =IF(MID(Y14,1,2)="","N/A",AC14) -> N/A | F14: ='ePSM Header Data Page'!L3 -> N/A | Z14: =TEXT(MID(Y14,1,2),"00") ->  | AA14: =LOOKUP(Z14,'ePSM Medical Data Page'!BE3:BE$26,'ePSM Medical Data Page'!BF3:BF$26) ->  | AC14: =Z14 & " " &AA14 ->  | AG14: =IF(MID(X14,1,9)=" -","All-",MID(X14,1,9)) ->  | AH14: =IF(MID(X14,10,9)=" -","All-",MID(X14,10,9)) ->  | AI14: =IF(MID(X14,19,6)=" -","All-",MID(X14,19,6)) ->  | AJ14: =IF(MID(X14,25,5)=" ","All",MID(X14,25,5)) -> 

Sheet Table of Contents
A1: Table of Contents
B3: Cover Page
B4: Report Criteria
B5: Table of Contents
B6: Aetna HealthFund - Fund Report
B7: Aetna HealthFund Activity By Tier
B8: Aetna HealthFund Activity - Detail
B9: Data Availability Summary
B10: Glossary

Sheet AHF - Fund Report
A1: MIAMI DADE COLLEGE - Plan Sponsor ID 0000000080646693
A2: Fully Insured AHF OA HNOLY with Pharmacy
A3: Current Data For Claims Processed/Paid January 01, 2016 - March 31, 2016
A5: Aetna HealthFund
A6: Fund Summary Report
B9: Currently Enrolled | G9: Terminated Coverage in Current Plan Year
B11: Fund Enrollment | G11: Fund Enrollment
B13: Total Employees | C13: 2476 | G13: Total Employees | H13: 10
B15: Employee Only | C15: 2075 | G15: Employee Only | H15: 8
B16: Employee +1 | C16: 0 | G16: Employee +1 | H16: 0
B17: Employee + 2 | C17: 0 | G17: Employee + 2 | H17: 0
B18: Employee + Family | C18: 401 | G18: Employee + Family | H18: 2
B20: Current Year Initial Funds | C20: 2154967.5 | G20: Current Year Initial Funds | H20: 9000
B21: Current Year Incentive Funds Earned | C21: 0 | G21: Current Year Incentive Funds Earned | H21: 0
B22: Rollover From Prior Year | C22: 846680.83 | G22: Rollover From Prior Year | H22: 6004.35
B23: Total Funds Available | C23: 3001648.33 | G23: Total Funds Available | H23: 15004.35
B27: Fund Activity | G27: Fund Activity
B29: Current Year Claims Paid with Current Year Funds | C29: 773619.29 | G29: Current Year Claims Paid with Current Year Funds | H29: 2158.53
B30: Current Year Claims Paid with Rollover Funds | C30: 30574.83 | G30: Current Year Claims Paid with Rollover Funds | H30: 17.27
B31: Prior Year Claims Paid with Rollover Funds | C31: 12817.59 | G31: Prior Year Claims Paid with Rollover Funds | H31: 0
B32: Total Current Year Claims Paid | C32: 817011.71 | G32: Total Current Year Claims Paid | H32: 2175.8
B34: Funds Remaining | G34: Funds Remaining
B36: Current Year Funds Remaining | C36: 1381348.21 | G36: Current Year Funds Remaining | H36: 6841.47
B37: Rollover Funds Remaining | C37: 803288.41 | G37: Rollover Funds Remaining | H37: 5987.08
B38: Total Funds Remaining | C38: 2184636.62 | G38: Total Funds Remaining | H38: 12828.55
B41: Sources of Fund Payment
B43: Medical Expenses | C43: 0.8115375024
B44: Pharmacy Expenses | C44: 0.1884624976
B45: Dental Expenses | C45: 0

Sheet AHF - Activity By Tier
A1: MIAMI DADE COLLEGE - Plan Sponsor ID 0000000080646693
A2: Fully Insured AHF OA HNOLY with Pharmacy
A3: Current Data For Claims Processed/Paid January 01, 2016 - March 31, 2016
A5: Aetna HealthFund Activity By Tier
A6: Currently Enrolled
B9: Tier | D9: Employees | F9: Rollover From Prior Year | H9: Current Year Initial Funds | J9: Incentive Funds Earned | L9: Total Funds Available | N9: Current Year Claims Paid with Current Year Funds | P9: Current Year Claims Paid with Rollover Funds | R9: Prior Year Claims Paid with Rollover Funds | T9: Percent of Funds Paid | V9: Total Funds Remaining | X9: Percent of Funds Remaining
B11: Employee Only | D11: 2075 | F11: 737905.17 | H11: 1553587.5 | J11: 0 | L11: 2291492.67 | N11: 512094.07 | P11: 27524.7 | R11: 11635.56 | T11: 0.2405656091 | V11: 1740238.34 | X11: 0.7594343909
B12: Employee +1 | D12: 0 | F12: 0 | H12: 0 | J12: 0 | L12: 0 | N12: 0 | P12: 0 | R12: 0 | T12: N/A | V12: 0 | X12: N/A
B13: Employee + 2 | D13: 0 | F13: 0 | H13: 0 | J13: 0 | L13: 0 | N13: 0 | P13: 0 | R13: 0 | T13: N/A | V13: 0 | X13: N/A
B14: Employee + Family | D14: 401 | F14: 108775.66 | H14: 601380 | J14: 0 | L14: 710155.66 | N14: 261525.22 | P14: 3050.13 | R14: 1182.03 | T14: 0.3742241243 | V14: 444398.28 | X14: 0.6257758757
B16: Total | D16: 2476 | F16: 846680.83 | H16: 2154967.5 | J16: 0 | L16: 3001648.33 | N16: 773619.29 | P16: 30574.83 | R16: 12817.59 | T16: 0.272187685 | V16: 2184636.62 | X16: 0.727812315

Sheet AHF Activity - Detail
A1: MIAMI DADE COLLEGE - Plan Sponsor ID 0000000080646693
A2: Fully Insured AHF OA HNOLY with Pharmacy
A3: Current Data For Claims Processed/Paid January 01, 2016 - March 31, 2016
A5: Aetna HealthFund Activity - Detail
A6: Currently Enrolled
B9: Total Fund Utilization | C9: Employees | E9: Percentage of Employees
B11: Spent 100% of Fund | C11: 467 | E11: 0.1886106624
B12: Spent Partial Fund
B13: 99% - 75% | C13: 86 | E13: 0.03473344103
B14: 74% - 50% | C14: 195 | E14: 0.07875605816
B15: 49% - 25% | C15: 334 | E15: 0.1348949919
B16: 24% - 1% | C16: 650 | E16: 0.2625201939
B17: Spent 0% of Fund | C17: 744 | E17: 0.3004846527
B19: Total | C19: 2476 | E19: 1
B25: Fund Utilization by Tier | C25: Employee | E25: Employee + 1 | G25: Employee + 2 | I25: Employee + Family
B27: Spent 100% of Fund | C27: 0.178313253 | E27: N/A | G27: N/A | I27: 0.2418952618
B28: Spent Partial Fund
B29: 99% - 75% | C29: 0.03325301205 | E29: N/A | G29: N/A | I29: 0.04239401496
B30: 74% - 50% | C30: 0.07518072289 | E30: N/A | G30: N/A | I30: 0.09725685786
B31: 49% - 25% | C31: 0.1281927711 | E31: N/A | G31: N/A | I31: 0.1695760599
B32: 24% - 1% | C32: 0.2472289157 | E32: N/A | G32: N/A | I32: 0.3416458853
B33: Spent 0% of Fund | C33: 0.3378313253 | E33: N/A | G33: N/A | I33: 0.1072319202
C35: 1 | E35: N/A | G35: N/A | I35: 1
B37: Note: These figures exclude rollover dollars.

Sheet ADF - Fund Report (hidden)
A1: MIAMI DADE COLLEGE - Plan Sponsor ID 0000000080646693
A2: Fully Insured AHF OA HNOLY with Pharmacy
A3: Current Data For Claims Processed/Paid January 01, 2016 - March 31, 2016
A5: Aetna DentalFund
A6: Fund Summary Report
B9: Currently Enrolled | G9: Terminated Coverage in Current Plan Year
B11: Fund Enrollment | G11: Fund Enrollment
B13: Total Employees | C13: 0 | G13: Total Employees | H13: 0
B15: Employee Only | C15: 0 | G15: Employee Only | H15: 0
B16: Employee +1 | C16: 0 | G16: Employee +1 | H16: 0
B17: Employee + 2 | C17: 0 | G17: Employee + 2 | H17: 0
B18: Employee + Family | C18: 0 | G18: Employee + Family | H18: 0
B20: Current Year Initial Funds | C20: 0 | G20: Current Year Initial Funds | H20: 0
B21: Current Year Incentive Funds Earned | C21: 0 | G21: Current Year Incentive Funds Earned | H21: 0
B22: Rollover From Prior Year | C22: 0 | G22: Rollover From Prior Year | H22: 0
B23: Total Funds Available | C23: 0 | G23: Total Funds Available | H23: 0
B27: Fund Activity | G27: Fund Activity
B29: Current Year Claims Paid with Current Year Funds | C29: 0 | G29: Current Year Claims Paid with Current Year Funds | H29: 0
B30: Current Year Claims Paid with Rollover Funds | C30: 0 | G30: Current Year Claims Paid with Rollover Funds | H30: 0
B31: Prior Year Claims Paid with Rollover Funds | C31: 0 | G31: Prior Year Claims Paid with Rollover Funds | H31: 0
B32: Total Current Year Claims Paid | C32: 0 | G32: Total Current Year Claims Paid | H32: 0
B34: Funds Remaining | G34: Funds Remaining
B36: Current Year Funds Remaining | C36: 0 | G36: Current Year Funds Remaining | H36: 0
B37: Rollover Funds Remaining | C37: 0 | G37: Rollover Funds Remaining | H37: 0
B38: Total Funds Remaining | C38: 0 | G38: Total Funds Remaining | H38: 0

Sheet ADF - Activity By Tier (hidden)
A1: MIAMI DADE COLLEGE - Plan Sponsor ID 0000000080646693
A2: Fully Insured AHF OA HNOLY with Pharmacy
A3: Current Data For Claims Processed/Paid January 01, 2016 - March 31, 2016
A5: Aetna DentalFund Activity By Tier
A6: Currently Enrolled
B9: Tier | D9: Employees | F9: Rollover From Prior Year | H9: Current Year Initial Funds | J9: Incentive Funds Earned | L9: Total Funds Available | N9: Current Year Claims Paid with Current Year Funds | P9: Current Year Claims Paid with Rollover Funds | R9: Prior Year Claims Paid with Rollover Funds | T9: Percent of Funds Paid | V9: Total Funds Remaining | X9: Percent of Funds Remaining
B11: Employee Only | D11: 0 | F11: 0 | H11: 0 | J11: 0 | L11: 0 | N11: 0 | P11: 0 | R11: 0 | T11: N/A | V11: 0 | X11: N/A
B12: Employee +1 | D12: 0 | F12: 0 | H12: 0 | J12: 0 | L12: 0 | N12: 0 | P12: 0 | R12: 0 | T12: N/A | V12: 0 | X12: N/A
B13: Employee + 2 | D13: 0 | F13: 0 | H13: 0 | J13: 0 | L13: 0 | N13: 0 | P13: 0 | R13: 0 | T13: N/A | V13: 0 | X13: N/A
B14: Employee + Family | D14: 0 | F14: 0 | H14: 0 | J14: 0 | L14: 0 | N14: 0 | P14: 0 | R14: 0 | T14: N/A | V14: 0 | X14: N/A
B16: Total | D16: 0 | F16: 0 | H16: 0 | J16: 0 | L16: 0 | N16: 0 | P16: 0 | R16: 0 | T16: N/A | V16: 0 | X16: N/A

Sheet ADF Activity - Detail (hidden)
A1: MIAMI DADE COLLEGE - Plan Sponsor ID 0000000080646693
A2: Fully Insured AHF OA HNOLY with Pharmacy
A3: Current Data For Claims Processed/Paid January 01, 2016 - March 31, 2016
A5: Aetna DentalFund Activity - Detail
A6: Currently Enrolled
B9: Total Fund Utilization | C9: Employees | E9: Percentage of Employees
B11: Spent 100% of Fund | C11: 0 | E11: N/A
B12: Spent Partial Fund
B13: 99% - 75% | C13: 0 | E13: N/A
B14: 74% - 50% | C14: 0 | E14: N/A
B15: 49% - 25% | C15: 0 | E15: N/A
B16: 24% - 1% | C16: 0 | E16: N/A
B17: Spent 0% of Fund | C17: 0 | E17: N/A
B19: Total | C19: 0 | E19: N/A
B25: Fund Utilization by Tier | C25: Employee | E25: Employee + 1 | G25: Employee + 2 | I25: Employee + Family
B27: Spent 100% of Fund | C27: N/A | E27: N/A | G27: N/A | I27: N/A
B28: Spent Partial Fund
B29: 99% - 75% | C29: N/A | E29: N/A | G29: N/A | I29: N/A
B30: 74% - 50% | C30: N/A | E30: N/A | G30: N/A | I30: N/A
B31: 49% - 25% | C31: N/A | E31: N/A | G31: N/A | I31: N/A
B32: 24% - 1% | C32: N/A | E32: N/A | G32: N/A | I32: N/A
B33: Spent 0% of Fund | C33: N/A | E33: N/A | G33: N/A | I33: N/A
C35: N/A | E35: N/A | G35: N/A | I35: N/A
B37: Note: These figures exclude rollover dollars.

Sheet Data Availability Summary
B1: Data Availability Summary
C3: Actual data availability date ranges may vary for many reasons including plan inception date or plan cancellation date. The actual ranges of data included in this report may differ from the ranges listed in the report headers/titles for these reasons. The summary below indicates actual data availability and represents the actual ranges of data included in the report.
E6: Prior Period Data Availability | G6: Current Period Data Availability
B8: Medical Claims:
C9: Fully Insured AHF OA HNOLY with Pharmacy | E9: 01/01/15 - 03/31/15 | G9: 01/01/16 - 03/31/16 | L9: 91-A | M9: 01/01/16 - 03/31/16 | N9: 01/01/15 - 03/31/15
B11: Medical Membership:
C12: Fully Insured AHF OA HNOLY with Pharmacy | E12: 01/16/15 - 03/16/15 | G12: 01/16/16 - 03/16/16 | L12: 91-A | M12: 01/16/16 - 03/16/16 | N12: 01/16/15 - 03/16/15
B14: Pharmacy Claims:
C15: Fully Insured AHF OA HNOLY with Pharmacy | E15: 01/01/15 - 03/31/15 | G15: 01/01/16 - 03/31/16 | L15: 91-A | M15: 01/01/16 - 03/31/16 | N15: 01/01/15 - 03/31/15
B17: Pharmacy Membership:
C18: Fully Insured AHF OA HNOLY with Pharmacy | E18: 01/16/15 - 03/16/15 | G18: 01/16/16 - 03/16/16 | L18: 91-A | M18: 01/16/16 - 03/16/16 | N18: 01/16/15 - 03/16/15

Sheet AHF Glossary
A1: ='ePSM Header Data Page'!V16 -> Glossary
A3: Current Year Claims paid with Current Year Funds | C3: Fund dollars for claims incurred in current benefit year and adjudicated in current benefit year, paid with current year funds.
A4: Current Year Claims paid with Rollover Funds | C4: Fund dollars for claims incurred in current benefit year and adjudicated in current benefit year, paid with prior year funds.
A5: Current Year Funds Remaining | C5: Current Year Funds available for use in the current Plan Year.
A6: Current Year Incentive Funds Earned | C6: For the requested reporting period, customer structure and fund type: the sum of all Incentive dollars earned.
A7: Current Year Initial Funds | C7: For the requested reporting period, customer structure and fund type: the sum of all initial fund contributions (excluding Incentive dollars).
A8: Currently Enrolled | C8: The total number of active subscribers for the requested customer structure, reporting time period and fund type.
A9: Dental Expenses | C9: Percentage of Funds utilized to pay dental claims.
A10: Fund Enrollment - EE + 1 | C10: The number of subscribers with an AHF tier code of EE + 1 Dependent for the requested customer structure, reporting time period and fund type.
A11: Fund Enrollment - EE + 2 | C11: The number of subscribers with an AHF tier code of EE + 2 Dependents for the requested customer structure, reporting time period and fund type.
A12: Fund Enrollment - EE + Family | C12: The number of subscribers with an AHF tier code of EE + Family for the requested customer structure, reporting time period and fund type.
A13: Fund Enrollment - EE Only | C13: The number of subscribers with an AHF tier code of EE Only for the requested customer structure, reporting time period and fund type.
A14: Medical Expenses | C14: Percentage of Funds utilized to pay medical claims.
A15: Percent of Funds Paid | C15: Percentage of fund dollars available that were paid in the current plan year.
A16: Percent of Funds Remaining | C16: Percentage of funds remaining.
A17: Pharmacy Expenses | C17: Percentage of Funds utilized to pay pharmacy claims.
A18: Plan Sponsor Unique ID Name | C18: Name of client company that sponsors a health plan.
A19: Plan Sponsor Unique ID Number | C19: An identifier denoting one client company that sponsors a health plan.
A20: Prior Year Claims Paid with Rollover Funds | C20: Fund Dollars for claims adjudicated in current year with prior year incurred date.
A21: Report Date | C21: End of current plan quarter or as specified in parameters (Level B).
A22: Reporting Period | C22: Plan Year to current date.
A23: Rollover from Prior Year | C23: For the requested reporting period, customer structure and fund type: the sum of all rollover dollars remaining plus claims paid with rollover dollars.
A24: Rollover Funds Remaining | C24: Rollover Funds available for use in current Plan Year.
A25: Terminated Coverage in Current Plan Year | C25: The total number of subscribers who have terminated coverage during the current plan year for the requested customer structure, reporting time period and fund type.
A26: Total Current Year Claims Paid | C26: Sum of Current Year Claims Paid with Current Year Funds, Current Year Claims Paid with Rollover Funds and Prior Year Claims Paid with Rollover Funds.
A27: Total Funds Available | C27: Sum of Current Year Initial Funds, Current Year Incentive Funds Earned and Rollover From Prior Year.
A28: Total Funds Remaining | C28: Sum of Current Year Funds and Rollover Funds Remaining.

Sheet Data Availability page (hidden)
B1: ='ePSM Header Data Page'!V41 -> Data Availability Summary
C3: Actual data availability date ranges may vary for many reasons including plan inception date or plan cancellation date. The actual ranges of data included in this report may differ from the ranges listed in the report headers/titles for these reasons. The summary below indicates actual data availability and represents the actual ranges of data included in the report.
E6: Prior Period Data Availability | G6: Current Period Data Availability
B8: =IF(Template2="Behavioral Health","Medical / Behavioral Health Claims:","Medical Claims:") -> Medical Claims:
C9: =IF(AND(N9=0,M9=0),"", IF(L9="","", IF(L9=0,"", IF(ISNA(VLOOKUP(L9,'ePSM Fund Code'!U$3:V5,2,FALSE)),"",(VLOOKUP(L9,'ePSM Fund Code'!U$3:V5,2,FALSE)))))) -> Fully Insured AHF OA HNOLY with Pharmacy | E9: =IF(C9="","", IF(N9="","No Data Available", IF(N9=0,"No Data Available", N9))) -> 01/01/15 - 03/31/15 | G9: =IF(C9="","", IF(M9="","No Data Available", IF(M9=0,"No Data Available", M9))) -> 01/01/16 - 03/31/16 | L9: 91-A | M9: 01/01/16 - 03/31/16 | N9: 01/01/15 - 03/31/15
B11: =IF(Template2="Behavioral Health","Behavioral Health Membership:","Medical Membership:") -> Medical Membership:
C12: =IF(AND(N12=0,M12=0),"", IF(L12="","", IF(L12=0,"", IF(ISNA(VLOOKUP(L12,'ePSM Fund Code'!U$3:V8,2,FALSE)),"",(VLOOKUP(L12,'ePSM Fund Code'!U$3:V8,2,FALSE)))))) -> Fully Insured AHF OA HNOLY with Pharmacy | E12: =IF(C12="","", IF(N12="","No Data Available", IF(N12=0,"No Data Available", N12))) -> 01/16/15 - 03/16/15 | G12: =IF(C12="","", IF(M12="","No Data Available", IF(M12=0,"No Data Available", M12))) -> 01/16/16 - 03/16/16 | L12: 91-A | M12: 01/16/16 - 03/16/16 | N12: 01/16/15 - 03/16/15
B14: Pharmacy Claims:
C15: =IF(AND(N15=0,M15=0),"", IF(L15="","", IF(L15=0,"", IF(ISNA(VLOOKUP(L15,'ePSM Fund Code'!U$3:V14,2,FALSE)),"",(VLOOKUP(L15,'ePSM Fund Code'!U$3:V14,2,FALSE)))))) -> Fully Insured AHF OA HNOLY with Pharmacy | E15: =IF(C15="","", IF(N15="","No Data Available", IF(N15=0,"No Data Available", N15))) -> 01/01/15 - 03/31/15 | G15: =IF(C15="","", IF(M15="","No Data Available", IF(M15=0,"No Data Available", M15))) -> 01/01/16 - 03/31/16 | L15: 91-A | M15: 01/01/16 - 03/31/16 | N15: 01/01/15 - 03/31/15
B17: Pharmacy Membership:
C18: =IF(AND(N18=0,M18=0),"", IF(L18="","", IF(L18=0,"", IF(ISNA(VLOOKUP(L18,'ePSM Fund Code'!U$3:V17,2,FALSE)),"",(VLOOKUP(L18,'ePSM Fund Code'!U$3:V17,2,FALSE)))))) -> Fully Insured AHF OA HNOLY with Pharmacy | E18: =IF(C18="","", IF(N18="","No Data Available", IF(N18=0,"No Data Available", N18))) -> 01/16/15 - 03/16/15 | G18: =IF(C18="","", IF(M18="","No Data Available", IF(M18=0,"No Data Available", M18))) -> 01/16/16 - 03/16/16 | L18: 91-A | M18: 01/16/16 - 03/16/16 | N18: 01/16/15 - 03/16/15
B20: Dental Claims:
C21: =IF(AND(N21=0,M21=0),"", IF(L21="","", IF(L21=0,"", IF(ISNA(VLOOKUP(L21,'ePSM Fund Code'!U$3:V20,2,FALSE)),"",(VLOOKUP(L21,'ePSM Fund Code'!U$3:V20,2,FALSE)))))) ->  | E21: =IF(C21="","", IF(N21="","No Data Available", IF(N21=0,"No Data Available", N21))) ->  | G21: =IF(C21="","", IF(M21="","No Data Available", IF(M21=0,"No Data Available", M21))) -> 
B23: Dental Membership:
C24: =IF(AND(N24=0,M24=0),"", IF(L24="","", IF(L24=0,"", IF(ISNA(VLOOKUP(L24,'ePSM Fund Code'!U$3:V23,2,FALSE)),"",(VLOOKUP(L24,'ePSM Fund Code'!U$3:V23,2,FALSE)))))) ->  | E24: =IF(C24="","", IF(N24="","No Data Available", IF(N24=0,"No Data Available", N24))) ->  | G24: =IF(C24="","", IF(M24="","No Data Available", IF(M24=0,"No Data Available", M24))) -> 

Sheet AHF Fund Summary Page (hidden)
A1: ='ePSM Header Data Page'!H3 -> MIAMI DADE COLLEGE - Plan Sponsor ID 0000000080646693
A2: ='Cover Page'!A14:M14 -> Fully Insured AHF OA HNOLY with Pharmacy
A3: ='Cover Page'!A10 &'ePSM Header Data Page'!J6 -> Current Data For Claims Processed/Paid January 01, 2016 - March 31, 2016
A5: Aetna HealthFund
A6: Fund Summary Report
B9: Currently Enrolled | G9: Terminated Coverage in Current Plan Year
B11: Fund Enrollment | G11: Fund Enrollment
B13: Total Employees | C13: =ahf_total_active_employee_curr -> 2476 | G13: Total Employees | H13: =ahf_total_termd_active_employee_curr -> 10
B15: Employee Only | C15: =ahf_tier1_active_employee_curr -> 2075 | G15: Employee Only | H15: =ahf_termed_tier1_active_employee_curr -> 8
B16: Employee +1 | C16: =ahf_tier2_active_employee_curr -> 0 | G16: Employee +1 | H16: =ahf_termed_tier2_active_employee_curr -> 0
B17: Employee + 2 | C17: =ahf_tier3_active_employee_curr -> 0 | G17: Employee + 2 | H17: =ahf_termed_tier3_active_employee_curr -> 0
B18: Employee + Family | C18: =ahf_tier4_active_employee_curr -> 401 | G18: Employee + Family | H18: =ahf_termed_tier4_active_employee_curr -> 2
B20: Current Year Initial Funds | C20: =ahf_total_cr_year_initial_fund_curr -> 2154967.5 | G20: Current Year Initial Funds | H20: =ahf_total_termd_cr_year_initial_fund_curr -> 9000
B21: Current Year Incentive Funds Earned | C21: =ahf_total_Incentive_fund_earned_curr -> 0 | G21: Current Year Incentive Funds Earned | H21: =ahf_total_termd_Incentive_fund_earned_curr -> 0
B22: Rollover From Prior Year | C22: =ahf_total_rollover_pr_year_curr + ahf_act_total_fund_paid_curr -> 846680.83 | G22: Rollover From Prior Year | H22: =ahf_total_termd_rollover_pr_year_curr + ahf_term_total_fund_paid_curr -> 6004.35
B23: Total Funds Available | C23: =SUM(C20 + C21 +C22) -> 3001648.33 | G23: Total Funds Available | H23: =SUM(H20 + H21 +H22) -> 15004.35
B27: Fund Activity | G27: Fund Activity
B29: Current Year Claims Paid with Current Year Funds | C29: =ahf_total_cr_claim_paid_with_cr_funds_curr -> 773619.29 | G29: Current Year Claims Paid with Current Year Funds | H29: =ahf_total_termd_cr_claim_paid_with_cr_funds_curr -> 2158.53
B30: Current Year Claims Paid with Rollover Funds | C30: =ahf_total_cr_clm_paid_with_rollover_funds_curr -> 30574.83 | G30: Current Year Claims Paid with Rollover Funds | H30: =ahf_total_termd_cr_clm_paid_with_rollover_funds_curr -> 17.27
B31: Prior Year Claims Paid with Rollover Funds | C31: =ahf_act_total_fund_paid_curr -> 12817.59 | G31: Prior Year Claims Paid with Rollover Funds | H31: =ahf_term_total_fund_paid_curr -> 0
B32: Total Current Year Claims Paid | C32: =SUM(C29:C31) -> 817011.71 | G32: Total Current Year Claims Paid | H32: =SUM(H29:H31) -> 2175.8
B34: Funds Remaining | G34: Funds Remaining
B36: Current Year Funds Remaining | C36: =IF(ahf_total_cr_fund_remaining_curr<0,0,ahf_total_cr_fund_remaining_curr) -> 1381348.21 | G36: Current Year Funds Remaining | H36: =IF(ahf_total_termd_cr_fund_remaining_curr<0,0,ahf_total_termd_cr_fund_remaining_curr) -> 6841.47
B37: Rollover Funds Remaining | C37: =ahf_total_rollover_fund_remaining_curr -> 803288.41 | G37: Rollover Funds Remaining | H37: =ahf_total_termd_rollover_fund_remaining_curr -> 5987.08
B38: Total Funds Remaining | C38: =SUM(C36+C37) -> 2184636.62 | G38: Total Funds Remaining | H38: =SUM(H36+H37) -> 12828.55
B41: Sources of Fund Payment
B43: Medical Expenses | C43: =IF((ahf_medical_expenses_curr+ahf_ahf_paid_amt_total_curr+ahf_dental_expenses_curr)=0,"N/A",ahf_medical_expenses_curr/(ahf_medical_expenses_curr+ahf_ahf_paid_amt_total_curr+ahf_dental_expenses_curr)) -> 0.8115375024
B44: Pharmacy Expenses | C44: =IF((ahf_medical_expenses_curr+ahf_ahf_paid_amt_total_curr+ahf_dental_expenses_curr)=0,"N/A",ahf_ahf_paid_amt_total_curr/(ahf_medical_expenses_curr+ahf_ahf_paid_amt_total_curr+ahf_dental_expenses_curr)) -> 0.1884624976
B45: Dental Expenses | C45: =IF((ahf_medical_expenses_curr+ahf_ahf_paid_amt_total_curr+ahf_dental_expenses_curr)=0,"N/A",ahf_dental_expenses_curr/(ahf_medical_expenses_curr+ahf_ahf_paid_amt_total_curr+ahf_dental_expenses_curr)) -> 0

Sheet AHF Activity by Tier page (hidden)
A1: ='ePSM Header Data Page'!H3 -> MIAMI DADE COLLEGE - Plan Sponsor ID 0000000080646693
A2: ='Cover Page'!A14:M14 -> Fully Insured AHF OA HNOLY with Pharmacy
A3: ='Cover Page'!A10 &'ePSM Header Data Page'!J6 -> Current Data For Claims Processed/Paid January 01, 2016 - March 31, 2016
A5: Aetna HealthFund Activity By Tier
A6: Currently Enrolled
B9: Tier | D9: Employees | F9: Rollover From Prior Year | H9: Current Year Initial Funds | J9: Incentive Funds Earned | L9: Total Funds Available | N9: Current Year Claims Paid with Current Year Funds | P9: Current Year Claims Paid with Rollover Funds | R9: Prior Year Claims Paid with Rollover Funds | T9: Percent of Funds Paid | V9: Total Funds Remaining | X9: Percent of Funds Remaining
B11: Employee Only | D11: =ahf_tier1_active_employee_curr -> 2075 | F11: =ahf_tier1_rollover_pr_year_curr+ahf_act_emp_fund_paid_curr -> 737905.17 | H11: =ahf_tier1_cr_year_initial_fund_curr -> 1553587.5 | J11: =ahf_tier1_Incentive_fund_earned_curr -> 0 | L11: =ahf_tier1_tot_fund_available_curr+R11 -> 2291492.67 | N11: =ahf_tier1_cr_claim_paid_with_cr_funds_curr -> 512094.07 | P11: =ahf_tier1_cr_clm_paid_with_rollover_funds_curr -> 27524.7 | R11: =ahf_act_emp_fund_paid_curr -> 11635.56 | T11: =IF(L11="N/A","N/A",IF(L11=0,"N/A",(N11+P11+R11)/L11)) -> 0.2405656091 | V11: =IF(ahf_tier1_cr_fund_remaining_curr+ahf_tier1_rollover_fund_remaining_curr<0,0,ahf_tier1_cr_fund_remaining_curr+ahf_tier1_rollover_fund_remaining_curr) -> 1740238.34 | X11: =IF(L11="N/A","N/A",IF(L11=0,"N/A",V11/L11)) -> 0.7594343909
B12: Employee +1 | D12: =ahf_tier2_active_employee_curr -> 0 | F12: =ahf_tier2_rollover_pr_year_curr+ahf_act_emp_plus_1_fund_paid_curr -> 0 | H12: =ahf_tier2_cr_year_initial_fund_curr -> 0 | J12: =ahf_tier2_Incentive_fund_earned_curr -> 0 | L12: =ahf_tier2_tot_fund_available_curr+R12 -> 0 | N12: =ahf_tier2_cr_claim_paid_with_cr_funds_curr -> 0 | P12: =ahf_tier2_cr_clm_paid_with_rollover_funds_curr -> 0 | R12: =ahf_act_emp_plus_1_fund_paid_curr -> 0 | T12: =IF(L12="N/A","N/A",IF(L12=0,"N/A",(N12+P12+R12)/L12)) -> N/A | V12: =IF(ahf_tier2_cr_fund_remaining_curr+ahf_tier2_rollover_fund_remaining_curr<0,0,ahf_tier2_cr_fund_remaining_curr+ahf_tier2_rollover_fund_remaining_curr) -> 0 | X12: =IF(L12="N/A","N/A",IF(L12=0,"N/A",V12/L12)) -> N/A
B13: Employee + 2 | D13: =ahf_tier3_active_employee_curr -> 0 | F13: =ahf_tier3_rollover_pr_year_curr+ahf_act_emp_plus_2_fund_paid_curr -> 0 | H13: =ahf_tier3_cr_year_initial_fund_curr -> 0 | J13: =ahf_tier3_Incentive_fund_earned_curr -> 0 | L13: =ahf_tier3_tot_fund_available_curr+R13 -> 0 | N13: =ahf_tier3_cr_claim_paid_with_cr_funds_curr -> 0 | P13: =ahf_tier3_cr_clm_paid_with_rollover_funds_curr -> 0 | R13: =ahf_act_emp_plus_2_fund_paid_curr -> 0 | T13: =IF(L13="N/A","N/A",IF(L13=0,"N/A",(N13+P13+R13)/L13)) -> N/A | V13: =IF(ahf_tier3_cr_fund_remaining_curr+ahf_tier3_rollover_fund_remaining_curr<0,0,ahf_tier3_cr_fund_remaining_curr+ahf_tier3_rollover_fund_remaining_curr) -> 0 | X13: =IF(L13="N/A","N/A",IF(L13=0,"N/A",V13/L13)) -> N/A
B14: Employee + Family | D14: =ahf_tier4_active_employee_curr -> 401 | F14: =ahf_tier4_rollover_pr_year_curr+ahf_act_emp_plus_fam_fund_paid_curr -> 108775.66 | H14: =ahf_tier4_cr_year_initial_fund_curr -> 601380 | J14: =ahf_tier4_Incentive_fund_earned_curr -> 0 | L14: =ahf_tier4_tot_fund_available_curr+R14 -> 710155.66 | N14: =ahf_tier4_cr_claim_paid_with_cr_funds_curr -> 261525.22 | P14: =ahf_tier4_cr_clm_paid_with_rollover_funds_curr -> 3050.13 | R14: =ahf_act_emp_plus_fam_fund_paid_curr -> 1182.03 | T14: =IF(L14="N/A","N/A",IF(L14=0,"N/A",(N14+P14+R14)/L14)) -> 0.3742241243 | V14: =IF(ahf_tier4_cr_fund_remaining_curr+ahf_tier4_rollover_fund_remaining_curr<0,0,ahf_tier4_cr_fund_remaining_curr+ahf_tier4_rollover_fund_remaining_curr) -> 444398.28 | X14: =IF(L14="N/A","N/A",IF(L14=0,"N/A",V14/L14)) -> 0.6257758757
B16: Total | D16: =SUM(D11:D14) -> 2476 | F16: =SUM(F11:F14) -> 846680.83 | H16: =SUM(H11+H12+H13+H14) -> 2154967.5 | J16: =SUM(J11:J14) -> 0 | L16: =SUM(F16+H16+J16) -> 3001648.33 | N16: =SUM(N11+N12+N13+N14) -> 773619.29 | P16: =SUM(P11+P12+P13+P14) -> 30574.83 | R16: =SUM(R11+R12+R13+R14) -> 12817.59 | T16: =IF(L16="N/A","N/A",IF(L16=0,"N/A",(N16+P16+R16)/L16)) -> 0.272187685 | V16: =IF(SUM(V11+V12+V13+V14)<0,0,SUM(V11+V12+V13+V14)) -> 2184636.62 | X16: =IF(L16="N/A","N/A",IF(L16=0,"N/A",V16/L16)) -> 0.727812315

Sheet AHF Activity Detail page (hidden)
A1: ='ePSM Header Data Page'!H3 -> MIAMI DADE COLLEGE - Plan Sponsor ID 0000000080646693
A2: ='Cover Page'!A14:M14 -> Fully Insured AHF OA HNOLY with Pharmacy
A3: ='Cover Page'!A10 &'ePSM Header Data Page'!J6 -> Current Data For Claims Processed/Paid January 01, 2016 - March 31, 2016
A5: Aetna HealthFund Activity - Detail
A6: Currently Enrolled
B9: Total Fund Utilization | C9: Employees | E9: Percentage of Employees
B11: Spent 100% of Fund | C11: =ahf_total_emp_100_spend_curr -> 467 | E11: =IF(C19="N/A","N/A",IF(C19=0,"N/A",C11/C19)) -> 0.1886106624
B12: Spent Partial Fund
B13: 99% - 75% | C13: =ahf_total_emp_99_75_spend_curr -> 86 | E13: =IF(C19="N/A","N/A",IF(C19=0,"N/A",C13/C19)) -> 0.03473344103
B14: 74% - 50% | C14: =ahf_total_emp_74_50_spend_curr -> 195 | E14: =IF(C19="N/A","N/A",IF(C19=0,"N/A",C14/C19)) -> 0.07875605816
B15: 49% - 25% | C15: =ahf_total_emp_49_25_spend_curr -> 334 | E15: =IF(C19="N/A","N/A",IF(C19=0,"N/A",C15/C19)) -> 0.1348949919
B16: 24% - 1% | C16: =ahf_total_emp_24_1_spend_curr -> 650 | E16: =IF(C19="N/A","N/A",IF(C19=0,"N/A",C16/C19)) -> 0.2625201939
B17: Spent 0% of Fund | C17: =ahf_total_emp_0_spend_curr -> 744 | E17: =IF(C19="N/A","N/A",IF(C19=0,"N/A",C17/C19)) -> 0.3004846527
B19: Total | C19: =SUM(C11+C13+C14+C15+C16+C17) -> 2476 | E19: =IF(AND(E11="N/A",E13="N/A",E14="N/A",E15="N/A",E16="N/A",E17="N/A"),"N/A",SUM(E11+E13+E14+E15+E16+E17)) -> 1
B25: Fund Utilization by Tier | C25: Employee | E25: Employee + 1 | G25: Employee + 2 | I25: Employee + Family
B27: Spent 100% of Fund | C27: =IF(ahf_tier1_active_employee_curr="N/A","N/A",IF(ahf_tier1_active_employee_curr=0, "N/A", ahf_tier1_emp_100_spend_curr/ahf_tier1_active_employee_curr)) -> 0.178313253 | E27: =IF(ahf_tier2_active_employee_curr="N/A","N/A",IF(ahf_tier2_active_employee_curr=0, "N/A", ahf_tier2_emp_100_spend_curr/ahf_tier2_active_employee_curr)) -> N/A | G27: =IF(ahf_tier3_active_employee_curr="N/A","N/A",IF(ahf_tier3_active_employee_curr=0, "N/A", ahf_tier3_emp_100_spend_curr/ahf_tier3_active_employee_curr)) -> N/A | I27: =IF(ahf_tier4_active_employee_curr="N/A","N/A",IF(ahf_tier4_active_employee_curr=0, "N/A", ahf_tier4_emp_100_spend_curr/ahf_tier4_active_employee_curr)) -> 0.2418952618
B28: Spent Partial Fund
B29: 99% - 75% | C29: =IF(ahf_tier1_active_employee_curr="N/A","N/A",IF(ahf_tier1_active_employee_curr=0, "N/A", ahf_tier1_emp_99_75_spend_curr/ahf_tier1_active_employee_curr)) -> 0.03325301205 | E29: =IF(ahf_tier2_active_employee_curr="N/A","N/A",IF(ahf_tier2_active_employee_curr=0, "N/A", ahf_tier2_emp_99_75_spend_curr/ahf_tier2_active_employee_curr)) -> N/A | G29: =IF(ahf_tier3_active_employee_curr="N/A","N/A",IF(ahf_tier3_active_employee_curr=0, "N/A", ahf_tier3_emp_99_75_spend_curr/ahf_tier3_active_employee_curr)) -> N/A | I29: =IF(ahf_tier4_active_employee_curr="N/A","N/A",IF(ahf_tier4_active_employee_curr=0, "N/A", ahf_tier4_emp_99_75_spend_curr/ahf_tier4_active_employee_curr)) -> 0.04239401496
B30: 74% - 50% | C30: =IF(ahf_tier1_active_employee_curr="N/A","N/A",IF(ahf_tier1_active_employee_curr=0, "N/A", ahf_tier1_emp_74_50_spend_curr/ahf_tier1_active_employee_curr)) -> 0.07518072289 | E30: =IF(ahf_tier2_active_employee_curr="N/A","N/A",IF(ahf_tier2_active_employee_curr=0, "N/A", ahf_tier2_emp_74_50_spend_curr/ahf_tier2_active_employee_curr)) -> N/A | G30: =IF(ahf_tier3_active_employee_curr="N/A","N/A",IF(ahf_tier3_active_employee_curr=0, "N/A", ahf_tier3_emp_74_50_spend_curr/ahf_tier3_active_employee_curr)) -> N/A | I30: =IF(ahf_tier4_active_employee_curr="N/A","N/A",IF(ahf_tier4_active_employee_curr=0, "N/A", ahf_tier4_emp_74_50_spend_curr/ahf_tier4_active_employee_curr)) -> 0.09725685786
B31: 49% - 25% | C31: =IF(ahf_tier1_active_employee_curr="N/A","N/A",IF(ahf_tier1_active_employee_curr=0, "N/A", ahf_tier1_emp_49_25_spend_curr/ahf_tier1_active_employee_curr)) -> 0.1281927711 | E31: =IF(ahf_tier2_active_employee_curr="N/A","N/A",IF(ahf_tier2_active_employee_curr=0, "N/A", ahf_tier2_emp_49_25_spend_curr/ahf_tier2_active_employee_curr)) -> N/A | G31: =IF(ahf_tier3_active_employee_curr="N/A","N/A",IF(ahf_tier3_active_employee_curr=0, "N/A", ahf_tier3_emp_49_25_spend_curr/ahf_tier3_active_employee_curr)) -> N/A | I31: =IF(ahf_tier4_active_employee_curr="N/A","N/A",IF(ahf_tier4_active_employee_curr=0, "N/A", ahf_tier4_emp_49_25_spend_curr/ahf_tier4_active_employee_curr)) -> 0.1695760599
B32: 24% - 1% | C32: =IF(ahf_tier1_active_employee_curr="N/A","N/A",IF(ahf_tier1_active_employee_curr=0, "N/A", ahf_tier1_emp_24_1_spend_curr/ahf_tier1_active_employee_curr)) -> 0.2472289157 | E32: =IF(ahf_tier2_active_employee_curr="N/A","N/A",IF(ahf_tier2_active_employee_curr=0, "N/A", ahf_tier2_emp_24_1_spend_curr/ahf_tier2_active_employee_curr)) -> N/A | G32: =IF(ahf_tier3_active_employee_curr="N/A","N/A",IF(ahf_tier3_active_employee_curr=0, "N/A", ahf_tier3_emp_24_1_spend_curr/ahf_tier3_active_employee_curr)) -> N/A | I32: =IF(ahf_tier4_active_employee_curr="N/A","N/A",IF(ahf_tier4_active_employee_curr=0, "N/A", ahf_tier4_emp_24_1_spend_curr/ahf_tier4_active_employee_curr)) -> 0.3416458853
B33: Spent 0% of Fund | C33: =IF(ahf_tier1_active_employee_curr="N/A","N/A",IF(ahf_tier1_active_employee_curr=0, "N/A", ahf_tier1_emp_0_spend_curr/ahf_tier1_active_employee_curr)) -> 0.3378313253 | E33: =IF(ahf_tier2_active_employee_curr="N/A","N/A",IF(ahf_tier2_active_employee_curr=0, "N/A", ahf_tier2_emp_0_spend_curr/ahf_tier2_active_employee_curr)) -> N/A | G33: =IF(ahf_tier3_active_employee_curr="N/A","N/A",IF(ahf_tier3_active_employee_curr=0, "N/A", ahf_tier3_emp_0_spend_curr/ahf_tier3_active_employee_curr)) -> N/A | I33: =IF(ahf_tier4_active_employee_curr="N/A","N/A",IF(ahf_tier4_active_employee_curr=0, "N/A", ahf_tier4_emp_0_spend_curr/ahf_tier4_active_employee_curr)) -> 0.1072319202
C35: =IF(AND(C27="N/A",C29="N/A",C30="N/A",C31="N/A",C32="N/A",C33="N/A"),"N/A",SUM(C27+C29+C30+C31+C32+C33)) -> 1 | E35: =IF(AND(E27="N/A",E29="N/A",E30="N/A",E31="N/A",E32="N/A",E33="N/A"),"N/A",SUM(E27+E29+E30+E31+E32+E33)) -> N/A | G35: =IF(AND(G27="N/A",G29="N/A",G30="N/A",G31="N/A",G32="N/A",G33="N/A"),"N/A",SUM(G27+G29+G30+G31+G32+G33)) -> N/A | I35: =IF(AND(I27="N/A",I29="N/A",I30="N/A",I31="N/A",I32="N/A",I33="N/A"),"N/A",SUM(I27+I29+I30+I31+I32+I33)) -> 1
B37: Note: These figures exclude rollover dollars.

Sheet ADF Fund Summary Page (hidden)
A1: ='ePSM Header Data Page'!H3 -> MIAMI DADE COLLEGE - Plan Sponsor ID 0000000080646693
A2: ='Cover Page'!A14:M14 -> Fully Insured AHF OA HNOLY with Pharmacy
A3: ='Cover Page'!A10 &'ePSM Header Data Page'!J6 -> Current Data For Claims Processed/Paid January 01, 2016 - March 31, 2016
A5: Aetna DentalFund
A6: Fund Summary Report
B9: Currently Enrolled | G9: Terminated Coverage in Current Plan Year
B11: Fund Enrollment | G11: Fund Enrollment
B13: Total Employees | C13: =adf_total_active_employee_curr -> 0 | G13: Total Employees | H13: =adf_total_termd_active_employee_curr -> 0
B15: Employee Only | C15: =adf_tier1_active_employee_curr -> 0 | G15: Employee Only | H15: =adf_termed_tier1_active_employee_curr -> 0
B16: Employee +1 | C16: =adf_tier2_active_employee_curr -> 0 | G16: Employee +1 | H16: =adf_termed_tier2_active_employee_curr -> 0
B17: Employee + 2 | C17: =adf_tier3_active_employee_curr -> 0 | G17: Employee + 2 | H17: =adf_termed_tier3_active_employee_curr -> 0
B18: Employee + Family | C18: =adf_tier4_active_employee_curr -> 0 | G18: Employee + Family | H18: =adf_termed_tier4_active_employee_curr -> 0
B20: Current Year Initial Funds | C20: =adf_total_cr_year_initial_fund_curr -> 0 | G20: Current Year Initial Funds | H20: =adf_total_termd_cr_year_initial_fund_curr -> 0
B21: Current Year Incentive Funds Earned | C21: =adf_total_Incentive_fund_earned_curr -> 0 | G21: Current Year Incentive Funds Earned | H21: =adf_total_termd_Incentive_fund_earned_curr -> 0
B22: Rollover From Prior Year | C22: =adf_total_rollover_pr_year_curr + adf_act_total_fund_paid_curr -> 0 | G22: Rollover From Prior Year | H22: =adf_total_termd_rollover_pr_year_curr + adf_term_total_fund_paid_curr -> 0
B23: Total Funds Available | C23: =SUM(C20 + C21 +C22) -> 0 | G23: Total Funds Available | H23: =SUM(H20 + H21 +H22) -> 0
B27: Fund Activity | G27: Fund Activity
B29: Current Year Claims Paid with Current Year Funds | C29: =adf_total_cr_claim_paid_with_cr_funds_curr -> 0 | G29: Current Year Claims Paid with Current Year Funds | H29: =adf_total_termd_cr_claim_paid_with_cr_funds_curr -> 0
B30: Current Year Claims Paid with Rollover Funds | C30: =adf_total_cr_clm_paid_with_rollover_funds_curr -> 0 | G30: Current Year Claims Paid with Rollover Funds | H30: =adf_total_termd_cr_clm_paid_with_rollover_funds_curr -> 0
B31: Prior Year Claims Paid with Rollover Funds | C31: =adf_act_total_fund_paid_curr -> 0 | G31: Prior Year Claims Paid with Rollover Funds | H31: =adf_term_total_fund_paid_curr -> 0
B32: Total Current Year Claims Paid | C32: =SUM(C29:C31) -> 0 | G32: Total Current Year Claims Paid | H32: =SUM(H29:H31) -> 0
B34: Funds Remaining | G34: Funds Remaining
B36: Current Year Funds Remaining | C36: =IF(adf_total_cr_fund_remaining_curr<0,0,adf_total_cr_fund_remaining_curr) -> 0 | G36: Current Year Funds Remaining | H36: =IF(adf_total_termd_cr_fund_remaining_curr<0,0,adf_total_termd_cr_fund_remaining_curr) -> 0
B37: Rollover Funds Remaining | C37: =adf_total_rollover_fund_remaining_curr -> 0 | G37: Rollover Funds Remaining | H37: =adf_total_termd_rollover_fund_remaining_curr -> 0
B38: Total Funds Remaining | C38: =SUM(C36+C37) -> 0 | G38: Total Funds Remaining | H38: =SUM(H36+H37) -> 0

Sheet ADF Activity by Tier page (hidden)
A1: ='ePSM Header Data Page'!H3 -> MIAMI DADE COLLEGE - Plan Sponsor ID 0000000080646693
A2: ='Cover Page'!A14:M14 -> Fully Insured AHF OA HNOLY with Pharmacy
A3: ='Cover Page'!A10 &'ePSM Header Data Page'!J6 -> Current Data For Claims Processed/Paid January 01, 2016 - March 31, 2016
A5: Aetna DentalFund Activity By Tier
A6: Currently Enrolled
B9: Tier | D9: Employees | F9: Rollover From Prior Year | H9: Current Year Initial Funds | J9: Incentive Funds Earned | L9: Total Funds Available | N9: Current Year Claims Paid with Current Year Funds | P9: Current Year Claims Paid with Rollover Funds | R9: Prior Year Claims Paid with Rollover Funds | T9: Percent of Funds Paid | V9: Total Funds Remaining | X9: Percent of Funds Remaining
B11: Employee Only | D11: =adf_tier1_active_employee_curr -> 0 | F11: =adf_tier1_rollover_pr_year_curr+adf_act_emp_fund_paid_curr -> 0 | H11: =adf_tier1_cr_year_initial_fund_curr -> 0 | J11: =adf_tier1_Incentive_fund_earned_curr -> 0 | L11: =adf_tier1_tot_fund_available_curr+R11 -> 0 | N11: =adf_tier1_cr_claim_paid_with_cr_funds_curr -> 0 | P11: =adf_tier1_cr_clm_paid_with_rollover_funds_curr -> 0 | R11: =adf_act_emp_fund_paid_curr -> 0 | T11: =IF(L11="N/A","N/A",IF(L11=0,"N/A",(N11+P11+R11)/L11)) -> N/A | V11: =IF(adf_tier1_cr_fund_remaining_curr+adf_tier1_rollover_fund_remaining_curr<0,0,adf_tier1_cr_fund_remaining_curr+adf_tier1_rollover_fund_remaining_curr) -> 0 | X11: =IF(L11="N/A","N/A",IF(L11=0,"N/A",V11/L11)) -> N/A
B12: Employee +1 | D12: =adf_tier2_active_employee_curr -> 0 | F12: =adf_tier2_rollover_pr_year_curr+adf_act_emp_plus_1_fund_paid_curr -> 0 | H12: =adf_tier2_cr_year_initial_fund_curr -> 0 | J12: =adf_tier2_Incentive_fund_earned_curr -> 0 | L12: =adf_tier2_tot_fund_available_curr+R12 -> 0 | N12: =adf_tier2_cr_claim_paid_with_cr_funds_curr -> 0 | P12: =adf_tier2_cr_clm_paid_with_rollover_funds_curr -> 0 | R12: =adf_act_emp_plus_1_fund_paid_curr -> 0 | T12: =IF(L12="N/A","N/A",IF(L12=0,"N/A",(N12+P12+R12)/L12)) -> N/A | V12: =IF(adf_tier2_cr_fund_remaining_curr+adf_tier2_rollover_fund_remaining_curr<0,0,adf_tier2_cr_fund_remaining_curr+adf_tier2_rollover_fund_remaining_curr) -> 0 | X12: =IF(L12="N/A","N/A",IF(L12=0,"N/A",V12/L12)) -> N/A
B13: Employee + 2 | D13: =adf_tier3_active_employee_curr -> 0 | F13: =adf_tier3_rollover_pr_year_curr+adf_act_emp_plus_2_fund_paid_curr -> 0 | H13: =adf_tier3_cr_year_initial_fund_curr -> 0 | J13: =adf_tier3_Incentive_fund_earned_curr -> 0 | L13: =adf_tier3_tot_fund_available_curr+R13 -> 0 | N13: =adf_tier3_cr_claim_paid_with_cr_funds_curr -> 0 | P13: =adf_tier3_cr_clm_paid_with_rollover_funds_curr -> 0 | R13: =adf_act_emp_plus_2_fund_paid_curr -> 0 | T13: =IF(L13="N/A","N/A",IF(L13=0,"N/A",(N13+P13+R13)/L13)) -> N/A | V13: =IF(adf_tier3_cr_fund_remaining_curr+adf_tier3_rollover_fund_remaining_curr<0,0,adf_tier3_cr_fund_remaining_curr+adf_tier3_rollover_fund_remaining_curr) -> 0 | X13: =IF(L13="N/A","N/A",IF(L13=0,"N/A",V13/L13)) -> N/A
B14: Employee + Family | D14: =adf_tier4_active_employee_curr -> 0 | F14: =adf_tier4_rollover_pr_year_curr+adf_act_emp_plus_fam_fund_paid_curr -> 0 | H14: =adf_tier4_cr_year_initial_fund_curr -> 0 | J14: =adf_tier4_Incentive_fund_earned_curr -> 0 | L14: =adf_tier4_tot_fund_available_curr+R14 -> 0 | N14: =adf_tier4_cr_claim_paid_with_cr_funds_curr -> 0 | P14: =adf_tier4_cr_clm_paid_with_rollover_funds_curr -> 0 | R14: =adf_act_emp_plus_fam_fund_paid_curr -> 0 | T14: =IF(L14="N/A","N/A",IF(L14=0,"N/A",(N14+P14+R14)/L14)) -> N/A | V14: =IF(adf_tier4_cr_fund_remaining_curr+adf_tier4_rollover_fund_remaining_curr<0,0,adf_tier4_cr_fund_remaining_curr+adf_tier4_rollover_fund_remaining_curr) -> 0 | X14: =IF(L14="N/A","N/A",IF(L14=0,"N/A",V14/L14)) -> N/A
B16: Total | D16: =SUM(D11:D14) -> 0 | F16: =SUM(F11:F14) -> 0 | H16: =SUM(H11+H12+H13+H14) -> 0 | J16: =SUM(J11:J14) -> 0 | L16: =SUM(F16+H16+J16) -> 0 | N16: =SUM(N11+N12+N13+N14) -> 0 | P16: =SUM(P11+P12+P13+P14) -> 0 | R16: =SUM(R11+R12+R13+R14) -> 0 | T16: =IF(L16="N/A","N/A",IF(L16=0,"N/A",(N16+P16+R16)/L16)) -> N/A | V16: =IF(SUM(V11+V12+V13+V14)<0,0,SUM(V11+V12+V13+V14)) -> 0 | X16: =IF(L16="N/A","N/A",IF(L16=0,"N/A",V16/L16)) -> N/A

Sheet ADF Activity Detail page (hidden)
A1: ='ePSM Header Data Page'!H3 -> MIAMI DADE COLLEGE - Plan Sponsor ID 0000000080646693
A2: ='Cover Page'!A14:M14 -> Fully Insured AHF OA HNOLY with Pharmacy
A3: ='Cover Page'!A10 &'ePSM Header Data Page'!J6 -> Current Data For Claims Processed/Paid January 01, 2016 - March 31, 2016
A5: Aetna DentalFund Activity - Detail
A6: Currently Enrolled
B9: Total Fund Utilization | C9: Employees | E9: Percentage of Employees
B11: Spent 100% of Fund | C11: =adf_total_emp_100_spend_curr -> 0 | E11: =IF(C19="N/A","N/A",IF(C19=0,"N/A",C11/C19)) -> N/A
B12: Spent Partial Fund
B13: 99% - 75% | C13: =adf_total_emp_99_75_spend_curr -> 0 | E13: =IF(C19="N/A","N/A",IF(C19=0,"N/A",C13/C19)) -> N/A
B14: 74% - 50% | C14: =adf_total_emp_74_50_spend_curr -> 0 | E14: =IF(C19="N/A","N/A",IF(C19=0,"N/A",C14/C19)) -> N/A
B15: 49% - 25% | C15: =adf_total_emp_49_25_spend_curr -> 0 | E15: =IF(C19="N/A","N/A",IF(C19=0,"N/A",C15/C19)) -> N/A
B16: 24% - 1% | C16: =adf_total_emp_24_1_spend_curr -> 0 | E16: =IF(C19="N/A","N/A",IF(C19=0,"N/A",C16/C19)) -> N/A
B17: Spent 0% of Fund | C17: =adf_total_emp_0_spend_curr -> 0 | E17: =IF(C19="N/A","N/A",IF(C19=0,"N/A",C17/C19)) -> N/A
B19: Total | C19: =SUM(C11+C13+C14+C15+C16+C17) -> 0 | E19: =IF(AND(E11="N/A",E13="N/A",E14="N/A",E15="N/A",E16="N/A",E17="N/A"),"N/A",SUM(E11+E13+E14+E15+E16+E17)) -> N/A
B25: Fund Utilization by Tier | C25: Employee | E25: Employee + 1 | G25: Employee + 2 | I25: Employee + Family
B27: Spent 100% of Fund | C27: =IF(adf_tier1_active_employee_curr="N/A","N/A",IF(adf_tier1_active_employee_curr=0, "N/A", adf_tier1_emp_100_spend_curr/adf_tier1_active_employee_curr)) -> N/A | E27: =IF(adf_tier2_active_employee_curr="N/A","N/A",IF(adf_tier2_active_employee_curr=0, "N/A", adf_tier2_emp_100_spend_curr/adf_tier2_active_employee_curr)) -> N/A | G27: =IF(adf_tier3_active_employee_curr="N/A","N/A",IF(adf_tier3_active_employee_curr=0, "N/A", adf_tier3_emp_100_spend_curr/adf_tier3_active_employee_curr)) -> N/A | I27: =IF(adf_tier4_active_employee_curr="N/A","N/A",IF(adf_tier4_active_employee_curr=0, "N/A", adf_tier4_emp_100_spend_curr/adf_tier4_active_employee_curr)) -> N/A
B28: Spent Partial Fund
B29: 99% - 75% | C29: =IF(adf_tier1_active_employee_curr="N/A","N/A",IF(adf_tier1_active_employee_curr=0, "N/A", adf_tier1_emp_99_75_spend_curr/adf_tier1_active_employee_curr)) -> N/A | E29: =IF(adf_tier2_active_employee_curr="N/A","N/A",IF(adf_tier2_active_employee_curr=0, "N/A", adf_tier2_emp_99_75_spend_curr/adf_tier2_active_employee_curr)) -> N/A | G29: =IF(adf_tier3_active_employee_curr="N/A","N/A",IF(adf_tier3_active_employee_curr=0, "N/A", adf_tier3_emp_99_75_spend_curr/adf_tier3_active_employee_curr)) -> N/A | I29: =IF(adf_tier4_active_employee_curr="N/A","N/A",IF(adf_tier4_active_employee_curr=0, "N/A", adf_tier4_emp_99_75_spend_curr/adf_tier4_active_employee_curr)) -> N/A
B30: 74% - 50% | C30: =IF(adf_tier1_active_employee_curr="N/A","N/A",IF(adf_tier1_active_employee_curr=0, "N/A", adf_tier1_emp_74_50_spend_curr/adf_tier1_active_employee_curr)) -> N/A | E30: =IF(adf_tier2_active_employee_curr="N/A","N/A",IF(adf_tier2_active_employee_curr=0, "N/A", adf_tier2_emp_74_50_spend_curr/adf_tier2_active_employee_curr)) -> N/A | G30: =IF(adf_tier3_active_employee_curr="N/A","N/A",IF(adf_tier3_active_employee_curr=0, "N/A", adf_tier3_emp_74_50_spend_curr/adf_tier3_active_employee_curr)) -> N/A | I30: =IF(adf_tier4_active_employee_curr="N/A","N/A",IF(adf_tier4_active_employee_curr=0, "N/A", adf_tier4_emp_74_50_spend_curr/adf_tier4_active_employee_curr)) -> N/A
B31: 49% - 25% | C31: =IF(adf_tier1_active_employee_curr="N/A","N/A",IF(adf_tier1_active_employee_curr=0, "N/A", adf_tier1_emp_49_25_spend_curr/adf_tier1_active_employee_curr)) -> N/A | E31: =IF(adf_tier2_active_employee_curr="N/A","N/A",IF(adf_tier2_active_employee_curr=0, "N/A", adf_tier2_emp_49_25_spend_curr/adf_tier2_active_employee_curr)) -> N/A | G31: =IF(adf_tier3_active_employee_curr="N/A","N/A",IF(adf_tier3_active_employee_curr=0, "N/A", adf_tier3_emp_49_25_spend_curr/adf_tier3_active_employee_curr)) -> N/A | I31: =IF(adf_tier4_active_employee_curr="N/A","N/A",IF(adf_tier4_active_employee_curr=0, "N/A", adf_tier4_emp_49_25_spend_curr/adf_tier4_active_employee_curr)) -> N/A
B32: 24% - 1% | C32: =IF(adf_tier1_active_employee_curr="N/A","N/A",IF(adf_tier1_active_employee_curr=0, "N/A", adf_tier1_emp_24_1_spend_curr/adf_tier1_active_employee_curr)) -> N/A | E32: =IF(adf_tier2_active_employee_curr="N/A","N/A",IF(adf_tier2_active_employee_curr=0, "N/A", adf_tier2_emp_24_1_spend_curr/adf_tier2_active_employee_curr)) -> N/A | G32: =IF(adf_tier3_active_employee_curr="N/A","N/A",IF(adf_tier3_active_employee_curr=0, "N/A", adf_tier3_emp_24_1_spend_curr/adf_tier3_active_employee_curr)) -> N/A | I32: =IF(adf_tier4_active_employee_curr="N/A","N/A",IF(adf_tier4_active_employee_curr=0, "N/A", adf_tier4_emp_24_1_spend_curr/adf_tier4_active_employee_curr)) -> N/A
B33: Spent 0% of Fund | C33: =IF(adf_tier1_active_employee_curr="N/A","N/A",IF(adf_tier1_active_employee_curr=0, "N/A", adf_tier1_emp_0_spend_curr/adf_tier1_active_employee_curr)) -> N/A | E33: =IF(adf_tier2_active_employee_curr="N/A","N/A",IF(adf_tier2_active_employee_curr=0, "N/A", adf_tier2_emp_0_spend_curr/adf_tier2_active_employee_curr)) -> N/A | G33: =IF(adf_tier3_active_employee_curr="N/A","N/A",IF(adf_tier3_active_employee_curr=0, "N/A", adf_tier3_emp_0_spend_curr/adf_tier3_active_employee_curr)) -> N/A | I33: =IF(adf_tier4_active_employee_curr="N/A","N/A",IF(adf_tier4_active_employee_curr=0, "N/A", adf_tier4_emp_0_spend_curr/adf_tier4_active_employee_curr)) -> N/A
C35: =IF(AND(C27="N/A",C29="N/A",C30="N/A",C31="N/A",C32="N/A",C33="N/A"),"N/A",SUM(C27+C29+C30+C31+C32+C33)) -> N/A | E35: =IF(AND(E27="N/A",E29="N/A",E30="N/A",E31="N/A",E32="N/A",E33="N/A"),"N/A",SUM(E27+E29+E30+E31+E32+E33)) -> N/A | G35: =IF(AND(G27="N/A",G29="N/A",G30="N/A",G31="N/A",G32="N/A",G33="N/A"),"N/A",SUM(G27+G29+G30+G31+G32+G33)) -> N/A | I35: =IF(AND(I27="N/A",I29="N/A",I30="N/A",I31="N/A",I32="N/A",I33="N/A"),"N/A",SUM(I27+I29+I30+I31+I32+I33)) -> N/A
B37: Note: These figures exclude rollover dollars.

Sheet ePSM Read Me Page (hidden)
A1: I) Data sources with limitations - Move N/A to source fields Need to update formula's that use these data sources when below fields are added | B1: Change log date | C1: change log comment
A2: 1) Member - plan_id **Status: Removed N/A's as of May 2004**
A3: 2) Si_plsp_capitation - no account or plan | B3: 2005-02-28 | C3: create ePSM custom menus when version >= Excel 2002
A4: 3) Financial_model - no subgroup, account or plan | B4: 2005-03-01 | C4: re-add LUF2 amounts to "current paid from fund"
B5: June 2005 S/R | C5: Add claim lag to all report headers
B6: June 2005 S/R | C6: HPD footnotes
B7: June 2005 S/R | C7: HPD Community Rated - bring in line with medical package
A8: II) Run these macros when creating individual templates from master template: | B8: June 2005 S/R | C8: Exec Summary - remove Rx from overview when rx_paid < $100
A9: 1) SI Dental Template Creation: Run "Create_SI_Dental_WorkBook" | B9: June P4446D-BH
A10: 2) FI Dental Template Creation: Run "Create_FI_Dental_WorkBook"
A11: 3) Pharmacy Template Creation: Run "Create_SI_Pharmacy_WorkBook"
A12: 4) FI Medical Template Creation: Run "Create_FI_Medical_WorkBook"
A13: 5) SI Medical Template Creation: Run "Create_SI_Medical_WorkBook"
A14: 6) FI DrillDown Medical Template Creation: Run "Create_FI_Drill_Down_Medical_WorkBook"
A15: 7) FI Community Rated Medical Template Creation: Run "Create_FI_Community_Rated_Medical_WorkBook"
A16: 8) AHF Activity: Run "Create_AHF_Activity_WorkBook"
A17: 9) Summary by Product: Run "Create_Summary_by_Product_WorkBook"
A18: 10) Summary by Product: Run "Create_SI_BH_WorkBook"
A19: III) These macros can be used to hide or unhide the ePSM data tabs. These data pages can aid in problem investigations
A20: 1) Hide (very hidden) data pages: Run "HideDataTabs"
A21: 2) UnHide data pages: Run "UnHideDataTabs"

Sheet ePSM Security Page (hidden)
A1: FI Community Rated Deletes | D1: FI Drill Down Deletes | G1: FI Dental Deletes | J1: SI Dental Deletes | M1: SI Rx Deletes | P1: FI Medical Deletes | S1: SI Medical Deletes | V1: AHF Activity Deletes | Y1: Summary by Product Deletes
A2: Field Name | B2: Delete Indicator | D2: Field Name | E2: Delete Indicator | G2: Field Name | H2: Delete Indicator | J2: Field Name | K2: Delete Indicator | M2: Field Name | N2: Delete Indicator | P2: Field Name | Q2: Delete Indicator | S2: Field Name | T2: Delete Indicator | V2: Field Name | W2: Delete Indicator | Y2: Field Name | Z2: Delete Indicator
A4: Med_paid_amt_curr | B4: Y | D4: Med_paid_amt_curr | E4: N | G4: Med_paid_amt_curr | H4: Y | J4: Med_paid_amt_curr | K4: Y | M4: Med_paid_amt_curr | N4: Y | P4: Med_paid_amt_curr | Q4: N | S4: Med_paid_amt_curr | T4: N | V4: Med_paid_amt_curr | W4: Y | Y4: Med_paid_amt_curr | Z4: Y
A5: Med_inp_paid_amt_curr | B5: Y | D5: Med_inp_paid_amt_curr | E5: Y | G5: Med_inp_paid_amt_curr | H5: Y | J5: Med_inp_paid_amt_curr | K5: Y | M5: Med_inp_paid_amt_curr | N5: Y | P5: Med_inp_paid_amt_curr | Q5: N | S5: Med_inp_paid_amt_curr | T5: N | V5: Med_inp_paid_amt_curr | W5: Y | Y5: Med_inp_paid_amt_curr | Z5: Y
A6: Med_amb_paid_amt_curr | B6: Y | D6: Med_amb_paid_amt_curr | E6: Y | G6: Med_amb_paid_amt_curr | H6: Y | J6: Med_amb_paid_amt_curr | K6: Y | M6: Med_amb_paid_amt_curr | N6: Y | P6: Med_amb_paid_amt_curr | Q6: N | S6: Med_amb_paid_amt_curr | T6: N | V6: Med_amb_paid_amt_curr | W6: Y | Y6: Med_amb_paid_amt_curr | Z6: Y
A7: Med_admit_count_curr | B7: N | D7: Med_admit_count_curr | E7: N | G7: Med_admit_count_curr | H7: Y | J7: Med_admit_count_curr | K7: Y | M7: Med_admit_count_curr | N7: Y | P7: Med_admit_count_curr | Q7: N | S7: Med_admit_count_curr | T7: N | V7: Med_admit_count_curr | W7: Y | Y7: Med_admit_count_curr | Z7: Y
A8: Med_days_count_curr | B8: N | D8: Med_days_count_curr | E8: N | G8: Med_days_count_curr | H8: Y | J8: Med_days_count_curr | K8: Y | M8: Med_days_count_curr | N8: Y | P8: Med_days_count_curr | Q8: N | S8: Med_days_count_curr | T8: N | V8: Med_days_count_curr | W8: Y | Y8: Med_days_count_curr | Z8: Y
A9: Med_surgery_count_curr | B9: N | D9: Med_surgery_count_curr | E9: N | G9: Med_surgery_count_curr | H9: Y | J9: Med_surgery_count_curr | K9: Y | M9: Med_surgery_count_curr | N9: Y | P9: Med_surgery_count_curr | Q9: N | S9: Med_surgery_count_curr | T9: N | V9: Med_surgery_count_curr | W9: Y | Y9: Med_surgery_count_curr | Z9: Y
A10: Med_inp_surgery_count_curr | B10: N | D10: Med_inp_surgery_count_curr | E10: N | G10: Med_inp_surgery_count_curr | H10: Y | J10: Med_inp_surgery_count_curr | K10: Y | M10: Med_inp_surgery_count_curr | N10: Y | P10: Med_inp_surgery_count_curr | Q10: N | S10: Med_inp_surgery_count_curr | T10: N | V10: Med_inp_surgery_count_curr | W10: Y | Y10: Med_inp_surgery_count_curr | Z10: Y
A11: Med_amb_surgery_count_curr | B11: N | D11: Med_amb_surgery_count_curr | E11: N | G11: Med_amb_surgery_count_curr | H11: Y | J11: Med_amb_surgery_count_curr | K11: Y | M11: Med_amb_surgery_count_curr | N11: Y | P11: Med_amb_surgery_count_curr | Q11: N | S11: Med_amb_surgery_count_curr | T11: N | V11: Med_amb_surgery_count_curr | W11: Y | Y11: Med_amb_surgery_count_curr | Z11: Y
A12: Med_office_visits_count_curr | B12: N | D12: Med_office_visits_count_curr | E12: N | G12: Med_office_visits_count_curr | H12: Y | J12: Med_office_visits_count_curr | K12: Y | M12: Med_office_visits_count_curr | N12: Y | P12: Med_office_visits_count_curr | Q12: N | S12: Med_office_visits_count_curr | T12: N | V12: Med_office_visits_count_curr | W12: Y | Y12: Med_office_visits_count_curr | Z12: Y
A13: Med_er_visits_count_curr | B13: N | D13: Med_er_visits_count_curr | E13: N | G13: Med_er_visits_count_curr | H13: Y | J13: Med_er_visits_count_curr | K13: Y | M13: Med_er_visits_count_curr | N13: Y | P13: Med_er_visits_count_curr | Q13: N | S13: Med_er_visits_count_curr | T13: N | V13: Med_er_visits_count_curr | W13: Y | Y13: Med_er_visits_count_curr | Z13: Y
A14: Med_claim_count_curr | B14: Y | D14: Med_claim_count_curr | E14: Y | G14: Med_claim_count_curr | H14: Y | J14: Med_claim_count_curr | K14: Y | M14: Med_claim_count_curr | N14: Y | P14: Med_claim_count_curr | Q14: N | S14: Med_claim_count_curr | T14: N | V14: Med_claim_count_curr | W14: Y | Y14: Med_claim_count_curr | Z14: Y
A15: Med_claim_count_above_threshold_curr | B15: Y | D15: Med_claim_count_above_threshold_curr | E15: Y | G15: Med_claim_count_above_threshold_curr | H15: Y | J15: Med_claim_count_above_threshold_curr | K15: Y | M15: Med_claim_count_above_threshold_curr | N15: Y | P15: Med_claim_count_above_threshold_curr | Q15: N | S15: Med_claim_count_above_threshold_curr | T15: N | V15: Med_claim_count_above_threshold_curr | W15: Y | Y15: Med_claim_count_above_threshold_curr | Z15: Y
A16: Med_paid_amt_above_threshold_curr | B16: Y | D16: Med_paid_amt_above_threshold_curr | E16: Y | G16: Med_paid_amt_above_threshold_curr | H16: Y | J16: Med_paid_amt_above_threshold_curr | K16: Y | M16: Med_paid_amt_above_threshold_curr | N16: Y | P16: Med_paid_amt_above_threshold_curr | Q16: N | S16: Med_paid_amt_above_threshold_curr | T16: N | V16: Med_paid_amt_above_threshold_curr | W16: Y | Y16: Med_paid_amt_above_threshold_curr | Z16: Y
A17: Med_inp_paid_amt_above_threshold_curr | B17: Y | D17: Med_inp_paid_amt_above_threshold_curr | E17: Y | G17: Med_inp_paid_amt_above_threshold_curr | H17: Y | J17: Med_inp_paid_amt_above_threshold_curr | K17: Y | M17: Med_inp_paid_amt_above_threshold_curr | N17: Y | P17: Med_inp_paid_amt_above_threshold_curr | Q17: N | S17: Med_inp_paid_amt_above_threshold_curr | T17: N | V17: Med_inp_paid_amt_above_threshold_curr | W17: Y | Y17: Med_inp_paid_amt_above_threshold_curr | Z17: Y
A18: Med_amb_paid_amt_above_threshold_curr | B18: Y | D18: Med_amb_paid_amt_above_threshold_curr | E18: Y | G18: Med_amb_paid_amt_above_threshold_curr | H18: Y | J18: Med_amb_paid_amt_above_threshold_curr | K18: Y | M18: Med_amb_paid_amt_above_threshold_curr | N18: Y | P18: Med_amb_paid_amt_above_threshold_curr | Q18: N | S18: Med_amb_paid_amt_above_threshold_curr | T18: N | V18: Med_amb_paid_amt_above_threshold_curr | W18: Y | Y18: Med_amb_paid_amt_above_threshold_curr | Z18: Y
A19: Med_par_admit_count_curr | B19: Y | D19: Med_par_admit_count_curr | E19: N | G19: Med_par_admit_count_curr | H19: Y | J19: Med_par_admit_count_curr | K19: Y | M19: Med_par_admit_count_curr | N19: Y | P19: Med_par_admit_count_curr | Q19: N | S19: Med_par_admit_count_curr | T19: N | V19: Med_par_admit_count_curr | W19: Y | Y19: Med_par_admit_count_curr | Z19: Y
A20: Med_par_phys_office_visits_count_curr | B20: Y | D20: Med_par_phys_office_visits_count_curr | E20: N | G20: Med_par_phys_office_visits_count_curr | H20: Y | J20: Med_par_phys_office_visits_count_curr | K20: Y | M20: Med_par_phys_office_visits_count_curr | N20: Y | P20: Med_par_phys_office_visits_count_curr | Q20: N | S20: Med_par_phys_office_visits_count_curr | T20: N | V20: Med_par_phys_office_visits_count_curr | W20: Y | Y20: Med_par_phys_office_visits_count_curr | Z20: Y
A21: Med_phys_office_visits_count_curr | B21: Y | D21: Med_phys_office_visits_count_curr | E21: N | G21: Med_phys_office_visits_count_curr | H21: Y | J21: Med_phys_office_visits_count_curr | K21: Y | M21: Med_phys_office_visits_count_curr | N21: Y | P21: Med_phys_office_visits_count_curr | Q21: N | S21: Med_phys_office_visits_count_curr | T21: N | V21: Med_phys_office_visits_count_curr | W21: Y | Y21: Med_phys_office_visits_count_curr | Z21: Y
A22: Med_par_paid_amt_curr | B22: Y | D22: Med_par_paid_amt_curr | E22: N | G22: Med_par_paid_amt_curr | H22: Y | J22: Med_par_paid_amt_curr | K22: Y | M22: Med_par_paid_amt_curr | N22: Y | P22: Med_par_paid_amt_curr | Q22: N | S22: Med_par_paid_amt_curr | T22: N | V22: Med_par_paid_amt_curr | W22: Y | Y22: Med_par_paid_amt_curr | Z22: Y
A23: Med_allowed_amt_curr | B23: Y | D23: Med_allowed_amt_curr | E23: N | G23: Med_allowed_amt_curr | H23: Y | J23: Med_allowed_amt_curr | K23: Y | M23: Med_allowed_amt_curr | N23: Y | P23: Med_allowed_amt_curr | Q23: N | S23: Med_allowed_amt_curr | T23: N | V23: Med_allowed_amt_curr | W23: Y | Y23: Med_allowed_amt_curr | Z23: Y
A24: Med_cob_amt_curr | B24: Y | D24: Med_cob_amt_curr | E24: N | G24: Med_cob_amt_curr | H24: Y | J24: Med_cob_amt_curr | K24: Y | M24: Med_cob_amt_curr | N24: Y | P24: Med_cob_amt_curr | Q24: N | S24: Med_cob_amt_curr | T24: N | V24: Med_cob_amt_curr | W24: Y | Y24: Med_cob_amt_curr | Z24: Y
A25: Med_deductible_amt_curr | B25: Y | D25: Med_deductible_amt_curr | E25: N | G25: Med_deductible_amt_curr | H25: Y | J25: Med_deductible_amt_curr | K25: Y | M25: Med_deductible_amt_curr | N25: Y | P25: Med_deductible_amt_curr | Q25: N | S25: Med_deductible_amt_curr | T25: N | V25: Med_deductible_amt_curr | W25: Y | Y25: Med_deductible_amt_curr | Z25: Y
A26: Med_copay_amt_curr | B26: Y | D26: Med_copay_amt_curr | E26: N | G26: Med_copay_amt_curr | H26: Y | J26: Med_copay_amt_curr | K26: Y | M26: Med_copay_amt_curr | N26: Y | P26: Med_copay_amt_curr | Q26: N | S26: Med_copay_amt_curr | T26: N | V26: Med_copay_amt_curr | W26: Y | Y26: Med_copay_amt_curr | Z26: Y
A27: Med_coinsurance_amt_curr | B27: Y | D27: Med_coinsurance_amt_curr | E27: N | G27: Med_coinsurance_amt_curr | H27: Y | J27: Med_coinsurance_amt_curr | K27: Y | M27: Med_coinsurance_amt_curr | N27: Y | P27: Med_coinsurance_amt_curr | Q27: N | S27: Med_coinsurance_amt_curr | T27: N | V27: Med_coinsurance_amt_curr | W27: Y | Y27: Med_coinsurance_amt_curr | Z27: Y
A28: Dental_paid_amt_curr | B28: Y | D28: Dental_paid_amt_curr | E28: Y | G28: Dental_paid_amt_curr | H28: N | J28: Dental_paid_amt_curr | K28: N | M28: Dental_paid_amt_curr | N28: Y | P28: Dental_paid_amt_curr | Q28: Y | S28: Dental_paid_amt_curr | T28: Y | V28: Dental_paid_amt_curr | W28: Y | Y28: Dental_paid_amt_curr | Z28: Y
A29: Dental_key_results_network_discount_amt_curr | B29: Y | D29: Dental_key_results_network_discount_amt_curr | E29: Y | G29: Dental_key_results_network_discount_amt_curr | H29: N | J29: Dental_key_results_network_discount_amt_curr | K29: N | M29: Dental_key_results_network_discount_amt_curr | N29: Y | P29: Dental_key_results_network_discount_amt_curr | Q29: Y | S29: Dental_key_results_network_discount_amt_curr | T29: Y | V29: Dental_key_results_network_discount_amt_curr | W29: Y | Y29: Dental_key_results_network_discount_amt_curr | Z29: Y
A30: Dental_key_results_network_paid_amt_curr | B30: Y | D30: Dental_key_results_network_paid_amt_curr | E30: Y | G30: Dental_key_results_network_paid_amt_curr | H30: N | J30: Dental_key_results_network_paid_amt_curr | K30: N | M30: Dental_key_results_network_paid_amt_curr | N30: Y | P30: Dental_key_results_network_paid_amt_curr | Q30: Y | S30: Dental_key_results_network_paid_amt_curr | T30: Y | V30: Dental_key_results_network_paid_amt_curr | W30: Y | Y30: Dental_key_results_network_paid_amt_curr | Z30: Y
A31: Dental_key_results_rc_savings_amt_curr | B31: Y | D31: Dental_key_results_rc_savings_amt_curr | E31: Y | G31: Dental_key_results_rc_savings_amt_curr | H31: N | J31: Dental_key_results_rc_savings_amt_curr | K31: N | M31: Dental_key_results_rc_savings_amt_curr | N31: Y | P31: Dental_key_results_rc_savings_amt_curr | Q31: Y | S31: Dental_key_results_rc_savings_amt_curr | T31: Y | V31: Dental_key_results_rc_savings_amt_curr | W31: Y | Y31: Dental_key_results_rc_savings_amt_curr | Z31: Y
A32: Dental_cost_share_allowed_amt_curr | B32: Y | D32: Dental_cost_share_allowed_amt_curr | E32: Y | G32: Dental_cost_share_allowed_amt_curr | H32: N | J32: Dental_cost_share_allowed_amt_curr | K32: N | M32: Dental_cost_share_allowed_amt_curr | N32: Y | P32: Dental_cost_share_allowed_amt_curr | Q32: Y | S32: Dental_cost_share_allowed_amt_curr | T32: Y | V32: Dental_cost_share_allowed_amt_curr | W32: Y | Y32: Dental_cost_share_allowed_amt_curr | Z32: Y
A33: Dental_cost_share_cob_amt_curr | B33: Y | D33: Dental_cost_share_cob_amt_curr | E33: Y | G33: Dental_cost_share_cob_amt_curr | H33: N | J33: Dental_cost_share_cob_amt_curr | K33: N | M33: Dental_cost_share_cob_amt_curr | N33: Y | P33: Dental_cost_share_cob_amt_curr | Q33: Y | S33: Dental_cost_share_cob_amt_curr | T33: Y | V33: Dental_cost_share_cob_amt_curr | W33: Y | Y33: Dental_cost_share_cob_amt_curr | Z33: Y
A34: Dental_cost_share_deductible_amt_curr | B34: Y | D34: Dental_cost_share_deductible_amt_curr | E34: Y | G34: Dental_cost_share_deductible_amt_curr | H34: N | J34: Dental_cost_share_deductible_amt_curr | K34: N | M34: Dental_cost_share_deductible_amt_curr | N34: Y | P34: Dental_cost_share_deductible_amt_curr | Q34: Y | S34: Dental_cost_share_deductible_amt_curr | T34: Y | V34: Dental_cost_share_deductible_amt_curr | W34: Y | Y34: Dental_cost_share_deductible_amt_curr | Z34: Y
A35: Dental_cost_share_coins_amt_curr | B35: Y | D35: Dental_cost_share_coins_amt_curr | E35: Y | G35: Dental_cost_share_coins_amt_curr | H35: N | J35: Dental_cost_share_coins_amt_curr | K35: N | M35: Dental_cost_share_coins_amt_curr | N35: Y | P35: Dental_cost_share_coins_amt_curr | Q35: Y | S35: Dental_cost_share_coins_amt_curr | T35: Y | V35: Dental_cost_share_coins_amt_curr | W35: Y | Y35: Dental_cost_share_coins_amt_curr | Z35: Y
A36: Dental_employee_paid_amt_curr | B36: Y | D36: Dental_employee_paid_amt_curr | E36: Y | G36: Dental_employee_paid_amt_curr | H36: N | J36: Dental_employee_paid_amt_curr | K36: N | M36: Dental_employee_paid_amt_curr | N36: Y | P36: Dental_employee_paid_amt_curr | Q36: Y | S36: Dental_employee_paid_amt_curr | T36: Y | V36: Dental_employee_paid_amt_curr | W36: Y | Y36: Dental_employee_paid_amt_curr | Z36: Y
A37: Dental_dependent_paid_amt_curr | B37: Y | D37: Dental_dependent_paid_amt_curr | E37: Y | G37: Dental_dependent_paid_amt_curr | H37: N | J37: Dental_dependent_paid_amt_curr | K37: N | M37: Dental_dependent_paid_amt_curr | N37: Y | P37: Dental_dependent_paid_amt_curr | Q37: Y | S37: Dental_dependent_paid_amt_curr | T37: Y | V37: Dental_dependent_paid_amt_curr | W37: Y | Y37: Dental_dependent_paid_amt_curr | Z37: Y
A38: Med_hospital_paid_amt_curr | B38: Y | D38: Med_hospital_paid_amt_curr | E38: Y | G38: Med_hospital_paid_amt_curr | H38: Y | J38: Med_hospital_paid_amt_curr | K38: Y | M38: Med_hospital_paid_amt_curr | N38: Y | P38: Med_hospital_paid_amt_curr | Q38: N | S38: Med_hospital_paid_amt_curr | T38: N | V38: Med_hospital_paid_amt_curr | W38: Y | Y38: Med_hospital_paid_amt_curr | Z38: Y
A39: Med_hospital_inp_paid_amt_curr | B39: Y | D39: Med_hospital_inp_paid_amt_curr | E39: Y | G39: Med_hospital_inp_paid_amt_curr | H39: Y | J39: Med_hospital_inp_paid_amt_curr | K39: Y | M39: Med_hospital_inp_paid_amt_curr | N39: Y | P39: Med_hospital_inp_paid_amt_curr | Q39: N | S39: Med_hospital_inp_paid_amt_curr | T39: N | V39: Med_hospital_inp_paid_amt_curr | W39: Y | Y39: Med_hospital_inp_paid_amt_curr | Z39: Y
A40: Med_hospital_amb_paid_amt_curr | B40: Y | D40: Med_hospital_amb_paid_amt_curr | E40: Y | G40: Med_hospital_amb_paid_amt_curr | H40: Y | J40: Med_hospital_amb_paid_amt_curr | K40: Y | M40: Med_hospital_amb_paid_amt_curr | N40: Y | P40: Med_hospital_amb_paid_amt_curr | Q40: N | S40: Med_hospital_amb_paid_amt_curr | T40: N | V40: Med_hospital_amb_paid_amt_curr | W40: Y | Y40: Med_hospital_amb_paid_amt_curr | Z40: Y
A41: Med_billed_amt_curr | B41: N | D41: Med_billed_amt_curr | E41: Y | G41: Med_billed_amt_curr | H41: Y | J41: Med_billed_amt_curr | K41: Y | M41: Med_billed_amt_curr | N41: Y | P41: Med_billed_amt_curr | Q41: N | S41: Med_billed_amt_curr | T41: N | V41: Med_billed_amt_curr | W41: Y | Y41: Med_billed_amt_curr | Z41: Y
A42: Med_inp_billed_amt_curr | B42: N | D42: Med_inp_billed_amt_curr | E42: Y | G42: Med_inp_billed_amt_curr | H42: Y | J42: Med_inp_billed_amt_curr | K42: Y | M42: Med_inp_billed_amt_curr | N42: Y | P42: Med_inp_billed_amt_curr | Q42: N | S42: Med_inp_billed_amt_curr | T42: N | V42: Med_inp_billed_amt_curr | W42: Y | Y42: Med_inp_billed_amt_curr | Z42: Y
A43: Med_amb_billed_amt_curr | B43: N | D43: Med_amb_billed_amt_curr | E43: Y | G43: Med_amb_billed_amt_curr | H43: Y | J43: Med_amb_billed_amt_curr | K43: Y | M43: Med_amb_billed_amt_curr | N43: Y | P43: Med_amb_billed_amt_curr | Q43: N | S43: Med_amb_billed_amt_curr | T43: N | V43: Med_amb_billed_amt_curr | W43: Y | Y43: Med_amb_billed_amt_curr | Z43: Y
A44: Med_paid_amt_prior | B44: Y | D44: Med_paid_amt_prior | E44: N | G44: Med_paid_amt_prior | H44: Y | J44: Med_paid_amt_prior | K44: Y | M44: Med_paid_amt_prior | N44: Y | P44: Med_paid_amt_prior | Q44: N | S44: Med_paid_amt_prior | T44: N | V44: Med_paid_amt_prior | W44: Y | Y44: Med_paid_amt_prior | Z44: Y
A45: Med_inp_paid_amt_prior | B45: Y | D45: Med_inp_paid_amt_prior | E45: Y | G45: Med_inp_paid_amt_prior | H45: Y | J45: Med_inp_paid_amt_prior | K45: Y | M45: Med_inp_paid_amt_prior | N45: Y | P45: Med_inp_paid_amt_prior | Q45: N | S45: Med_inp_paid_amt_prior | T45: N | V45: Med_inp_paid_amt_prior | W45: Y | Y45: Med_inp_paid_amt_prior | Z45: Y
A46: Med_amb_paid_amt_prior | B46: Y | D46: Med_amb_paid_amt_prior | E46: Y | G46: Med_amb_paid_amt_prior | H46: Y | J46: Med_amb_paid_amt_prior | K46: Y | M46: Med_amb_paid_amt_prior | N46: Y | P46: Med_amb_paid_amt_prior | Q46: N | S46: Med_amb_paid_amt_prior | T46: N | V46: Med_amb_paid_amt_prior | W46: Y | Y46: Med_amb_paid_amt_prior | Z46: Y
A47: Med_admit_count_prior | B47: N | D47: Med_admit_count_prior | E47: N | G47: Med_admit_count_prior | H47: Y | J47: Med_admit_count_prior | K47: Y | M47: Med_admit_count_prior | N47: Y | P47: Med_admit_count_prior | Q47: N | S47: Med_admit_count_prior | T47: N | V47: Med_admit_count_prior | W47: Y | Y47: Med_admit_count_prior | Z47: Y
A48: Med_days_count_prior | B48: N | D48: Med_days_count_prior | E48: N | G48: Med_days_count_prior | H48: Y | J48: Med_days_count_prior | K48: Y | M48: Med_days_count_prior | N48: Y | P48: Med_days_count_prior | Q48: N | S48: Med_days_count_prior | T48: N | V48: Med_days_count_prior | W48: Y | Y48: Med_days_count_prior | Z48: Y
A49: Med_surgery_count_prior | B49: N | D49: Med_surgery_count_prior | E49: N | G49: Med_surgery_count_prior | H49: Y | J49: Med_surgery_count_prior | K49: Y | M49: Med_surgery_count_prior | N49: Y | P49: Med_surgery_count_prior | Q49: N | S49: Med_surgery_count_prior | T49: N | V49: Med_surgery_count_prior | W49: Y | Y49: Med_surgery_count_prior | Z49: Y
A50: Med_inp_surgery_count_prior | B50: N | D50: Med_inp_surgery_count_prior | E50: N | G50: Med_inp_surgery_count_prior | H50: Y | J50: Med_inp_surgery_count_prior | K50: Y | M50: Med_inp_surgery_count_prior | N50: Y | P50: Med_inp_surgery_count_prior | Q50: N | S50: Med_inp_surgery_count_prior | T50: N | V50: Med_inp_surgery_count_prior | W50: Y | Y50: Med_inp_surgery_count_prior | Z50: Y
A51: Med_amb_surgery_count_prior | B51: N | D51: Med_amb_surgery_count_prior | E51: N | G51: Med_amb_surgery_count_prior | H51: Y | J51: Med_amb_surgery_count_prior | K51: Y | M51: Med_amb_surgery_count_prior | N51: Y | P51: Med_amb_surgery_count_prior | Q51: N | S51: Med_amb_surgery_count_prior | T51: N | V51: Med_amb_surgery_count_prior | W51: Y | Y51: Med_amb_surgery_count_prior | Z51: Y
A52: Med_office_visits_count_prior | B52: N | D52: Med_office_visits_count_prior | E52: N | G52: Med_office_visits_count_prior | H52: Y | J52: Med_office_visits_count_prior | K52: Y | M52: Med_office_visits_count_prior | N52: Y | P52: Med_office_visits_count_prior | Q52: N | S52: Med_office_visits_count_prior | T52: N | V52: Med_office_visits_count_prior | W52: Y | Y52: Med_office_visits_count_prior | Z52: Y
A53: Med_er_visits_count_prior | B53: N | D53: Med_er_visits_count_prior | E53: N | G53: Med_er_visits_count_prior | H53: Y | J53: Med_er_visits_count_prior | K53: Y | M53: Med_er_visits_count_prior | N53: Y | P53: Med_er_visits_count_prior | Q53: N | S53: Med_er_visits_count_prior | T53: N | V53: Med_er_visits_count_prior | W53: Y | Y53: Med_er_visits_count_prior | Z53: Y
A54: Med_claim_count_prior | B54: Y | D54: Med_claim_count_prior | E54: Y | G54: Med_claim_count_prior | H54: Y | J54: Med_claim_count_prior | K54: Y | M54: Med_claim_count_prior | N54: Y | P54: Med_claim_count_prior | Q54: N | S54: Med_claim_count_prior | T54: N | V54: Med_claim_count_prior | W54: Y | Y54: Med_claim_count_prior | Z54: Y
A55: Med_claim_count_above_threshold_prior | B55: Y | D55: Med_claim_count_above_threshold_prior | E55: Y | G55: Med_claim_count_above_threshold_prior | H55: Y | J55: Med_claim_count_above_threshold_prior | K55: Y | M55: Med_claim_count_above_threshold_prior | N55: Y | P55: Med_claim_count_above_threshold_prior | Q55: N | S55: Med_claim_count_above_threshold_prior | T55: N | V55: Med_claim_count_above_threshold_prior | W55: Y | Y55: Med_claim_count_above_threshold_prior | Z55: Y
A56: Med_paid_amt_above_threshold_prior | B56: Y | D56: Med_paid_amt_above_threshold_prior | E56: Y | G56: Med_paid_amt_above_threshold_prior | H56: Y | J56: Med_paid_amt_above_threshold_prior | K56: Y | M56: Med_paid_amt_above_threshold_prior | N56: Y | P56: Med_paid_amt_above_threshold_prior | Q56: N | S56: Med_paid_amt_above_threshold_prior | T56: N | V56: Med_paid_amt_above_threshold_prior | W56: Y | Y56: Med_paid_amt_above_threshold_prior | Z56: Y
A57: Med_inp_paid_amt_above_threshold_prior | B57: Y | D57: Med_inp_paid_amt_above_threshold_prior | E57: Y | G57: Med_inp_paid_amt_above_threshold_prior | H57: Y | J57: Med_inp_paid_amt_above_threshold_prior | K57: Y | M57: Med_inp_paid_amt_above_threshold_prior | N57: Y | P57: Med_inp_paid_amt_above_threshold_prior | Q57: N | S57: Med_inp_paid_amt_above_threshold_prior | T57: N | V57: Med_inp_paid_amt_above_threshold_prior | W57: Y | Y57: Med_inp_paid_amt_above_threshold_prior | Z57: Y
A58: Med_amb_paid_amt_above_threshold_prior | B58: Y | D58: Med_amb_paid_amt_above_threshold_prior | E58: Y | G58: Med_amb_paid_amt_above_threshold_prior | H58: Y | J58: Med_amb_paid_amt_above_threshold_prior | K58: Y | M58: Med_amb_paid_amt_above_threshold_prior | N58: Y | P58: Med_amb_paid_amt_above_threshold_prior | Q58: N | S58: Med_amb_paid_amt_above_threshold_prior | T58: N | V58: Med_amb_paid_amt_above_threshold_prior | W58: Y | Y58: Med_amb_paid_amt_above_threshold_prior | Z58: Y
A59: Med_par_admit_count_prior | B59: Y | D59: Med_par_admit_count_prior | E59: N | G59: Med_par_admit_count_prior | H59: Y | J59: Med_par_admit_count_prior | K59: Y | M59: Med_par_admit_count_prior | N59: Y | P59: Med_par_admit_count_prior | Q59: N | S59: Med_par_admit_count_prior | T59: N | V59: Med_par_admit_count_prior | W59: Y | Y59: Med_par_admit_count_prior | Z59: Y
A60: Med_par_phys_office_visits_count_prior | B60: Y | D60: Med_par_phys_office_visits_count_prior | E60: N | G60: Med_par_phys_office_visits_count_prior | H60: Y | J60: Med_par_phys_office_visits_count_prior | K60: Y | M60: Med_par_phys_office_visits_count_prior | N60: Y | P60: Med_par_phys_office_visits_count_prior | Q60: N | S60: Med_par_phys_office_visits_count_prior | T60: N | V60: Med_par_phys_office_visits_count_prior | W60: Y | Y60: Med_par_phys_office_visits_count_prior | Z60: Y
A61: Med_phys_office_visits_count_prior | B61: Y | D61: Med_phys_office_visits_count_prior | E61: N | G61: Med_phys_office_visits_count_prior | H61: Y | J61: Med_phys_office_visits_count_prior | K61: Y | M61: Med_phys_office_visits_count_prior | N61: Y | P61: Med_phys_office_visits_count_prior | Q61: N | S61: Med_phys_office_visits_count_prior | T61: N | V61: Med_phys_office_visits_count_prior | W61: Y | Y61: Med_phys_office_visits_count_prior | Z61: Y
A62: Med_par_paid_amt_prior | B62: Y | D62: Med_par_paid_amt_prior | E62: N | G62: Med_par_paid_amt_prior | H62: Y | J62: Med_par_paid_amt_prior | K62: Y | M62: Med_par_paid_amt_prior | N62: Y | P62: Med_par_paid_amt_prior | Q62: N | S62: Med_par_paid_amt_prior | T62: N | V62: Med_par_paid_amt_prior | W62: Y | Y62: Med_par_paid_amt_prior | Z62: Y
A63: Med_allowed_amt_prior | B63: Y | D63: Med_allowed_amt_prior | E63: N | G63: Med_allowed_amt_prior | H63: Y | J63: Med_allowed_amt_prior | K63: Y | M63: Med_allowed_amt_prior | N63: Y | P63: Med_allowed_amt_prior | Q63: N | S63: Med_allowed_amt_prior | T63: N | V63: Med_allowed_amt_prior | W63: Y | Y63: Med_allowed_amt_prior | Z63: Y
A64: Med_cob_amt_prior | B64: Y | D64: Med_cob_amt_prior | E64: N | G64: Med_cob_amt_prior | H64: Y | J64: Med_cob_amt_prior | K64: Y | M64: Med_cob_amt_prior | N64: Y | P64: Med_cob_amt_prior | Q64: N | S64: Med_cob_amt_prior | T64: N | V64: Med_cob_amt_prior | W64: Y | Y64: Med_cob_amt_prior | Z64: Y
A65: Med_deductible_amt_prior | B65: Y | D65: Med_deductible_amt_prior | E65: N | G65: Med_deductible_amt_prior | H65: Y | J65: Med_deductible_amt_prior | K65: Y | M65: Med_deductible_amt_prior | N65: Y | P65: Med_deductible_amt_prior | Q65: N | S65: Med_deductible_amt_prior | T65: N | V65: Med_deductible_amt_prior | W65: Y | Y65: Med_deductible_amt_prior | Z65: Y
A66: Med_copay_amt_prior | B66: Y | D66: Med_copay_amt_prior | E66: N | G66: Med_copay_amt_prior | H66: Y | J66: Med_copay_amt_prior | K66: Y | M66: Med_copay_amt_prior | N66: Y | P66: Med_copay_amt_prior | Q66: N | S66: Med_copay_amt_prior | T66: N | V66: Med_copay_amt_prior | W66: Y | Y66: Med_copay_amt_prior | Z66: Y
A67: Med_coinsurance_amt_prior | B67: Y | D67: Med_coinsurance_amt_prior | E67: N | G67: Med_coinsurance_amt_prior | H67: Y | J67: Med_coinsurance_amt_prior | K67: Y | M67: Med_coinsurance_amt_prior | N67: Y | P67: Med_coinsurance_amt_prior | Q67: N | S67: Med_coinsurance_amt_prior | T67: N | V67: Med_coinsurance_amt_prior | W67: Y | Y67: Med_coinsurance_amt_prior | Z67: Y
A68: Dental_paid_amt_prior | B68: Y | D68: Dental_paid_amt_prior | E68: Y | G68: Dental_paid_amt_prior | H68: N | J68: Dental_paid_amt_prior | K68: N | M68: Dental_paid_amt_prior | N68: Y | P68: Dental_paid_amt_prior | Q68: Y | S68: Dental_paid_amt_prior | T68: Y | V68: Dental_paid_amt_prior | W68: Y | Y68: Dental_paid_amt_prior | Z68: Y
A69: Dental_key_results_network_discount_amt_prior | B69: Y | D69: Dental_key_results_network_discount_amt_prior | E69: Y | G69: Dental_key_results_network_discount_amt_prior | H69: N | J69: Dental_key_results_network_discount_amt_prior | K69: N | M69: Dental_key_results_network_discount_amt_prior | N69: Y | P69: Dental_key_results_network_discount_amt_prior | Q69: Y | S69: Dental_key_results_network_discount_amt_prior | T69: Y | V69: Dental_key_results_network_discount_amt_prior | W69: Y | Y69: Dental_key_results_network_discount_amt_prior | Z69: Y
A70: Dental_key_results_network_paid_amt_prior | B70: Y | D70: Dental_key_results_network_paid_amt_prior | E70: Y | G70: Dental_key_results_network_paid_amt_prior | H70: N | J70: Dental_key_results_network_paid_amt_prior | K70: N | M70: Dental_key_results_network_paid_amt_prior | N70: Y | P70: Dental_key_results_network_paid_amt_prior | Q70: Y | S70: Dental_key_results_network_paid_amt_prior | T70: Y | V70: Dental_key_results_network_paid_amt_prior | W70: Y | Y70: Dental_key_results_network_paid_amt_prior | Z70: Y
A71: Dental_key_results_rc_savings_amt_prior | B71: Y | D71: Dental_key_results_rc_savings_amt_prior | E71: Y | G71: Dental_key_results_rc_savings_amt_prior | H71: N | J71: Dental_key_results_rc_savings_amt_prior | K71: N | M71: Dental_key_results_rc_savings_amt_prior | N71: Y | P71: Dental_key_results_rc_savings_amt_prior | Q71: Y | S71: Dental_key_results_rc_savings_amt_prior | T71: Y | V71: Dental_key_results_rc_savings_amt_prior | W71: Y | Y71: Dental_key_results_rc_savings_amt_prior | Z71: Y
A72: Dental_cost_share_allowed_amt_prior | B72: Y | D72: Dental_cost_share_allowed_amt_prior | E72: Y | G72: Dental_cost_share_allowed_amt_prior | H72: N | J72: Dental_cost_share_allowed_amt_prior | K72: N | M72: Dental_cost_share_allowed_amt_prior | N72: Y | P72: Dental_cost_share_allowed_amt_prior | Q72: Y | S72: Dental_cost_share_allowed_amt_prior | T72: Y | V72: Dental_cost_share_allowed_amt_prior | W72: Y | Y72: Dental_cost_share_allowed_amt_prior | Z72: Y
A73: Dental_cost_share_cob_amt_prior | B73: Y | D73: Dental_cost_share_cob_amt_prior | E73: Y | G73: Dental_cost_share_cob_amt_prior | H73: N | J73: Dental_cost_share_cob_amt_prior | K73: N | M73: Dental_cost_share_cob_amt_prior | N73: Y | P73: Dental_cost_share_cob_amt_prior | Q73: Y | S73: Dental_cost_share_cob_amt_prior | T73: Y | V73: Dental_cost_share_cob_amt_prior | W73: Y | Y73: Dental_cost_share_cob_amt_prior | Z73: Y
A74: Dental_cost_share_deductible_amt_prior | B74: Y | D74: Dental_cost_share_deductible_amt_prior | E74: Y | G74: Dental_cost_share_deductible_amt_prior | H74: N | J74: Dental_cost_share_deductible_amt_prior | K74: N | M74: Dental_cost_share_deductible_amt_prior | N74: Y | P74: Dental_cost_share_deductible_amt_prior | Q74: Y | S74: Dental_cost_share_deductible_amt_prior | T74: Y | V74: Dental_cost_share_deductible_amt_prior | W74: Y | Y74: Dental_cost_share_deductible_amt_prior | Z74: Y
A75: Dental_cost_share_coins_amt_prior | B75: Y | D75: Dental_cost_share_coins_amt_prior | E75: Y | G75: Dental_cost_share_coins_amt_prior | H75: N | J75: Dental_cost_share_coins_amt_prior | K75: N | M75: Dental_cost_share_coins_amt_prior | N75: Y | P75: Dental_cost_share_coins_amt_prior | Q75: Y | S75: Dental_cost_share_coins_amt_prior | T75: Y | V75: Dental_cost_share_coins_amt_prior | W75: Y | Y75: Dental_cost_share_coins_amt_prior | Z75: Y
A76: Dental_employee_paid_amt_prior | B76: Y | D76: Dental_employee_paid_amt_prior | E76: Y | G76: Dental_employee_paid_amt_prior | H76: N | J76: Dental_employee_paid_amt_prior | K76: N | M76: Dental_employee_paid_amt_prior | N76: Y | P76: Dental_employee_paid_amt_prior | Q76: Y | S76: Dental_employee_paid_amt_prior | T76: Y | V76: Dental_employee_paid_amt_prior | W76: Y | Y76: Dental_employee_paid_amt_prior | Z76: Y
A77: Dental_dependent_paid_amt_prior | B77: Y | D77: Dental_dependent_paid_amt_prior | E77: Y | G77: Dental_dependent_paid_amt_prior | H77: N | J77: Dental_dependent_paid_amt_prior | K77: N | M77: Dental_dependent_paid_amt_prior | N77: Y | P77: Dental_dependent_paid_amt_prior | Q77: Y | S77: Dental_dependent_paid_amt_prior | T77: Y | V77: Dental_dependent_paid_amt_prior | W77: Y | Y77: Dental_dependent_paid_amt_prior | Z77: Y
A78: Med_hospital_paid_amt_prior | B78: Y | D78: Med_hospital_paid_amt_prior | E78: Y | G78: Med_hospital_paid_amt_prior | H78: Y | J78: Med_hospital_paid_amt_prior | K78: Y | M78: Med_hospital_paid_amt_prior | N78: Y | P78: Med_hospital_paid_amt_prior | Q78: N | S78: Med_hospital_paid_amt_prior | T78: N | V78: Med_hospital_paid_amt_prior | W78: Y | Y78: Med_hospital_paid_amt_prior | Z78: Y
A79: Med_hospital_inp_paid_amt_prior | B79: Y | D79: Med_hospital_inp_paid_amt_prior | E79: Y | G79: Med_hospital_inp_paid_amt_prior | H79: Y | J79: Med_hospital_inp_paid_amt_prior | K79: Y | M79: Med_hospital_inp_paid_amt_prior | N79: Y | P79: Med_hospital_inp_paid_amt_prior | Q79: N | S79: Med_hospital_inp_paid_amt_prior | T79: N | V79: Med_hospital_inp_paid_amt_prior | W79: Y | Y79: Med_hospital_inp_paid_amt_prior | Z79: Y
A80: Med_hospital_amb_paid_amt_prior | B80: Y | D80: Med_hospital_amb_paid_amt_prior | E80: Y | G80: Med_hospital_amb_paid_amt_prior | H80: Y | J80: Med_hospital_amb_paid_amt_prior | K80: Y | M80: Med_hospital_amb_paid_amt_prior | N80: Y | P80: Med_hospital_amb_paid_amt_prior | Q80: N | S80: Med_hospital_amb_paid_amt_prior | T80: N | V80: Med_hospital_amb_paid_amt_prior | W80: Y | Y80: Med_hospital_amb_paid_amt_prior | Z80: Y
A81: Med_billed_amt_prior | B81: N | D81: Med_billed_amt_prior | E81: Y | G81: Med_billed_amt_prior | H81: Y | J81: Med_billed_amt_prior | K81: Y | M81: Med_billed_amt_prior | N81: Y | P81: Med_billed_amt_prior | Q81: N | S81: Med_billed_amt_prior | T81: N | V81: Med_billed_amt_prior | W81: Y | Y81: Med_billed_amt_prior | Z81: Y
A82: Med_inp_billed_amt_prior | B82: N | D82: Med_inp_billed_amt_prior | E82: Y | G82: Med_inp_billed_amt_prior | H82: Y | J82: Med_inp_billed_amt_prior | K82: Y | M82: Med_inp_billed_amt_prior | N82: Y | P82: Med_inp_billed_amt_prior | Q82: N | S82: Med_inp_billed_amt_prior | T82: N | V82: Med_inp_billed_amt_prior | W82: Y | Y82: Med_inp_billed_amt_prior | Z82: Y
A83: Med_amb_billed_amt_prior | B83: N | D83: Med_amb_billed_amt_prior | E83: Y | G83: Med_amb_billed_amt_prior | H83: Y | J83: Med_amb_billed_amt_prior | K83: Y | M83: Med_amb_billed_amt_prior | N83: Y | P83: Med_amb_billed_amt_prior | Q83: N | S83: Med_amb_billed_amt_prior | T83: N | V83: Med_amb_billed_amt_prior | W83: Y | Y83: Med_amb_billed_amt_prior | Z83: Y
A84: Med_claim_count_female_0_19_curr | B84: Y | D84: Med_claim_count_female_0_19_curr | E84: Y | G84: Med_claim_count_female_0_19_curr | H84: Y | J84: Med_claim_count_female_0_19_curr | K84: Y | M84: Med_claim_count_female_0_19_curr | N84: Y | P84: Med_claim_count_female_0_19_curr | Q84: N | S84: Med_claim_count_female_0_19_curr | T84: N | V84: Med_claim_count_female_0_19_curr | W84: Y | Y84: Med_claim_count_female_0_19_curr | Z84: Y
A85: Med_paid_amt_female_0_19_curr | B85: Y | D85: Med_paid_amt_female_0_19_curr | E85: Y | G85: Med_paid_amt_female_0_19_curr | H85: Y | J85: Med_paid_amt_female_0_19_curr | K85: Y | M85: Med_paid_amt_female_0_19_curr | N85: Y | P85: Med_paid_amt_female_0_19_curr | Q85: N | S85: Med_paid_amt_female_0_19_curr | T85: N | V85: Med_paid_amt_female_0_19_curr | W85: Y | Y85: Med_paid_amt_female_0_19_curr | Z85: Y
A86: Med_claim_count_female_20_44_curr | B86: Y | D86: Med_claim_count_female_20_44_curr | E86: Y | G86: Med_claim_count_female_20_44_curr | H86: Y | J86: Med_claim_count_female_20_44_curr | K86: Y | M86: Med_claim_count_female_20_44_curr | N86: Y | P86: Med_claim_count_female_20_44_curr | Q86: N | S86: Med_claim_count_female_20_44_curr | T86: N | V86: Med_claim_count_female_20_44_curr | W86: Y | Y86: Med_claim_count_female_20_44_curr | Z86: Y
A87: Med_paid_amt_female_20_44_curr | B87: Y | D87: Med_paid_amt_female_20_44_curr | E87: Y | G87: Med_paid_amt_female_20_44_curr | H87: Y | J87: Med_paid_amt_female_20_44_curr | K87: Y | M87: Med_paid_amt_female_20_44_curr | N87: Y | P87: Med_paid_amt_female_20_44_curr | Q87: N | S87: Med_paid_amt_female_20_44_curr | T87: N | V87: Med_paid_amt_female_20_44_curr | W87: Y | Y87: Med_paid_amt_female_20_44_curr | Z87: Y
A88: Med_claim_count_female_45_64_curr | B88: Y | D88: Med_claim_count_female_45_64_curr | E88: Y | G88: Med_claim_count_female_45_64_curr | H88: Y | J88: Med_claim_count_female_45_64_curr | K88: Y | M88: Med_claim_count_female_45_64_curr | N88: Y | P88: Med_claim_count_female_45_64_curr | Q88: N | S88: Med_claim_count_female_45_64_curr | T88: N | V88: Med_claim_count_female_45_64_curr | W88: Y | Y88: Med_claim_count_female_45_64_curr | Z88: Y
A89: Med_paid_amt_female_45_64_curr | B89: Y | D89: Med_paid_amt_female_45_64_curr | E89: Y | G89: Med_paid_amt_female_45_64_curr | H89: Y | J89: Med_paid_amt_female_45_64_curr | K89: Y | M89: Med_paid_amt_female_45_64_curr | N89: Y | P89: Med_paid_amt_female_45_64_curr | Q89: N | S89: Med_paid_amt_female_45_64_curr | T89: N | V89: Med_paid_amt_female_45_64_curr | W89: Y | Y89: Med_paid_amt_female_45_64_curr | Z89: Y
A90: Med_claim_count_female_65_over_curr | B90: Y | D90: Med_claim_count_female_65_over_curr | E90: Y | G90: Med_claim_count_female_65_over_curr | H90: Y | J90: Med_claim_count_female_65_over_curr | K90: Y | M90: Med_claim_count_female_65_over_curr | N90: Y | P90: Med_claim_count_female_65_over_curr | Q90: N | S90: Med_claim_count_female_65_over_curr | T90: N | V90: Med_claim_count_female_65_over_curr | W90: Y | Y90: Med_claim_count_female_65_over_curr | Z90: Y
A91: Med_paid_amt_female_65_over_curr | B91: Y | D91: Med_paid_amt_female_65_over_curr | E91: Y | G91: Med_paid_amt_female_65_over_curr | H91: Y | J91: Med_paid_amt_female_65_over_curr | K91: Y | M91: Med_paid_amt_female_65_over_curr | N91: Y | P91: Med_paid_amt_female_65_over_curr | Q91: N | S91: Med_paid_amt_female_65_over_curr | T91: N | V91: Med_paid_amt_female_65_over_curr | W91: Y | Y91: Med_paid_amt_female_65_over_curr | Z91: Y
A92: Med_claim_count_male_0_19_curr | B92: Y | D92: Med_claim_count_male_0_19_curr | E92: Y | G92: Med_claim_count_male_0_19_curr | H92: Y | J92: Med_claim_count_male_0_19_curr | K92: Y | M92: Med_claim_count_male_0_19_curr | N92: Y | P92: Med_claim_count_male_0_19_curr | Q92: N | S92: Med_claim_count_male_0_19_curr | T92: N | V92: Med_claim_count_male_0_19_curr | W92: Y | Y92: Med_claim_count_male_0_19_curr | Z92: Y
A93: Med_paid_amt_male_0_19_curr | B93: Y | D93: Med_paid_amt_male_0_19_curr | E93: Y | G93: Med_paid_amt_male_0_19_curr | H93: Y | J93: Med_paid_amt_male_0_19_curr | K93: Y | M93: Med_paid_amt_male_0_19_curr | N93: Y | P93: Med_paid_amt_male_0_19_curr | Q93: N | S93: Med_paid_amt_male_0_19_curr | T93: N | V93: Med_paid_amt_male_0_19_curr | W93: Y | Y93: Med_paid_amt_male_0_19_curr | Z93: Y
A94: Med_claim_count_male_20_44_curr | B94: Y | D94: Med_claim_count_male_20_44_curr | E94: Y | G94: Med_claim_count_male_20_44_curr | H94: Y | J94: Med_claim_count_male_20_44_curr | K94: Y | M94: Med_claim_count_male_20_44_curr | N94: Y | P94: Med_claim_count_male_20_44_curr | Q94: N | S94: Med_claim_count_male_20_44_curr | T94: N | V94: Med_claim_count_male_20_44_curr | W94: Y | Y94: Med_claim_count_male_20_44_curr | Z94: Y
A95: Med_paid_amt_male_20_44_curr | B95: Y | D95: Med_paid_amt_male_20_44_curr | E95: Y | G95: Med_paid_amt_male_20_44_curr | H95: Y | J95: Med_paid_amt_male_20_44_curr | K95: Y | M95: Med_paid_amt_male_20_44_curr | N95: Y | P95: Med_paid_amt_male_20_44_curr | Q95: N | S95: Med_paid_amt_male_20_44_curr | T95: N | V95: Med_paid_amt_male_20_44_curr | W95: Y | Y95: Med_paid_amt_male_20_44_curr | Z95: Y
A96: Med_claim_count_male_45_64_curr | B96: Y | D96: Med_claim_count_male_45_64_curr | E96: Y | G96: Med_claim_count_male_45_64_curr | H96: Y | J96: Med_claim_count_male_45_64_curr | K96: Y | M96: Med_claim_count_male_45_64_curr | N96: Y | P96: Med_claim_count_male_45_64_curr | Q96: N | S96: Med_claim_count_male_45_64_curr | T96: N | V96: Med_claim_count_male_45_64_curr | W96: Y | Y96: Med_claim_count_male_45_64_curr | Z96: Y
A97: Med_paid_amt_male_45_64_curr | B97: Y | D97: Med_paid_amt_male_45_64_curr | E97: Y | G97: Med_paid_amt_male_45_64_curr | H97: Y | J97: Med_paid_amt_male_45_64_curr | K97: Y | M97: Med_paid_amt_male_45_64_curr | N97: Y | P97: Med_paid_amt_male_45_64_curr | Q97: N | S97: Med_paid_amt_male_45_64_curr | T97: N | V97: Med_paid_amt_male_45_64_curr | W97: Y | Y97: Med_paid_amt_male_45_64_curr | Z97: Y
A98: Med_claim_count_male_65_over_curr | B98: Y | D98: Med_claim_count_male_65_over_curr | E98: Y | G98: Med_claim_count_male_65_over_curr | H98: Y | J98: Med_claim_count_male_65_over_curr | K98: Y | M98: Med_claim_count_male_65_over_curr | N98: Y | P98: Med_claim_count_male_65_over_curr | Q98: N | S98: Med_claim_count_male_65_over_curr | T98: N | V98: Med_claim_count_male_65_over_curr | W98: Y | Y98: Med_claim_count_male_65_over_curr | Z98: Y
A99: Med_paid_amt_male_65_over_curr | B99: Y | D99: Med_paid_amt_male_65_over_curr | E99: Y | G99: Med_paid_amt_male_65_over_curr | H99: Y | J99: Med_paid_amt_male_65_over_curr | K99: Y | M99: Med_paid_amt_male_65_over_curr | N99: Y | P99: Med_paid_amt_male_65_over_curr | Q99: N | S99: Med_paid_amt_male_65_over_curr | T99: N | V99: Med_paid_amt_male_65_over_curr | W99: Y | Y99: Med_paid_amt_male_65_over_curr | Z99: Y
A100: Med_claim_count_unknown_0_19_curr | B100: Y | D100: Med_claim_count_unknown_0_19_curr | E100: Y | G100: Med_claim_count_unknown_0_19_curr | H100: Y | J100: Med_claim_count_unknown_0_19_curr | K100: Y | M100: Med_claim_count_unknown_0_19_curr | N100: Y | P100: Med_claim_count_unknown_0_19_curr | Q100: N | S100: Med_claim_count_unknown_0_19_curr | T100: N | V100: Med_claim_count_unknown_0_19_curr | W100: Y | Y100: Med_claim_count_unknown_0_19_curr | Z100: Y
A101: Med_paid_amt_unknown_0_19_curr | B101: Y | D101: Med_paid_amt_unknown_0_19_curr | E101: Y | G101: Med_paid_amt_unknown_0_19_curr | H101: Y | J101: Med_paid_amt_unknown_0_19_curr | K101: Y | M101: Med_paid_amt_unknown_0_19_curr | N101: Y | P101: Med_paid_amt_unknown_0_19_curr | Q101: N | S101: Med_paid_amt_unknown_0_19_curr | T101: N | V101: Med_paid_amt_unknown_0_19_curr | W101: Y | Y101: Med_paid_amt_unknown_0_19_curr | Z101: Y
A102: Med_claim_count_unknown_20_44_curr | B102: Y | D102: Med_claim_count_unknown_20_44_curr | E102: Y | G102: Med_claim_count_unknown_20_44_curr | H102: Y | J102: Med_claim_count_unknown_20_44_curr | K102: Y | M102: Med_claim_count_unknown_20_44_curr | N102: Y | P102: Med_claim_count_unknown_20_44_curr | Q102: N | S102: Med_claim_count_unknown_20_44_curr | T102: N | V102: Med_claim_count_unknown_20_44_curr | W102: Y | Y102: Med_claim_count_unknown_20_44_curr | Z102: Y
A103: Med_paid_amt_unknown_20_44_curr | B103: Y | D103: Med_paid_amt_unknown_20_44_curr | E103: Y | G103: Med_paid_amt_unknown_20_44_curr | H103: Y | J103: Med_paid_amt_unknown_20_44_curr | K103: Y | M103: Med_paid_amt_unknown_20_44_curr | N103: Y | P103: Med_paid_amt_unknown_20_44_curr | Q103: N | S103: Med_paid_amt_unknown_20_44_curr | T103: N | V103: Med_paid_amt_unknown_20_44_curr | W103: Y | Y103: Med_paid_amt_unknown_20_44_curr | Z103: Y
A104: Med_claim_count_unknown_45_64_curr | B104: Y | D104: Med_claim_count_unknown_45_64_curr | E104: Y | G104: Med_claim_count_unknown_45_64_curr | H104: Y | J104: Med_claim_count_unknown_45_64_curr | K104: Y | M104: Med_claim_count_unknown_45_64_curr | N104: Y | P104: Med_claim_count_unknown_45_64_curr | Q104: N | S104: Med_claim_count_unknown_45_64_curr | T104: N | V104: Med_claim_count_unknown_45_64_curr | W104: Y | Y104: Med_claim_count_unknown_45_64_curr | Z104: Y
A105: Med_paid_amt_unknown_45_64_curr | B105: Y | D105: Med_paid_amt_unknown_45_64_curr | E105: Y | G105: Med_paid_amt_unknown_45_64_curr | H105: Y | J105: Med_paid_amt_unknown_45_64_curr | K105: Y | M105: Med_paid_amt_unknown_45_64_curr | N105: Y | P105: Med_paid_amt_unknown_45_64_curr | Q105: N | S105: Med_paid_amt_unknown_45_64_curr | T105: N | V105: Med_paid_amt_unknown_45_64_curr | W105: Y | Y105: Med_paid_amt_unknown_45_64_curr | Z105: Y
A106: Med_claim_count_unknown_65_over_curr | B106: Y | D106: Med_claim_count_unknown_65_over_curr | E106: Y | G106: Med_claim_count_unknown_65_over_curr | H106: Y | J106: Med_claim_count_unknown_65_over_curr | K106: Y | M106: Med_claim_count_unknown_65_over_curr | N106: Y | P106: Med_claim_count_unknown_65_over_curr | Q106: N | S106: Med_claim_count_unknown_65_over_curr | T106: N | V106: Med_claim_count_unknown_65_over_curr | W106: Y | Y106: Med_claim_count_unknown_65_over_curr | Z106: Y
A107: Med_paid_amt_unknown_65_over_curr | B107: Y | D107: Med_paid_amt_unknown_65_over_curr | E107: Y | G107: Med_paid_amt_unknown_65_over_curr | H107: Y | J107: Med_paid_amt_unknown_65_over_curr | K107: Y | M107: Med_paid_amt_unknown_65_over_curr | N107: Y | P107: Med_paid_amt_unknown_65_over_curr | Q107: N | S107: Med_paid_amt_unknown_65_over_curr | T107: N | V107: Med_paid_amt_unknown_65_over_curr | W107: Y | Y107: Med_paid_amt_unknown_65_over_curr | Z107: Y
A108: Med_claim_count_female_0_19_prior | B108: Y | D108: Med_claim_count_female_0_19_prior | E108: Y | G108: Med_claim_count_female_0_19_prior | H108: Y | J108: Med_claim_count_female_0_19_prior | K108: Y | M108: Med_claim_count_female_0_19_prior | N108: Y | P108: Med_claim_count_female_0_19_prior | Q108: N | S108: Med_claim_count_female_0_19_prior | T108: N | V108: Med_claim_count_female_0_19_prior | W108: Y | Y108: Med_claim_count_female_0_19_prior | Z108: Y
A109: Med_paid_amt_female_0_19_prior | B109: Y | D109: Med_paid_amt_female_0_19_prior | E109: Y | G109: Med_paid_amt_female_0_19_prior | H109: Y | J109: Med_paid_amt_female_0_19_prior | K109: Y | M109: Med_paid_amt_female_0_19_prior | N109: Y | P109: Med_paid_amt_female_0_19_prior | Q109: N | S109: Med_paid_amt_female_0_19_prior | T109: N | V109: Med_paid_amt_female_0_19_prior | W109: Y | Y109: Med_paid_amt_female_0_19_prior | Z109: Y
A110: Med_claim_count_female_20_44_prior | B110: Y | D110: Med_claim_count_female_20_44_prior | E110: Y | G110: Med_claim_count_female_20_44_prior | H110: Y | J110: Med_claim_count_female_20_44_prior | K110: Y | M110: Med_claim_count_female_20_44_prior | N110: Y | P110: Med_claim_count_female_20_44_prior | Q110: N | S110: Med_claim_count_female_20_44_prior | T110: N | V110: Med_claim_count_female_20_44_prior | W110: Y | Y110: Med_claim_count_female_20_44_prior | Z110: Y
A111: Med_paid_amt_female_20_44_prior | B111: Y | D111: Med_paid_amt_female_20_44_prior | E111: Y | G111: Med_paid_amt_female_20_44_prior | H111: Y | J111: Med_paid_amt_female_20_44_prior | K111: Y | M111: Med_paid_amt_female_20_44_prior | N111: Y | P111: Med_paid_amt_female_20_44_prior | Q111: N | S111: Med_paid_amt_female_20_44_prior | T111: N | V111: Med_paid_amt_female_20_44_prior | W111: Y | Y111: Med_paid_amt_female_20_44_prior | Z111: Y
A112: Med_claim_count_female_45_64_prior | B112: Y | D112: Med_claim_count_female_45_64_prior | E112: Y | G112: Med_claim_count_female_45_64_prior | H112: Y | J112: Med_claim_count_female_45_64_prior | K112: Y | M112: Med_claim_count_female_45_64_prior | N112: Y | P112: Med_claim_count_female_45_64_prior | Q112: N | S112: Med_claim_count_female_45_64_prior | T112: N | V112: Med_claim_count_female_45_64_prior | W112: Y | Y112: Med_claim_count_female_45_64_prior | Z112: Y
A113: Med_paid_amt_female_45_64_prior | B113: Y | D113: Med_paid_amt_female_45_64_prior | E113: Y | G113: Med_paid_amt_female_45_64_prior | H113: Y | J113: Med_paid_amt_female_45_64_prior | K113: Y | M113: Med_paid_amt_female_45_64_prior | N113: Y | P113: Med_paid_amt_female_45_64_prior | Q113: N | S113: Med_paid_amt_female_45_64_prior | T113: N | V113: Med_paid_amt_female_45_64_prior | W113: Y | Y113: Med_paid_amt_female_45_64_prior | Z113: Y
A114: Med_claim_count_female_65_over_prior | B114: Y | D114: Med_claim_count_female_65_over_prior | E114: Y | G114: Med_claim_count_female_65_over_prior | H114: Y | J114: Med_claim_count_female_65_over_prior | K114: Y | M114: Med_claim_count_female_65_over_prior | N114: Y | P114: Med_claim_count_female_65_over_prior | Q114: N | S114: Med_claim_count_female_65_over_prior | T114: N | V114: Med_claim_count_female_65_over_prior | W114: Y | Y114: Med_claim_count_female_65_over_prior | Z114: Y
A115: Med_paid_amt_female_65_over_prior | B115: Y | D115: Med_paid_amt_female_65_over_prior | E115: Y | G115: Med_paid_amt_female_65_over_prior | H115: Y | J115: Med_paid_amt_female_65_over_prior | K115: Y | M115: Med_paid_amt_female_65_over_prior | N115: Y | P115: Med_paid_amt_female_65_over_prior | Q115: N | S115: Med_paid_amt_female_65_over_prior | T115: N | V115: Med_paid_amt_female_65_over_prior | W115: Y | Y115: Med_paid_amt_female_65_over_prior | Z115: Y
A116: Med_claim_count_male_0_19_prior | B116: Y | D116: Med_claim_count_male_0_19_prior | E116: Y | G116: Med_claim_count_male_0_19_prior | H116: Y | J116: Med_claim_count_male_0_19_prior | K116: Y | M116: Med_claim_count_male_0_19_prior | N116: Y | P116: Med_claim_count_male_0_19_prior | Q116: N | S116: Med_claim_count_male_0_19_prior | T116: N | V116: Med_claim_count_male_0_19_prior | W116: Y | Y116: Med_claim_count_male_0_19_prior | Z116: Y
A117: Med_paid_amt_male_0_19_prior | B117: Y | D117: Med_paid_amt_male_0_19_prior | E117: Y | G117: Med_paid_amt_male_0_19_prior | H117: Y | J117: Med_paid_amt_male_0_19_prior | K117: Y | M117: Med_paid_amt_male_0_19_prior | N117: Y | P117: Med_paid_amt_male_0_19_prior | Q117: N | S117: Med_paid_amt_male_0_19_prior | T117: N | V117: Med_paid_amt_male_0_19_prior | W117: Y | Y117: Med_paid_amt_male_0_19_prior | Z117: Y
A118: Med_claim_count_male_20_44_prior | B118: Y | D118: Med_claim_count_male_20_44_prior | E118: Y | G118: Med_claim_count_male_20_44_prior | H118: Y | J118: Med_claim_count_male_20_44_prior | K118: Y | M118: Med_claim_count_male_20_44_prior | N118: Y | P118: Med_claim_count_male_20_44_prior | Q118: N | S118: Med_claim_count_male_20_44_prior | T118: N | V118: Med_claim_count_male_20_44_prior | W118: Y | Y118: Med_claim_count_male_20_44_prior | Z118: Y
A119: Med_paid_amt_male_20_44_prior | B119: Y | D119: Med_paid_amt_male_20_44_prior | E119: Y | G119: Med_paid_amt_male_20_44_prior | H119: Y | J119: Med_paid_amt_male_20_44_prior | K119: Y | M119: Med_paid_amt_male_20_44_prior | N119: Y | P119: Med_paid_amt_male_20_44_prior | Q119: N | S119: Med_paid_amt_male_20_44_prior | T119: N | V119: Med_paid_amt_male_20_44_prior | W119: Y | Y119: Med_paid_amt_male_20_44_prior | Z119: Y
A120: Med_claim_count_male_45_64_prior | B120: Y | D120: Med_claim_count_male_45_64_prior | E120: Y | G120: Med_claim_count_male_45_64_prior | H120: Y | J120: Med_claim_count_male_45_64_prior | K120: Y | M120: Med_claim_count_male_45_64_prior | N120: Y | P120: Med_claim_count_male_45_64_prior | Q120: N | S120: Med_claim_count_male_45_64_prior | T120: N | V120: Med_claim_count_male_45_64_prior | W120: Y | Y120: Med_claim_count_male_45_64_prior | Z120: Y
A121: Med_paid_amt_male_45_64_prior | B121: Y | D121: Med_paid_amt_male_45_64_prior | E121: Y | G121: Med_paid_amt_male_45_64_prior | H121: Y | J121: Med_paid_amt_male_45_64_prior | K121: Y | M121: Med_paid_amt_male_45_64_prior | N121: Y | P121: Med_paid_amt_male_45_64_prior | Q121: N | S121: Med_paid_amt_male_45_64_prior | T121: N | V121: Med_paid_amt_male_45_64_prior | W121: Y | Y121: Med_paid_amt_male_45_64_prior | Z121: Y
A122: Med_claim_count_male_65_over_prior | B122: Y | D122: Med_claim_count_male_65_over_prior | E122: Y | G122: Med_claim_count_male_65_over_prior | H122: Y | J122: Med_claim_count_male_65_over_prior | K122: Y | M122: Med_claim_count_male_65_over_prior | N122: Y | P122: Med_claim_count_male_65_over_prior | Q122: N | S122: Med_claim_count_male_65_over_prior | T122: N | V122: Med_claim_count_male_65_over_prior | W122: Y | Y122: Med_claim_count_male_65_over_prior | Z122: Y
A123: Med_paid_amt_male_65_over_prior | B123: Y | D123: Med_paid_amt_male_65_over_prior | E123: Y | G123: Med_paid_amt_male_65_over_prior | H123: Y | J123: Med_paid_amt_male_65_over_prior | K123: Y | M123: Med_paid_amt_male_65_over_prior | N123: Y | P123: Med_paid_amt_male_65_over_prior | Q123: N | S123: Med_paid_amt_male_65_over_prior | T123: N | V123: Med_paid_amt_male_65_over_prior | W123: Y | Y123: Med_paid_amt_male_65_over_prior | Z123: Y
A124: Med_claim_count_unknown_0_19_prior | B124: Y | D124: Med_claim_count_unknown_0_19_prior | E124: Y | G124: Med_claim_count_unknown_0_19_prior | H124: Y | J124: Med_claim_count_unknown_0_19_prior | K124: Y | M124: Med_claim_count_unknown_0_19_prior | N124: Y | P124: Med_claim_count_unknown_0_19_prior | Q124: N | S124: Med_claim_count_unknown_0_19_prior | T124: N | V124: Med_claim_count_unknown_0_19_prior | W124: Y | Y124: Med_claim_count_unknown_0_19_prior | Z124: Y
A125: Med_paid_amt_unknown_0_19_prior | B125: Y | D125: Med_paid_amt_unknown_0_19_prior | E125: Y | G125: Med_paid_amt_unknown_0_19_prior | H125: Y | J125: Med_paid_amt_unknown_0_19_prior | K125: Y | M125: Med_paid_amt_unknown_0_19_prior | N125: Y | P125: Med_paid_amt_unknown_0_19_prior | Q125: N | S125: Med_paid_amt_unknown_0_19_prior | T125: N | V125: Med_paid_amt_unknown_0_19_prior | W125: Y | Y125: Med_paid_amt_unknown_0_19_prior | Z125: Y
A126: Med_claim_count_unknown_20_44_prior | B126: Y | D126: Med_claim_count_unknown_20_44_prior | E126: Y | G126: Med_claim_count_unknown_20_44_prior | H126: Y | J126: Med_claim_count_unknown_20_44_prior | K126: Y | M126: Med_claim_count_unknown_20_44_prior | N126: Y | P126: Med_claim_count_unknown_20_44_prior | Q126: N | S126: Med_claim_count_unknown_20_44_prior | T126: N | V126: Med_claim_count_unknown_20_44_prior | W126: Y | Y126: Med_claim_count_unknown_20_44_prior | Z126: Y
A127: Med_paid_amt_unknown_20_44_prior | B127: Y | D127: Med_paid_amt_unknown_20_44_prior | E127: Y | G127: Med_paid_amt_unknown_20_44_prior | H127: Y | J127: Med_paid_amt_unknown_20_44_prior | K127: Y | M127: Med_paid_amt_unknown_20_44_prior | N127: Y | P127: Med_paid_amt_unknown_20_44_prior | Q127: N | S127: Med_paid_amt_unknown_20_44_prior | T127: N | V127: Med_paid_amt_unknown_20_44_prior | W127: Y | Y127: Med_paid_amt_unknown_20_44_prior | Z127: Y
A128: Med_claim_count_unknown_45_64_prior | B128: Y | D128: Med_claim_count_unknown_45_64_prior | E128: Y | G128: Med_claim_count_unknown_45_64_prior | H128: Y | J128: Med_claim_count_unknown_45_64_prior | K128: Y | M128: Med_claim_count_unknown_45_64_prior | N128: Y | P128: Med_claim_count_unknown_45_64_prior | Q128: N | S128: Med_claim_count_unknown_45_64_prior | T128: N | V128: Med_claim_count_unknown_45_64_prior | W128: Y | Y128: Med_claim_count_unknown_45_64_prior | Z128: Y
A129: Med_paid_amt_unknown_45_64_prior | B129: Y | D129: Med_paid_amt_unknown_45_64_prior | E129: Y | G129: Med_paid_amt_unknown_45_64_prior | H129: Y | J129: Med_paid_amt_unknown_45_64_prior | K129: Y | M129: Med_paid_amt_unknown_45_64_prior | N129: Y | P129: Med_paid_amt_unknown_45_64_prior | Q129: N | S129: Med_paid_amt_unknown_45_64_prior | T129: N | V129: Med_paid_amt_unknown_45_64_prior | W129: Y | Y129: Med_paid_amt_unknown_45_64_prior | Z129: Y
A130: Med_claim_count_unknown_65_over_prior | B130: Y | D130: Med_claim_count_unknown_65_over_prior | E130: Y | G130: Med_claim_count_unknown_65_over_prior | H130: Y | J130: Med_claim_count_unknown_65_over_prior | K130: Y | M130: Med_claim_count_unknown_65_over_prior | N130: Y | P130: Med_claim_count_unknown_65_over_prior | Q130: N | S130: Med_claim_count_unknown_65_over_prior | T130: N | V130: Med_claim_count_unknown_65_over_prior | W130: Y | Y130: Med_claim_count_unknown_65_over_prior | Z130: Y
A131: Med_paid_amt_unknown_65_over_prior | B131: Y | D131: Med_paid_amt_unknown_65_over_prior | E131: Y | G131: Med_paid_amt_unknown_65_over_prior | H131: Y | J131: Med_paid_amt_unknown_65_over_prior | K131: Y | M131: Med_paid_amt_unknown_65_over_prior | N131: Y | P131: Med_paid_amt_unknown_65_over_prior | Q131: N | S131: Med_paid_amt_unknown_65_over_prior | T131: N | V131: Med_paid_amt_unknown_65_over_prior | W131: Y | Y131: Med_paid_amt_unknown_65_over_prior | Z131: Y
A132: Dental_paid_amt_female_0_19_curr | B132: Y | D132: Dental_paid_amt_female_0_19_curr | E132: Y | G132: Dental_paid_amt_female_0_19_curr | H132: N | J132: Dental_paid_amt_female_0_19_curr | K132: N | M132: Dental_paid_amt_female_0_19_curr | N132: Y | P132: Dental_paid_amt_female_0_19_curr | Q132: Y | S132: Dental_paid_amt_female_0_19_curr | T132: Y | V132: Dental_paid_amt_female_0_19_curr | W132: Y | Y132: Dental_paid_amt_female_0_19_curr | Z132: Y
A133: Dental_paid_amt_female_20_44_curr | B133: Y | D133: Dental_paid_amt_female_20_44_curr | E133: Y | G133: Dental_paid_amt_female_20_44_curr | H133: N | J133: Dental_paid_amt_female_20_44_curr | K133: N | M133: Dental_paid_amt_female_20_44_curr | N133: Y | P133: Dental_paid_amt_female_20_44_curr | Q133: Y | S133: Dental_paid_amt_female_20_44_curr | T133: Y | V133: Dental_paid_amt_female_20_44_curr | W133: Y | Y133: Dental_paid_amt_female_20_44_curr | Z133: Y
A134: Dental_paid_amt_female_45_64_curr | B134: Y | D134: Dental_paid_amt_female_45_64_curr | E134: Y | G134: Dental_paid_amt_female_45_64_curr | H134: N | J134: Dental_paid_amt_female_45_64_curr | K134: N | M134: Dental_paid_amt_female_45_64_curr | N134: Y | P134: Dental_paid_amt_female_45_64_curr | Q134: Y | S134: Dental_paid_amt_female_45_64_curr | T134: Y | V134: Dental_paid_amt_female_45_64_curr | W134: Y | Y134: Dental_paid_amt_female_45_64_curr | Z134: Y
A135: Dental_paid_amt_female_65_over_curr | B135: Y | D135: Dental_paid_amt_female_65_over_curr | E135: Y | G135: Dental_paid_amt_female_65_over_curr | H135: N | J135: Dental_paid_amt_female_65_over_curr | K135: N | M135: Dental_paid_amt_female_65_over_curr | N135: Y | P135: Dental_paid_amt_female_65_over_curr | Q135: Y | S135: Dental_paid_amt_female_65_over_curr | T135: Y | V135: Dental_paid_amt_female_65_over_curr | W135: Y | Y135: Dental_paid_amt_female_65_over_curr | Z135: Y
A136: Dental_paid_amt_male_0_19_curr | B136: Y | D136: Dental_paid_amt_male_0_19_curr | E136: Y | G136: Dental_paid_amt_male_0_19_curr | H136: N | J136: Dental_paid_amt_male_0_19_curr | K136: N | M136: Dental_paid_amt_male_0_19_curr | N136: Y | P136: Dental_paid_amt_male_0_19_curr | Q136: Y | S136: Dental_paid_amt_male_0_19_curr | T136: Y | V136: Dental_paid_amt_male_0_19_curr | W136: Y | Y136: Dental_paid_amt_male_0_19_curr | Z136: Y
A137: Dental_paid_amt_male_20_44_curr | B137: Y | D137: Dental_paid_amt_male_20_44_curr | E137: Y | G137: Dental_paid_amt_male_20_44_curr | H137: N | J137: Dental_paid_amt_male_20_44_curr | K137: N | M137: Dental_paid_amt_male_20_44_curr | N137: Y | P137: Dental_paid_amt_male_20_44_curr | Q137: Y | S137: Dental_paid_amt_male_20_44_curr | T137: Y | V137: Dental_paid_amt_male_20_44_curr | W137: Y | Y137: Dental_paid_amt_male_20_44_curr | Z137: Y
A138: Dental_paid_amt_male_45_64_curr | B138: Y | D138: Dental_paid_amt_male_45_64_curr | E138: Y | G138: Dental_paid_amt_male_45_64_curr | H138: N | J138: Dental_paid_amt_male_45_64_curr | K138: N | M138: Dental_paid_amt_male_45_64_curr | N138: Y | P138: Dental_paid_amt_male_45_64_curr | Q138: Y | S138: Dental_paid_amt_male_45_64_curr | T138: Y | V138: Dental_paid_amt_male_45_64_curr | W138: Y | Y138: Dental_paid_amt_male_45_64_curr | Z138: Y
A139: Dental_paid_amt_male_65_over_curr | B139: Y | D139: Dental_paid_amt_male_65_over_curr | E139: Y | G139: Dental_paid_amt_male_65_over_curr | H139: N | J139: Dental_paid_amt_male_65_over_curr | K139: N | M139: Dental_paid_amt_male_65_over_curr | N139: Y | P139: Dental_paid_amt_male_65_over_curr | Q139: Y | S139: Dental_paid_amt_male_65_over_curr | T139: Y | V139: Dental_paid_amt_male_65_over_curr | W139: Y | Y139: Dental_paid_amt_male_65_over_curr | Z139: Y
A140: Dental_paid_amt_unknown_0_19_curr | B140: Y | D140: Dental_paid_amt_unknown_0_19_curr | E140: Y | G140: Dental_paid_amt_unknown_0_19_curr | H140: N | J140: Dental_paid_amt_unknown_0_19_curr | K140: N | M140: Dental_paid_amt_unknown_0_19_curr | N140: Y | P140: Dental_paid_amt_unknown_0_19_curr | Q140: Y | S140: Dental_paid_amt_unknown_0_19_curr | T140: Y | V140: Dental_paid_amt_unknown_0_19_curr | W140: Y | Y140: Dental_paid_amt_unknown_0_19_curr | Z140: Y
A141: Dental_paid_amt_unknown_20_44_curr | B141: Y | D141: Dental_paid_amt_unknown_20_44_curr | E141: Y | G141: Dental_paid_amt_unknown_20_44_curr | H141: N | J141: Dental_paid_amt_unknown_20_44_curr | K141: N | M141: Dental_paid_amt_unknown_20_44_curr | N141: Y | P141: Dental_paid_amt_unknown_20_44_curr | Q141: Y | S141: Dental_paid_amt_unknown_20_44_curr | T141: Y | V141: Dental_paid_amt_unknown_20_44_curr | W141: Y | Y141: Dental_paid_amt_unknown_20_44_curr | Z141: Y
A142: Dental_paid_amt_unknown_45_64_curr | B142: Y | D142: Dental_paid_amt_unknown_45_64_curr | E142: Y | G142: Dental_paid_amt_unknown_45_64_curr | H142: N | J142: Dental_paid_amt_unknown_45_64_curr | K142: N | M142: Dental_paid_amt_unknown_45_64_curr | N142: Y | P142: Dental_paid_amt_unknown_45_64_curr | Q142: Y | S142: Dental_paid_amt_unknown_45_64_curr | T142: Y | V142: Dental_paid_amt_unknown_45_64_curr | W142: Y | Y142: Dental_paid_amt_unknown_45_64_curr | Z142: Y
A143: Dental_paid_amt_unknown_65_over_curr | B143: Y | D143: Dental_paid_amt_unknown_65_over_curr | E143: Y | G143: Dental_paid_amt_unknown_65_over_curr | H143: N | J143: Dental_paid_amt_unknown_65_over_curr | K143: N | M143: Dental_paid_amt_unknown_65_over_curr | N143: Y | P143: Dental_paid_amt_unknown_65_over_curr | Q143: Y | S143: Dental_paid_amt_unknown_65_over_curr | T143: Y | V143: Dental_paid_amt_unknown_65_over_curr | W143: Y | Y143: Dental_paid_amt_unknown_65_over_curr | Z143: Y
A144: Dental_paid_amt_female_0_19_prior | B144: Y | D144: Dental_paid_amt_female_0_19_prior | E144: Y | G144: Dental_paid_amt_female_0_19_prior | H144: N | J144: Dental_paid_amt_female_0_19_prior | K144: N | M144: Dental_paid_amt_female_0_19_prior | N144: Y | P144: Dental_paid_amt_female_0_19_prior | Q144: Y | S144: Dental_paid_amt_female_0_19_prior | T144: Y | V144: Dental_paid_amt_female_0_19_prior | W144: Y | Y144: Dental_paid_amt_female_0_19_prior | Z144: Y
A145: Dental_paid_amt_female_20_44_prior | B145: Y | D145: Dental_paid_amt_female_20_44_prior | E145: Y | G145: Dental_paid_amt_female_20_44_prior | H145: N | J145: Dental_paid_amt_female_20_44_prior | K145: N | M145: Dental_paid_amt_female_20_44_prior | N145: Y | P145: Dental_paid_amt_female_20_44_prior | Q145: Y | S145: Dental_paid_amt_female_20_44_prior | T145: Y | V145: Dental_paid_amt_female_20_44_prior | W145: Y | Y145: Dental_paid_amt_female_20_44_prior | Z145: Y
A146: Dental_paid_amt_female_45_64_prior | B146: Y | D146: Dental_paid_amt_female_45_64_prior | E146: Y | G146: Dental_paid_amt_female_45_64_prior | H146: N | J146: Dental_paid_amt_female_45_64_prior | K146: N | M146: Dental_paid_amt_female_45_64_prior | N146: Y | P146: Dental_paid_amt_female_45_64_prior | Q146: Y | S146: Dental_paid_amt_female_45_64_prior | T146: Y | V146: Dental_paid_amt_female_45_64_prior | W146: Y | Y146: Dental_paid_amt_female_45_64_prior | Z146: Y
A147: Dental_paid_amt_female_65_over_prior | B147: Y | D147: Dental_paid_amt_female_65_over_prior | E147: Y | G147: Dental_paid_amt_female_65_over_prior | H147: N | J147: Dental_paid_amt_female_65_over_prior | K147: N | M147: Dental_paid_amt_female_65_over_prior | N147: Y | P147: Dental_paid_amt_female_65_over_prior | Q147: Y | S147: Dental_paid_amt_female_65_over_prior | T147: Y | V147: Dental_paid_amt_female_65_over_prior | W147: Y | Y147: Dental_paid_amt_female_65_over_prior | Z147: Y
A148: Dental_paid_amt_male_0_19_prior | B148: Y | D148: Dental_paid_amt_male_0_19_prior | E148: Y | G148: Dental_paid_amt_male_0_19_prior | H148: N | J148: Dental_paid_amt_male_0_19_prior | K148: N | M148: Dental_paid_amt_male_0_19_prior | N148: Y | P148: Dental_paid_amt_male_0_19_prior | Q148: Y | S148: Dental_paid_amt_male_0_19_prior | T148: Y | V148: Dental_paid_amt_male_0_19_prior | W148: Y | Y148: Dental_paid_amt_male_0_19_prior | Z148: Y
A149: Dental_paid_amt_male_20_44_prior | B149: Y | D149: Dental_paid_amt_male_20_44_prior | E149: Y | G149: Dental_paid_amt_male_20_44_prior | H149: N | J149: Dental_paid_amt_male_20_44_prior | K149: N | M149: Dental_paid_amt_male_20_44_prior | N149: Y | P149: Dental_paid_amt_male_20_44_prior | Q149: Y | S149: Dental_paid_amt_male_20_44_prior | T149: Y | V149: Dental_paid_amt_male_20_44_prior | W149: Y | Y149: Dental_paid_amt_male_20_44_prior | Z149: Y
A150: Dental_paid_amt_male_45_64_prior | B150: Y | D150: Dental_paid_amt_male_45_64_prior | E150: Y | G150: Dental_paid_amt_male_45_64_prior | H150: N | J150: Dental_paid_amt_male_45_64_prior | K150: N | M150: Dental_paid_amt_male_45_64_prior | N150: Y | P150: Dental_paid_amt_male_45_64_prior | Q150: Y | S150: Dental_paid_amt_male_45_64_prior | T150: Y | V150: Dental_paid_amt_male_45_64_prior | W150: Y | Y150: Dental_paid_amt_male_45_64_prior | Z150: Y
A151: Dental_paid_amt_male_65_over_prior | B151: Y | D151: Dental_paid_amt_male_65_over_prior | E151: Y | G151: Dental_paid_amt_male_65_over_prior | H151: N | J151: Dental_paid_amt_male_65_over_prior | K151: N | M151: Dental_paid_amt_male_65_over_prior | N151: Y | P151: Dental_paid_amt_male_65_over_prior | Q151: Y | S151: Dental_paid_amt_male_65_over_prior | T151: Y | V151: Dental_paid_amt_male_65_over_prior | W151: Y | Y151: Dental_paid_amt_male_65_over_prior | Z151: Y
A152: Dental_paid_amt_unknown_0_19_prior | B152: Y | D152: Dental_paid_amt_unknown_0_19_prior | E152: Y | G152: Dental_paid_amt_unknown_0_19_prior | H152: N | J152: Dental_paid_amt_unknown_0_19_prior | K152: N | M152: Dental_paid_amt_unknown_0_19_prior | N152: Y | P152: Dental_paid_amt_unknown_0_19_prior | Q152: Y | S152: Dental_paid_amt_unknown_0_19_prior | T152: Y | V152: Dental_paid_amt_unknown_0_19_prior | W152: Y | Y152: Dental_paid_amt_unknown_0_19_prior | Z152: Y
A153: Dental_paid_amt_unknown_20_44_prior | B153: Y | D153: Dental_paid_amt_unknown_20_44_prior | E153: Y | G153: Dental_paid_amt_unknown_20_44_prior | H153: N | J153: Dental_paid_amt_unknown_20_44_prior | K153: N | M153: Dental_paid_amt_unknown_20_44_prior | N153: Y | P153: Dental_paid_amt_unknown_20_44_prior | Q153: Y | S153: Dental_paid_amt_unknown_20_44_prior | T153: Y | V153: Dental_paid_amt_unknown_20_44_prior | W153: Y | Y153: Dental_paid_amt_unknown_20_44_prior | Z153: Y
A154: Dental_paid_amt_unknown_45_64_prior | B154: Y | D154: Dental_paid_amt_unknown_45_64_prior | E154: Y | G154: Dental_paid_amt_unknown_45_64_prior | H154: N | J154: Dental_paid_amt_unknown_45_64_prior | K154: N | M154: Dental_paid_amt_unknown_45_64_prior | N154: Y | P154: Dental_paid_amt_unknown_45_64_prior | Q154: Y | S154: Dental_paid_amt_unknown_45_64_prior | T154: Y | V154: Dental_paid_amt_unknown_45_64_prior | W154: Y | Y154: Dental_paid_amt_unknown_45_64_prior | Z154: Y
A155: Dental_paid_amt_unknown_65_over_prior | B155: Y | D155: Dental_paid_amt_unknown_65_over_prior | E155: Y | G155: Dental_paid_amt_unknown_65_over_prior | H155: N | J155: Dental_paid_amt_unknown_65_over_prior | K155: N | M155: Dental_paid_amt_unknown_65_over_prior | N155: Y | P155: Dental_paid_amt_unknown_65_over_prior | Q155: Y | S155: Dental_paid_amt_unknown_65_over_prior | T155: Y | V155: Dental_paid_amt_unknown_65_over_prior | W155: Y | Y155: Dental_paid_amt_unknown_65_over_prior | Z155: Y
A156: Med_inp_billed_network_curr | B156: Y | D156: Med_inp_billed_network_curr | E156: N | G156: Med_inp_billed_network_curr | H156: Y | J156: Med_inp_billed_network_curr | K156: Y | M156: Med_inp_billed_network_curr | N156: Y | P156: Med_inp_billed_network_curr | Q156: N | S156: Med_inp_billed_network_curr | T156: N | V156: Med_inp_billed_network_curr | W156: Y | Y156: Med_inp_billed_network_curr | Z156: Y
A157: Med_inp_network_discount_curr | B157: Y | D157: Med_inp_network_discount_curr | E157: N | G157: Med_inp_network_discount_curr | H157: Y | J157: Med_inp_network_discount_curr | K157: Y | M157: Med_inp_network_discount_curr | N157: Y | P157: Med_inp_network_discount_curr | Q157: N | S157: Med_inp_network_discount_curr | T157: N | V157: Med_inp_network_discount_curr | W157: Y | Y157: Med_inp_network_discount_curr | Z157: Y
A158: Med_amb_billed_network_curr | B158: Y | D158: Med_amb_billed_network_curr | E158: N | G158: Med_amb_billed_network_curr | H158: Y | J158: Med_amb_billed_network_curr | K158: Y | M158: Med_amb_billed_network_curr | N158: Y | P158: Med_amb_billed_network_curr | Q158: N | S158: Med_amb_billed_network_curr | T158: N | V158: Med_amb_billed_network_curr | W158: Y | Y158: Med_amb_billed_network_curr | Z158: Y
A159: Med_amb_network_discount_curr | B159: Y | D159: Med_amb_network_discount_curr | E159: N | G159: Med_amb_network_discount_curr | H159: Y | J159: Med_amb_network_discount_curr | K159: Y | M159: Med_amb_network_discount_curr | N159: Y | P159: Med_amb_network_discount_curr | Q159: N | S159: Med_amb_network_discount_curr | T159: N | V159: Med_amb_network_discount_curr | W159: Y | Y159: Med_amb_network_discount_curr | Z159: Y
A160: Med_non_facility_billed_network_curr | B160: Y | D160: Med_non_facility_billed_network_curr | E160: N | G160: Med_non_facility_billed_network_curr | H160: Y | J160: Med_non_facility_billed_network_curr | K160: Y | M160: Med_non_facility_billed_network_curr | N160: Y | P160: Med_non_facility_billed_network_curr | Q160: N | S160: Med_non_facility_billed_network_curr | T160: N | V160: Med_non_facility_billed_network_curr | W160: Y | Y160: Med_non_facility_billed_network_curr | Z160: Y
A161: Med_non_facility_network_discount_curr | B161: Y | D161: Med_non_facility_network_discount_curr | E161: N | G161: Med_non_facility_network_discount_curr | H161: Y | J161: Med_non_facility_network_discount_curr | K161: Y | M161: Med_non_facility_network_discount_curr | N161: Y | P161: Med_non_facility_network_discount_curr | Q161: N | S161: Med_non_facility_network_discount_curr | T161: N | V161: Med_non_facility_network_discount_curr | W161: Y | Y161: Med_non_facility_network_discount_curr | Z161: Y
A162: Med_total_billed_network_curr | B162: Y | D162: Med_total_billed_network_curr | E162: N | G162: Med_total_billed_network_curr | H162: Y | J162: Med_total_billed_network_curr | K162: Y | M162: Med_total_billed_network_curr | N162: Y | P162: Med_total_billed_network_curr | Q162: N | S162: Med_total_billed_network_curr | T162: N | V162: Med_total_billed_network_curr | W162: Y | Y162: Med_total_billed_network_curr | Z162: Y
A163: Med_total_network_discount_curr | B163: Y | D163: Med_total_network_discount_curr | E163: N | G163: Med_total_network_discount_curr | H163: Y | J163: Med_total_network_discount_curr | K163: Y | M163: Med_total_network_discount_curr | N163: Y | P163: Med_total_network_discount_curr | Q163: N | S163: Med_total_network_discount_curr | T163: N | V163: Med_total_network_discount_curr | W163: Y | Y163: Med_total_network_discount_curr | Z163: Y
A164: Med_inp_billed_network_prior | B164: Y | D164: Med_inp_billed_network_prior | E164: N | G164: Med_inp_billed_network_prior | H164: Y | J164: Med_inp_billed_network_prior | K164: Y | M164: Med_inp_billed_network_prior | N164: Y | P164: Med_inp_billed_network_prior | Q164: N | S164: Med_inp_billed_network_prior | T164: N | V164: Med_inp_billed_network_prior | W164: Y | Y164: Med_inp_billed_network_prior | Z164: Y
A165: Med_inp_network_discount_prior | B165: Y | D165: Med_inp_network_discount_prior | E165: N | G165: Med_inp_network_discount_prior | H165: Y | J165: Med_inp_network_discount_prior | K165: Y | M165: Med_inp_network_discount_prior | N165: Y | P165: Med_inp_network_discount_prior | Q165: N | S165: Med_inp_network_discount_prior | T165: N | V165: Med_inp_network_discount_prior | W165: Y | Y165: Med_inp_network_discount_prior | Z165: Y
A166: Med_amb_billed_network_prior | B166: Y | D166: Med_amb_billed_network_prior | E166: N | G166: Med_amb_billed_network_prior | H166: Y | J166: Med_amb_billed_network_prior | K166: Y | M166: Med_amb_billed_network_prior | N166: Y | P166: Med_amb_billed_network_prior | Q166: N | S166: Med_amb_billed_network_prior | T166: N | V166: Med_amb_billed_network_prior | W166: Y | Y166: Med_amb_billed_network_prior | Z166: Y
A167: Med_amb_network_discount_prior | B167: Y | D167: Med_amb_network_discount_prior | E167: N | G167: Med_amb_network_discount_prior | H167: Y | J167: Med_amb_network_discount_prior | K167: Y | M167: Med_amb_network_discount_prior | N167: Y | P167: Med_amb_network_discount_prior | Q167: N | S167: Med_amb_network_discount_prior | T167: N | V167: Med_amb_network_discount_prior | W167: Y | Y167: Med_amb_network_discount_prior | Z167: Y
A168: Med_non_facility_billed_network_prior | B168: Y | D168: Med_non_facility_billed_network_prior | E168: N | G168: Med_non_facility_billed_network_prior | H168: Y | J168: Med_non_facility_billed_network_prior | K168: Y | M168: Med_non_facility_billed_network_prior | N168: Y | P168: Med_non_facility_billed_network_prior | Q168: N | S168: Med_non_facility_billed_network_prior | T168: N | V168: Med_non_facility_billed_network_prior | W168: Y | Y168: Med_non_facility_billed_network_prior | Z168: Y
A169: Med_non_facility_network_discount_prior | B169: Y | D169: Med_non_facility_network_discount_prior | E169: N | G169: Med_non_facility_network_discount_prior | H169: Y | J169: Med_non_facility_network_discount_prior | K169: Y | M169: Med_non_facility_network_discount_prior | N169: Y | P169: Med_non_facility_network_discount_prior | Q169: N | S169: Med_non_facility_network_discount_prior | T169: N | V169: Med_non_facility_network_discount_prior | W169: Y | Y169: Med_non_facility_network_discount_prior | Z169: Y
A170: Med_total_billed_network_prior | B170: Y | D170: Med_total_billed_network_prior | E170: N | G170: Med_total_billed_network_prior | H170: Y | J170: Med_total_billed_network_prior | K170: Y | M170: Med_total_billed_network_prior | N170: Y | P170: Med_total_billed_network_prior | Q170: N | S170: Med_total_billed_network_prior | T170: N | V170: Med_total_billed_network_prior | W170: Y | Y170: Med_total_billed_network_prior | Z170: Y
A171: Med_total_network_discount_prior | B171: Y | D171: Med_total_network_discount_prior | E171: N | G171: Med_total_network_discount_prior | H171: Y | J171: Med_total_network_discount_prior | K171: Y | M171: Med_total_network_discount_prior | N171: Y | P171: Med_total_network_discount_prior | Q171: N | S171: Med_total_network_discount_prior | T171: N | V171: Med_total_network_discount_prior | W171: Y | Y171: Med_total_network_discount_prior | Z171: Y
A172: Med_paid_amt_inp_days_curr | B172: Y | D172: Med_paid_amt_inp_days_curr | E172: Y | G172: Med_paid_amt_inp_days_curr | H172: Y | J172: Med_paid_amt_inp_days_curr | K172: Y | M172: Med_paid_amt_inp_days_curr | N172: Y | P172: Med_paid_amt_inp_days_curr | Q172: N | S172: Med_paid_amt_inp_days_curr | T172: N | V172: Med_paid_amt_inp_days_curr | W172: Y | Y172: Med_paid_amt_inp_days_curr | Z172: Y
A173: Med_count_inp_days_curr | B173: N | D173: Med_count_inp_days_curr | E173: N | G173: Med_count_inp_days_curr | H173: Y | J173: Med_count_inp_days_curr | K173: Y | M173: Med_count_inp_days_curr | N173: Y | P173: Med_count_inp_days_curr | Q173: N | S173: Med_count_inp_days_curr | T173: N | V173: Med_count_inp_days_curr | W173: Y | Y173: Med_count_inp_days_curr | Z173: Y
A174: Med_paid_amt_amb_visits_curr | B174: Y | D174: Med_paid_amt_amb_visits_curr | E174: Y | G174: Med_paid_amt_amb_visits_curr | H174: Y | J174: Med_paid_amt_amb_visits_curr | K174: Y | M174: Med_paid_amt_amb_visits_curr | N174: Y | P174: Med_paid_amt_amb_visits_curr | Q174: N | S174: Med_paid_amt_amb_visits_curr | T174: N | V174: Med_paid_amt_amb_visits_curr | W174: Y | Y174: Med_paid_amt_amb_visits_curr | Z174: Y
A175: Med_count_amb_visits_curr | B175: N | D175: Med_count_amb_visits_curr | E175: N | G175: Med_count_amb_visits_curr | H175: Y | J175: Med_count_amb_visits_curr | K175: Y | M175: Med_count_amb_visits_curr | N175: Y | P175: Med_count_amb_visits_curr | Q175: N | S175: Med_count_amb_visits_curr | T175: N | V175: Med_count_amb_visits_curr | W175: Y | Y175: Med_count_amb_visits_curr | Z175: Y
A176: Med_paid_amt_er_visits_curr | B176: Y | D176: Med_paid_amt_er_visits_curr | E176: Y | G176: Med_paid_amt_er_visits_curr | H176: Y | J176: Med_paid_amt_er_visits_curr | K176: Y | M176: Med_paid_amt_er_visits_curr | N176: Y | P176: Med_paid_amt_er_visits_curr | Q176: N | S176: Med_paid_amt_er_visits_curr | T176: N | V176: Med_paid_amt_er_visits_curr | W176: Y | Y176: Med_paid_amt_er_visits_curr | Z176: Y
A177: Med_count_er_visits_curr | B177: N | D177: Med_count_er_visits_curr | E177: N | G177: Med_count_er_visits_curr | H177: Y | J177: Med_count_er_visits_curr | K177: Y | M177: Med_count_er_visits_curr | N177: Y | P177: Med_count_er_visits_curr | Q177: N | S177: Med_count_er_visits_curr | T177: N | V177: Med_count_er_visits_curr | W177: Y | Y177: Med_count_er_visits_curr | Z177: Y
A178: Med_paid_amt_spec_office_visits_curr | B178: Y | D178: Med_paid_amt_spec_office_visits_curr | E178: Y | G178: Med_paid_amt_spec_office_visits_curr | H178: Y | J178: Med_paid_amt_spec_office_visits_curr | K178: Y | M178: Med_paid_amt_spec_office_visits_curr | N178: Y | P178: Med_paid_amt_spec_office_visits_curr | Q178: N | S178: Med_paid_amt_spec_office_visits_curr | T178: N | V178: Med_paid_amt_spec_office_visits_curr | W178: Y | Y178: Med_paid_amt_spec_office_visits_curr | Z178: Y
A179: Med_count_spec_office_visits_curr | B179: N | D179: Med_count_spec_office_visits_curr | E179: N | G179: Med_count_spec_office_visits_curr | H179: Y | J179: Med_count_spec_office_visits_curr | K179: Y | M179: Med_count_spec_office_visits_curr | N179: Y | P179: Med_count_spec_office_visits_curr | Q179: N | S179: Med_count_spec_office_visits_curr | T179: N | V179: Med_count_spec_office_visits_curr | W179: Y | Y179: Med_count_spec_office_visits_curr | Z179: Y
A180: Med_paid_amt_prim_off_visits_curr | B180: Y | D180: Med_paid_amt_prim_off_visits_curr | E180: Y | G180: Med_paid_amt_prim_off_visits_curr | H180: Y | J180: Med_paid_amt_prim_off_visits_curr | K180: Y | M180: Med_paid_amt_prim_off_visits_curr | N180: Y | P180: Med_paid_amt_prim_off_visits_curr | Q180: N | S180: Med_paid_amt_prim_off_visits_curr | T180: N | V180: Med_paid_amt_prim_off_visits_curr | W180: Y | Y180: Med_paid_amt_prim_off_visits_curr | Z180: Y
A181: Med_count_prim_off_visits_curr | B181: N | D181: Med_count_prim_off_visits_curr | E181: N | G181: Med_count_prim_off_visits_curr | H181: Y | J181: Med_count_prim_off_visits_curr | K181: Y | M181: Med_count_prim_off_visits_curr | N181: Y | P181: Med_count_prim_off_visits_curr | Q181: N | S181: Med_count_prim_off_visits_curr | T181: N | V181: Med_count_prim_off_visits_curr | W181: Y | Y181: Med_count_prim_off_visits_curr | Z181: Y
A182: Med_paid_amt_inp_surgeries_curr | B182: Y | D182: Med_paid_amt_inp_surgeries_curr | E182: Y | G182: Med_paid_amt_inp_surgeries_curr | H182: Y | J182: Med_paid_amt_inp_surgeries_curr | K182: Y | M182: Med_paid_amt_inp_surgeries_curr | N182: Y | P182: Med_paid_amt_inp_surgeries_curr | Q182: N | S182: Med_paid_amt_inp_surgeries_curr | T182: N | V182: Med_paid_amt_inp_surgeries_curr | W182: Y | Y182: Med_paid_amt_inp_surgeries_curr | Z182: Y
A183: Med_count_inp_surgeries_curr | B183: N | D183: Med_count_inp_surgeries_curr | E183: N | G183: Med_count_inp_surgeries_curr | H183: Y | J183: Med_count_inp_surgeries_curr | K183: Y | M183: Med_count_inp_surgeries_curr | N183: Y | P183: Med_count_inp_surgeries_curr | Q183: N | S183: Med_count_inp_surgeries_curr | T183: N | V183: Med_count_inp_surgeries_curr | W183: Y | Y183: Med_count_inp_surgeries_curr | Z183: Y
A184: Med_paid_amt_amb_surgeries_curr | B184: Y | D184: Med_paid_amt_amb_surgeries_curr | E184: Y | G184: Med_paid_amt_amb_surgeries_curr | H184: Y | J184: Med_paid_amt_amb_surgeries_curr | K184: Y | M184: Med_paid_amt_amb_surgeries_curr | N184: Y | P184: Med_paid_amt_amb_surgeries_curr | Q184: N | S184: Med_paid_amt_amb_surgeries_curr | T184: N | V184: Med_paid_amt_amb_surgeries_curr | W184: Y | Y184: Med_paid_amt_amb_surgeries_curr | Z184: Y
A185: Med_count_amb_surgeries_curr | B185: N | D185: Med_count_amb_surgeries_curr | E185: N | G185: Med_count_amb_surgeries_curr | H185: Y | J185: Med_count_amb_surgeries_curr | K185: Y | M185: Med_count_amb_surgeries_curr | N185: Y | P185: Med_count_amb_surgeries_curr | Q185: N | S185: Med_count_amb_surgeries_curr | T185: N | V185: Med_count_amb_surgeries_curr | W185: Y | Y185: Med_count_amb_surgeries_curr | Z185: Y
A186: Med_paid_amt_office_surgeries_curr | B186: Y | D186: Med_paid_amt_office_surgeries_curr | E186: Y | G186: Med_paid_amt_office_surgeries_curr | H186: Y | J186: Med_paid_amt_office_surgeries_curr | K186: Y | M186: Med_paid_amt_office_surgeries_curr | N186: Y | P186: Med_paid_amt_office_surgeries_curr | Q186: N | S186: Med_paid_amt_office_surgeries_curr | T186: N | V186: Med_paid_amt_office_surgeries_curr | W186: Y | Y186: Med_paid_amt_office_surgeries_curr | Z186: Y
A187: Med_count_office_surgeries_curr | B187: N | D187: Med_count_office_surgeries_curr | E187: N | G187: Med_count_office_surgeries_curr | H187: Y | J187: Med_count_office_surgeries_curr | K187: Y | M187: Med_count_office_surgeries_curr | N187: Y | P187: Med_count_office_surgeries_curr | Q187: N | S187: Med_count_office_surgeries_curr | T187: N | V187: Med_count_office_surgeries_curr | W187: Y | Y187: Med_count_office_surgeries_curr | Z187: Y
A188: Med_paid_amt_med_visits_curr | B188: Y | D188: Med_paid_amt_med_visits_curr | E188: Y | G188: Med_paid_amt_med_visits_curr | H188: Y | J188: Med_paid_amt_med_visits_curr | K188: Y | M188: Med_paid_amt_med_visits_curr | N188: Y | P188: Med_paid_amt_med_visits_curr | Q188: N | S188: Med_paid_amt_med_visits_curr | T188: N | V188: Med_paid_amt_med_visits_curr | W188: Y | Y188: Med_paid_amt_med_visits_curr | Z188: Y
A189: Med_count_med_visits_curr | B189: N | D189: Med_count_med_visits_curr | E189: N | G189: Med_count_med_visits_curr | H189: Y | J189: Med_count_med_visits_curr | K189: Y | M189: Med_count_med_visits_curr | N189: Y | P189: Med_count_med_visits_curr | Q189: N | S189: Med_count_med_visits_curr | T189: N | V189: Med_count_med_visits_curr | W189: Y | Y189: Med_count_med_visits_curr | Z189: Y
A190: Med_paid_amt_rad_serv_curr | B190: Y | D190: Med_paid_amt_rad_serv_curr | E190: Y | G190: Med_paid_amt_rad_serv_curr | H190: Y | J190: Med_paid_amt_rad_serv_curr | K190: Y | M190: Med_paid_amt_rad_serv_curr | N190: Y | P190: Med_paid_amt_rad_serv_curr | Q190: N | S190: Med_paid_amt_rad_serv_curr | T190: N | V190: Med_paid_amt_rad_serv_curr | W190: Y | Y190: Med_paid_amt_rad_serv_curr | Z190: Y
A191: Med_count_rad_serv_curr | B191: N | D191: Med_count_rad_serv_curr | E191: N | G191: Med_count_rad_serv_curr | H191: Y | J191: Med_count_rad_serv_curr | K191: Y | M191: Med_count_rad_serv_curr | N191: Y | P191: Med_count_rad_serv_curr | Q191: N | S191: Med_count_rad_serv_curr | T191: N | V191: Med_count_rad_serv_curr | W191: Y | Y191: Med_count_rad_serv_curr | Z191: Y
A192: Med_paid_amt_lab_serv_curr | B192: Y | D192: Med_paid_amt_lab_serv_curr | E192: Y | G192: Med_paid_amt_lab_serv_curr | H192: Y | J192: Med_paid_amt_lab_serv_curr | K192: Y | M192: Med_paid_amt_lab_serv_curr | N192: Y | P192: Med_paid_amt_lab_serv_curr | Q192: N | S192: Med_paid_amt_lab_serv_curr | T192: N | V192: Med_paid_amt_lab_serv_curr | W192: Y | Y192: Med_paid_amt_lab_serv_curr | Z192: Y
A193: Med_count_lab_serv_curr | B193: N | D193: Med_count_lab_serv_curr | E193: N | G193: Med_count_lab_serv_curr | H193: Y | J193: Med_count_lab_serv_curr | K193: Y | M193: Med_count_lab_serv_curr | N193: Y | P193: Med_count_lab_serv_curr | Q193: N | S193: Med_count_lab_serv_curr | T193: N | V193: Med_count_lab_serv_curr | W193: Y | Y193: Med_count_lab_serv_curr | Z193: Y
A194: Med_paid_amt_home_health_curr | B194: Y | D194: Med_paid_amt_home_health_curr | E194: Y | G194: Med_paid_amt_home_health_curr | H194: Y | J194: Med_paid_amt_home_health_curr | K194: Y | M194: Med_paid_amt_home_health_curr | N194: Y | P194: Med_paid_amt_home_health_curr | Q194: N | S194: Med_paid_amt_home_health_curr | T194: N | V194: Med_paid_amt_home_health_curr | W194: Y | Y194: Med_paid_amt_home_health_curr | Z194: Y
A195: Med_count_home_health_curr | B195: N | D195: Med_count_home_health_curr | E195: N | G195: Med_count_home_health_curr | H195: Y | J195: Med_count_home_health_curr | K195: Y | M195: Med_count_home_health_curr | N195: Y | P195: Med_count_home_health_curr | Q195: N | S195: Med_count_home_health_curr | T195: N | V195: Med_count_home_health_curr | W195: Y | Y195: Med_count_home_health_curr | Z195: Y
A196: Med_paid_amt_mental_health_curr | B196: Y | D196: Med_paid_amt_mental_health_curr | E196: Y | G196: Med_paid_amt_mental_health_curr | H196: Y | J196: Med_paid_amt_mental_health_curr | K196: Y | M196: Med_paid_amt_mental_health_curr | N196: Y | P196: Med_paid_amt_mental_health_curr | Q196: N | S196: Med_paid_amt_mental_health_curr | T196: N | V196: Med_paid_amt_mental_health_curr | W196: Y | Y196: Med_paid_amt_mental_health_curr | Z196: Y
A197: Med_count_mental_health_curr | B197: N | D197: Med_count_mental_health_curr | E197: N | G197: Med_count_mental_health_curr | H197: Y | J197: Med_count_mental_health_curr | K197: Y | M197: Med_count_mental_health_curr | N197: Y | P197: Med_count_mental_health_curr | Q197: N | S197: Med_count_mental_health_curr | T197: N | V197: Med_count_mental_health_curr | W197: Y | Y197: Med_count_mental_health_curr | Z197: Y
A198: Med_paid_amt_med_rx_curr | B198: Y | D198: Med_paid_amt_med_rx_curr | E198: Y | G198: Med_paid_amt_med_rx_curr | H198: Y | J198: Med_paid_amt_med_rx_curr | K198: Y | M198: Med_paid_amt_med_rx_curr | N198: Y | P198: Med_paid_amt_med_rx_curr | Q198: N | S198: Med_paid_amt_med_rx_curr | T198: N | V198: Med_paid_amt_med_rx_curr | W198: Y | Y198: Med_paid_amt_med_rx_curr | Z198: Y
A199: Med_count_med_rx_curr | B199: N | D199: Med_count_med_rx_curr | E199: N | G199: Med_count_med_rx_curr | H199: Y | J199: Med_count_med_rx_curr | K199: Y | M199: Med_count_med_rx_curr | N199: Y | P199: Med_count_med_rx_curr | Q199: N | S199: Med_count_med_rx_curr | T199: N | V199: Med_count_med_rx_curr | W199: Y | Y199: Med_count_med_rx_curr | Z199: Y
A200: Med_paid_amt_misc_med_curr | B200: Y | D200: Med_paid_amt_misc_med_curr | E200: Y | G200: Med_paid_amt_misc_med_curr | H200: Y | J200: Med_paid_amt_misc_med_curr | K200: Y | M200: Med_paid_amt_misc_med_curr | N200: Y | P200: Med_paid_amt_misc_med_curr | Q200: N | S200: Med_paid_amt_misc_med_curr | T200: N | V200: Med_paid_amt_misc_med_curr | W200: Y | Y200: Med_paid_amt_misc_med_curr | Z200: Y
A201: Med_count_misc_med_curr | B201: N | D201: Med_count_misc_med_curr | E201: N | G201: Med_count_misc_med_curr | H201: Y | J201: Med_count_misc_med_curr | K201: Y | M201: Med_count_misc_med_curr | N201: Y | P201: Med_count_misc_med_curr | Q201: N | S201: Med_count_misc_med_curr | T201: N | V201: Med_count_misc_med_curr | W201: Y | Y201: Med_count_misc_med_curr | Z201: Y
... 3018 more rows

Sheet ePSM Header Data Page (hidden)
A1: Common Data Documentation | B1: Common Data | D1: Date formulas | F1: Calculate Lag | H1: Cover Page Formula's | J1: Criteria Page Formula's | K1: Additional Criteria Page Formula's (Threshold) | L1: Additional Criteria Page Formula's (Primary payor) | M1: Hide Rx Tabs Formula | O1: Check for Medical vs Rx vs Dental Package | Q1: First Time Switch | T1: Report TOC Names Conversion | U1: Tab Report Name | V1: Actual Report Name (to appear on TOC & Report Headers) | X1: ICD9_DX_CD
U2: Additional Report Criteria | V2: Additional Report Criteria | X2: 042
A3: PSUNumber | B3: 80646693 | F3: =IF(MID(D12,7,4)=MID(D8,7,4),MONTH(D12)-MONTH(D8),(YEAR(D12)-YEAR(D8))*12+MONTH(D12)-MONTH(D8)) -> 0 | H3: =TRIM(PSUName) & " - Plan Sponsor ID " & TEXT(PSUNumber, "0000000000000000") -> MIAMI DADE COLLEGE - Plan Sponsor ID 0000000080646693 | J3: =IF('ePSM Header Data Page'!F3=0," ", 'ePSM Header Data Page'!F3 & " Month Claim Lag") ->  | K3: =IF(exclude_large_claimant_ind=0,"N/A",TEXT(CatClaimantThreshold, "$0,000")) -> N/A | L3: =IF(primary_payor_ind=0,"N/A", IF(primary_payor_ind=1,"Carrier Primary", IF(primary_payor_ind=2,"Medicare Primary","N/A"))) -> N/A | M3: =IF(AND(num_claims_curr=0,num_claims_prior=0,Rx_num_members_curr=0,Rx_num_members_prior=0),"No Rx Data",IF(AND(num_claims_curr=0,num_claims_prior=0,Rx_num_members_curr="N/A",Rx_num_members_prior="N/A"),"No Rx Data","Has Rx Data")) -> No Rx Data | O3: C:\Data\Encrypted\USERDATA\ePSM Rewrite\xml\AHF_Activity_Reports_levelab_template_1_12_8.xls | Q3: FALSE | U3: ADF - Activity By Tier | V3: Aetna DentalFund Activity By Tier | X3: 042.0 | Y3: Aetna BOB demographic metrics are specific to the overall broad product categories of HMO, QPOS, Indemnity, PPO, Managed Choice and Elect Choice and to the plan sponsor's region(s). Aetna BOB financial and utilization metrics are further adjusted for the plan sponsor's age and gender mix. All BOB metrics are based on a 12 month incurred time period with a two month lag.
A4: PSUName | B4: MIAMI DADE COLLEGE | H4: =TRIM(PSUName) -> MIAMI DADE COLLEGE | J4: =IF(AND(NO_BOB_Data=TRUE,NO_Member_Data=TRUE,NOT(Template="Dental")),"Book of Business data unavailable due to lack of current customer membership",IF(AND(NO_BOB_Data=TRUE,NO_Member_Dental_Data=TRUE,Template="Dental"),"Book of Business data unavailable due to lack of current customer membership",IF(NO_BOB_Data=TRUE,"Book of Business data unavailable",IF(BOBDate="No Date Passed","Book of Business Data Incurred End Date "&TEXT('ePSM Header Data Page'!D8,"mmmm dd, yyyy"), IF(BOBDate=0,"Book of Business Data Incurred End Date "&TEXT('ePSM Header Data Page'!D8,"mmmm dd, yyyy"),"Book of Business Data Incurred End Date "&TEXT(J5,"mmmm dd, yyyy")))))) -> Book of Business Data Incurred End Date January 31, 2016 | K4: ="" ->  | L4: ="" ->  | O4: =IF(ISNUMBER(FIND("Community_Rated",Template_Name)),"FI Community Rated", IF(ISNUMBER(FIND("Drill_Down",Template_Name)),"Medical Drill Down", IF(ISNUMBER(FIND("Medical",Template_Name)),"Medical", IF(ISNUMBER(FIND("Rx",Template_Name)),"Pharmacy", IF(ISNUMBER(FIND("Dental",Template_Name)),"Dental", IF(ISNUMBER(FIND("AHF",Template_Name)),"AHF", "master")))))) -> AHF | Q4: FALSE | T4: AHF Glossary | U4: ADF - Fund Report | V4: Aetna DentalFund - Fund Report | X4: 042.1 | Y4: Aetna BOB demographic metrics are specific to the overall broad product categories of HMO, QPOS, Indemnity, PPO, Managed Choice and Elect Choice and to the plan sponsor's region(s). Aetna BOB financial and utilization metrics are further adjusted for the plan sponsor's age and gender mix. All BOB metrics are based on a 12 month incurred time period with a two month lag.
A5: Product | B5: 91-U- | H5: ="Plan Sponsor ID " & TEXT(PSUNumber, "0000000000000000") -> Plan Sponsor ID 0000000080646693 | J5: =MID(BOBDate,5,2) & "-" & MID(BOBDate,7,2) & "-" & MID(BOBDate,1,4) -> 01-31-2016 | K5: ="" ->  | L5: ="" ->  | O5: =IF(ISNUMBER(FIND("Drill_Down",Template_Name)),"Medical Drill Down",IF(ISNUMBER(FIND("SI_Medical",Template_Name)),"SI Medical",IF(ISNUMBER(FIND("FI_Medical",Template_Name)),"FI Medical",IF(ISNUMBER(FIND("Rx",Template_Name)),"Pharmacy",IF(ISNUMBER(FIND("SI_Dental",Template_Name)),"SI Dental",IF(ISNUMBER(FIND("FI_Dental",Template_Name)),"FI Dental","master")))))) -> master | T5: =LOOKUP(tab_report_name,U2:U138,V2:V138) -> Glossary | U5: ADF Activity - Detail | V5: Aetna DentalFund Activity - Detail | X5: 042.2 | Y5: "Reviewed by Patient Management" includes all Pre-Cert, Inpatient Care Coordination, Disease Management, Case Management, Women's Health, Healthy Lifestyle and NME. Patient Management is less likely if the plan sponsor has not selected Patient Management Pre-Cert.
A6: IncStartDateCurr | B6: nodate | D6: =IF(TRIM(IncStartDateCurr)="nodate",ProcStartDateCurr,IncStartDateCurr) -> 01-01-2016 | H6: =IF(Template3="FI Community Rated Medicare","Standard Report For "&'ePSM Fund Code'!C13&" Medicare Community Rated Products", IF(Template="FI Community Rated","Standard Report For "&'ePSM Fund Code'!C13&" Medical Community Rated Products", IF(Template="Medical Drill Down","Standard Report For "&'ePSM Fund Code'!C13&" Medical Drill-Down Products", IF(Template2="Behavioral Health","Standard Report For "&'ePSM Fund Code'!C13&" "&TRIM(LEFT(O7,17))&" Products", IF(Template2="Aexcel","Standard Report For "&'ePSM Fund Code'!C13&" "&TRIM(LEFT(O7,6)), "Standard Report For "&'ePSM Fund Code'!C13&" "&TRIM(LEFT(O4,8))&" Products"))))) -> Standard Report For Fully Insured AHF Products | J6: =IF('ePSM Header Data Page'!F3=0,"", " ( " &'ePSM Header Data Page'!F3 & " Month Claim Lag )") ->  | K6: ="" ->  | L6: ="" ->  | O6: =MID(Template_Name,45,10) -> AHF_Activi | Q6: =#REF! ->  | U6: Aex Amb MDC | V6: Ambulatory MDC Analysis - Aexcel Medical Detail* | X6: 042.9 | Y6: "Reviewed by Case Management" is triggered by diagnostic triggers and predictive modeling. Review of high dollar claims is also triggered by accumulated claims over $75,000. Newborns will have a NO under this category if the review was captured under the mothers patient record due to 30 day eligibility. This category will also NOT include Case Management provided by Disease Management or Women's Health. Please note that the timing of the report may impact the patient management indicators as the review for a case could have occurred prior to or after the time period used to generate the report.
A7: IncStartDatePrior | B7: nodate | D7: =IF(TRIM(IncStartDatePrior)="nodate",ProcStartDatePrior,IncStartDatePrior) -> 01-01-2015 | K7: ="" ->  | L7: ="" ->  | O7: =IF(ISNUMBER(FIND("Summary",Template_Name)),"Summary by Product", IF(ISNUMBER(FIND("BH",Template_Name)),"Behavioral Health", IF(ISNUMBER(FIND("Aexcel",Template_Name)),"Aexcel", "master"))) -> master | U7: Aex Experience by Tier | V7: Experience by Tier | X7: 043 | Y7: Aetna BOB demographic metrics are specific to the product and to the plan sponsor's region(s). Aetna BOB financial and utilization metrics are further adjusted for the plan sponsor's age and gender mix. All BOB metrics are based on a 12 month incurred time period.
A8: IncEndDateCurr | B8: nodate | D8: =IF(TRIM(IncEndDateCurr)="nodate",ProcEndDateCurr,IncEndDateCurr) -> 03-31-2016 | H8: ="Current Data For Claims " & TRIM('ePSM Header Data Page'!D17) & " " & TEXT('ePSM Header Data Page'!D6,"mmmm dd, yyyy") & " - " & TEXT('ePSM Header Data Page'!D8,"mmmm dd, yyyy") -> Current Data For Claims Processed/Paid January 01, 2016 - March 31, 2016 | J8: =IF(AND(NO_BH_BOB_Data=TRUE,NO_Member_Data=TRUE,NOT(Template="Dental")),"Book of Business data unavailable due to lack of current customer membership",IF(AND(NO_BH_BOB_Data=TRUE,NO_Member_Dental_Data=TRUE,Template="Dental"),"Book of Business data unavailable due to lack of current customer membership",IF(NO_BH_BOB_Data=TRUE,"Book of Business data unavailable",IF(BHBOBDate="No Date Passed","Book of Business Data Incurred End Date "&TEXT('ePSM Header Data Page'!D8,"mmmm dd, yyyy"),IF(BHBOBDate=0,"Book of Business Data Incurred End Date "&TEXT('ePSM Header Data Page'!D8,"mmmm dd, yyyy"),"Book of Business Data Incurred End Date "&TEXT(J9,"mmmm dd, yyyy")))))) -> Book of Business data unavailable | K8: ="" ->  | L8: ="" ->  | O8: =IF(ISNUMBER(FIND("Community_Rated_Medicare",Template_Name)),"FI Community Rated Medicare", "master") -> master | U8: Aex IP MDC | V8: Inpatient MDC Analysis - Aexcel Medical Detail* | X8: 043.0 | Y8: Aetna BOB demographic metrics are specific to the product and to the plan sponsor's region(s). Aetna BOB utilization metrics are further adjusted for the plan sponsor's age and gender mix. All BOB metrics are based on a 12 month incurred time period.
A9: IncEndDatePrior | B9: nodate | D9: =IF(TRIM(IncEndDatePrior)="nodate",ProcEndDatePrior,IncEndDatePrior) -> 03-31-2015 | H9: ="Prior Data For Claims " & TRIM('ePSM Header Data Page'!D18) & " " & TEXT('ePSM Header Data Page'!D7,"mmmm dd, yyyy") & " - " & TEXT('ePSM Header Data Page'!D9,"mmmm dd, yyyy") -> Prior Data For Claims Processed/Paid January 01, 2015 - March 31, 2015 | J9: =MID(BHBOBDate,5,2) & "-" & MID(BHBOBDate,7,2) & "-" & MID(BHBOBDate,1,4) -> at-e -No D | K9: ="" ->  | L9: ="" ->  | U9: Aex Medical Cost Category | V9: Unit & Utilization Cost by Cost Category | X9: 043.1 | Y9: Aetna BOB demographic metrics are specific to the plan sponsor's product. Aetna BOB financial and utilization metrics are further adjusted for the plan sponsor's age and gender mix. All BOB metrics are based on a 12 month incurred time period with a two month lag.
A10: ProcStartDateCurr | B10: 01-01-2016 | D10: =IF(TRIM(ProcStartDateCurr)="nodate",IncStartDateCurr,ProcStartDateCurr) -> 01-01-2016 | K10: ="" ->  | L10: ="" ->  | U10: Aex Professional Experience | V10: Professional Experience in Aexcel Specialties | X10: 043.2 | Y10: ="The Executive Summary was not produced for this report because there was not a full 24 months of data available for the incurred time period of " & H15 &" and the prior period of " &H16 &". Please see the Data Availability Summary page for more information." -> The Executive Summary was not produced for this report because there was not a full 24 months of data available for the incurred time period of January 01, 2016 - March 31, 2016 and the prior period of January 01, 2015 - March 31, 2015. Please see the Data Availability Summary page for more information.
A11: ProcStartDatePrior | B11: 01-01-2015 | D11: =IF(TRIM(ProcStartDatePrior)="nodate",IncStartDatePrior,ProcStartDatePrior) -> 01-01-2015 | H11: =IF(INDIRECT("'Report Criteria'!B15")="",'Report Criteria'!B14,"Integrated") -> Fully Insured AHF OA HNOLY with Pharmacy | J11: =IF(AND(NO_AEXCEL_BOB_DATA=TRUE,NO_AEXCEL_Member_Data=TRUE,NOT(Template="Dental")),"Book of Business data unavailable due to lack of current customer membership",IF(AND(NO_AEXCEL_BOB_DATA=TRUE,NO_Member_Dental_Data=TRUE,Template="Dental"),"Book of Business data unavailable due to lack of current customer membership",IF(NO_AEXCEL_BOB_DATA=TRUE,"Book of Business data unavailable",IF(AexcelBOBDate="No Date Passed","Book of Business Data Incurred End Date "&TEXT('ePSM Header Data Page'!D8,"mmmm dd, yyyy"),IF(AexcelBOBDate=0,"Book of Business Data Incurred End Date "&TEXT('ePSM Header Data Page'!D8,"mmmm dd, yyyy"),"Book of Business Data Incurred End Date "&TEXT(J12,"mmmm dd, yyyy")))))) ->  | K11: ="" ->  | L11: ="" ->  | U11: Aexcel Glossary | V11: Glossary | X11: 043.3
A12: ProcEndDateCurr | B12: 03-31-2016 | D12: =IF(TRIM(ProcEndDateCurr)="nodate",IncEndDateCurr,ProcEndDateCurr) -> 03-31-2016 | J12: =MID(AexcelBOBDate,5,2) & "-" & MID(AexcelBOBDate,7,2) & "-" & MID(AexcelBOBDate,1,4) ->  | K12: ="" ->  | L12: ="" ->  | U12: Aexcel Structure Comparison | V12: Aexcel Structure Comparison - Regional View | X12: 043.9 | Y12: For the Aetna Health Fund (AHF) product only, use caution when analyzing changes in deductible and coinsurance from the prior to the current period. For certain AHF models, a system reporting change was made as of 1/1/2004 as to how deductibles and coinsurance are reflected. Prior to 1/1/2004, deductible and coinsurance amounts taken from the Fund were not reflected as deductible or coinsurance on this report. After 1/1/2004, deductible and coinsurance taken from the Fund is reflected as deductible and coinsurance. Therefore, these amounts may appear to increase significantly depending on the AHF model in place and the date implemented.
A13: ProcEndDatePrior | B13: 03-31-2015 | D13: =IF(TRIM(ProcEndDatePrior)="nodate",IncEndDatePrior,ProcEndDatePrior) -> 03-31-2015 | H13: =MID('Report Criteria'!U14,1,2) -> 91 | K13: ="" ->  | L13: ="" ->  | U13: AHF - Activity By Tier | V13: Aetna HealthFund Activity By Tier | X13: 044 | Y13: Aetna BOB demographic metrics are specific to the overall broad product categories of HMO, QPOS, Indemnity, PPO, Managed Choice and Elect Choice and to the plan sponsor's region(s). Aetna BOB financial and utilization metrics are further adjusted for the plan sponsor's age and gender mix. All BOB metrics are based on a 12 month incurred time period with a two month lag.
A14: UserReportName | B14: MDC AHF Activity Report 01-16 thru 03-16 | K14: ="" ->  | L14: ="" ->  | U14: AHF - Fund Report | V14: Aetna HealthFund - Fund Report | X14: 044.0 | Y14: Aetna BOB demographic metrics are specific to the overall broad product categories of HMO, QPOS, Indemnity, PPO, Managed Choice and Elect Choice and to the plan sponsor's region(s). Aetna BOB financial and utilization metrics are further adjusted for the plan sponsor's age and gender mix. All BOB metrics are based on a 12 month incurred time period.
A15: UserEnteredText1 | B15: _ | H15: =TEXT('ePSM Header Data Page'!D6,"mmmm dd, yyyy") & " - " & TEXT('ePSM Header Data Page'!D8,"mmmm dd, yyyy") -> January 01, 2016 - March 31, 2016 | K15: ="" ->  | L15: ="" ->  | U15: AHF Activity - Detail | V15: Aetna HealthFund Activity - Detail | X15: 044.9
A16: UserEnteredText2 | B16: _ | H16: =TEXT('ePSM Header Data Page'!D7,"mmmm dd, yyyy") & " - " & TEXT('ePSM Header Data Page'!D9,"mmmm dd, yyyy") -> January 01, 2015 - March 31, 2015 | K16: ="" ->  | L16: ="" ->  | U16: AHF Glossary | V16: Glossary | X16: 079.5
A17: Request_ID | B17: =IF(B18="",B19,B18) -> 1524140 | D17: =IF(TRIM(IncStartDateCurr)="nodate","Processed/Paid","Incurred") -> Processed/Paid | K17: ="" ->  | L17: ="" ->  | U17: AHF Medical $ by Family | V17: AHF Medical Claims by Dollar Range (Family) | X17: 079.50
A18: Request_ID_Old | D18: =IF(TRIM(IncStartDatePrior)="nodate","Processed/Paid","Incurred") -> Processed/Paid | K18: ="" ->  | L18: ="" ->  | U18: AHF Medical $ by Member | V18: AHF Medical Claims by Dollar Range (Member) | X18: 079.53
A19: Request_ID_New | B19: 1524140 | D19: =IF(TRIM(IncEndDateCurr)="nodate","Processed/Paid","Incurred") -> Processed/Paid | K19: ="" ->  | L19: ="" ->  | U19: AHF Medical Cost Category | V19: AHF Claims by Medical Cost Category | X19: 079.59
A20: CatClaimantThreshold | B20: 50000 | D20: =IF(TRIM(IncEndDatePrior)="nodate","Processed/Paid","Incurred") -> Processed/Paid | K20: ="" ->  | L20: ="" ->  | U20: AHF Medical Demographics | V20: AHF Demographics Medical | X20: 136.3
A21: FI_ExclusionInd | B21: 1 | K21: ="" ->  | L21: ="" ->  | U21: AHF Medical Key Statistics | V21: AHF Key Statistics Medical | X21: 176
A22: BOBDate | B22: 20160131 | D22: =IF(IncEndDateCurr="nodate","",CONCATENATE(MID(IncEndDateCurr,7,4),MID(IncEndDateCurr,1,2),MID(IncEndDateCurr,4,2))) ->  | K22: ="" ->  | L22: ="" ->  | U22: AHF Rx Demographics | V22: AHF Demographics Pharmacy | X22: 176.0
A23: Run_Date | B23: 20160415 | D23: =IF(D17="Incurred","",IF(ProcEndDateCurr="nodate","",CONCATENATE(MID(ProcEndDateCurr,7,4),MID(ProcEndDateCurr,1,2),MID(ProcEndDateCurr,4,2)))) -> 20160331 | K23: ="" ->  | L23: ="" ->  | U23: AHF Rx Key Statistics | V23: AHF Key Statistics Pharmacy | X23: 176.1
A24: BrokerEnteredName | D24: =IF(IncEndDatePrior="nodate","",CONCATENATE(MID(IncEndDatePrior,7,4),MID(IncEndDatePrior,1,2),MID(IncEndDatePrior,4,2))) ->  | K24: ="" ->  | L24: ="" ->  | U24: Amb MDC Analysis Medical | V24: Ambulatory MDC Analysis - Medical Detail* | X24: 176.2
A25: BrokerEnteredTagLine | D25: =IF(D17="Incurred","",IF(ProcEndDatePrior="nodate","",CONCATENATE(MID(ProcEndDatePrior,7,4),MID(ProcEndDatePrior,1,2),MID(ProcEndDatePrior,4,2)))) -> 20150331 | K25: ="" ->  | L25: ="" ->  | U25: BH Catastrophic - Current | V25: Behavioral Health Catastrophic Claimant Detail for Current Period | X25: 176.3
A26: Rx_AHF_Ind | B26: 0 | K26: ="" ->  | L26: ="" ->  | U26: BH Catastrophic - Prior | V26: Behavioral Health Catastrophic Claimant Detail for Prior Period | X26: 176.4
A27: primary_payor_ind | B27: 0 | K27: ="" ->  | L27: ="" ->  | U27: BH Cost Sharing | V27: Behavioral Health Cost Sharing Analysis | X27: 176.5
A28: exclude_large_claimant_ind | B28: 0 | K28: ="" ->  | L28: ="" ->  | U28: BH Demographics | V28: Demographics For Behavioral Health Membership | X28: 176.8
A29: level_c_d_user_ind | B29: 0 | K29: ="" ->  | L29: ="" ->  | U29: BH Facility Profile | V29: Facility Profile | X29: 176.9
A30: dental_ahf_ind | B30: 0 | K30: ="" ->  | L30: ="" ->  | U30: BH Glossary | V30: Glossary | X30: 290
A31: BHBOBDate | B31: No Date Passed | K31: ="" ->  | L31: ="" ->  | U31: BH Impact of Catastrophics | V31: Impact of Behavioral Health Catastrophic Claimant Experience | X31: 290.0
A32: template_nm | B32: FI_AHF | K32: ="" ->  | L32: ="" ->  | U32: BH Key Statistics | V32: Key Statistics - Behavioral Health | X32: 290.1
A33: job_id | B33: 2715747 | K33: ="" ->  | L33: ="" ->  | U33: BH Provider Network Exp | V33: Provider Network Experience - Behavioral Health | X33: 290.10
A34: report_type | K34: ="" ->  | L34: ="" ->  | U34: BH Rx GPI Roll Up Categories | V34: Behavioral Health Pharmacy - GPI Groupings | X34: 290.11
A35: report_id | K35: ="" ->  | L35: ="" ->  | U35: BH Rx Key Statistics | V35: Key Statistics - Behavioral Health Pharmacy | X35: 290.12
K36: ="" ->  | L36: ="" ->  | U36: BH Rx Key Statistics by Generic | V36: Key Behavioral Health Pharmacy Statistics by Generic, Brand Single-Source & Brand Multi-Source | X36: 290.13
K37: ="" ->  | L37: ="" ->  | U37: BH Trend Analysis | V37: Trend Analysis by Behavioral Health Specialty Cost Category | X37: 290.2
K38: ="" ->  | L38: ="" ->  | U38: BH Utilization and Unit Cost | V38: Utilization and Unit Cost by Behavioral Health Specialty Cost Category | X38: 290.20
U39: Cost Sharing Analysis Dental | V39: Dental - Cost Sharing Analysis | X39: 290.21
U40: Cover Page | V40: Cover Page | X40: 290.3
U41: Data Availability Summary | V41: Data Availability Summary | X41: 290.4
U42: Demographic Profile | V42: Demographic Profile | X42: 290.40
U43: Demographics Dental | V43: Demographics For Dental Membership | X43: 290.41
U44: Demographics Medical | V44: Demographics For Medical Membership | X44: 290.42
U45: Dental Glossary | V45: Glossary | X45: 290.43
U46: Executive Summary | V46: Executive Summary | X46: 290.8
U47: Financial Overview Dental | V47: Financial Overview for Fully Insured Products | X47: 290.9
U48: Financial Overview Medical | V48: Financial Overview for Fully Insured Products | X48: 291
U49: FOV SI Aet Sel | V49: Financial Overview - Self Insured Aetna Select | X49: 291.0
U50: FOV SI Aetna CH POS II | V50: Financial Overview - Self Insured Aetna Choice POS II | X50: 291.1
U51: FOV SI AHF CH POS II | V51: Financial Overview - Self Insured Aetna Health Fund Choice POS II | X51: 291.2
U52: FOV SI AHF-EC | V52: Financial Overview - Self Insured AHF - Elect Choice | X52: 291.3
U53: FOV SI AHF-MC | V53: Financial Overview - Self Insured AHF - Managed Choice | X53: 291.4
U54: FOV SI AHF-PPO | V54: Financial Overview - Self Insured AHF - PPO | X54: 291.5
U55: FOV SI Axcl Aet Sel | V55: Financial Overview - Self Insured Aexcel Aetna Select | X55: 291.8
U56: FOV SI Axcl CH POS II | V56: Financial Overview - Self Insured Aexcel Choice POS II | X56: 291.81
U57: FOV SI Axcl CH POS II+AHF | V57: Financial Overview - Self Insured Aexcel CH POS II + AHF | X57: 291.89
U58: FOV SI Axcl EC | V58: Financial Overview - Self Insured Aexcel EC | X58: 291.9
U59: FOV SI Axcl MC | V59: Financial Overview - Self Insured Aexcel MC | X59: 292
U60: FOV SI Axcl OA Aet Sel | V60: Financial Overview - Self Insured Aexcel OA Aetna Select | X60: 292.0
U61: FOV SI Axcl OA Aet Sel+AHF | V61: Financial Overview - Self Insured Aexcel OA Aetna Select + AHF | X61: 292.1
U62: FOV SI Axcl OA EC | V62: Financial Overview - Self Insured Aexcel OA EC | X62: 292.11
U63: FOV SI Axcl OA EC+AHF | V63: Financial Overview - Self Insured Aexcel OA EC + AHF | X63: 292.12
U64: FOV SI Axcl OA MC | V64: Financial Overview - Self Insured Aexcel OA MC | X64: 292.2
U65: FOV SI Axcl OA MC+AHF | V65: Financial Overview - Self Insured Aexcel OA MC + AHF | X65: 292.8
U66: FOV SI Axcl Plus Aet Sel | V66: Financial Overview - Self Insured Aexcel Plus Aetna Select | X66: 292.81
U67: FOV SI Axcl Plus CH POS II | V67: Financial Overview - Self Insured Aexcel Plus Choice POS II | X67: 292.82
U68: FOV SI Axcl Plus CH POS II+AHF | V68: Financial Overview - Self Insured Aexcel Plus CH POS II + AHF | X68: 292.83
U69: FOV SI Axcl Plus EC | V69: Financial Overview - Self Insured Aexcel Plus EC | X69: 292.84
U70: FOV SI Axcl Plus MC | V70: Financial Overview - Self Insured Aexcel Plus MC | X70: 292.89
U71: FOV SI Axcl Plus OA Aet Sel | V71: Financial Overview - Self Insured Aexcel Plus OA Aetna Select | X71: 292.9
U72: FOV SI Axcl Plus OA Aet Sel+AHF | V72: Financial Overview - Self Insured Aexcel Plus OA Aetna Sel + AHF | X72: 293
U73: FOV SI Axcl Plus OA EC | V73: Financial Overview - Self Insured Aexcel Plus OA EC | X73: 293.0
U74: FOV SI Axcl Plus OA EC+AHF | V74: Financial Overview - Self Insured Aexcel Plus OA EC + AHF | X74: 293.1
U75: FOV SI Axcl Plus OA MC | V75: Financial Overview - Self Insured Aexcel Plus OA MC | X75: 293.8
U76: FOV SI Axcl Plus OA MC+AHF | V76: Financial Overview - Self Insured Aexcel Plus OA MC + AHF | X76: 293.81
U77: FOV SI Axcl Plus PPO | V77: Financial Overview - Self Insured Aexcel Plus PPO | X77: 293.82
U78: FOV SI Axcl Plus PPO+AHF | V78: Financial Overview - Self Insured Aexcel Plus PPO + AHF | X78: 293.83
U79: FOV SI Axcl PPO | V79: Financial Overview - Self Insured Aexcel PPO | X79: 293.84
U80: FOV SI Axcl PPO+AHF | V80: Financial Overview - Self Insured Aexcel PPO + AHF | X80: 293.89
U81: FOV SI Dental | V81: Financial Overview - Self Insured Dental | X81: 293.9
U82: FOV SI EC | V82: Financial Overview - Self Insured Elect Choice | X82: 294
U83: FOV SI HMO | V83: Financial Overview - Self Insured HMO | X83: 294.0
U84: FOV SI Indemnity | V84: Financial Overview - Self Insured Indemnity | X84: 294.1
U85: FOV SI MC | V85: Financial Overview - Self Insured Managed Choice | X85: 294.10
U86: FOV SI OA Aet Sel | V86: Financial Overview - Self Insured Open Access Aetna Select | X86: 294.11
U87: FOV SI OA Aet Sel AHF | V87: Financial Overview - Self Insured Open Access Aetna Select AHF | X87: 294.8
U88: FOV SI OA EC | V88: Financial Overview - Self Insured Open Access EC | X88: 294.9
U89: FOV SI OA HMO | V89: Financial Overview - Self Insured Open Access HMO | X89: 295
U90: FOV SI OA MC | V90: Financial Overview - Self Insured Open Access MC | X90: 295.0
U91: FOV SI OA_Aetna CH POS | V91: Financial Overview - Self Insured Open Access / Aetna Choice POS | X91: 295.00
U92: FOV SI Pharmacy | V92: Financial Overview - Self Insured Pharmacy | X92: 295.01
U93: FOV SI PPO | V93: Financial Overview - Self Insured PPO | X93: 295.02
U94: FOV SI QPOS | V94: Financial Overview - Self Insured QPOS | X94: 295.03
U95: FOV SI Unspec Med Prod | V95: Financial Overview - Self Insured Unspecified Medical Product | X95: 295.04
U96: FOV SI US Access | V96: Financial Overview - Self Insured US Access | X96: 295.05
U97: Health Profile Top 25 Dis Med | V97: Health Profile - Top 25 Diseases Ranked by Paid Amount | X97: 295.1
U98: Health Profile Top10 Dis Med | V98: Health Profile - Top Ten Diseases Ranked by Prevalence | X98: 295.10
U99: Health Profile Top25 Dis Med | V99: Health Profile - Top 25 Diseases Ranked by Prevalence | X99: 295.11
U100: Hospital Profile Medical | V100: Hospital Profile | X100: 295.12
U101: Impact of Catastrophics Medical | V101: Impact of Medical Catastrophic Claimant Experience | X101: 295.13
U102: IP MDC Analysis Medical | V102: Inpatient MDC Analysis - Medical Detail* | X102: 295.14
U103: Key Statistics Dental | V103: Key Statistics - Dental | X103: 295.15
U104: Key Statistics Medical | V104: Key Statistics | X104: 295.2
U105: MDC Analysis Medical | V105: MDC Analysis - Medical Total* | X105: 295.20
U106: Med Cost Sharing Medical | V106: Medical Cost Sharing Analysis | X106: 295.21
U107: Medical & AHF Glossary | V107: Glossary | X107: 295.22
U108: Medical Catastrophic - Current | V108: Medical Catastrophic Claimant Detail for Current Period | X108: 295.23
U109: Medical Catastrophic - Prior | V109: Medical Catastrophic Claimant Detail for Prior Period | X109: 295.24
U110: Medical Glossary | V110: Glossary | X110: 295.25
U111: Provider Network Exp Dental | V111: Dental - Provider Network Experience | X111: 295.3
U112: Provider Network Exp Medical | V112: Provider Network Experience - Medical | X112: 295.30
U113: Report Criteria | V113: Report Criteria | X113: 295.31
U114: Rx Demographics | V114: Demographics For Pharmacy Membership | X114: 295.32
U115: Rx Drug List & Common Use | V115: Drug Name and Common Use | X115: 295.33
U116: Rx Formulary Analysis | V116: Formulary Analysis | X116: 295.34
U117: Rx Glossary | V117: Glossary | X117: 295.35
U118: Rx GPI Roll Up Categories | V118: Pharmacy GPI Roll-Up Categories | X118: 295.4
U119: Rx Key Statistics | V119: Key Statistics - Pharmacy | X119: 295.40
U120: Rx Key Statistics by Generic | V120: Key Statistics by Generic, Brand Single-Source & Brand Multi-Source | X120: 295.41
U121: Rx Network Analysis & Savings | V121: Network Analysis and Savings | X121: 295.42
U122: Rx Retail vs MOD Impact | V122: Retail Versus Mail Order Versus Specialty Analysis | X122: 295.43
U123: Rx Top 30 Drugs by Claims | V123: Top 30 Drugs by Number of Claims | X123: 295.44
U124: Rx Top 30 Drugs by Paid | V124: Top 30 Drugs by Total Paid Amount | X124: 295.45
U125: Rx with AHF Glossary | V125: Glossary | X125: 295.5
U126: Savings and Benefit Dental | V126: Savings and Benefit Payment Distribution | X126: 295.50
U127: Specialist Prof Exp - Costs | V127: Specialist Professional Experience - Costs | X127: 295.51
U128: Specialist Prof Exp - PMPM | V128: Specialist Professional Experience - PMPM | X128: 295.52
U129: Specialist Prof Exp - Util | V129: Specialist Professional Experience - Utilization | X129: 295.53
U130: Specialist Prof Exp Location | V130: Specialist Professional Experience Location - Regional View | X130: 295.54
U131: Summary by Product | V131: Summary by Product | X131: 295.55
U132: Summary by Product Glossary | V132: Summary by Product Glossary | X132: 295.6
U133: Table of Contents | V133: Table of Contents | X133: 295.60
U134: Top25 Services by Dollar Dental | V134: Top 25 Services by Dollar | X134: 295.61
U135: Trend Analysis Dental | V135: Trend Analysis by Dental Cost Category | X135: 295.62
U136: Trend Analysis Medical | V136: Trend Analysis by Medical Cost Category | X136: 295.63
U137: Utilization and Unit Cost Med | V137: Utilization and Unit Cost by Medical Cost Category | X137: 295.64
U138: Utilization by Procedure Dental | V138: Utilization by Procedure Group | X138: 295.65
X139: 295.7
X140: 295.70
X141: 295.71
X142: 295.72
X143: 295.73
X144: 295.74
X145: 295.75
X146: 295.8
X147: 295.80
X148: 295.81
X149: 295.82
X150: 295.83
X151: 295.84
X152: 295.85
X153: 295.9
X154: 295.90
X155: 295.91
X156: 295.92
X157: 295.93
X158: 295.94
X159: 295.95
X160: 296
X161: 296.0
X162: 296.00
X163: 296.01
X164: 296.02
X165: 296.03
X166: 296.04
X167: 296.05
X168: 296.06
X169: 296.1
X170: 296.10
X171: 296.11
X172: 296.12
X173: 296.13
X174: 296.14
X175: 296.15
X176: 296.16
X177: 296.2
X178: 296.20
X179: 296.21
X180: 296.22
X181: 296.23
X182: 296.24
X183: 296.25
X184: 296.26
X185: 296.3
X186: 296.30
X187: 296.31
X188: 296.32
X189: 296.33
X190: 296.34
X191: 296.35
X192: 296.36
X193: 296.4
X194: 296.40
X195: 296.41
X196: 296.42
X197: 296.43
X198: 296.44
X199: 296.45
X200: 296.46
... 475 more rows

Sheet ePSM Fund Code (hidden)
A1: Determine Funding Arrangement & Product
D2: Product: Check for Product = 99 | F2: Fund Code: Check for Fund Code=C (Split Funded) | H2: Product: Check for Capitation Product=(05,06,07,10,11) | J2: Product: Check for Medical Indemnity Product=(01) | K2: Product: Check for Dental Indemnity Product=(18 or 22) | M2: Product: Check for AHF Medical Product=(12, 13, 14, 30, 52, 53, 54, 55, 56, 57, 58, 59, 72, 74, 76) | O2: Product: Check for AHF Pharmacy Product=(12, 13, 14, 30, 52, 53, 54, 55, 56, 57, 58, 59, 61, 62) | Q2: Product: Check for Aexcel Medical Product=(40 thru 59) & ( 69, 70, 73, 75) | R2: Product: Check Dental Product=(18 or 22) | S2: Data Availability Product Name Lookup
A3: 91-U- | D3: =MID(A3,1,2) -> 91 | F3: =MID(A3,4,1) -> U | H3: =IF(D3="05",TRUE,IF(D3="06",TRUE,IF(D3="07",TRUE,IF(D3="10",TRUE,IF(D3="11",TRUE))))) -> FALSE | J3: =IF(D3="01",TRUE) -> FALSE | K3: =IF(D3="18",TRUE,IF(D3="22",TRUE)) -> FALSE | M3: =IF(AND(D3>="12",D3<="14"),TRUE, IF(D3="30",TRUE, IF(AND(D3>="52",D3<="59"),TRUE, IF(OR(D3="72",D3="74",D3="76"),TRUE)))) -> FALSE | O3: =IF(AND(D3>="12",D3<="14"),TRUE, IF(D3="30",TRUE, IF(AND(D3>="52",D3<="59"),TRUE, IF(OR(D3="61",D3="62"),TRUE)))) -> FALSE | Q3: =IF(AND(D3>="40",D3<="59"),TRUE, IF(OR(D3="69",D3="70",D3="73",D3="75"),TRUE)) -> FALSE | R3: =IF(D3="18",TRUE, IF(D3="22",TRUE, IF(D3="24",TRUE, IF(D3="25",TRUE,)))) -> 0 | S3: 91-A-Fully Insured AHF OA HNOLY with Pharmacy | U3: =MID(S3,1,4) -> 91-A | V3: =MID(S3,6,80) -> Fully Insured AHF OA HNOLY with Pharmacy
A4: 91-A-Fully Insured AHF OA HNOLY with Pharmacy | D4: =MID(A4,1,2) -> 91 | F4: =MID(A4,4,1) -> A | H4: =IF(D4="05",TRUE,IF(D4="06",TRUE,IF(D4="07",TRUE,IF(D4="10",TRUE,IF(D4="11",TRUE))))) -> FALSE | J4: =IF(D4="01",TRUE) -> FALSE | K4: =IF(D4="18",TRUE,IF(D4="22",TRUE)) -> FALSE | M4: =IF(AND(D4>="12",D4<="14"),TRUE, IF(D4="30",TRUE, IF(AND(D4>="52",D4<="59"),TRUE, IF(OR(D4="72",D4="74",D4="76"),TRUE)))) -> FALSE | O4: =IF(AND(D4>="12",D4<="14"),TRUE, IF(D4="30",TRUE, IF(AND(D4>="52",D4<="59"),TRUE, IF(OR(D4="61",D4="62"),TRUE)))) -> FALSE | Q4: =IF(AND(D4>="40",D4<="59"),TRUE, IF(OR(D4="69",D4="70",D4="73",D4="75"),TRUE)) -> FALSE | R4: =IF(D4="18",TRUE, IF(D4="22",TRUE, IF(D4="24",TRUE, IF(D4="25",TRUE,)))) -> 0 | U4: =MID(S4,1,4) ->  | V4: =MID(S4,6,80) -> 
D6: =COUNTIF(D3:D5,"99") -> 0 | F6: =COUNTIF(F3:F5,"C") -> 0 | H6: =COUNTIF(H3:H5,TRUE) -> 0 | J6: =COUNTIF(J3:J5,FALSE) -> 2 | K6: =COUNTIF(K3:K5,FALSE) -> 2 | M6: =COUNTIF(M3:M5,FALSE) -> 2 | O6: =COUNTIF(O3:O5,FALSE) -> 2 | Q6: =COUNTIF(Q3:Q5,FALSE) -> 2 | R6: =COUNTIF(R3:R5,TRUE) -> 0
A13: 91-A-Fully Insured AHF OA HNOLY with Pharmacy | C13: =IF(MID(A13,6,4)="Self","Self Insured",IF(MID(A13,6,4)="Full","Fully Insured",IF(MID(A13,6,5)="Split","Split Funded",""))) -> Fully Insured

Sheet ePSM BOB Data Page (hidden)
B1: BOBMedicalCurrentMember Documentation | C1: BOBMedicalCurrentMember DataMarkers | F1: BOBMedicalPriorMember Documentation | G1: BOBMedicalPriorMember DataMarkers | I1: BOBRxCurrentMember Documentation | J1: BOBRxCurrentMember DataMarkers | L1: BOBRxPriorMember Documentation | M1: BOBRxPriorMember DataMarkers | O1: BOBRxCurrentClaim Documentation | P1: BOBRxCurrentClaim DataMarkers | R1: BOBRxPriorClaim Documentation | S1: BOBRxPriorClaim DataMarkers | U1: BOBMedicalCurrentClaim Documentation | V1: BOBMedicalCurrentClaim DataMarkers | X1: BOBMedicalPriorClaim Documentation | Y1: BOBMedicalPriorClaim DataMarkers | AA1: BOBMedicalCurrentClaim MDC Vector Documentation | AB1: BOBMedicalCurrentClaim MDC Vector DataMarkers | AD1: BOBMedicalPriorClaim MDC Vector Documentation | AE1: BOBMedicalPriorClaimMedCost Vector DataMarkers | AG1: BOBMedicalCurrentClaim MedCost Vector Documentation | AH1: BOBMedicalCurrentClaim MedCost Vector DataMarkers | AJ1: BOBMedicalPriorClaim MedCost Vector Documentation | AK1: BOBMedicalPriorClaim MedCost Vector DataMarkers | AM1: BOBDentKeyClaimCurr Documentation | AN1: BOBDentKeyClaimCurr DataMarkers | AP1: BOBDentKeyClaimPrior Documentation | AQ1: BOBDentKeyClaimPrior DataMarkers | AS1: BOBDentCstShareCurr Documentation | AT1: BOBDentCstShareCurr DataMarkers | AV1: BOBDentCstSharePrior Documentation | AW1: BOBDentCstSharePrior DataMarkers | AY1: BH_BOBMedicalCurrentMember Documentation | AZ1: BH_BOBMedicalCurrentMember DataMarkers | BB1: BH_BOBRxCurrentMember Documentation | BC1: BH_BOBRxCurrentMember DataMarkers
A3: =AND(BOB_Med_num_members_curr="N/A",BOB_Rx_num_members_curr="N/A") -> FALSE | B3: BOB_Med_months_curr | C3: 12 | F3: BOB_Med_months_prior | G3: 12 | I3: BOB_Rx_female_mem_0_19_curr | J3: 1256173 | L3: BOB_Rx_female_mem_0_19_prior | M3: 1299332 | O3: BOB_num_util_members_curr | P3: 3113.2227 | R3: BOB_num_util_members_prior | S3: 3180.4913 | U3: BOB_Med_paid_amt_curr | V3: 11673329.58 | X3: BOB_Med_paid_amt_prior | Y3: 10865872.6 | AA3: BOB_Med_MDC_cd_00_curr | AB3: 0 | AD3: BOB_Med_MDC_cd_00_prior | AE3: 0 | AG3: BOB_Med_paid_amt_inp_days_curr | AH3: 3163051.688 | AJ3: BOB_Med_paid_amt_inp_days_prior | AK3: 2962008.053 | AM3: BOB_Dental_paid_amt_curr | AN3: 11673329.58 | AP3: BOB_Dental_paid_amt_prior | AQ3: 10865872.6 | AS3: BOB_Dental_allowed_amt_curr | AT3: 13712643.49 | AV3: BOB_Dental_allowed_amt_prior | AW3: 12981472.26 | AX3: =AND(BH_BOB_Med_num_members_curr="N/A",BH_BOB_Rx_num_members_curr="N/A") -> TRUE | AY3: BH_BOB_Med_months_curr | AZ3: N/A | BB3: BH_BOB_Rx_female_mem_0_19_curr | BC3: N/A
B4: BOB_Med_female_mem_0_19_curr | C4: 1305086 | F4: BOB_Med_female_mem_0_19_prior | G4: 1325318 | I4: BOB_Rx_female_mem_20_44_curr | J4: 2376673 | L4: BOB_Rx_female_mem_20_44_prior | M4: 2418958 | O4: BOB_num_claims_curr | P4: 39604.0388 | R4: BOB_num_claims_prior | S4: 38498.0933 | U4: BOB_Med_inp_paid_amt_curr | V4: 3780946.089 | X4: BOB_Med_inp_paid_amt_prior | Y4: 3548936.132 | AA4: BOB_Med_MDC_paid_00_curr | AB4: 813387.8648 | AD4: BOB_Med_MDC_paid_00_prior | AE4: 30562.4022 | AG4: BOB_Med_paid_amt_amb_visits_curr | AH4: 1511894.001 | AJ4: BOB_Med_paid_amt_amb_visits_prior | AK4: 1379061.46 | AM4: BOB_Dental_network_paid_amt_curr | AN4: 11196137.77 | AP4: BOB_Dental_network_paid_amt_prior | AQ4: 10436672.75 | AS4: BOB_Dental_cob_amt_curr | AT4: 127530.6834 | AV4: BOB_Dental_cob_amt_prior | AW4: 188480.8155 | AY4: BH_BOB_Med_female_mem_0_19_curr | AZ4: N/A | BB4: BH_BOB_Rx_female_mem_20_44_curr | BC4: N/A
B5: BOB_Med_female_mem_20_44_curr | C5: 2437155 | F5: BOB_Med_female_mem_20_44_prior | G5: 2453675 | I5: BOB_Rx_female_mem_45_64_curr | J5: 2250425 | L5: BOB_Rx_female_mem_45_64_prior | M5: 2404078 | O5: BOB_sum_paid_curr | P5: 4169941.751 | R5: BOB_sum_paid_prior | S5: 3715012.573 | U5: BOB_Med_amb_paid_amt_curr | V5: 7892383.495 | X5: BOB_Med_amb_paid_amt_prior | Y5: 7316936.464 | AA5: BOB_Med_MDC_inp_paid_00_curr | AB5: 252383.1049 | AD5: BOB_Med_MDC_inp_paid_00_prior | AE5: 20892.1526 | AG5: BOB_Med_paid_amt_er_visits_curr | AH5: 960309.8303 | AJ5: BOB_Med_paid_amt_er_visits_prior | AK5: 865958.5527 | AM5: BOB_Dental_preventative_paid_amt_curr | AN5: 562.4607 | AP5: BOB_Dental_preventative_paid_amt_prior | AQ5: 267.0442 | AS5: BOB_Dental_deductible_amt_curr | AT5: 932638.7485 | AV5: BOB_Dental_deductible_amt_prior | AW5: 984817.0767 | AY5: BH_BOB_Med_female_mem_20_44_curr | AZ5: N/A | BB5: BH_BOB_Rx_female_mem_45_64_curr | BC5: N/A
B6: BOB_Med_female_mem_45_64_curr | C6: 2304858 | F6: BOB_Med_female_mem_45_64_prior | G6: 2434009 | I6: BOB_Rx_female_mem_65_over_curr | J6: 245718 | L6: BOB_Rx_female_mem_65_over_prior | M6: 251012 | O6: BOB_num_brand_singlesource_claims_curr | P6: 5682.5661 | R6: BOB_num_brand_singlesource_claims_prior | S6: 6059.3612 | U6: BOB_Med_admit_count_curr | V6: 201.2755 | X6: BOB_Med_admit_count_prior | Y6: 196.6506 | AA6: BOB_Med_MDC_amb_paid_00_curr | AB6: 561004.7599 | AD6: BOB_Med_MDC_amb_paid_00_prior | AE6: 9670.2495 | AG6: BOB_Med_paid_amt_spec_office_visits_curr | AH6: 507844.1603 | AJ6: BOB_Med_paid_amt_spec_office_visits_prior | AK6: 474255.5733 | AM6: BOB_Dental_preventative_svcs_curr | AN6: 19.7125 | AP6: BOB_Dental_preventative_svcs_prior | AQ6: 9.1379 | AS6: BOB_Dental_coinsurance_amt_curr | AT6: 211884.6875 | AV6: BOB_Dental_coinsurance_amt_prior | AW6: 295148.1496 | AY6: BH_BOB_Med_female_mem_45_64_curr | AZ6: N/A | BB6: BH_BOB_Rx_female_mem_65_over_curr | BC6: N/A
B7: BOB_Med_female_mem_65_over_curr | C7: 250766 | F7: BOB_Med_female_mem_65_over_prior | G7: 254238 | I7: BOB_Rx_female_members_curr | J7: 6128989 | L7: BOB_Rx_female_members_prior | M7: 6373380 | O7: BOB_sum_brand_singlesource_paid_amt_curr | P7: 3121943.505 | R7: BOB_sum_brand_singlesource_paid_amt_prior | S7: 2754064.754 | U7: BOB_Med_days_count_curr | V7: 1050.8138 | X7: BOB_Med_days_count_prior | Y7: 1022.0323 | AA7: BOB_Med_MDC_admits_00_curr | AB7: 13.2173 | AD7: BOB_Med_MDC_admits_00_prior | AE7: 0.5442 | AG7: BOB_Med_paid_amt_prim_off_visits_curr | AH7: 466480.1112 | AJ7: BOB_Med_paid_amt_prim_off_visits_prior | AK7: 452524.6818 | AM7: BOB_Dental_basic_paid_amt_curr | AN7: 69.0525 | AP7: BOB_Dental_basic_paid_amt_prior | AQ7: 40.4428 | AY7: BH_BOB_Med_female_mem_65_over_curr | AZ7: N/A | BB7: BH_BOB_Rx_female_members_curr | BC7: N/A
B8: BOB_Med_female_members_curr | C8: 6297865 | F8: BOB_Med_female_members_prior | G8: 6467240 | I8: BOB_Rx_male_mem_0_19_curr | J8: 1313574 | L8: BOB_Rx_male_mem_0_19_prior | M8: 1365739 | O8: BOB_num_brand_multisource_claims_curr | P8: 689.8904 | R8: BOB_num_brand_multisource_claims_prior | S8: 710.9112 | U8: BOB_Med_surgery_count_curr | V8: 2443.1873 | X8: BOB_Med_surgery_count_prior | Y8: 2381.2462 | AA8: BOB_Med_MDC_days_00_curr | AB8: 70.3193 | AD8: BOB_Med_MDC_days_00_prior | AE8: 5.8775 | AG8: BOB_Med_paid_amt_inp_surgeries_curr | AH8: 232718.3458 | AJ8: BOB_Med_paid_amt_inp_surgeries_prior | AK8: 230499.5806 | AM8: BOB_Dental_basic_svcs_curr | AN8: 3.3813 | AP8: BOB_Dental_basic_svcs_prior | AQ8: 1.5369 | AY8: BH_BOB_Med_female_members_curr | AZ8: N/A | BB8: BH_BOB_Rx_male_mem_0_19_curr | BC8: N/A
B9: BOB_Med_male_mem_0_19_curr | C9: 1362880 | F9: BOB_Med_male_mem_0_19_prior | G9: 1391950 | I9: BOB_Rx_male_mem_20_44_curr | J9: 2256505 | L9: BOB_Rx_male_mem_20_44_prior | M9: 2253235 | O9: BOB_sum_brand_multisource_paid_amt_curr | P9: 140286.6353 | R9: BOB_sum_brand_multisource_paid_amt_prior | S9: 110415.4536 | U9: BOB_Med_inp_surgery_count_curr | V9: 173.8666 | X9: BOB_Med_inp_surgery_count_prior | Y9: 165.9359 | AA9: BOB_Med_MDC_claimants_00_curr | AB9: 911.5283 | AD9: BOB_Med_MDC_claimants_00_prior | AE9: 17.1318 | AG9: BOB_Med_paid_amt_amb_surgeries_curr | AH9: 244805.8266 | AJ9: BOB_Med_paid_amt_amb_surgeries_prior | AK9: 233127.9099 | AM9: BOB_Dental_major_paid_amt_curr | AN9: 42.4035 | AP9: BOB_Dental_major_paid_amt_prior | AQ9: 3.8801 | AY9: BH_BOB_Med_male_mem_0_19_curr | AZ9: N/A | BB9: BH_BOB_Rx_male_mem_20_44_curr | BC9: N/A
B10: BOB_Med_male_mem_20_44_curr | C10: 2313811 | F10: BOB_Med_male_mem_20_44_prior | G10: 2284180 | I10: BOB_Rx_male_mem_45_64_curr | J10: 2098011 | L10: BOB_Rx_male_mem_45_64_prior | M10: 2179904 | O10: BOB_num_cross_brand_claims_curr | P10: 0 | R10: BOB_num_cross_brand_claims_prior | S10: 0 | U10: BOB_Med_amb_surgery_count_curr | V10: 2274.7795 | X10: BOB_Med_amb_surgery_count_prior | Y10: 2222.0007 | AA10: BOB_Med_MDC_cd_01_curr | AB10: 1 | AD10: BOB_Med_MDC_cd_01_prior | AE10: 1 | AG10: BOB_Med_paid_amt_office_surgeries_curr | AH10: 307569.9696 | AJ10: BOB_Med_paid_amt_office_surgeries_prior | AK10: 284086.994 | AM10: BOB_Dental_major_svcs_curr | AN10: 0.6193 | AP10: BOB_Dental_major_svcs_prior | AQ10: 0.1559 | AY10: BH_BOB_Med_male_mem_20_44_curr | AZ10: N/A | BB10: BH_BOB_Rx_male_mem_45_64_curr | BC10: N/A
B11: BOB_Med_male_mem_45_64_curr | C11: 2156505 | F11: BOB_Med_male_mem_45_64_prior | G11: 2209246 | I11: BOB_Rx_male_mem_65_over_curr | J11: 240048 | L11: BOB_Rx_male_mem_65_over_prior | M11: 244176 | O11: BOB_sum_cross_brand_paid_amt_curr | P11: 0 | R11: BOB_sum_cross_brand_paid_amt_prior | S11: 0 | U11: BOB_Med_office_visits_count_curr | V11: 13084.0076 | X11: BOB_Med_office_visits_count_prior | Y11: 12864.9448 | AA11: BOB_Med_MDC_paid_01_curr | AB11: 621865.7597 | AD11: BOB_Med_MDC_paid_01_prior | AE11: 605997.8657 | AG11: BOB_Med_paid_amt_med_visits_curr | AH11: 1501030.37 | AJ11: BOB_Med_paid_amt_med_visits_prior | AK11: 1390352.818 | AM11: BOB_Dental_orthodonic_paid_amt_curr | AN11: 0 | AP11: BOB_Dental_orthodonic_paid_amt_prior | AQ11: 0 | AY11: BH_BOB_Med_male_mem_45_64_curr | AZ11: N/A | BB11: BH_BOB_Rx_male_mem_65_over_curr | BC11: N/A
B12: BOB_Med_male_mem_65_over_curr | C12: 245841 | F12: BOB_Med_male_mem_65_over_prior | G12: 247655 | I12: BOB_Rx_male_members_curr | J12: 5908138 | L12: BOB_Rx_male_members_prior | M12: 6043054 | O12: BOB_num_generic_claims_curr | P12: 33231.4468 | R12: BOB_num_generic_claims_prior | S12: 31727.5625 | U12: BOB_Med_er_visits_count_curr | V12: 819.1556 | X12: BOB_Med_er_visits_count_prior | Y12: 781.8353 | AA12: BOB_Med_MDC_inp_paid_01_curr | AB12: 248742.6692 | AD12: BOB_Med_MDC_inp_paid_01_prior | AE12: 247498.6139 | AG12: BOB_Med_paid_amt_rad_serv_curr | AH12: 913073.1689 | AJ12: BOB_Med_paid_amt_rad_serv_prior | AK12: 840636.111 | AM12: BOB_Dental_orthodonic_svcs_curr | AN12: 0.0281 | AP12: BOB_Dental_orthodonic_svcs_prior | AQ12: 0.0275 | AY12: BH_BOB_Med_male_mem_65_over_curr | AZ12: N/A | BB12: BH_BOB_Rx_male_members_curr | BC12: N/A
B13: BOB_Med_male_members_curr | C13: 6079037 | F13: BOB_Med_male_members_prior | G13: 6133031 | I13: BOB_Rx_unknown_mem_0_19_curr | J13: 0 | L13: BOB_Rx_unknown_mem_0_19_prior | M13: 0 | O13: BOB_sum_generic_paid_amt_curr | P13: 907707.8957 | R13: BOB_sum_generic_paid_amt_prior | S13: 850527.9805 | U13: BOB_Med_claim_count_curr | V13: 3464.5936 | X13: BOB_Med_claim_count_prior | Y13: 3550.936 | AA13: BOB_Med_MDC_amb_paid_01_curr | AB13: 373123.0905 | AD13: BOB_Med_MDC_amb_paid_01_prior | AE13: 358499.2519 | AG13: BOB_Med_paid_amt_lab_serv_curr | AH13: 580538.1636 | AJ13: BOB_Med_paid_amt_lab_serv_prior | AK13: 562863.2301 | AM13: BOB_Dental_other_paid_amt_curr | AN13: 11672655.67 | AP13: BOB_Dental_other_paid_amt_prior | AQ13: 10865561.23 | AY13: BH_BOB_Med_male_members_curr | AZ13: N/A | BB13: BH_BOB_Rx_unknown_mem_0_19_curr | BC13: N/A
B14: BOB_Med_unknown_mem_0_19_curr | C14: 0 | F14: BOB_Med_unknown_mem_0_19_prior | G14: 0 | I14: BOB_Rx_unknown_mem_20_44_curr | J14: 0 | L14: BOB_Rx_unknown_mem_20_44_prior | M14: 0 | O14: BOB_num_other_generic_claims_curr | P14: 0.1355 | R14: BOB_num_other_generic_claims_prior | S14: 0.2583 | U14: BOB_Med_threshold_curr | V14: 50000 | X14: BOB_Med_threshold_prior | Y14: 50000 | AA14: BOB_Med_MDC_admits_01_curr | AB14: 9.7538 | AD14: BOB_Med_MDC_admits_01_prior | AE14: 10.8422 | AG14: BOB_Med_paid_amt_home_health_curr | AH14: 153114.4905 | AJ14: BOB_Med_paid_amt_home_health_prior | AK14: 142183.5756 | AM14: BOB_Dental_other_svcs_curr | AN14: 284253.5755 | AP14: BOB_Dental_other_svcs_prior | AQ14: 276263.836 | AY14: BH_BOB_Med_unknown_mem_0_19_curr | AZ14: N/A | BB14: BH_BOB_Rx_unknown_mem_20_44_curr | BC14: N/A
B15: BOB_Med_unknown_mem_20_44_curr | C15: 0 | F15: BOB_Med_unknown_mem_20_44_prior | G15: 0 | I15: BOB_Rx_unknown_mem_45_64_curr | J15: 0 | L15: BOB_Rx_unknown_mem_45_64_prior | M15: 0 | O15: BOB_sum_other_generic_paid_amt_curr | P15: 3.7149 | R15: BOB_sum_other_generic_paid_amt_prior | S15: 4.3851 | U15: BOB_Med_claim_count_above_threshold_curr | V15: 35.6001 | X15: BOB_Med_claim_count_above_threshold_prior | Y15: 32.5913 | AA15: BOB_Med_MDC_days_01_curr | AB15: 70.2412 | AD15: BOB_Med_MDC_days_01_prior | AE15: 66.3616 | AG15: BOB_Med_paid_amt_mental_health_curr | AH15: 66830.4071 | AJ15: BOB_Med_paid_amt_mental_health_prior | AK15: 58118.3482 | AY15: BH_BOB_Med_unknown_mem_20_44_curr | AZ15: N/A | BB15: BH_BOB_Rx_unknown_mem_45_64_curr | BC15: N/A
B16: BOB_Med_unknown_mem_45_64_curr | C16: 0 | F16: BOB_Med_unknown_mem_45_64_prior | G16: 0 | I16: BOB_Rx_unknown_mem_65_over_curr | J16: 0 | L16: BOB_Rx_unknown_mem_65_over_prior | M16: 0 | O16: BOB_num_formulary_claims_curr | P16: 15044.3169 | R16: BOB_num_formulary_claims_prior | S16: 20277.905 | U16: BOB_Med_paid_amt_above_threshold_curr | V16: 4022398.869 | X16: BOB_Med_paid_amt_above_threshold_prior | Y16: 3637089.089 | AA16: BOB_Med_MDC_claimants_01_curr | AB16: 412.4845 | AD16: BOB_Med_MDC_claimants_01_prior | AE16: 405.5935 | AG16: BOB_Med_paid_amt_med_rx_curr | AH16: 1032680.04 | AJ16: BOB_Med_paid_amt_med_rx_prior | AK16: 962619.109 | AY16: BH_BOB_Med_unknown_mem_45_64_curr | AZ16: N/A | BB16: BH_BOB_Rx_unknown_mem_65_over_curr | BC16: N/A
B17: BOB_Med_unknown_mem_65_over_curr | C17: 0 | F17: BOB_Med_unknown_mem_65_over_prior | G17: 0 | I17: BOB_Rx_unknown_members_curr | J17: 0 | L17: BOB_Rx_unknown_members_prior | M17: 0 | O17: BOB_sum_formulary_paid_amt_curr | P17: 1582563.9 | R17: BOB_sum_formulary_paid_amt_prior | S17: 1933042.344 | U17: BOB_Med_par_admit_count_curr | V17: 197.1617 | X17: BOB_Med_par_admit_count_prior | Y17: 192.9237 | AA17: BOB_Med_MDC_cd_02_curr | AB17: 2 | AD17: BOB_Med_MDC_cd_02_prior | AE17: 2 | AG17: BOB_Med_paid_amt_misc_med_curr | AH17: 0 | AJ17: BOB_Med_paid_amt_misc_med_prior | AK17: 0 | AY17: BH_BOB_Med_unknown_mem_65_over_curr | AZ17: N/A | BB17: BH_BOB_Rx_unknown_members_curr | BC17: N/A
B18: BOB_Med_unknown_members_curr | C18: 0 | F18: BOB_Med_unknown_members_prior | G18: 0 | I18: BOB_Rx_num_members_curr | J18: 12037127 | L18: BOB_Rx_num_members_prior | M18: 12416434 | O18: BOB_num_non_formulary_claims_curr | P18: 24559.7219 | R18: BOB_num_non_formulary_claims_prior | S18: 18220.1883 | U18: BOB_Med_par_phys_office_visits_count_curr | V18: 19928.4227 | X18: BOB_Med_par_phys_office_visits_count_prior | Y18: 19495.819 | AA18: BOB_Med_MDC_paid_02_curr | AB18: 156862.78 | AD18: BOB_Med_MDC_paid_02_prior | AE18: 171196.4795 | AG18: BOB_Med_paid_encounter_prim_phys_curr | AH18: 0 | AJ18: BOB_Med_paid_encounter_prim_phys_prior | AK18: 0 | AY18: BH_BOB_Med_unknown_members_curr | AZ18: N/A | BB18: BH_BOB_Rx_num_members_curr | BC18: N/A
B19: BOB_Med_num_members_curr | C19: 12376902 | F19: BOB_Med_num_members_prior | G19: 12600271 | I19: BOB_Rx_num_employees_curr | J19: 6789025 | L19: BOB_Rx_num_employees_prior | M19: 7003094 | O19: BOB_sum_non_formulary_paid_amt_curr | P19: 2587377.851 | R19: BOB_sum_non_formulary_paid_amt_prior | S19: 1781970.229 | U19: BOB_Med_phys_office_visits_count_curr | V19: 20460.4271 | X19: BOB_Med_phys_office_visits_count_prior | Y19: 20013.8232 | AA19: BOB_Med_MDC_inp_paid_02_curr | AB19: 1346.3422 | AD19: BOB_Med_MDC_inp_paid_02_prior | AE19: 2482.862 | AG19: BOB_Med_paid_encounter_spec_phys_curr | AH19: 0 | AJ19: BOB_Med_paid_encounter_spec_phys_prior | AK19: 0 | AY19: BH_BOB_Med_num_members_curr | AZ19: N/A | BB19: BH_BOB_Rx_num_employees_curr | BC19: N/A
B20: BOB_Med_num_employees_curr | C20: 6921089 | F20: BOB_Med_num_employees_prior | G20: 7075155 | I20: BOB_Rx_avg_age_members_curr | J20: 445177857 | L20: BOB_Rx_avg_age_members_prior | M20: 461561079 | U20: BOB_Med_par_paid_amt_curr | V20: 11196137.77 | X20: BOB_Med_par_paid_amt_prior | Y20: 10436672.75 | AA20: BOB_Med_MDC_amb_paid_02_curr | AB20: 155516.4379 | AD20: BOB_Med_MDC_amb_paid_02_prior | AE20: 168713.6175 | AG20: BOB_Med_paid_encounter_lab_rad_curr | AH20: 0 | AJ20: BOB_Med_paid_encounter_lab_rad_prior | AK20: 0 | AY20: BH_BOB_Med_num_employees_curr | AZ20: N/A | BB20: BH_BOB_Rx_avg_age_members_curr | BC20: N/A
B21: BOB_Med_avg_age_members_curr | C21: 456754769 | F21: BOB_Med_avg_age_members_prior | G21: 467836784 | I21: BOB_Rx_months_curr | J21: 12 | L21: BOB_Rx_months_prior | M21: 12 | U21: BOB_Med_cob_amt_curr | V21: 127530.6834 | X21: BOB_Med_cob_amt_prior | Y21: 188480.8155 | AA21: BOB_Med_MDC_admits_02_curr | AB21: 0.1054 | AD21: BOB_Med_MDC_admits_02_prior | AE21: 0.2037 | AG21: BOB_Med_paid_encounter_other_curr | AH21: 0 | AJ21: BOB_Med_paid_encounter_other_prior | AK21: 0 | AY21: BH_BOB_Med_avg_age_members_curr | AZ21: N/A | BB21: BH_BOB_Rx_months_curr | BC21: N/A
U22: BOB_Med_deductible_amt_curr | V22: 932638.7485 | X22: BOB_Med_deductible_amt_prior | Y22: 984817.0767 | AA22: BOB_Med_MDC_days_02_curr | AB22: 0.259 | AD22: BOB_Med_MDC_days_02_prior | AE22: 1.3663 | AG22: BOB_Med_paid_other_curr | AH22: 31389.0105 | AJ22: BOB_Med_paid_other_prior | AK22: 27576.5989
U23: BOB_Med_copay_amt_curr | V23: 782653.2386 | X23: BOB_Med_copay_amt_prior | Y23: 703773.6301 | AA23: BOB_Med_MDC_claimants_02_curr | AB23: 554.274 | AD23: BOB_Med_MDC_claimants_02_prior | AE23: 626.5492
U24: BOB_Med_coinsurance_amt_curr | V24: 211884.6875 | X24: BOB_Med_coinsurance_amt_prior | Y24: 295148.1496 | AA24: BOB_Med_MDC_cd_03_curr | AB24: 3 | AD24: BOB_Med_MDC_cd_03_prior | AE24: 3
AA25: BOB_Med_MDC_paid_03_curr | AB25: 359609.2668 | AD25: BOB_Med_MDC_paid_03_prior | AE25: 335982.9228
AA26: BOB_Med_MDC_inp_paid_03_curr | AB26: 33124.8954 | AD26: BOB_Med_MDC_inp_paid_03_prior | AE26: 28204.3931
AA27: BOB_Med_MDC_amb_paid_03_curr | AB27: 326484.3714 | AD27: BOB_Med_MDC_amb_paid_03_prior | AE27: 307778.5296
AA28: BOB_Med_MDC_admits_03_curr | AB28: 1.6201 | AD28: BOB_Med_MDC_admits_03_prior | AE28: 1.4806
AA29: BOB_Med_MDC_days_03_curr | AB29: 6.7448 | AD29: BOB_Med_MDC_days_03_prior | AE29: 4.9969
AA30: BOB_Med_MDC_claimants_03_curr | AB30: 891.4101 | AD30: BOB_Med_MDC_claimants_03_prior | AE30: 912.4925
AA31: BOB_Med_MDC_cd_04_curr | AB31: 4 | AD31: BOB_Med_MDC_cd_04_prior | AE31: 4
AA32: BOB_Med_MDC_paid_04_curr | AB32: 483662.9547 | AD32: BOB_Med_MDC_paid_04_prior | AE32: 467356.0973
AA33: BOB_Med_MDC_inp_paid_04_curr | AB33: 230026.1012 | AD33: BOB_Med_MDC_inp_paid_04_prior | AE33: 219379.2788
AA34: BOB_Med_MDC_amb_paid_04_curr | AB34: 253636.8535 | AD34: BOB_Med_MDC_amb_paid_04_prior | AE34: 247976.8186
AA35: BOB_Med_MDC_admits_04_curr | AB35: 12.0004 | AD35: BOB_Med_MDC_admits_04_prior | AE35: 12.6768
AA36: BOB_Med_MDC_days_04_curr | AB36: 72.2663 | AD36: BOB_Med_MDC_days_04_prior | AE36: 78.8264
AA37: BOB_Med_MDC_claimants_04_curr | AB37: 484.1814 | AD37: BOB_Med_MDC_claimants_04_prior | AE37: 512.9978
AA38: BOB_Med_MDC_cd_05_curr | AB38: 5 | AD38: BOB_Med_MDC_cd_05_prior | AE38: 5
AA39: BOB_Med_MDC_paid_05_curr | AB39: 1259370.37 | AD39: BOB_Med_MDC_paid_05_prior | AE39: 1217174.605
AA40: BOB_Med_MDC_inp_paid_05_curr | AB40: 505352.1109 | AD40: BOB_Med_MDC_inp_paid_05_prior | AE40: 500024.4574
AA41: BOB_Med_MDC_amb_paid_05_curr | AB41: 754018.2589 | AD41: BOB_Med_MDC_amb_paid_05_prior | AE41: 717150.1476
AA42: BOB_Med_MDC_admits_05_curr | AB42: 17.6716 | AD42: BOB_Med_MDC_admits_05_prior | AE42: 18.1492
AA43: BOB_Med_MDC_days_05_curr | AB43: 94.0459 | AD43: BOB_Med_MDC_days_05_prior | AE43: 99.0253
AA44: BOB_Med_MDC_claimants_05_curr | AB44: 851.399 | AD44: BOB_Med_MDC_claimants_05_prior | AE44: 850.977
AA45: BOB_Med_MDC_cd_06_curr | AB45: 6 | AD45: BOB_Med_MDC_cd_06_prior | AE45: 6
AA46: BOB_Med_MDC_paid_06_curr | AB46: 1063293.663 | AD46: BOB_Med_MDC_paid_06_prior | AE46: 950494.3393
AA47: BOB_Med_MDC_inp_paid_06_curr | AB47: 326098.7544 | AD47: BOB_Med_MDC_inp_paid_06_prior | AE47: 280454.2678
AA48: BOB_Med_MDC_amb_paid_06_curr | AB48: 737194.9084 | AD48: BOB_Med_MDC_amb_paid_06_prior | AE48: 670040.0715
AA49: BOB_Med_MDC_admits_06_curr | AB49: 16.4028 | AD49: BOB_Med_MDC_admits_06_prior | AE49: 16.765
AA50: BOB_Med_MDC_days_06_curr | AB50: 83.3376 | AD50: BOB_Med_MDC_days_06_prior | AE50: 82.4856
AA51: BOB_Med_MDC_claimants_06_curr | AB51: 591.7775 | AD51: BOB_Med_MDC_claimants_06_prior | AE51: 578.1283
AA52: BOB_Med_MDC_cd_07_curr | AB52: 7 | AD52: BOB_Med_MDC_cd_07_prior | AE52: 7
AA53: BOB_Med_MDC_paid_07_curr | AB53: 312183.25 | AD53: BOB_Med_MDC_paid_07_prior | AE53: 292184.2683
AA54: BOB_Med_MDC_inp_paid_07_curr | AB54: 155218.1341 | AD54: BOB_Med_MDC_inp_paid_07_prior | AE54: 152534.9975
AA55: BOB_Med_MDC_amb_paid_07_curr | AB55: 156965.1159 | AD55: BOB_Med_MDC_amb_paid_07_prior | AE55: 139649.2708
AA56: BOB_Med_MDC_admits_07_curr | AB56: 6.9646 | AD56: BOB_Med_MDC_admits_07_prior | AE56: 6.705
AA57: BOB_Med_MDC_days_07_curr | AB57: 36.157 | AD57: BOB_Med_MDC_days_07_prior | AE57: 33.532
AA58: BOB_Med_MDC_claimants_07_curr | AB58: 87.9669 | AD58: BOB_Med_MDC_claimants_07_prior | AE58: 81.5448
AA59: BOB_Med_MDC_cd_08_curr | AB59: 8 | AD59: BOB_Med_MDC_cd_08_prior | AE59: 8
AA60: BOB_Med_MDC_paid_08_curr | AB60: 1448858.366 | AD60: BOB_Med_MDC_paid_08_prior | AE60: 1581711.584
AA61: BOB_Med_MDC_inp_paid_08_curr | AB61: 547901.9824 | AD61: BOB_Med_MDC_inp_paid_08_prior | AE61: 572519.7324
AA62: BOB_Med_MDC_amb_paid_08_curr | AB62: 900956.384 | AD62: BOB_Med_MDC_amb_paid_08_prior | AE62: 1009191.851
AA63: BOB_Med_MDC_admits_08_curr | AB63: 18.4958 | AD63: BOB_Med_MDC_admits_08_prior | AE63: 20.1658
AA64: BOB_Med_MDC_days_08_curr | AB64: 94.9605 | AD64: BOB_Med_MDC_days_08_prior | AE64: 99.0297
AA65: BOB_Med_MDC_claimants_08_curr | AB65: 986.2465 | AD65: BOB_Med_MDC_claimants_08_prior | AE65: 1068.7478
AA66: BOB_Med_MDC_cd_09_curr | AB66: 9 | AD66: BOB_Med_MDC_cd_09_prior | AE66: 9
AA67: BOB_Med_MDC_paid_09_curr | AB67: 608326.3212 | AD67: BOB_Med_MDC_paid_09_prior | AE67: 716855.7735
AA68: BOB_Med_MDC_inp_paid_09_curr | AB68: 61224.7436 | AD68: BOB_Med_MDC_inp_paid_09_prior | AE68: 86979.8259
AA69: BOB_Med_MDC_amb_paid_09_curr | AB69: 547101.5776 | AD69: BOB_Med_MDC_amb_paid_09_prior | AE69: 629875.9476
AA70: BOB_Med_MDC_admits_09_curr | AB70: 3.6252 | AD70: BOB_Med_MDC_admits_09_prior | AE70: 5.0666
AA71: BOB_Med_MDC_days_09_curr | AB71: 19.7292 | AD71: BOB_Med_MDC_days_09_prior | AE71: 25.738
AA72: BOB_Med_MDC_claimants_09_curr | AB72: 939.9455 | AD72: BOB_Med_MDC_claimants_09_prior | AE72: 972.4801
AA73: BOB_Med_MDC_cd_10_curr | AB73: 10 | AD73: BOB_Med_MDC_cd_10_prior | AE73: 10
AA74: BOB_Med_MDC_paid_10_curr | AB74: 403209.7215 | AD74: BOB_Med_MDC_paid_10_prior | AE74: 375597.8608
AA75: BOB_Med_MDC_inp_paid_10_curr | AB75: 108870.6655 | AD75: BOB_Med_MDC_inp_paid_10_prior | AE75: 99690.9897
AA76: BOB_Med_MDC_amb_paid_10_curr | AB76: 294339.056 | AD76: BOB_Med_MDC_amb_paid_10_prior | AE76: 275906.8711
AA77: BOB_Med_MDC_admits_10_curr | AB77: 6.7642 | AD77: BOB_Med_MDC_admits_10_prior | AE77: 6.2599
AA78: BOB_Med_MDC_days_10_curr | AB78: 32.3063 | AD78: BOB_Med_MDC_days_10_prior | AE78: 26.7732
AA79: BOB_Med_MDC_claimants_10_curr | AB79: 932.6852 | AD79: BOB_Med_MDC_claimants_10_prior | AE79: 947.1202
AA80: BOB_Med_MDC_cd_11_curr | AB80: 11 | AD80: BOB_Med_MDC_cd_11_prior | AE80: 11
AA81: BOB_Med_MDC_paid_11_curr | AB81: 522855.8405 | AD81: BOB_Med_MDC_paid_11_prior | AE81: 488917.9702
AA82: BOB_Med_MDC_inp_paid_11_curr | AB82: 94992.9939 | AD82: BOB_Med_MDC_inp_paid_11_prior | AE82: 94559.6021
AA83: BOB_Med_MDC_amb_paid_11_curr | AB83: 427862.8467 | AD83: BOB_Med_MDC_amb_paid_11_prior | AE83: 394358.368
AA84: BOB_Med_MDC_admits_11_curr | AB84: 7.068 | AD84: BOB_Med_MDC_admits_11_prior | AE84: 6.68
AA85: BOB_Med_MDC_days_11_curr | AB85: 36.9292 | AD85: BOB_Med_MDC_days_11_prior | AE85: 35.8429
AA86: BOB_Med_MDC_claimants_11_curr | AB86: 385.6143 | AD86: BOB_Med_MDC_claimants_11_prior | AE86: 379.5662
AA87: BOB_Med_MDC_cd_12_curr | AB87: 12 | AD87: BOB_Med_MDC_cd_12_prior | AE87: 12
AA88: BOB_Med_MDC_paid_12_curr | AB88: 104733.1892 | AD88: BOB_Med_MDC_paid_12_prior | AE88: 92850.6819
AA89: BOB_Med_MDC_inp_paid_12_curr | AB89: 19428.2333 | AD89: BOB_Med_MDC_inp_paid_12_prior | AE89: 14067.6851
AA90: BOB_Med_MDC_amb_paid_12_curr | AB90: 85304.9559 | AD90: BOB_Med_MDC_amb_paid_12_prior | AE90: 78782.9968
AA91: BOB_Med_MDC_admits_12_curr | AB91: 1.0687 | AD91: BOB_Med_MDC_admits_12_prior | AE91: 0.7953
AA92: BOB_Med_MDC_days_12_curr | AB92: 3.3473 | AD92: BOB_Med_MDC_days_12_prior | AE92: 2.05
AA93: BOB_Med_MDC_claimants_12_curr | AB93: 105.5604 | AD93: BOB_Med_MDC_claimants_12_prior | AE93: 107.4383
AA94: BOB_Med_MDC_cd_13_curr | AB94: 13 | AD94: BOB_Med_MDC_cd_13_prior | AE94: 13
AA95: BOB_Med_MDC_paid_13_curr | AB95: 577466.8077 | AD95: BOB_Med_MDC_paid_13_prior | AE95: 574113.0499
AA96: BOB_Med_MDC_inp_paid_13_curr | AB96: 73294.211 | AD96: BOB_Med_MDC_inp_paid_13_prior | AE96: 69761.3484
AA97: BOB_Med_MDC_amb_paid_13_curr | AB97: 504172.5967 | AD97: BOB_Med_MDC_amb_paid_13_prior | AE97: 504351.7015
AA98: BOB_Med_MDC_admits_13_curr | AB98: 4.2739 | AD98: BOB_Med_MDC_admits_13_prior | AE98: 4.1713
AA99: BOB_Med_MDC_days_13_curr | AB99: 13.479 | AD99: BOB_Med_MDC_days_13_prior | AE99: 13.6537
AA100: BOB_Med_MDC_claimants_13_curr | AB100: 714.8839 | AD100: BOB_Med_MDC_claimants_13_prior | AE100: 868.1751
AA101: BOB_Med_MDC_cd_14_curr | AB101: 14 | AD101: BOB_Med_MDC_cd_14_prior | AE101: 14
AA102: BOB_Med_MDC_paid_14_curr | AB102: 487389.3584 | AD102: BOB_Med_MDC_paid_14_prior | AE102: 487104.5789
AA103: BOB_Med_MDC_inp_paid_14_curr | AB103: 346369.0281 | AD103: BOB_Med_MDC_inp_paid_14_prior | AE103: 340315.4076
AA104: BOB_Med_MDC_amb_paid_14_curr | AB104: 141020.3303 | AD104: BOB_Med_MDC_amb_paid_14_prior | AE104: 146789.1713
AA105: BOB_Med_MDC_admits_14_curr | AB105: 31.2022 | AD105: BOB_Med_MDC_admits_14_prior | AE105: 32.7795
AA106: BOB_Med_MDC_days_14_curr | AB106: 84.3099 | AD106: BOB_Med_MDC_days_14_prior | AE106: 89.6681
AA107: BOB_Med_MDC_claimants_14_curr | AB107: 83.2364 | AD107: BOB_Med_MDC_claimants_14_prior | AE107: 81.253
AA108: BOB_Med_MDC_cd_15_curr | AB108: 15 | AD108: BOB_Med_MDC_cd_15_prior | AE108: 15
AA109: BOB_Med_MDC_paid_15_curr | AB109: 116163.7882 | AD109: BOB_Med_MDC_paid_15_prior | AE109: 106775.7498
AA110: BOB_Med_MDC_inp_paid_15_curr | AB110: 113731.426 | AD110: BOB_Med_MDC_inp_paid_15_prior | AE110: 103375.1306
AA111: BOB_Med_MDC_amb_paid_15_curr | AB111: 2432.3622 | AD111: BOB_Med_MDC_amb_paid_15_prior | AE111: 3400.6192
AA112: BOB_Med_MDC_admits_15_curr | AB112: 15.1552 | AD112: BOB_Med_MDC_admits_15_prior | AE112: 16.0399
AA113: BOB_Med_MDC_days_15_curr | AB113: 49.517 | AD113: BOB_Med_MDC_days_15_prior | AE113: 56.3175
AA114: BOB_Med_MDC_claimants_15_curr | AB114: 9.4884 | AD114: BOB_Med_MDC_claimants_15_prior | AE114: 9.457
AA115: BOB_Med_MDC_cd_16_curr | AB115: 16 | AD115: BOB_Med_MDC_cd_16_prior | AE115: 16
AA116: BOB_Med_MDC_paid_16_curr | AB116: 177013.0297 | AD116: BOB_Med_MDC_paid_16_prior | AE116: 154353.2712
AA117: BOB_Med_MDC_inp_paid_16_curr | AB117: 42620.4954 | AD117: BOB_Med_MDC_inp_paid_16_prior | AE117: 35471.0679
AA118: BOB_Med_MDC_amb_paid_16_curr | AB118: 134392.5343 | AD118: BOB_Med_MDC_amb_paid_16_prior | AE118: 118882.2034
AA119: BOB_Med_MDC_admits_16_curr | AB119: 2.19 | AD119: BOB_Med_MDC_admits_16_prior | AE119: 2.0793
AA120: BOB_Med_MDC_days_16_curr | AB120: 11.7529 | AD120: BOB_Med_MDC_days_16_prior | AE120: 9.4885
AA121: BOB_Med_MDC_claimants_16_curr | AB121: 149.0283 | AD121: BOB_Med_MDC_claimants_16_prior | AE121: 150.0896
AA122: BOB_Med_MDC_cd_17_curr | AB122: 17 | AD122: BOB_Med_MDC_cd_17_prior | AE122: 17
AA123: BOB_Med_MDC_paid_17_curr | AB123: 612159.2181 | AD123: BOB_Med_MDC_paid_17_prior | AE123: 576251.8291
AA124: BOB_Med_MDC_inp_paid_17_curr | AB124: 151106.9802 | AD124: BOB_Med_MDC_inp_paid_17_prior | AE124: 152232.0461
AA125: BOB_Med_MDC_amb_paid_17_curr | AB125: 461052.2379 | AD125: BOB_Med_MDC_amb_paid_17_prior | AE125: 424019.783
AA126: BOB_Med_MDC_admits_17_curr | AB126: 3.8186 | AD126: BOB_Med_MDC_admits_17_prior | AE126: 3.6334
AA127: BOB_Med_MDC_days_17_curr | AB127: 28.4082 | AD127: BOB_Med_MDC_days_17_prior | AE127: 30.912
AA128: BOB_Med_MDC_claimants_17_curr | AB128: 136.8869 | AD128: BOB_Med_MDC_claimants_17_prior | AE128: 141.8394
AA129: BOB_Med_MDC_cd_18_curr | AB129: 18 | AD129: BOB_Med_MDC_cd_18_prior | AE129: 18
AA130: BOB_Med_MDC_paid_18_curr | AB130: 238186.4326 | AD130: BOB_Med_MDC_paid_18_prior | AE130: 231382.8895
AA131: BOB_Med_MDC_inp_paid_18_curr | AB131: 162956.5241 | AD131: BOB_Med_MDC_inp_paid_18_prior | AE131: 156099.4811
AA132: BOB_Med_MDC_amb_paid_18_curr | AB132: 75229.9085 | AD132: BOB_Med_MDC_amb_paid_18_prior | AE132: 75283.4084
AA133: BOB_Med_MDC_admits_18_curr | AB133: 6.8335 | AD133: BOB_Med_MDC_admits_18_prior | AE133: 6.1695
AA134: BOB_Med_MDC_days_18_curr | AB134: 51.5825 | AD134: BOB_Med_MDC_days_18_prior | AE134: 46.6605
AA135: BOB_Med_MDC_claimants_18_curr | AB135: 512.7664 | AD135: BOB_Med_MDC_claimants_18_prior | AE135: 580.9858
AA136: BOB_Med_MDC_cd_19_curr | AB136: 19 | AD136: BOB_Med_MDC_cd_19_prior | AE136: 19
AA137: BOB_Med_MDC_paid_19_curr | AB137: 181968.9538 | AD137: BOB_Med_MDC_paid_19_prior | AE137: 166229.376
AA138: BOB_Med_MDC_inp_paid_19_curr | AB138: 67890.8826 | AD138: BOB_Med_MDC_inp_paid_19_prior | AE138: 64383.5889
AA139: BOB_Med_MDC_amb_paid_19_curr | AB139: 114078.0712 | AD139: BOB_Med_MDC_amb_paid_19_prior | AE139: 101845.7871
AA140: BOB_Med_MDC_admits_19_curr | AB140: 8.4968 | AD140: BOB_Med_MDC_admits_19_prior | AE140: 8.4197
AA141: BOB_Med_MDC_days_19_curr | AB141: 57.8969 | AD141: BOB_Med_MDC_days_19_prior | AE141: 55.7792
AA142: BOB_Med_MDC_claimants_19_curr | AB142: 327.025 | AD142: BOB_Med_MDC_claimants_19_prior | AE142: 313.3265
AA143: BOB_Med_MDC_cd_20_curr | AB143: 20 | AD143: BOB_Med_MDC_cd_20_prior | AE143: 20
AA144: BOB_Med_MDC_paid_20_curr | AB144: 81840.7595 | AD144: BOB_Med_MDC_paid_20_prior | AE144: 77685.8919
AA145: BOB_Med_MDC_inp_paid_20_curr | AB145: 31023.3332 | AD145: BOB_Med_MDC_inp_paid_20_prior | AE145: 28561.669
AA146: BOB_Med_MDC_amb_paid_20_curr | AB146: 50817.4263 | AD146: BOB_Med_MDC_amb_paid_20_prior | AE146: 49124.2229
AA147: BOB_Med_MDC_admits_20_curr | AB147: 5.3126 | AD147: BOB_Med_MDC_admits_20_prior | AE147: 4.6187
AA148: BOB_Med_MDC_days_20_curr | AB148: 35.6478 | AD148: BOB_Med_MDC_days_20_prior | AE148: 32.1998
AA149: BOB_Med_MDC_claimants_20_curr | AB149: 28.777 | AD149: BOB_Med_MDC_claimants_20_prior | AE149: 30.9814
AA150: BOB_Med_MDC_cd_21_curr | AB150: 21 | AD150: BOB_Med_MDC_cd_21_prior | AE150: 21
AA151: BOB_Med_MDC_paid_21_curr | AB151: 262247.2512 | AD151: BOB_Med_MDC_paid_21_prior | AE151: 358502.9298
AA152: BOB_Med_MDC_inp_paid_21_curr | AB152: 137490.5148 | AD152: BOB_Med_MDC_inp_paid_21_prior | AE152: 196922.4129
AA153: BOB_Med_MDC_amb_paid_21_curr | AB153: 124756.7364 | AD153: BOB_Med_MDC_amb_paid_21_prior | AE153: 161580.5169
AA154: BOB_Med_MDC_admits_21_curr | AB154: 5.58 | AD154: BOB_Med_MDC_admits_21_prior | AE154: 7.9263
AA155: BOB_Med_MDC_days_21_curr | AB155: 35.3618 | AD155: BOB_Med_MDC_days_21_prior | AE155: 48.7744
AA156: BOB_Med_MDC_claimants_21_curr | AB156: 198.4416 | AD156: BOB_Med_MDC_claimants_21_prior | AE156: 253.0969
AA157: BOB_Med_MDC_cd_22_curr | AB157: 22 | AD157: BOB_Med_MDC_cd_22_prior | AE157: 22
AA158: BOB_Med_MDC_paid_22_curr | AB158: 6336.1632 | AD158: BOB_Med_MDC_paid_22_prior | AE158: 6112.5015
AA159: BOB_Med_MDC_inp_paid_22_curr | AB159: 4439.0489 | AD159: BOB_Med_MDC_inp_paid_22_prior | AE159: 4108.1533
AA160: BOB_Med_MDC_amb_paid_22_curr | AB160: 1897.1143 | AD160: BOB_Med_MDC_amb_paid_22_prior | AE160: 2004.3482
AA161: BOB_Med_MDC_admits_22_curr | AB161: 0.1245 | AD161: BOB_Med_MDC_admits_22_prior | AE161: 0.1595
AA162: BOB_Med_MDC_days_22_curr | AB162: 1.0913 | AD162: BOB_Med_MDC_days_22_prior | AE162: 1.4747
AA163: BOB_Med_MDC_claimants_22_curr | AB163: 4.4651 | AD163: BOB_Med_MDC_claimants_22_prior | AE163: 5.6505
AA164: BOB_Med_MDC_cd_23_curr | AB164: 23 | AD164: BOB_Med_MDC_cd_23_prior | AE164: 23
AA165: BOB_Med_MDC_paid_23_curr | AB165: 774338.4739 | AD165: BOB_Med_MDC_paid_23_prior | AE165: 800477.6781
AA166: BOB_Med_MDC_inp_paid_23_curr | AB166: 65312.9138 | AD166: BOB_Med_MDC_inp_paid_23_prior | AE166: 78416.9676
AA167: BOB_Med_MDC_amb_paid_23_curr | AB167: 709025.5601 | AD167: BOB_Med_MDC_amb_paid_23_prior | AE167: 722060.7105
AA168: BOB_Med_MDC_admits_23_curr | AB168: 3.5303 | AD168: BOB_Med_MDC_admits_23_prior | AE168: 4.3191
AA169: BOB_Med_MDC_days_23_curr | AB169: 61.123 | AD169: BOB_Med_MDC_days_23_prior | AE169: 75.1982
AA170: BOB_Med_MDC_claimants_23_curr | AB170: 1764.3729 | AD170: BOB_Med_MDC_claimants_23_prior | AE170: 1818.6551
AA171: BOB_Med_MDC_cd_999_curr | AB171: -999 | AD171: BOB_Med_MDC_cd_999_prior | AE171: -999
AA172: BOB_Med_MDC_paid_999_curr | AB172: 11673329.58 | AD172: BOB_Med_MDC_paid_999_prior | AE172: 10865872.6
AA173: BOB_Med_MDC_inp_paid_999_curr | AB173: 3780946.089 | AD173: BOB_Med_MDC_inp_paid_999_prior | AE173: 3548936.132
AA174: BOB_Med_MDC_amb_paid_999_curr | AB174: 7892383.495 | AD174: BOB_Med_MDC_amb_paid_999_prior | AE174: 7316936.464
AA175: BOB_Med_MDC_admits_999_curr | AB175: 201.2755 | AD175: BOB_Med_MDC_admits_999_prior | AE175: 196.6506
AA176: BOB_Med_MDC_days_999_curr | AB176: 1050.8138 | AD176: BOB_Med_MDC_days_999_prior | AE176: 1022.0323
AA177: BOB_Med_MDC_claimants_999_curr | AB177: 3459.565 | AD177: BOB_Med_MDC_claimants_999_prior | AE177: 3545.9819

Sheet ePSM Member Data Page (hidden)
A1: MedicalCurrentMember Documentation | B1: MedicalCurrentMember DataMarkers | E1: MedicalPriorMember Documentation | F1: MedicalPriorMember DataMarkers | H1: RxCurrentMember Documentation | I1: RxCurrentMember DataMarkers | K1: RxPriorMember Documentation | L1: RxPriorMember DataMarkers | N1: DentalCurrentMember Documentation | O1: DentalCurrentMember DataMarkers | R1: DentalPriorMember Documentation | S1: DentalPriorMember DataMarkers | U1: AHFCurrentMember Documentation | V1: AHFCurrentMember DataMarkers | X1: AHFPriorMember Documentation | Y1: AHFPriorMember DataMarkers | AA1: AHF_RxCurrentMember Documentation | AB1: AHF_RxCurrentMember DataMarkers | AD1: AHF_RxPriorMember Documentation | AE1: AHF_RxPriorMember DataMarkers | AG1: AHF_FundCurrentMember Documentation | AH1: AHF_FundCurrentMember DataMarkers | AJ1: AHF_FundPriorMember Documentation | AK1: AHF_FundPriorMember DataMarkers | AM1: adf_FundCurrentMember Documentation | AN1: adf_FundCurrentMember DataMarkers | AP1: adf_FundPriorMember Documentation | AQ1: adf_FundPriorMember DataMarkers | AS1: MedicareCurrentMember Documentation | AU1: MedicareCurrentMember DataMarkers | AW1: MedicareCurrentMember Documentation | AX1: MedicareCurrentMember DataMarkers
A3: Med_months_curr | E3: Med_months_prior | H3: Rx_female_mem_0_19_curr | K3: Rx_female_mem_0_19_prior | N3: Dental_months_curr | R3: Dental_months_prior | U3: AHF_Med_months_curr | X3: AHF_Med_months_prior | Y3: 3 | AA3: Rx_AHF_months_curr | AD3: Rx_AHF_months_prior | AG3: ahf_tier1_active_employee_curr | AH3: 2075 | AJ3: ahf_tier1_active_employee_prior | AK3: 1943 | AM3: adf_tier1_active_employee_curr | AN3: 0 | AP3: adf_tier1_active_employee_prior | AQ3: 0 | AR3: N/A | AS3: Medic_female_mem_0_64_curr | AW3: Medic_female_mem_0_64_prior
A4: Med_female_mem_0_19_curr | E4: Med_female_mem_0_19_prior | H4: Rx_female_mem_20_44_curr | K4: Rx_female_mem_20_44_prior | N4: Dental_female_mem_0_19_curr | R4: Dental_female_mem_0_19_prior | U4: AHF_Med_female_mem_0_19_curr | X4: AHF_Med_female_mem_0_19_prior | Y4: 554 | AA4: Rx_AHF_female_mem_0_19_curr | AD4: Rx_AHF_female_mem_0_19_prior | AE4: 554 | AG4: ahf_tier1_rollover_pr_year_curr | AH4: 726269.61 | AJ4: ahf_tier1_rollover_pr_year_prior | AK4: 396676.45 | AM4: adf_tier1_rollover_pr_year_curr | AN4: 0 | AP4: adf_tier1_rollover_pr_year_prior | AQ4: 0 | AR4: N/A | AS4: Medic_female_mem_65_69_curr | AW4: Medic_female_mem_65_69_prior
A5: Med_female_mem_20_44_curr | E5: Med_female_mem_20_44_prior | H5: Rx_female_mem_45_64_curr | K5: Rx_female_mem_45_64_prior | N5: Dental_female_mem_20_44_curr | R5: Dental_female_mem_20_44_prior | U5: AHF_Med_female_mem_20_44_curr | X5: AHF_Med_female_mem_20_44_prior | Y5: 1941 | AA5: Rx_AHF_female_mem_20_44_curr | AD5: Rx_AHF_female_mem_20_44_prior | AE5: 1941 | AG5: ahf_tier1_cr_year_initial_fund_curr | AH5: 1553587.5 | AJ5: ahf_tier1_cr_year_initial_fund_prior | AK5: 1452217.5 | AM5: adf_tier1_cr_year_initial_fund_curr | AN5: 0 | AP5: adf_tier1_cr_year_initial_fund_prior | AQ5: 0 | AR5: N/A | AS5: Medic_female_mem_70_74_curr | AW5: Medic_female_mem_70_74_prior
A6: Med_female_mem_45_64_curr | E6: Med_female_mem_45_64_prior | H6: Rx_female_mem_65_over_curr | K6: Rx_female_mem_65_over_prior | N6: Dental_female_mem_45_64_curr | R6: Dental_female_mem_45_64_prior | U6: AHF_Med_female_mem_45_64_curr | X6: AHF_Med_female_mem_45_64_prior | Y6: 2675 | AA6: Rx_AHF_female_mem_45_64_curr | AD6: Rx_AHF_female_mem_45_64_prior | AE6: 2675 | AG6: ahf_tier1_Incentive_fund_earned_curr | AH6: 0 | AJ6: ahf_tier1_Incentive_fund_earned_prior | AK6: 0 | AM6: adf_tier1_Incentive_fund_earned_curr | AN6: 0 | AP6: adf_tier1_Incentive_fund_earned_prior | AQ6: 0 | AR6: N/A | AS6: Medic_female_mem_75_79_curr | AW6: Medic_female_mem_75_79_prior
A7: Med_female_mem_65_over_curr | E7: Med_female_mem_65_over_prior | H7: Rx_female_members_curr | K7: Rx_female_members_prior | N7: Dental_female_mem_65_over_curr | R7: Dental_female_mem_65_over_prior | U7: AHF_Med_female_mem_65_over_curr | X7: AHF_Med_female_mem_65_over_prior | Y7: 273 | AA7: Rx_AHF_female_mem_65_over_curr | AD7: Rx_AHF_female_mem_65_over_prior | AE7: 273 | AG7: ahf_tier1_tot_fund_available_curr | AH7: 2279857.11 | AJ7: ahf_tier1_tot_fund_available_prior | AK7: 1848893.95 | AM7: adf_tier1_tot_fund_available_curr | AN7: 0 | AP7: adf_tier1_tot_fund_available_prior | AQ7: 0 | AR7: N/A | AS7: Medic_female_mem_80_84_curr | AW7: Medic_female_mem_80_84_prior
A8: Med_female_members_curr | E8: Med_female_members_prior | H8: Rx_male_mem_0_19_curr | K8: Rx_male_mem_0_19_prior | N8: Dental_female_members_curr | R8: Dental_female_members_prior | U8: AHF_Med_female_members_curr | X8: AHF_Med_female_members_prior | Y8: 5443 | AA8: Rx_AHF_female_members_curr | AD8: Rx_AHF_female_members_prior | AE8: 5443 | AG8: ahf_tier1_cr_claim_paid_with_cr_funds_curr | AH8: 512094.07 | AJ8: ahf_tier1_cr_claim_paid_with_cr_funds_prior | AK8: 457336.06 | AM8: adf_tier1_cr_claim_paid_with_cr_funds_curr | AN8: 0 | AP8: adf_tier1_cr_claim_paid_with_cr_funds_prior | AQ8: 0 | AR8: N/A | AS8: Medic_female_mem_85_over_curr | AW8: Medic_female_mem_85_over_prior
A9: Med_male_mem_0_19_curr | E9: Med_male_mem_0_19_prior | H9: Rx_male_mem_20_44_curr | K9: Rx_male_mem_20_44_prior | N9: Dental_male_mem_0_19_curr | R9: Dental_male_mem_0_19_prior | U9: AHF_Med_male_mem_0_19_curr | X9: AHF_Med_male_mem_0_19_prior | Y9: 603 | AA9: Rx_AHF_male_mem_0_19_curr | AD9: Rx_AHF_male_mem_0_19_prior | AE9: 603 | AG9: ahf_tier1_cr_clm_paid_with_rollover_funds_curr | AH9: 27524.7 | AJ9: ahf_tier1_cr_clm_paid_with_rollover_funds_prior | AK9: 18035.9 | AM9: adf_tier1_cr_clm_paid_with_rollover_funds_curr | AN9: 0 | AP9: adf_tier1_cr_clm_paid_with_rollover_funds_prior | AQ9: 0 | AR9: N/A | AS9: Medic_male_mem_0_64_curr | AW9: Medic_male_mem_0_64_prior
A10: Med_male_mem_20_44_curr | E10: Med_male_mem_20_44_prior | H10: Rx_male_mem_45_64_curr | K10: Rx_male_mem_45_64_prior | N10: Dental_male_mem_20_44_curr | R10: Dental_male_mem_20_44_prior | U10: AHF_Med_male_mem_20_44_curr | X10: AHF_Med_male_mem_20_44_prior | Y10: 1479 | AA10: Rx_AHF_male_mem_20_44_curr | AD10: Rx_AHF_male_mem_20_44_prior | AE10: 1479 | AG10: ahf_tier1_cr_fund_remaining_curr | AH10: 1041493.43 | AJ10: ahf_tier1_cr_fund_remaining_prior | AK10: 994881.44 | AM10: adf_tier1_cr_fund_remaining_curr | AN10: 0 | AP10: adf_tier1_cr_fund_remaining_prior | AQ10: 0 | AR10: N/A | AS10: Medic_male_mem_65_69_curr | AW10: Medic_male_mem_65_69_prior
A11: Med_male_mem_45_64_curr | E11: Med_male_mem_45_64_prior | H11: Rx_male_mem_65_over_curr | K11: Rx_male_mem_65_over_prior | N11: Dental_male_mem_45_64_curr | R11: Dental_male_mem_45_64_prior | U11: AHF_Med_male_mem_45_64_curr | X11: AHF_Med_male_mem_45_64_prior | Y11: 1971 | AA11: Rx_AHF_male_mem_45_64_curr | AD11: Rx_AHF_male_mem_45_64_prior | AE11: 1971 | AG11: ahf_tier1_rollover_fund_remaining_curr | AH11: 698744.91 | AJ11: ahf_tier1_rollover_fund_remaining_prior | AK11: 378640.55 | AM11: adf_tier1_rollover_fund_remaining_curr | AN11: 0 | AP11: adf_tier1_rollover_fund_remaining_prior | AQ11: 0 | AR11: N/A | AS11: Medic_male_mem_70_74_curr | AW11: Medic_male_mem_70_74_prior
A12: Med_male_mem_65_over_curr | E12: Med_male_mem_65_over_prior | H12: Rx_male_members_curr | K12: Rx_male_members_prior | N12: Dental_male_mem_65_over_curr | R12: Dental_male_mem_65_over_prior | U12: AHF_Med_male_mem_65_over_curr | X12: AHF_Med_male_mem_65_over_prior | Y12: 245 | AA12: Rx_AHF_male_mem_65_over_curr | AD12: Rx_AHF_male_mem_65_over_prior | AE12: 245 | AG12: ahf_tier1_emp_100_spend_curr | AH12: 370 | AJ12: ahf_tier1_emp_100_spend_prior | AK12: 328 | AM12: adf_tier1_emp_100_spend_curr | AN12: 0 | AP12: adf_tier1_emp_100_spend_prior | AQ12: 0 | AR12: N/A | AS12: Medic_male_mem_75_79_curr | AW12: Medic_male_mem_75_79_prior
A13: Med_male_members_curr | E13: Med_male_members_prior | H13: Rx_unknown_mem_0_19_curr | K13: Rx_unknown_mem_0_19_prior | N13: Dental_male_members_curr | R13: Dental_male_members_prior | U13: AHF_Med_male_members_curr | X13: AHF_Med_male_members_prior | Y13: 4298 | AA13: Rx_AHF_male_members_curr | AD13: Rx_AHF_male_members_prior | AE13: 4298 | AG13: ahf_tier1_emp_99_75_spend_curr | AH13: 69 | AJ13: ahf_tier1_emp_99_75_spend_prior | AK13: 69 | AM13: adf_tier1_emp_99_75_spend_curr | AN13: 0 | AP13: adf_tier1_emp_99_75_spend_prior | AQ13: 0 | AR13: N/A | AS13: Medic_male_mem_80_84_curr | AW13: Medic_male_mem_80_84_prior
A14: Med_unknown_mem_0_19_curr | E14: Med_unknown_mem_0_19_prior | H14: Rx_unknown_mem_20_44_curr | K14: Rx_unknown_mem_20_44_prior | N14: Dental_unknown_mem_0_19_curr | R14: Dental_unknown_mem_0_19_prior | U14: AHF_Med_unknown_mem_0_19_curr | X14: AHF_Med_unknown_mem_0_19_prior | Y14: 0 | AA14: Rx_AHF_unknown_mem_0_19_curr | AD14: Rx_AHF_unknown_mem_0_19_prior | AE14: 0 | AG14: ahf_tier1_emp_74_50_spend_curr | AH14: 156 | AJ14: ahf_tier1_emp_74_50_spend_prior | AK14: 131 | AM14: adf_tier1_emp_74_50_spend_curr | AN14: 0 | AP14: adf_tier1_emp_74_50_spend_prior | AQ14: 0 | AR14: N/A | AS14: Medic_male_mem_85_over_curr | AW14: Medic_male_mem_85_over_prior
A15: Med_unknown_mem_20_44_curr | E15: Med_unknown_mem_20_44_prior | H15: Rx_unknown_mem_45_64_curr | K15: Rx_unknown_mem_45_64_prior | N15: Dental_unknown_mem_20_44_curr | R15: Dental_unknown_mem_20_44_prior | U15: AHF_Med_unknown_mem_20_44_curr | X15: AHF_Med_unknown_mem_20_44_prior | Y15: 0 | AA15: Rx_AHF_unknown_mem_20_44_curr | AD15: Rx_AHF_unknown_mem_20_44_prior | AE15: 0 | AG15: ahf_tier1_emp_49_25_spend_curr | AH15: 266 | AJ15: ahf_tier1_emp_49_25_spend_prior | AK15: 247 | AM15: adf_tier1_emp_49_25_spend_curr | AN15: 0 | AP15: adf_tier1_emp_49_25_spend_prior | AQ15: 0 | AR15: N/A
A16: Med_unknown_mem_45_64_curr | E16: Med_unknown_mem_45_64_prior | H16: Rx_unknown_mem_65_over_curr | K16: Rx_unknown_mem_65_over_prior | N16: Dental_unknown_mem_45_64_curr | R16: Dental_unknown_mem_45_64_prior | U16: AHF_Med_unknown_mem_45_64_curr | X16: AHF_Med_unknown_mem_45_64_prior | Y16: 0 | AA16: Rx_AHF_unknown_mem_45_64_curr | AD16: Rx_AHF_unknown_mem_45_64_prior | AE16: 0 | AG16: ahf_tier1_emp_24_1_spend_curr | AH16: 513 | AJ16: ahf_tier1_emp_24_1_spend_prior | AK16: 505 | AM16: adf_tier1_emp_24_1_spend_curr | AN16: 0 | AP16: adf_tier1_emp_24_1_spend_prior | AQ16: 0 | AR16: N/A
A17: Med_unknown_mem_65_over_curr | E17: Med_unknown_mem_65_over_prior | H17: Rx_unknown_members_curr | K17: Rx_unknown_members_prior | N17: Dental_unknown_mem_65_over_curr | R17: Dental_unknown_mem_65_over_prior | U17: AHF_Med_unknown_mem_65_over_curr | X17: AHF_Med_unknown_mem_65_over_prior | Y17: 0 | AA17: Rx_AHF_unknown_mem_65_over_curr | AD17: Rx_AHF_unknown_mem_65_over_prior | AE17: 0 | AG17: ahf_tier1_emp_0_spend_curr | AH17: 701 | AJ17: ahf_tier1_emp_0_spend_prior | AK17: 663 | AM17: adf_tier1_emp_0_spend_curr | AN17: 0 | AP17: adf_tier1_emp_0_spend_prior | AQ17: 0 | AR17: N/A
A18: Med_unknown_members_curr | E18: Med_unknown_members_prior | H18: Rx_num_members_curr | K18: Rx_num_members_prior | N18: Dental_unknown_members_curr | R18: Dental_unknown_members_prior | U18: AHF_Med_unknown_members_curr | X18: AHF_Med_unknown_members_prior | Y18: 0 | AA18: Rx_AHF_unknown_members_curr | AD18: Rx_AHF_unknown_members_prior | AE18: 0 | AG18: ahf_tier2_active_employee_curr | AH18: 0 | AJ18: ahf_tier2_active_employee_prior | AK18: 0 | AM18: adf_tier2_active_employee_curr | AN18: 0 | AP18: adf_tier2_active_employee_prior | AQ18: 0 | AR18: N/A
A19: Med_num_members_curr | E19: Med_num_members_prior | H19: Rx_num_employees_curr | K19: Rx_num_employees_prior | N19: Dental_num_members_curr | R19: Dental_num_members_prior | U19: AHF_Med_num_members_curr | X19: AHF_Med_num_members_prior | Y19: 9741 | AA19: Rx_AHF_num_members_curr | AD19: Rx_AHF_num_members_prior | AE19: 9741 | AG19: ahf_tier2_rollover_pr_year_curr | AH19: 0 | AJ19: ahf_tier2_rollover_pr_year_prior | AK19: 0 | AM19: adf_tier2_rollover_pr_year_curr | AN19: 0 | AP19: adf_tier2_rollover_pr_year_prior | AQ19: 0 | AR19: N/A
A20: Med_num_employees_curr | E20: Med_num_employees_prior | H20: Rx_avg_age_members_curr | K20: Rx_avg_age_members_prior | N20: Dental_num_employees_curr | R20: Dental_num_employees_prior | U20: AHF_Med_num_employees_curr | X20: AHF_Med_num_employees_prior | Y20: 7062 | AA20: Rx_AHF_num_employees_curr | AD20: Rx_AHF_num_employees_prior | AE20: 7062 | AG20: ahf_tier2_cr_year_initial_fund_curr | AH20: 0 | AJ20: ahf_tier2_cr_year_initial_fund_prior | AK20: 0 | AM20: adf_tier2_cr_year_initial_fund_curr | AN20: 0 | AP20: adf_tier2_cr_year_initial_fund_prior | AQ20: 0 | AR20: N/A
A21: Med_avg_age_members_curr | E21: Med_avg_age_members_prior | H21: Rx_months_curr | K21: Rx_months_prior | N21: Dental_avg_age_members_curr | R21: Dental_avg_age_members_prior | U21: AHF_Med_avg_age_members_curr | X21: AHF_Med_avg_age_members_prior | Y21: 418344 | AA21: Rx_AHF_avg_age_members_curr | AD21: Rx_AHF_avg_age_members_prior | AE21: 418344 | AG21: ahf_tier2_Incentive_fund_earned_curr | AH21: 0 | AJ21: ahf_tier2_Incentive_fund_earned_prior | AK21: 0 | AM21: adf_tier2_Incentive_fund_earned_curr | AN21: 0 | AP21: adf_tier2_Incentive_fund_earned_prior | AQ21: 0 | AR21: N/A
E22: Med_prior_employees | F22: =IF(Med_months_prior="N/A","N/A",IF(Med_months_prior=0,"N/A",Med_num_employees_prior/Med_months_prior)) -> N/A | AG22: ahf_tier2_tot_fund_available_curr | AH22: 0 | AJ22: ahf_tier2_tot_fund_available_prior | AK22: 0 | AM22: adf_tier2_tot_fund_available_curr | AN22: 0 | AP22: adf_tier2_tot_fund_available_prior | AQ22: 0 | AR22: N/A
B23: =AND(Med_num_members_curr="N/A",Rx_num_members_curr="N/A") -> FALSE | O23: =(Dental_num_members_curr="N/A") -> FALSE | AG23: ahf_tier2_cr_claim_paid_with_cr_funds_curr | AH23: 0 | AJ23: ahf_tier2_cr_claim_paid_with_cr_funds_prior | AK23: 0 | AM23: adf_tier2_cr_claim_paid_with_cr_funds_curr | AN23: 0 | AP23: adf_tier2_cr_claim_paid_with_cr_funds_prior | AQ23: 0 | AR23: N/A
AG24: ahf_tier2_cr_clm_paid_with_rollover_funds_curr | AH24: 0 | AJ24: ahf_tier2_cr_clm_paid_with_rollover_funds_prior | AK24: 0 | AM24: adf_tier2_cr_clm_paid_with_rollover_funds_curr | AN24: 0 | AP24: adf_tier2_cr_clm_paid_with_rollover_funds_prior | AQ24: 0 | AR24: N/A
AG25: ahf_tier2_cr_fund_remaining_curr | AH25: 0 | AJ25: ahf_tier2_cr_fund_remaining_prior | AK25: 0 | AM25: adf_tier2_cr_fund_remaining_curr | AN25: 0 | AP25: adf_tier2_cr_fund_remaining_prior | AQ25: 0 | AR25: N/A
AG26: ahf_tier2_rollover_fund_remaining_curr | AH26: 0 | AJ26: ahf_tier2_rollover_fund_remaining_prior | AK26: 0 | AM26: adf_tier2_rollover_fund_remaining_curr | AN26: 0 | AP26: adf_tier2_rollover_fund_remaining_prior | AQ26: 0 | AR26: N/A
AG27: ahf_tier2_emp_100_spend_curr | AH27: 0 | AJ27: ahf_tier2_emp_100_spend_prior | AK27: 0 | AM27: adf_tier2_emp_100_spend_curr | AN27: 0 | AP27: adf_tier2_emp_100_spend_prior | AQ27: 0 | AR27: N/A
AG28: ahf_tier2_emp_99_75_spend_curr | AH28: 0 | AJ28: ahf_tier2_emp_99_75_spend_prior | AK28: 0 | AM28: adf_tier2_emp_99_75_spend_curr | AN28: 0 | AP28: adf_tier2_emp_99_75_spend_prior | AQ28: 0 | AR28: N/A
AG29: ahf_tier2_emp_74_50_spend_curr | AH29: 0 | AJ29: ahf_tier2_emp_74_50_spend_prior | AK29: 0 | AM29: adf_tier2_emp_74_50_spend_curr | AN29: 0 | AP29: adf_tier2_emp_74_50_spend_prior | AQ29: 0 | AR29: N/A
AG30: ahf_tier2_emp_49_25_spend_curr | AH30: 0 | AJ30: ahf_tier2_emp_49_25_spend_prior | AK30: 0 | AM30: adf_tier2_emp_49_25_spend_curr | AN30: 0 | AP30: adf_tier2_emp_49_25_spend_prior | AQ30: 0 | AR30: N/A
AG31: ahf_tier2_emp_24_1_spend_curr | AH31: 0 | AJ31: ahf_tier2_emp_24_1_spend_prior | AK31: 0 | AM31: adf_tier2_emp_24_1_spend_curr | AN31: 0 | AP31: adf_tier2_emp_24_1_spend_prior | AQ31: 0 | AR31: N/A
AG32: ahf_tier2_emp_0_spend_curr | AH32: 0 | AJ32: ahf_tier2_emp_0_spend_prior | AK32: 0 | AM32: adf_tier2_emp_0_spend_curr | AN32: 0 | AP32: adf_tier2_emp_0_spend_prior | AQ32: 0 | AR32: N/A
AG33: ahf_tier3_active_employee_curr | AH33: 0 | AJ33: ahf_tier3_active_employee_prior | AK33: 0 | AM33: adf_tier3_active_employee_curr | AN33: 0 | AP33: adf_tier3_active_employee_prior | AQ33: 0 | AR33: N/A
AG34: ahf_tier3_rollover_pr_year_curr | AH34: 0 | AJ34: ahf_tier3_rollover_pr_year_prior | AK34: 0 | AM34: adf_tier3_rollover_pr_year_curr | AN34: 0 | AP34: adf_tier3_rollover_pr_year_prior | AQ34: 0 | AR34: N/A
AG35: ahf_tier3_cr_year_initial_fund_curr | AH35: 0 | AJ35: ahf_tier3_cr_year_initial_fund_prior | AK35: 0 | AM35: adf_tier3_cr_year_initial_fund_curr | AN35: 0 | AP35: adf_tier3_cr_year_initial_fund_prior | AQ35: 0 | AR35: N/A
AG36: ahf_tier3_Incentive_fund_earned_curr | AH36: 0 | AJ36: ahf_tier3_Incentive_fund_earned_prior | AK36: 0 | AM36: adf_tier3_Incentive_fund_earned_curr | AN36: 0 | AP36: adf_tier3_Incentive_fund_earned_prior | AQ36: 0 | AR36: N/A
AG37: ahf_tier3_tot_fund_available_curr | AH37: 0 | AJ37: ahf_tier3_tot_fund_available_prior | AK37: 0 | AM37: adf_tier3_tot_fund_available_curr | AN37: 0 | AP37: adf_tier3_tot_fund_available_prior | AQ37: 0 | AR37: N/A
AG38: ahf_tier3_cr_claim_paid_with_cr_funds_curr | AH38: 0 | AJ38: ahf_tier3_cr_claim_paid_with_cr_funds_prior | AK38: 0 | AM38: adf_tier3_cr_claim_paid_with_cr_funds_curr | AN38: 0 | AP38: adf_tier3_cr_claim_paid_with_cr_funds_prior | AQ38: 0 | AR38: N/A
AG39: ahf_tier3_cr_clm_paid_with_rollover_funds_curr | AH39: 0 | AJ39: ahf_tier3_cr_clm_paid_with_rollover_funds_prior | AK39: 0 | AM39: adf_tier3_cr_clm_paid_with_rollover_funds_curr | AN39: 0 | AP39: adf_tier3_cr_clm_paid_with_rollover_funds_prior | AQ39: 0 | AR39: N/A
AG40: ahf_tier3_cr_fund_remaining_curr | AH40: 0 | AJ40: ahf_tier3_cr_fund_remaining_prior | AK40: 0 | AM40: adf_tier3_cr_fund_remaining_curr | AN40: 0 | AP40: adf_tier3_cr_fund_remaining_prior | AQ40: 0 | AR40: N/A
AG41: ahf_tier3_rollover_fund_remaining_curr | AH41: 0 | AJ41: ahf_tier3_rollover_fund_remaining_prior | AK41: 0 | AM41: adf_tier3_rollover_fund_remaining_curr | AN41: 0 | AP41: adf_tier3_rollover_fund_remaining_prior | AQ41: 0 | AR41: N/A
AG42: ahf_tier3_emp_100_spend_curr | AH42: 0 | AJ42: ahf_tier3_emp_100_spend_prior | AK42: 0 | AM42: adf_tier3_emp_100_spend_curr | AN42: 0 | AP42: adf_tier3_emp_100_spend_prior | AQ42: 0 | AR42: N/A
AG43: ahf_tier3_emp_99_75_spend_curr | AH43: 0 | AJ43: ahf_tier3_emp_99_75_spend_prior | AK43: 0 | AM43: adf_tier3_emp_99_75_spend_curr | AN43: 0 | AP43: adf_tier3_emp_99_75_spend_prior | AQ43: 0 | AR43: N/A
AG44: ahf_tier3_emp_74_50_spend_curr | AH44: 0 | AJ44: ahf_tier3_emp_74_50_spend_prior | AK44: 0 | AM44: adf_tier3_emp_74_50_spend_curr | AN44: 0 | AP44: adf_tier3_emp_74_50_spend_prior | AQ44: 0 | AR44: N/A
AG45: ahf_tier3_emp_49_25_spend_curr | AH45: 0 | AJ45: ahf_tier3_emp_49_25_spend_prior | AK45: 0 | AM45: adf_tier3_emp_49_25_spend_curr | AN45: 0 | AP45: adf_tier3_emp_49_25_spend_prior | AQ45: 0 | AR45: N/A
AG46: ahf_tier3_emp_24_1_spend_curr | AH46: 0 | AJ46: ahf_tier3_emp_24_1_spend_prior | AK46: 0 | AM46: adf_tier3_emp_24_1_spend_curr | AN46: 0 | AP46: adf_tier3_emp_24_1_spend_prior | AQ46: 0 | AR46: N/A
AG47: ahf_tier3_emp_0_spend_curr | AH47: 0 | AJ47: ahf_tier3_emp_0_spend_prior | AK47: 0 | AM47: adf_tier3_emp_0_spend_curr | AN47: 0 | AP47: adf_tier3_emp_0_spend_prior | AQ47: 0 | AR47: N/A
AG48: ahf_tier4_active_employee_curr | AH48: 401 | AJ48: ahf_tier4_active_employee_prior | AK48: 426 | AM48: adf_tier4_active_employee_curr | AN48: 0 | AP48: adf_tier4_active_employee_prior | AQ48: 0 | AR48: N/A
AG49: ahf_tier4_rollover_pr_year_curr | AH49: 107593.63 | AJ49: ahf_tier4_rollover_pr_year_prior | AK49: 71446.58 | AM49: adf_tier4_rollover_pr_year_curr | AN49: 0 | AP49: adf_tier4_rollover_pr_year_prior | AQ49: 0 | AR49: N/A
AG50: ahf_tier4_cr_year_initial_fund_curr | AH50: 601380 | AJ50: ahf_tier4_cr_year_initial_fund_prior | AK50: 637725 | AM50: adf_tier4_cr_year_initial_fund_curr | AN50: 0 | AP50: adf_tier4_cr_year_initial_fund_prior | AQ50: 0 | AR50: N/A
AG51: ahf_tier4_Incentive_fund_earned_curr | AH51: 0 | AJ51: ahf_tier4_Incentive_fund_earned_prior | AK51: 0 | AM51: adf_tier4_Incentive_fund_earned_curr | AN51: 0 | AP51: adf_tier4_Incentive_fund_earned_prior | AQ51: 0 | AR51: N/A
AG52: ahf_tier4_tot_fund_available_curr | AH52: 708973.63 | AJ52: ahf_tier4_tot_fund_available_prior | AK52: 709171.58 | AM52: adf_tier4_tot_fund_available_curr | AN52: 0 | AP52: adf_tier4_tot_fund_available_prior | AQ52: 0 | AR52: N/A
AG53: ahf_tier4_cr_claim_paid_with_cr_funds_curr | AH53: 261525.22 | AJ53: ahf_tier4_cr_claim_paid_with_cr_funds_prior | AK53: 297002.01 | AM53: adf_tier4_cr_claim_paid_with_cr_funds_curr | AN53: 0 | AP53: adf_tier4_cr_claim_paid_with_cr_funds_prior | AQ53: 0 | AR53: N/A
AG54: ahf_tier4_cr_clm_paid_with_rollover_funds_curr | AH54: 3050.13 | AJ54: ahf_tier4_cr_clm_paid_with_rollover_funds_prior | AK54: 2862.05 | AM54: adf_tier4_cr_clm_paid_with_rollover_funds_curr | AN54: 0 | AP54: adf_tier4_cr_clm_paid_with_rollover_funds_prior | AQ54: 0 | AR54: N/A
AG55: ahf_tier4_cr_fund_remaining_curr | AH55: 339854.78 | AJ55: ahf_tier4_cr_fund_remaining_prior | AK55: 340722.99 | AM55: adf_tier4_cr_fund_remaining_curr | AN55: 0 | AP55: adf_tier4_cr_fund_remaining_prior | AQ55: 0 | AR55: N/A
AG56: ahf_tier4_rollover_fund_remaining_curr | AH56: 104543.5 | AJ56: ahf_tier4_rollover_fund_remaining_prior | AK56: 68584.53 | AM56: adf_tier4_rollover_fund_remaining_curr | AN56: 0 | AP56: adf_tier4_rollover_fund_remaining_prior | AQ56: 0 | AR56: N/A
AG57: ahf_tier4_emp_100_spend_curr | AH57: 97 | AJ57: ahf_tier4_emp_100_spend_prior | AK57: 109 | AM57: adf_tier4_emp_100_spend_curr | AN57: 0 | AP57: adf_tier4_emp_100_spend_prior | AQ57: 0 | AR57: N/A
AG58: ahf_tier4_emp_99_75_spend_curr | AH58: 17 | AJ58: ahf_tier4_emp_99_75_spend_prior | AK58: 20 | AM58: adf_tier4_emp_99_75_spend_curr | AN58: 0 | AP58: adf_tier4_emp_99_75_spend_prior | AQ58: 0 | AR58: N/A
AG59: ahf_tier4_emp_74_50_spend_curr | AH59: 39 | AJ59: ahf_tier4_emp_74_50_spend_prior | AK59: 54 | AM59: adf_tier4_emp_74_50_spend_curr | AN59: 0 | AP59: adf_tier4_emp_74_50_spend_prior | AQ59: 0 | AR59: N/A
AG60: ahf_tier4_emp_49_25_spend_curr | AH60: 68 | AJ60: ahf_tier4_emp_49_25_spend_prior | AK60: 73 | AM60: adf_tier4_emp_49_25_spend_curr | AN60: 0 | AP60: adf_tier4_emp_49_25_spend_prior | AQ60: 0 | AR60: N/A
AG61: ahf_tier4_emp_24_1_spend_curr | AH61: 137 | AJ61: ahf_tier4_emp_24_1_spend_prior | AK61: 130 | AM61: adf_tier4_emp_24_1_spend_curr | AN61: 0 | AP61: adf_tier4_emp_24_1_spend_prior | AQ61: 0 | AR61: N/A
AG62: ahf_tier4_emp_0_spend_curr | AH62: 43 | AJ62: ahf_tier4_emp_0_spend_prior | AK62: 40 | AM62: adf_tier4_emp_0_spend_curr | AN62: 0 | AP62: adf_tier4_emp_0_spend_prior | AQ62: 0 | AR62: N/A
AG63: ahf_total_active_employee_curr | AH63: 2476 | AJ63: ahf_total_active_employee_prior | AK63: 2369 | AM63: adf_total_active_employee_curr | AN63: 0 | AP63: adf_total_active_employee_prior | AQ63: 0 | AR63: N/A
AG64: ahf_total_rollover_pr_year_curr | AH64: 833863.24 | AJ64: ahf_total_rollover_pr_year_prior | AK64: 468123.03 | AM64: adf_total_rollover_pr_year_curr | AN64: 0 | AP64: adf_total_rollover_pr_year_prior | AQ64: 0 | AR64: N/A
AG65: ahf_total_cr_year_initial_fund_curr | AH65: 2154967.5 | AJ65: ahf_total_cr_year_initial_fund_prior | AK65: 2089942.5 | AM65: adf_total_cr_year_initial_fund_curr | AN65: 0 | AP65: adf_total_cr_year_initial_fund_prior | AQ65: 0 | AR65: N/A
AG66: ahf_total_Incentive_fund_earned_curr | AH66: 0 | AJ66: ahf_total_Incentive_fund_earned_prior | AK66: 0 | AM66: adf_total_Incentive_fund_earned_curr | AN66: 0 | AP66: adf_total_Incentive_fund_earned_prior | AQ66: 0 | AR66: N/A
AG67: ahf_total_tot_fund_available_curr | AH67: 2988830.74 | AJ67: ahf_total_tot_fund_available_prior | AK67: 2558065.53 | AM67: adf_total_tot_fund_available_curr | AN67: 0 | AP67: adf_total_tot_fund_available_prior | AQ67: 0 | AR67: N/A
AG68: ahf_total_cr_claim_paid_with_cr_funds_curr | AH68: 773619.29 | AJ68: ahf_total_cr_claim_paid_with_cr_funds_prior | AK68: 754338.07 | AM68: adf_total_cr_claim_paid_with_cr_funds_curr | AN68: 0 | AP68: adf_total_cr_claim_paid_with_cr_funds_prior | AQ68: 0 | AR68: N/A
AG69: ahf_total_cr_clm_paid_with_rollover_funds_curr | AH69: 30574.83 | AJ69: ahf_total_cr_clm_paid_with_rollover_funds_prior | AK69: 20897.95 | AM69: adf_total_cr_clm_paid_with_rollover_funds_curr | AN69: 0 | AP69: adf_total_cr_clm_paid_with_rollover_funds_prior | AQ69: 0 | AR69: N/A
AG70: ahf_total_cr_fund_remaining_curr | AH70: 1381348.21 | AJ70: ahf_total_cr_fund_remaining_prior | AK70: 1335604.43 | AM70: adf_total_cr_fund_remaining_curr | AN70: 0 | AP70: adf_total_cr_fund_remaining_prior | AQ70: 0 | AR70: N/A
AG71: ahf_total_rollover_fund_remaining_curr | AH71: 803288.41 | AJ71: ahf_total_rollover_fund_remaining_prior | AK71: 447225.08 | AM71: adf_total_rollover_fund_remaining_curr | AN71: 0 | AP71: adf_total_rollover_fund_remaining_prior | AQ71: 0 | AR71: N/A
AG72: ahf_total_emp_100_spend_curr | AH72: 467 | AJ72: ahf_total_emp_100_spend_prior | AK72: 437 | AM72: adf_total_emp_100_spend_curr | AN72: 0 | AP72: adf_total_emp_100_spend_prior | AQ72: 0 | AR72: N/A
AG73: ahf_total_emp_99_75_spend_curr | AH73: 86 | AJ73: ahf_total_emp_99_75_spend_prior | AK73: 89 | AM73: adf_total_emp_99_75_spend_curr | AN73: 0 | AP73: adf_total_emp_99_75_spend_prior | AQ73: 0 | AR73: N/A
AG74: ahf_total_emp_74_50_spend_curr | AH74: 195 | AJ74: ahf_total_emp_74_50_spend_prior | AK74: 185 | AM74: adf_total_emp_74_50_spend_curr | AN74: 0 | AP74: adf_total_emp_74_50_spend_prior | AQ74: 0 | AR74: N/A
AG75: ahf_total_emp_49_25_spend_curr | AH75: 334 | AJ75: ahf_total_emp_49_25_spend_prior | AK75: 320 | AM75: adf_total_emp_49_25_spend_curr | AN75: 0 | AP75: adf_total_emp_49_25_spend_prior | AQ75: 0 | AR75: N/A
AG76: ahf_total_emp_24_1_spend_curr | AH76: 650 | AJ76: ahf_total_emp_24_1_spend_prior | AK76: 635 | AM76: adf_total_emp_24_1_spend_curr | AN76: 0 | AP76: adf_total_emp_24_1_spend_prior | AQ76: 0 | AR76: N/A
AG77: ahf_total_emp_0_spend_curr | AH77: 744 | AJ77: ahf_total_emp_0_spend_prior | AK77: 703 | AM77: adf_total_emp_0_spend_curr | AN77: 0 | AP77: adf_total_emp_0_spend_prior | AQ77: 0 | AR77: N/A
AG78: ahf_total_termd_active_employee_curr | AH78: 10 | AJ78: ahf_total_termd_active_employee_prior | AK78: 24 | AM78: adf_total_termd_active_employee_curr | AN78: 0 | AP78: adf_total_termd_active_employee_prior | AQ78: 0 | AR78: N/A
AG79: ahf_total_termd_rollover_pr_year_curr | AH79: 6004.35 | AJ79: ahf_total_termd_rollover_pr_year_prior | AK79: 2171.24 | AM79: adf_total_termd_rollover_pr_year_curr | AN79: 0 | AP79: adf_total_termd_rollover_pr_year_prior | AQ79: 0 | AR79: N/A
AG80: ahf_total_termd_cr_year_initial_fund_curr | AH80: 9000 | AJ80: ahf_total_termd_cr_year_initial_fund_prior | AK80: 20250 | AM80: adf_total_termd_cr_year_initial_fund_curr | AN80: 0 | AP80: adf_total_termd_cr_year_initial_fund_prior | AQ80: 0 | AR80: N/A
AG81: ahf_total_termd_Incentive_fund_earned_curr | AH81: 0 | AJ81: ahf_total_termd_Incentive_fund_earned_prior | AK81: 0 | AM81: adf_total_termd_Incentive_fund_earned_curr | AN81: 0 | AP81: adf_total_termd_Incentive_fund_earned_prior | AQ81: 0 | AR81: N/A
AG82: ahf_total_termd_tot_fund_available_curr | AH82: 15004.35 | AJ82: ahf_total_termd_tot_fund_available_prior | AK82: 22421.24 | AM82: adf_total_termd_tot_fund_available_curr | AN82: 0 | AP82: adf_total_termd_tot_fund_available_prior | AQ82: 0 | AR82: N/A
AG83: ahf_total_termd_cr_claim_paid_with_cr_funds_curr | AH83: 2158.53 | AJ83: ahf_total_termd_cr_claim_paid_with_cr_funds_prior | AK83: 7356.77 | AM83: adf_total_termd_cr_claim_paid_with_cr_funds_curr | AN83: 0 | AP83: adf_total_termd_cr_claim_paid_with_cr_funds_prior | AQ83: 0 | AR83: N/A
AG84: ahf_total_termd_cr_clm_paid_with_rollover_funds_curr | AH84: 17.27 | AJ84: ahf_total_termd_cr_clm_paid_with_rollover_funds_prior | AK84: 119.61 | AM84: adf_total_termd_cr_clm_paid_with_rollover_funds_curr | AN84: 0 | AP84: adf_total_termd_cr_clm_paid_with_rollover_funds_prior | AQ84: 0 | AR84: N/A
AG85: ahf_total_termd_cr_fund_remaining_curr | AH85: 6841.47 | AJ85: ahf_total_termd_cr_fund_remaining_prior | AK85: 12893.23 | AM85: adf_total_termd_cr_fund_remaining_curr | AN85: 0 | AP85: adf_total_termd_cr_fund_remaining_prior | AQ85: 0 | AR85: N/A
AG86: ahf_total_termd_rollover_fund_remaining_curr | AH86: 5987.08 | AJ86: ahf_total_termd_rollover_fund_remaining_prior | AK86: 2051.63 | AM86: adf_total_termd_rollover_fund_remaining_curr | AN86: 0 | AP86: adf_total_termd_rollover_fund_remaining_prior | AQ86: 0 | AR86: N/A
AG87: ahf_total_termd_emp_100_spend_curr | AH87: 2 | AJ87: ahf_total_termd_emp_100_spend_prior | AK87: 3 | AM87: adf_total_termd_emp_100_spend_curr | AN87: 0 | AP87: adf_total_termd_emp_100_spend_prior | AQ87: 0 | AR87: N/A
AG88: ahf_total_termd_emp_99_75_spend_curr | AH88: 0 | AJ88: ahf_total_termd_emp_99_75_spend_prior | AK88: 1 | AM88: adf_total_termd_emp_99_75_spend_curr | AN88: 0 | AP88: adf_total_termd_emp_99_75_spend_prior | AQ88: 0 | AR88: N/A
AG89: ahf_total_termd_emp_74_50_spend_curr | AH89: 1 | AJ89: ahf_total_termd_emp_74_50_spend_prior | AK89: 4 | AM89: adf_total_termd_emp_74_50_spend_curr | AN89: 0 | AP89: adf_total_termd_emp_74_50_spend_prior | AQ89: 0 | AR89: N/A
AG90: ahf_total_termd_emp_49_25_spend_curr | AH90: 0 | AJ90: ahf_total_termd_emp_49_25_spend_prior | AK90: 5 | AM90: adf_total_termd_emp_49_25_spend_curr | AN90: 0 | AP90: adf_total_termd_emp_49_25_spend_prior | AQ90: 0 | AR90: N/A
AG91: ahf_total_termd_emp_24_1_spend_curr | AH91: 3 | AJ91: ahf_total_termd_emp_24_1_spend_prior | AK91: 7 | AM91: adf_total_termd_emp_24_1_spend_curr | AN91: 0 | AP91: adf_total_termd_emp_24_1_spend_prior | AQ91: 0 | AR91: N/A
AG92: ahf_total_termd_emp_0_spend_curr | AH92: 4 | AJ92: ahf_total_termd_emp_0_spend_prior | AK92: 4 | AM92: adf_total_termd_emp_0_spend_curr | AN92: 0 | AP92: adf_total_termd_emp_0_spend_prior | AQ92: 0 | AR92: N/A
AG93: ahf_termed_tier1_active_employee_curr | AH93: 8 | AJ93: ahf_termed_tier1_active_employee_prior | AK93: 21 | AM93: adf_termed_tier1_active_employee_curr | AN93: 0 | AP93: adf_termed_tier1_active_employee_prior | AQ93: 0 | AR93: N/A
AG94: ahf_termed_tier1_rollover_pr_year_curr | AH94: 4803.03 | AJ94: ahf_termed_tier1_rollover_pr_year_prior | AK94: 1587.64 | AM94: adf_termed_tier1_rollover_pr_year_curr | AN94: 0 | AP94: adf_termed_tier1_rollover_pr_year_prior | AQ94: 0 | AR94: N/A
AG95: ahf_termed_tier1_cr_year_initial_fund_curr | AH95: 6000 | AJ95: ahf_termed_tier1_cr_year_initial_fund_prior | AK95: 15750 | AM95: adf_termed_tier1_cr_year_initial_fund_curr | AN95: 0 | AP95: adf_termed_tier1_cr_year_initial_fund_prior | AQ95: 0 | AR95: N/A
AG96: ahf_termed_tier1_Incentive_fund_earned_curr | AH96: 0 | AJ96: ahf_termed_tier1_Incentive_fund_earned_prior | AK96: 0 | AM96: adf_termed_tier1_Incentive_fund_earned_curr | AN96: 0 | AP96: adf_termed_tier1_Incentive_fund_earned_prior | AQ96: 0 | AR96: N/A
AG97: ahf_termed_tier1_tot_fund_available_curr | AH97: 10803.03 | AJ97: ahf_termed_tier1_tot_fund_available_prior | AK97: 17337.64 | AM97: adf_termed_tier1_tot_fund_available_curr | AN97: 0 | AP97: adf_termed_tier1_tot_fund_available_prior | AQ97: 0 | AR97: N/A
AG98: ahf_termed_tier1_cr_claim_paid_with_cr_funds_curr | AH98: 2107.9 | AJ98: ahf_termed_tier1_cr_claim_paid_with_cr_funds_prior | AK98: 5655.03 | AM98: adf_termed_tier1_cr_claim_paid_with_cr_funds_curr | AN98: 0 | AP98: adf_termed_tier1_cr_claim_paid_with_cr_funds_prior | AQ98: 0 | AR98: N/A
AG99: ahf_termed_tier1_cr_clm_paid_with_rollover_funds_curr | AH99: 17.27 | AJ99: ahf_termed_tier1_cr_clm_paid_with_rollover_funds_prior | AK99: 119.61 | AM99: adf_termed_tier1_cr_clm_paid_with_rollover_funds_curr | AN99: 0 | AP99: adf_termed_tier1_cr_clm_paid_with_rollover_funds_prior | AQ99: 0 | AR99: N/A
AG100: ahf_termed_tier1_cr_fund_remaining_curr | AH100: 3892.1 | AJ100: ahf_termed_tier1_cr_fund_remaining_prior | AK100: 10094.97 | AM100: adf_termed_tier1_cr_fund_remaining_curr | AN100: 0 | AP100: adf_termed_tier1_cr_fund_remaining_prior | AQ100: 0 | AR100: N/A
AG101: ahf_termed_tier1_rollover_fund_remaining_curr | AH101: 4785.76 | AJ101: ahf_termed_tier1_rollover_fund_remaining_prior | AK101: 1468.03 | AM101: adf_termed_tier1_rollover_fund_remaining_curr | AN101: 0 | AP101: adf_termed_tier1_rollover_fund_remaining_prior | AQ101: 0 | AR101: N/A
AG102: ahf_termed_tier1_emp_100_spend_curr | AH102: 2 | AJ102: ahf_termed_tier1_emp_100_spend_prior | AK102: 3 | AM102: adf_termed_tier1_emp_100_spend_curr | AN102: 0 | AP102: adf_termed_tier1_emp_100_spend_prior | AQ102: 0 | AR102: N/A
AG103: ahf_termed_tier1_emp_99_75_spend_curr | AH103: 0 | AJ103: ahf_termed_tier1_emp_99_75_spend_prior | AK103: 0 | AM103: adf_termed_tier1_emp_99_75_spend_curr | AN103: 0 | AP103: adf_termed_tier1_emp_99_75_spend_prior | AQ103: 0 | AR103: N/A
AG104: ahf_termed_tier1_emp_74_50_spend_curr | AH104: 1 | AJ104: ahf_termed_tier1_emp_74_50_spend_prior | AK104: 4 | AM104: adf_termed_tier1_emp_74_50_spend_curr | AN104: 0 | AP104: adf_termed_tier1_emp_74_50_spend_prior | AQ104: 0 | AR104: N/A
AG105: ahf_termed_tier1_emp_49_25_spend_curr | AH105: 0 | AJ105: ahf_termed_tier1_emp_49_25_spend_prior | AK105: 4 | AM105: adf_termed_tier1_emp_49_25_spend_curr | AN105: 0 | AP105: adf_termed_tier1_emp_49_25_spend_prior | AQ105: 0 | AR105: N/A
AG106: ahf_termed_tier1_emp_24_1_spend_curr | AH106: 2 | AJ106: ahf_termed_tier1_emp_24_1_spend_prior | AK106: 6 | AM106: adf_termed_tier1_emp_24_1_spend_curr | AN106: 0 | AP106: adf_termed_tier1_emp_24_1_spend_prior | AQ106: 0 | AR106: N/A
AG107: ahf_termed_tier1_emp_0_spend_curr | AH107: 3 | AJ107: ahf_termed_tier1_emp_0_spend_prior | AK107: 4 | AM107: adf_termed_tier1_emp_0_spend_curr | AN107: 0 | AP107: adf_termed_tier1_emp_0_spend_prior | AQ107: 0 | AR107: N/A
AG108: ahf_termed_tier2_active_employee_curr | AH108: 0 | AJ108: ahf_termed_tier2_active_employee_prior | AK108: 0 | AM108: adf_termed_tier2_active_employee_curr | AN108: 0 | AP108: adf_termed_tier2_active_employee_prior | AQ108: 0 | AR108: N/A
AG109: ahf_termed_tier2_rollover_pr_year_curr | AH109: 0 | AJ109: ahf_termed_tier2_rollover_pr_year_prior | AK109: 0 | AM109: adf_termed_tier2_rollover_pr_year_curr | AN109: 0 | AP109: adf_termed_tier2_rollover_pr_year_prior | AQ109: 0 | AR109: N/A
AG110: ahf_termed_tier2_cr_year_initial_fund_curr | AH110: 0 | AJ110: ahf_termed_tier2_cr_year_initial_fund_prior | AK110: 0 | AM110: adf_termed_tier2_cr_year_initial_fund_curr | AN110: 0 | AP110: adf_termed_tier2_cr_year_initial_fund_prior | AQ110: 0 | AR110: N/A
AG111: ahf_termed_tier2_Incentive_fund_earned_curr | AH111: 0 | AJ111: ahf_termed_tier2_Incentive_fund_earned_prior | AK111: 0 | AM111: adf_termed_tier2_Incentive_fund_earned_curr | AN111: 0 | AP111: adf_termed_tier2_Incentive_fund_earned_prior | AQ111: 0 | AR111: N/A
AG112: ahf_termed_tier2_tot_fund_available_curr | AH112: 0 | AJ112: ahf_termed_tier2_tot_fund_available_prior | AK112: 0 | AM112: adf_termed_tier2_tot_fund_available_curr | AN112: 0 | AP112: adf_termed_tier2_tot_fund_available_prior | AQ112: 0 | AR112: N/A
AG113: ahf_termed_tier2_cr_claim_paid_with_cr_funds_curr | AH113: 0 | AJ113: ahf_termed_tier2_cr_claim_paid_with_cr_funds_prior | AK113: 0 | AM113: adf_termed_tier2_cr_claim_paid_with_cr_funds_curr | AN113: 0 | AP113: adf_termed_tier2_cr_claim_paid_with_cr_funds_prior | AQ113: 0 | AR113: N/A
AG114: ahf_termed_tier2_cr_clm_paid_with_rollover_funds_curr | AH114: 0 | AJ114: ahf_termed_tier2_cr_clm_paid_with_rollover_funds_prior | AK114: 0 | AM114: adf_termed_tier2_cr_clm_paid_with_rollover_funds_curr | AN114: 0 | AP114: adf_termed_tier2_cr_clm_paid_with_rollover_funds_prior | AQ114: 0 | AR114: N/A
AG115: ahf_termed_tier2_cr_fund_remaining_curr | AH115: 0 | AJ115: ahf_termed_tier2_cr_fund_remaining_prior | AK115: 0 | AM115: adf_termed_tier2_cr_fund_remaining_curr | AN115: 0 | AP115: adf_termed_tier2_cr_fund_remaining_prior | AQ115: 0 | AR115: N/A
AG116: ahf_termed_tier2_rollover_fund_remaining_curr | AH116: 0 | AJ116: ahf_termed_tier2_rollover_fund_remaining_prior | AK116: 0 | AM116: adf_termed_tier2_rollover_fund_remaining_curr | AN116: 0 | AP116: adf_termed_tier2_rollover_fund_remaining_prior | AQ116: 0 | AR116: N/A
AG117: ahf_termed_tier2_emp_100_spend_curr | AH117: 0 | AJ117: ahf_termed_tier2_emp_100_spend_prior | AK117: 0 | AM117: adf_termed_tier2_emp_100_spend_curr | AN117: 0 | AP117: adf_termed_tier2_emp_100_spend_prior | AQ117: 0 | AR117: N/A
AG118: ahf_termed_tier2_emp_99_75_spend_curr | AH118: 0 | AJ118: ahf_termed_tier2_emp_99_75_spend_prior | AK118: 0 | AM118: adf_termed_tier2_emp_99_75_spend_curr | AN118: 0 | AP118: adf_termed_tier2_emp_99_75_spend_prior | AQ118: 0 | AR118: N/A
AG119: ahf_termed_tier2_emp_74_50_spend_curr | AH119: 0 | AJ119: ahf_termed_tier2_emp_74_50_spend_prior | AK119: 0 | AM119: adf_termed_tier2_emp_74_50_spend_curr | AN119: 0 | AP119: adf_termed_tier2_emp_74_50_spend_prior | AQ119: 0 | AR119: N/A
AG120: ahf_termed_tier2_emp_49_25_spend_curr | AH120: 0 | AJ120: ahf_termed_tier2_emp_49_25_spend_prior | AK120: 0 | AM120: adf_termed_tier2_emp_49_25_spend_curr | AN120: 0 | AP120: adf_termed_tier2_emp_49_25_spend_prior | AQ120: 0 | AR120: N/A
AG121: ahf_termed_tier2_emp_24_1_spend_curr | AH121: 0 | AJ121: ahf_termed_tier2_emp_24_1_spend_prior | AK121: 0 | AM121: adf_termed_tier2_emp_24_1_spend_curr | AN121: 0 | AP121: adf_termed_tier2_emp_24_1_spend_prior | AQ121: 0 | AR121: N/A
AG122: ahf_termed_tier2_emp_0_spend_curr | AH122: 0 | AJ122: ahf_termed_tier2_emp_0_spend_prior | AK122: 0 | AM122: adf_termed_tier2_emp_0_spend_curr | AN122: 0 | AP122: adf_termed_tier2_emp_0_spend_prior | AQ122: 0 | AR122: N/A
AG123: ahf_termed_tier3_active_employee_curr | AH123: 0 | AJ123: ahf_termed_tier3_active_employee_prior | AK123: 0 | AM123: adf_termed_tier3_active_employee_curr | AN123: 0 | AP123: adf_termed_tier3_active_employee_prior | AQ123: 0 | AR123: N/A
AG124: ahf_termed_tier3_rollover_pr_year_curr | AH124: 0 | AJ124: ahf_termed_tier3_rollover_pr_year_prior | AK124: 0 | AM124: adf_termed_tier3_rollover_pr_year_curr | AN124: 0 | AP124: adf_termed_tier3_rollover_pr_year_prior | AQ124: 0 | AR124: N/A
AG125: ahf_termed_tier3_cr_year_initial_fund_curr | AH125: 0 | AJ125: ahf_termed_tier3_cr_year_initial_fund_prior | AK125: 0 | AM125: adf_termed_tier3_cr_year_initial_fund_curr | AN125: 0 | AP125: adf_termed_tier3_cr_year_initial_fund_prior | AQ125: 0 | AR125: N/A
AG126: ahf_termed_tier3_Incentive_fund_earned_curr | AH126: 0 | AJ126: ahf_termed_tier3_Incentive_fund_earned_prior | AK126: 0 | AM126: adf_termed_tier3_Incentive_fund_earned_curr | AN126: 0 | AP126: adf_termed_tier3_Incentive_fund_earned_prior | AQ126: 0 | AR126: N/A
AG127: ahf_termed_tier3_tot_fund_available_curr | AH127: 0 | AJ127: ahf_termed_tier3_tot_fund_available_prior | AK127: 0 | AM127: adf_termed_tier3_tot_fund_available_curr | AN127: 0 | AP127: adf_termed_tier3_tot_fund_available_prior | AQ127: 0 | AR127: N/A
AG128: ahf_termed_tier3_cr_claim_paid_with_cr_funds_curr | AH128: 0 | AJ128: ahf_termed_tier3_cr_claim_paid_with_cr_funds_prior | AK128: 0 | AM128: adf_termed_tier3_cr_claim_paid_with_cr_funds_curr | AN128: 0 | AP128: adf_termed_tier3_cr_claim_paid_with_cr_funds_prior | AQ128: 0 | AR128: N/A
AG129: ahf_termed_tier3_cr_clm_paid_with_rollover_funds_curr | AH129: 0 | AJ129: ahf_termed_tier3_cr_clm_paid_with_rollover_funds_prior | AK129: 0 | AM129: adf_termed_tier3_cr_clm_paid_with_rollover_funds_curr | AN129: 0 | AP129: adf_termed_tier3_cr_clm_paid_with_rollover_funds_prior | AQ129: 0 | AR129: N/A
AG130: ahf_termed_tier3_cr_fund_remaining_curr | AH130: 0 | AJ130: ahf_termed_tier3_cr_fund_remaining_prior | AK130: 0 | AM130: adf_termed_tier3_cr_fund_remaining_curr | AN130: 0 | AP130: adf_termed_tier3_cr_fund_remaining_prior | AQ130: 0 | AR130: N/A
AG131: ahf_termed_tier3_rollover_fund_remaining_curr | AH131: 0 | AJ131: ahf_termed_tier3_rollover_fund_remaining_prior | AK131: 0 | AM131: adf_termed_tier3_rollover_fund_remaining_curr | AN131: 0 | AP131: adf_termed_tier3_rollover_fund_remaining_prior | AQ131: 0 | AR131: N/A
AG132: ahf_termed_tier3_emp_100_spend_curr | AH132: 0 | AJ132: ahf_termed_tier3_emp_100_spend_prior | AK132: 0 | AM132: adf_termed_tier3_emp_100_spend_curr | AN132: 0 | AP132: adf_termed_tier3_emp_100_spend_prior | AQ132: 0 | AR132: N/A
AG133: ahf_termed_tier3_emp_99_75_spend_curr | AH133: 0 | AJ133: ahf_termed_tier3_emp_99_75_spend_prior | AK133: 0 | AM133: adf_termed_tier3_emp_99_75_spend_curr | AN133: 0 | AP133: adf_termed_tier3_emp_99_75_spend_prior | AQ133: 0 | AR133: N/A
AG134: ahf_termed_tier3_emp_74_50_spend_curr | AH134: 0 | AJ134: ahf_termed_tier3_emp_74_50_spend_prior | AK134: 0 | AM134: adf_termed_tier3_emp_74_50_spend_curr | AN134: 0 | AP134: adf_termed_tier3_emp_74_50_spend_prior | AQ134: 0 | AR134: N/A
AG135: ahf_termed_tier3_emp_49_25_spend_curr | AH135: 0 | AJ135: ahf_termed_tier3_emp_49_25_spend_prior | AK135: 0 | AM135: adf_termed_tier3_emp_49_25_spend_curr | AN135: 0 | AP135: adf_termed_tier3_emp_49_25_spend_prior | AQ135: 0 | AR135: N/A
AG136: ahf_termed_tier3_emp_24_1_spend_curr | AH136: 0 | AJ136: ahf_termed_tier3_emp_24_1_spend_prior | AK136: 0 | AM136: adf_termed_tier3_emp_24_1_spend_curr | AN136: 0 | AP136: adf_termed_tier3_emp_24_1_spend_prior | AQ136: 0 | AR136: N/A
AG137: ahf_termed_tier3_emp_0_spend_curr | AH137: 0 | AJ137: ahf_termed_tier3_emp_0_spend_prior | AK137: 0 | AM137: adf_termed_tier3_emp_0_spend_curr | AN137: 0 | AP137: adf_termed_tier3_emp_0_spend_prior | AQ137: 0 | AR137: N/A
AG138: ahf_termed_tier4_active_employee_curr | AH138: 2 | AJ138: ahf_termed_tier4_active_employee_prior | AK138: 3 | AM138: adf_termed_tier4_active_employee_curr | AN138: 0 | AP138: adf_termed_tier4_active_employee_prior | AQ138: 0 | AR138: N/A
AG139: ahf_termed_tier4_rollover_pr_year_curr | AH139: 1201.32 | AJ139: ahf_termed_tier4_rollover_pr_year_prior | AK139: 583.6 | AM139: adf_termed_tier4_rollover_pr_year_curr | AN139: 0 | AP139: adf_termed_tier4_rollover_pr_year_prior | AQ139: 0 | AR139: N/A
AG140: ahf_termed_tier4_cr_year_initial_fund_curr | AH140: 3000 | AJ140: ahf_termed_tier4_cr_year_initial_fund_prior | AK140: 4500 | AM140: adf_termed_tier4_cr_year_initial_fund_curr | AN140: 0 | AP140: adf_termed_tier4_cr_year_initial_fund_prior | AQ140: 0 | AR140: N/A
AG141: ahf_termed_tier4_Incentive_fund_earned_curr | AH141: 0 | AJ141: ahf_termed_tier4_Incentive_fund_earned_prior | AK141: 0 | AM141: adf_termed_tier4_Incentive_fund_earned_curr | AN141: 0 | AP141: adf_termed_tier4_Incentive_fund_earned_prior | AQ141: 0 | AR141: N/A
AG142: ahf_termed_tier4_tot_fund_available_curr | AH142: 4201.32 | AJ142: ahf_termed_tier4_tot_fund_available_prior | AK142: 5083.6 | AM142: adf_termed_tier4_tot_fund_available_curr | AN142: 0 | AP142: adf_termed_tier4_tot_fund_available_prior | AQ142: 0 | AR142: N/A
AG143: ahf_termed_tier4_cr_claim_paid_with_cr_funds_curr | AH143: 50.63 | AJ143: ahf_termed_tier4_cr_claim_paid_with_cr_funds_prior | AK143: 1701.74 | AM143: adf_termed_tier4_cr_claim_paid_with_cr_funds_curr | AN143: 0 | AP143: adf_termed_tier4_cr_claim_paid_with_cr_funds_prior | AQ143: 0 | AR143: N/A
AG144: ahf_termed_tier4_cr_clm_paid_with_rollover_funds_curr | AH144: 0 | AJ144: ahf_termed_tier4_cr_clm_paid_with_rollover_funds_prior | AK144: 0 | AM144: adf_termed_tier4_cr_clm_paid_with_rollover_funds_curr | AN144: 0 | AP144: adf_termed_tier4_cr_clm_paid_with_rollover_funds_prior | AQ144: 0 | AR144: N/A
AG145: ahf_termed_tier4_cr_fund_remaining_curr | AH145: 2949.37 | AJ145: ahf_termed_tier4_cr_fund_remaining_prior | AK145: 2798.26 | AM145: adf_termed_tier4_cr_fund_remaining_curr | AN145: 0 | AP145: adf_termed_tier4_cr_fund_remaining_prior | AQ145: 0 | AR145: N/A
AG146: ahf_termed_tier4_rollover_fund_remaining_curr | AH146: 1201.32 | AJ146: ahf_termed_tier4_rollover_fund_remaining_prior | AK146: 583.6 | AM146: adf_termed_tier4_rollover_fund_remaining_curr | AN146: 0 | AP146: adf_termed_tier4_rollover_fund_remaining_prior | AQ146: 0 | AR146: N/A
AG147: ahf_termed_tier4_emp_100_spend_curr | AH147: 0 | AJ147: ahf_termed_tier4_emp_100_spend_prior | AK147: 0 | AM147: adf_termed_tier4_emp_100_spend_curr | AN147: 0 | AP147: adf_termed_tier4_emp_100_spend_prior | AQ147: 0 | AR147: N/A
AG148: ahf_termed_tier4_emp_99_75_spend_curr | AH148: 0 | AJ148: ahf_termed_tier4_emp_99_75_spend_prior | AK148: 1 | AM148: adf_termed_tier4_emp_99_75_spend_curr | AN148: 0 | AP148: adf_termed_tier4_emp_99_75_spend_prior | AQ148: 0 | AR148: N/A
AG149: ahf_termed_tier4_emp_74_50_spend_curr | AH149: 0 | AJ149: ahf_termed_tier4_emp_74_50_spend_prior | AK149: 0 | AM149: adf_termed_tier4_emp_74_50_spend_curr | AN149: 0 | AP149: adf_termed_tier4_emp_74_50_spend_prior | AQ149: 0 | AR149: N/A
AG150: ahf_termed_tier4_emp_49_25_spend_curr | AH150: 0 | AJ150: ahf_termed_tier4_emp_49_25_spend_prior | AK150: 1 | AM150: adf_termed_tier4_emp_49_25_spend_curr | AN150: 0 | AP150: adf_termed_tier4_emp_49_25_spend_prior | AQ150: 0 | AR150: N/A
AG151: ahf_termed_tier4_emp_24_1_spend_curr | AH151: 1 | AJ151: ahf_termed_tier4_emp_24_1_spend_prior | AK151: 1 | AM151: adf_termed_tier4_emp_24_1_spend_curr | AN151: 0 | AP151: adf_termed_tier4_emp_24_1_spend_prior | AQ151: 0 | AR151: N/A
AG152: ahf_termed_tier4_emp_0_spend_curr | AH152: 1 | AJ152: ahf_termed_tier4_emp_0_spend_prior | AK152: 0 | AM152: adf_termed_tier4_emp_0_spend_curr | AN152: 0 | AP152: adf_termed_tier4_emp_0_spend_prior | AQ152: 0 | AR152: N/A
AR153: N/A
AR154: N/A
AR155: N/A
AR156: N/A
AR157: N/A
AR158: N/A
AR159: N/A
AR160: N/A
AR161: N/A
AR162: N/A
AR163: N/A
AR164: N/A
AR165: N/A
AR166: N/A
AR167: N/A
AR168: N/A
AR169: N/A
AR170: N/A
AR171: N/A
AR172: N/A
AR173: N/A
AR174: N/A
AR175: N/A
AR176: N/A
AR177: N/A
AR178: N/A
AR179: N/A
AR180: N/A
AR181: N/A
AR182: N/A
AR183: N/A
AR184: N/A
AR185: N/A
AR186: N/A
AR187: N/A
AR188: N/A
AR189: N/A
AR190: N/A
AR191: N/A
AR192: N/A
AR193: N/A
AR194: N/A
AR195: N/A
AR196: N/A
AR197: N/A
AR198: N/A
AR199: N/A
AR200: N/A
AR201: N/A
... 84 more rows

Sheet ePSM Medical Data Page (hidden)
A1: MedicalCurrentClaim Documentation | B1: MedicalCurrentClaim DataMarkers | D1: MedicalPriorClaim Documentation | E1: MedicalPriorClaim DataMarkers | G1: MedicalCurrentClaim Demographics Vector Documentation | H1: MedicalCurrentClaim Demographics Vector DataMarkers | J1: MedicalPriorClaim Demographics Vector Documentation | K1: MedicalPriorClaim Demographics Vector DataMarkers | M1: DentalCurrentClaim Demographics Vector Documentation | N1: DentalCurrentClaim Demographics Vector DataMarkers | P1: DentalPriorClaim Demographics Vector Documentation | Q1: DentalPriorClaim Demographics Vector DataMarkers | S1: MedicalCurrentClaim Provider Vector Documentation | T1: MedicalCurrentClaim Provider Vector DataMarkers | V1: MedicalPriorClaim Provider Vector Documentation | W1: MedicalPriorClaim Provider Vector DataMarkers | Y1: MedicalCurrentClaim MedCost Vector Documentation | Z1: MedicalCurrentClaim MedCost Vector DataMarkers | AB1: MedicalPriorClaim MedCost Vector Documentation | AC1: MedicalPriorClaimMedCost Vector DataMarkers | AE1: MedicalCurrentClaim MDC Vector Documentation | AF1: MedicalCurrentClaim MDC Vector DataMarkers | AH1: MedicalPriorClaim MDC Vector Documentation | AI1: MedicalPriorClaimMedCost Vector DataMarkers | AK1: DentalCurrentClaim Key Results Vector Documentation | AL1: DentalCurrentClaim Key Results Vector DataMarkers | AN1: DentalPriorClaim Key Results Vector Documentation | AO1: DentalPriorClaim Key Results Vector DataMarkers | AQ1: DentalCurrentClaim Prov Net Vector Documentation | AR1: DentalCurrentClaim Prov Net Vector DataMarkers | AT1: DentalPriorClaim Prov Net Vector Documentation | AU1: DentalPriorClaim Prov Net Vector DataMarkers | AW1: CurrentCapitation Documentation | AX1: CurrentCapitation DataMarkers | AZ1: PriorCapitation Documentation | BA1: PriorCapitation DataMarkers | BC1: MDC Descriptions Documentation | BD1: MDC Descriptions DataMarkers | BE1: Trim (MDC-Code) | BF1: Trim (MDC-Code description) | BH1: HPD Health Profile Documentation | BI1: HPD Health Profile DataMarkers | BK1: HPD Health Profile Documentation | BL1: HPD Health Profile DataMarkers | BN1: AHFKeyResultsCurrentClaim Documentation | BO1: AHFKeyResultsCurrentClaim DataMarkers | BQ1: AHFKeyResultsPriorClaim Documentation | BR1: AHFKeyResultsPriorClaim DataMarkers | BT1: AHFDemographicsCurrentClaim Documentation | BU1: AHFDemographicsCurrentClaim DataMarkers | BW1: AHFDemographicsPriorClaim Documentation | BX1: AHFDemographicsPriorClaim DataMarkers | BZ1: AHFMCCCurrentClaim Documentation | CA1: AHFMCCCurrentClaim DataMarkers | CC1: AHFMCCPriorClaim Documentation | CD1: AHFMCCPriorClaim DataMarkers | CF1: AexcelExpByTierCurrentClaim Documentation | CG1: AexcelExpByTierCurrentClaim DataMarkers | CI1: AexcelExpByTierPriorClaim Documentation | CJ1: AexcelExpByTierPriorClaim DataMarkers | CL1: AexcelMedCostCatCurrentClaim Documentation | CM1: AexcelMedCostCatCurrentClaim DataMarkers | CO1: AexcelMedCostCatPriorClaim Documentation | CP1: AexcelMedCostCatPriorClaim DataMarkers | CR1: AexcelMDCCurrentClaim Documentation | CS1: AexcelMDCCurrentClaim DataMarkers | CU1: AexcelMDCPriorClaim Documentation | CV1: AexcelMDCPriorClaim DataMarkers | CX1: AexcelProfCurrentClaim Documentation | CY1: AexcelProfCurrentClaim DataMarkers | DA1: AexcelProfPriorClaim Documentation | DB1: AexcelProfPriorClaim DataMarkers | DD1: AHFClaimCurrentClaim Documentation | DE1: AHFClaimCurrentClaim DataMarkers | DG1: AHFClaimPriorClaim Documentation | DH1: AHFClaimPriorClaim DataMarkers | DJ1: AHFClaimActivityCurrentClaimActivity Documentation | DK1: AHFClaimActivityCurrentClaimActivity DataMarkers | DM1: AHFClaimActivityPriorClaimActivity Documentation | DN1: AHFClaimActivityPriorClaimActivity DataMarkers | DP1: ADFClaimCurrentClaim Documentation | DQ1: ADFClaimCurrentClaim DataMarkers | DS1: ADFClaimPriorClaim Documentation | DT1: ADFClaimPriorClaim DataMarkers | DW1: FI CommunityRatedMedicareCurrent Doc | DY1: FI CommunityRatedMedicareCurrent DataMarkers | EA1: FI CommunityRatedMedicarePrior Doc | EB1: FI CommunityRatedMedicarePrior DataMarkers | ED1: SI P4PClaimCurrent Doc | EF1: SI P4PClaimCurrent DataMarkers
A3: Med_paid_amt_curr | D3: Med_paid_amt_prior | G3: Med_claim_count_female_0_19_curr | J3: Med_claim_count_female_0_19_prior | S3: Med_inp_billed_network_curr | V3: Med_inp_billed_network_prior | Y3: Med_paid_amt_inp_days_curr | AB3: Med_paid_amt_inp_days_prior | AE3: Med_MDC_cd_00_curr | AH3: Med_MDC_cd_00_prior | AK3: Dental_preventative_paid_amt_curr | AN3: Dental_preventative_paid_amt_prior | AQ3: Dental_services_in_network_curr | AT3: Dental_services_in_network_prior | AW3: Cap_capitation_amt_curr | AZ3: Cap_capitation_amt_prior | BC3: MDC_CD_00 | BD3: 00 - Unclassifiable | BE3: =LEFT(MDC_CD_00,2) -> 00 | BF3: =MID(MDC_CD_00,6,50) -> Unclassifiable | BH3: HPD_number_claimants_total_curr | BK3: HPD_number_claimants_total_prior | BN3: AHF_Med_paid_amt_curr | BQ3: AHF_Med_paid_amt_prior | BR3: 3760132.35 | BT3: AHF_Med_claim_count_female_0_19_curr | BW3: AHF_Med_claim_count_female_0_19_prior | BX3: 113 | BZ3: AHF_Med_count_inp_curr | CC3: AHF_Med_count_inp_prior | CD3: 52 | CF3: aex_Tier1_Claimants_curr | CI3: aex_Tier1_Claimants_prior | CJ3: 0 | CL3: aex_Tier1_paid_amt_inp_days_curr | CO3: aex_Tier1_paid_amt_inp_days_prior | CP3: 0 | CR3: aex_Med_MDC_cd_00_curr | CU3: aex_Med_MDC_cd_00_prior | CV3: 0 | CX3: aex_tier1_paid_amt_tot_curr | DA3: aex_tier1_paid_amt_tot_prior | DB3: 0 | DD3: ahf_act_emp_fund_paid_curr | DE3: 11635.56 | DG3: ahf_act_emp_fund_paid_prior | DH3: 13089.29 | DJ3: ahf_medical_expenses_curr | DK3: 680107.04 | DL3: ahf_medical_expenses_prior | DM3: 668451 | DP3: adf_act_emp_fund_paid_curr | DQ3: 0 | DS3: adf_act_emp_fund_paid_prior | DT3: 0 | DU3: N/A | DW3: Medicare_Billed_female_mem_0_64_curr | EA3: Medicare_Billed_female_mem_0_64_prior | ED3: P4P_claim_paid_curr | EF3: P4P_claim_paid_curr
A4: Med_inp_paid_amt_curr | D4: Med_inp_paid_amt_prior | G4: Med_paid_amt_female_0_19_curr | J4: Med_paid_amt_female_0_19_prior | M4: Dental_paid_amt_female_0_19_curr | P4: Dental_paid_amt_female_0_19_prior | S4: Med_inp_network_discount_curr | V4: Med_inp_network_discount_prior | Y4: Med_count_inp_days_curr | AB4: Med_count_inp_days_prior | AE4: Med_MDC_paid_00_curr | AH4: Med_MDC_paid_00_prior | AK4: Dental_preventative_svcs_curr | AN4: Dental_preventative_svcs_prior | AQ4: Dental_net_submitted_in_network_curr | AT4: Dental_net_submitted_in_network_prior | AW4: Adam_capitation_amt_curr | AZ4: Adam_capitation_amt_prior | BC4: MDC_CD_01 | BD4: 01 - Nervous System | BE4: =LEFT(MDC_CD_01,2) -> 01 | BF4: =MID(MDC_CD_01,6,50) -> Nervous System | BH4: HPD_paid_amt_total_curr | BK4: HPD_paid_amt_total_prior | BN4: AHF_Med_fund_paid_amt_curr | BQ4: AHF_Med_fund_paid_amt_prior | BR4: 658406.54 | BT4: AHF_Med_allowed_amt_female_0_19_curr | BW4: AHF_Med_allowed_amt_female_0_19_prior | BX4: 109856.32 | BZ4: AHF_Med_paid_amt_inp_curr | CC4: AHF_Med_paid_amt_inp_prior | CD4: 1199223.24 | CF4: aex_Tier1_Paid_Amt_curr | CI4: aex_Tier1_Paid_Amt_prior | CJ4: 0 | CL4: aex_Tier1_Util_inp_days_curr | CO4: aex_Tier1_Util_inp_days_prior | CP4: 0 | CR4: aex_inp_Tier1_paid_amt_00_curr | CU4: aex_inp_Tier1_paid_amt_00_prior | CV4: 0 | CX4: aex_tier1_utlilization_tot_curr | DA4: aex_tier1_utlilization_tot_prior | DB4: 0 | DD4: ahf_act_emp_plus_1_fund_paid_curr | DE4: 0 | DG4: ahf_act_emp_plus_1_fund_paid_prior | DH4: 0 | DJ4: ahf_dental_expenses_curr | DK4: 0 | DL4: ahf_dental_expenses_prior | DM4: 0 | DP4: adf_act_emp_plus_1_fund_paid_curr | DQ4: 0 | DS4: adf_act_emp_plus_1_fund_paid_prior | DT4: 0 | DU4: N/A | DW4: Medicare_Billed_female_mem_65_69_curr | EA4: Medicare_Billed_female_mem_65_69_prior
A5: Med_amb_paid_amt_curr | D5: Med_amb_paid_amt_prior | G5: Med_claim_count_female_20_44_curr | J5: Med_claim_count_female_20_44_prior | M5: Dental_paid_amt_female_20_44_curr | P5: Dental_paid_amt_female_20_44_prior | S5: Med_amb_billed_network_curr | V5: Med_amb_billed_network_prior | Y5: Med_paid_amt_amb_visits_curr | AB5: Med_paid_amt_amb_visits_prior | AE5: Med_MDC_inp_paid_00_curr | AH5: Med_MDC_inp_paid_00_prior | AK5: Dental_basic_paid_amt_curr | AN5: Dental_basic_paid_amt_prior | AQ5: Dental_network_discount_in_network_curr | AT5: Dental_network_discount_in_network_prior | AW5: Adam_premium_amt_curr | AZ5: Adam_premium_amt_prior | BC5: MDC_CD_02 | BD5: 02 - Eye | BE5: =LEFT(MDC_CD_02,2) -> 02 | BF5: =MID(MDC_CD_02,6,50) -> Eye | BH5: HPD_total_population_curr | BK5: HPD_total_population_prior | BN5: AHF_Med_inp_paid_amt_curr | BQ5: AHF_Med_inp_paid_amt_prior | BR5: 1405050.87 | BT5: AHF_Med_emp_paid_amt_female_0_19_curr | BW5: AHF_Med_emp_paid_amt_female_0_19_prior | BX5: 55981.09 | BZ5: AHF_Med_fund_paid_amt_inp_curr | CC5: AHF_Med_fund_paid_amt_inp_prior | CD5: 4146.95 | CF5: aex_Tier1_Inp_Paid_Amt_curr | CI5: aex_Tier1_Inp_Paid_Amt_prior | CJ5: 0 | CL5: aex_Tier2_paid_amt_inp_days_curr | CO5: aex_Tier2_paid_amt_inp_days_prior | CP5: 0 | CR5: aex_Amb_Tier1_paid_amt_00_curr | CU5: aex_Amb_Tier1_paid_amt_00_prior | CV5: 0 | CX5: aex_tier2_paid_amt_tot_curr | DA5: aex_tier2_paid_amt_tot_prior | DB5: 0 | DD5: ahf_act_emp_plus_2_fund_paid_curr | DE5: 0 | DG5: ahf_act_emp_plus_2_fund_paid_prior | DH5: 0 | DP5: adf_act_emp_plus_2_fund_paid_curr | DQ5: 0 | DS5: adf_act_emp_plus_2_fund_paid_prior | DT5: 0 | DU5: N/A | DW5: Medicare_Billed_female_mem_70_74_curr | EA5: Medicare_Billed_female_mem_70_74_prior
A6: Med_admit_count_curr | D6: Med_admit_count_prior | G6: Med_paid_amt_female_20_44_curr | J6: Med_paid_amt_female_20_44_prior | M6: Dental_paid_amt_female_45_64_curr | P6: Dental_paid_amt_female_45_64_prior | S6: Med_amb_network_discount_curr | V6: Med_amb_network_discount_prior | Y6: Med_count_amb_visits_curr | AB6: Med_count_amb_visits_prior | AE6: Med_MDC_amb_paid_00_curr | AH6: Med_MDC_amb_paid_00_prior | AK6: Dental_basic_svcs_curr | AN6: Dental_basic_svcs_prior | AQ6: Dental_rc_savings_in_network_curr | AT6: Dental_rc_savings_in_network_prior | BC6: MDC_CD_03 | BD6: 03 - Ear, Nose and Throat | BE6: =LEFT(MDC_CD_03,2) -> 03 | BF6: =MID(MDC_CD_03,6,50) -> Ear, Nose and Throat | BH6: HPD_number_claimants_asthma_curr | BK6: HPD_number_claimants_asthma_prior | BN6: AHF_Med_amb_paid_amt_curr | BQ6: AHF_Med_amb_paid_amt_prior | BR6: 2355081.48 | BT6: AHF_Med_fund_paid_amt_female_0_19_curr | BW6: AHF_Med_fund_paid_amt_female_0_19_prior | BX6: 31428.33 | BZ6: AHF_Med_count_amb_curr | CC6: AHF_Med_count_amb_prior | CD6: 185 | CF6: aex_Tier1_Amb_Paid_Amt_curr | CI6: aex_Tier1_Amb_Paid_Amt_prior | CJ6: 0 | CL6: aex_Tier2_Util_inp_days_curr | CO6: aex_Tier2_Util_inp_days_prior | CP6: 0 | CR6: aex_inp_Tier1_admits_00_curr | CU6: aex_inp_Tier1_admits_00_prior | CV6: 0 | CX6: aex_tier2_utlilization_tot_curr | DA6: aex_tier2_utlilization_tot_prior | DB6: 0 | DD6: ahf_act_emp_plus_fam_fund_paid_curr | DE6: 1182.03 | DG6: ahf_act_emp_plus_fam_fund_paid_prior | DH6: 3346.36 | DP6: adf_act_emp_plus_fam_fund_paid_curr | DQ6: 0 | DS6: adf_act_emp_plus_fam_fund_paid_prior | DT6: 0 | DU6: N/A | DW6: Medicare_Billed_female_mem_75_79_curr | EA6: Medicare_Billed_female_mem_75_79_prior
A7: Med_days_count_curr | D7: Med_days_count_prior | G7: Med_claim_count_female_45_64_curr | J7: Med_claim_count_female_45_64_prior | M7: Dental_paid_amt_female_65_over_curr | P7: Dental_paid_amt_female_65_over_prior | S7: Med_non_facility_billed_network_curr | V7: Med_non_facility_billed_network_prior | Y7: Med_paid_amt_er_visits_curr | AB7: Med_paid_amt_er_visits_prior | AE7: Med_MDC_admits_00_curr | AH7: Med_MDC_admits_00_prior | AK7: Dental_major_paid_amt_curr | AN7: Dental_major_paid_amt_prior | AQ7: Dental_services_out_network_curr | AT7: Dental_services_out_network_prior | BC7: MDC_CD_04 | BD7: 04 - Respiratory System | BE7: =LEFT(MDC_CD_04,2) -> 04 | BF7: =MID(MDC_CD_04,6,50) -> Respiratory System | BH7: HPD_paid_amt_asthma_curr | BK7: HPD_paid_amt_asthma_prior | BN7: AHF_Med_days_count_curr | BQ7: AHF_Med_days_count_prior | BR7: 338 | BT7: AHF_Med_paid_amt_female_0_19_curr | BW7: AHF_Med_paid_amt_female_0_19_prior | BX7: 85317.57 | BZ7: AHF_Med_paid_amt_amb_curr | CC7: AHF_Med_paid_amt_amb_prior | CD7: 511158.84 | CF7: aex_Tier2_Claimants_curr | CI7: aex_Tier2_Claimants_prior | CJ7: 0 | CL7: aex_Tier3_paid_amt_inp_days_curr | CO7: aex_Tier3_paid_amt_inp_days_prior | CP7: 0 | CR7: aex_inp_Tier1_days_00_curr | CU7: aex_inp_Tier1_days_00_prior | CV7: 0 | CX7: aex_tier3_paid_amt_tot_curr | DA7: aex_tier3_paid_amt_tot_prior | DB7: 0 | DD7: ahf_act_total_fund_paid_curr | DE7: 12817.59 | DG7: ahf_act_total_fund_paid_prior | DH7: 16435.65 | DP7: adf_act_total_fund_paid_curr | DQ7: 0 | DS7: adf_act_total_fund_paid_prior | DT7: 0 | DU7: N/A | DW7: Medicare_Billed_female_mem_80_84_curr | EA7: Medicare_Billed_female_mem_80_84_prior
A8: Med_surgery_count_curr | D8: Med_surgery_count_prior | G8: Med_paid_amt_female_45_64_curr | J8: Med_paid_amt_female_45_64_prior | M8: Dental_paid_amt_male_0_19_curr | P8: Dental_paid_amt_male_0_19_prior | S8: Med_non_facility_network_discount_curr | V8: Med_non_facility_network_discount_prior | Y8: Med_count_er_visits_curr | AB8: Med_count_er_visits_prior | AE8: Med_MDC_days_00_curr | AH8: Med_MDC_days_00_prior | AK8: Dental_major_svcs_curr | AN8: Dental_major_svcs_prior | AQ8: Dental_net_submitted_out_network_curr | AT8: Dental_net_submitted_out_network_prior | BC8: MDC_CD_05 | BD8: 05 - Circulatory System | BE8: =LEFT(MDC_CD_05,2) -> 05 | BF8: =MID(MDC_CD_05,6,50) -> Circulatory System | BH8: HPD_number_claimants_heart_failure_curr | BK8: HPD_number_claimants_heart_failure_prior | BN8: AHF_Med_admit_count_curr | BQ8: AHF_Med_admit_count_prior | BR8: 50 | BT8: AHF_Med_claim_count_female_20_44_curr | BW8: AHF_Med_claim_count_female_20_44_prior | BX8: 409 | BZ8: AHF_Med_fund_paid_amt_amb_curr | CC8: AHF_Med_fund_paid_amt_amb_prior | CD8: 27996.94 | CF8: aex_Tier2_Paid_Amt_curr | CI8: aex_Tier2_Paid_Amt_prior | CJ8: 0 | CL8: aex_Tier3_Util_inp_days_curr | CO8: aex_Tier3_Util_inp_days_prior | CP8: 0 | CR8: aex_Amb_Tier1_claimants_00_curr | CU8: aex_Amb_Tier1_claimants_00_prior | CV8: 0 | CX8: aex_tier3_utlilization_tot_curr | DA8: aex_tier3_utlilization_tot_prior | DB8: 0 | DD8: ahf_term_emp_fund_paid_curr | DE8: 0 | DG8: ahf_term_emp_fund_paid_prior | DH8: 170.92 | DP8: adf_term_emp_fund_paid_curr | DQ8: 0 | DS8: adf_term_emp_fund_paid_prior | DT8: 0 | DU8: N/A | DW8: Medicare_Billed_female_mem_85_over_curr | EA8: Medicare_Billed_female_mem_85_over_prior
A9: Med_inp_surgery_count_curr | D9: Med_inp_surgery_count_prior | G9: Med_claim_count_female_65_over_curr | J9: Med_claim_count_female_65_over_prior | M9: Dental_paid_amt_male_20_44_curr | P9: Dental_paid_amt_male_20_44_prior | S9: Med_total_billed_network_curr | V9: Med_total_billed_network_prior | Y9: Med_paid_amt_spec_office_visits_curr | AB9: Med_paid_amt_spec_office_visits_prior | AE9: Med_MDC_claimants_00_curr | AH9: Med_MDC_claimants_00_prior | AK9: Dental_orthodonic_paid_amt_curr | AN9: Dental_orthodonic_paid_amt_prior | AQ9: Dental_network_discount_out_network_curr | AT9: Dental_network_discount_out_network_prior | BC9: MDC_CD_06 | BD9: 06 - Digestive System | BE9: =LEFT(MDC_CD_06,2) -> 06 | BF9: =MID(MDC_CD_06,6,50) -> Digestive System | BH9: HPD_paid_amt_heart_failure_curr | BK9: HPD_paid_amt_heart_failure_prior | BN9: AHF_Med_surgery_count_curr | BQ9: AHF_Med_surgery_count_prior | BR9: 574 | BT9: AHF_Med_allowed_amt_female_20_44_curr | BW9: AHF_Med_allowed_amt_female_20_44_prior | BX9: 618249.26 | BZ9: AHF_Med_count_er_curr | CC9: AHF_Med_count_er_prior | CD9: 174 | CF9: aex_Tier2_Inp_Paid_Amt_curr | CI9: aex_Tier2_Inp_Paid_Amt_prior | CJ9: 0 | CL9: aex_OON_paid_amt_inp_days_curr | CO9: aex_OON_paid_amt_inp_days_prior | CP9: 0 | CR9: aex_inp_Tier2_paid_amt_00_curr | CU9: aex_inp_Tier2_paid_amt_00_prior | CV9: 0 | CX9: aex_oon_paid_amt_tot_curr | DA9: aex_oon_paid_amt_tot_prior | DB9: 0 | DD9: ahf_term_emp_plus_1_fund_paid_curr | DE9: 0 | DG9: ahf_term_emp_plus_1_fund_paid_prior | DH9: 0 | DP9: adf_term_emp_plus_1_fund_paid_curr | DQ9: 0 | DS9: adf_term_emp_plus_1_fund_paid_prior | DT9: 0 | DU9: N/A | DW9: Medicare_Billed_male_mem_0_64_curr | EA9: Medicare_Billed_male_mem_0_64_prior
A10: Med_amb_surgery_count_curr | D10: Med_amb_surgery_count_prior | G10: Med_paid_amt_female_65_over_curr | J10: Med_paid_amt_female_65_over_prior | M10: Dental_paid_amt_male_45_64_curr | P10: Dental_paid_amt_male_45_64_prior | S10: Med_total_network_discount_curr | V10: Med_total_network_discount_prior | Y10: Med_count_spec_office_visits_curr | AB10: Med_count_spec_office_visits_prior | AE10: Med_MDC_cd_01_curr | AH10: Med_MDC_cd_01_prior | AK10: Dental_orthodonic_svcs_curr | AN10: Dental_orthodonic_svcs_prior | AQ10: Dental_rc_savings_out_network_curr | AT10: Dental_rc_savings_out_network_prior | BC10: MDC_CD_07 | BD10: 07 - Hepatobiliary Sys/Pancreas | BE10: =LEFT(MDC_CD_07,2) -> 07 | BF10: =MID(MDC_CD_07,6,50) -> Hepatobiliary Sys/Pancreas | BH10: HPD_number_claimants_coronary_artery_disease_curr | BK10: HPD_number_claimants_coronary_artery_disease_prior | BN10: AHF_Med_inp_surgery_count_curr | BQ10: AHF_Med_inp_surgery_count_prior | BR10: 50 | BT10: AHF_Med_emp_paid_amt_female_20_44_curr | BW10: AHF_Med_emp_paid_amt_female_20_44_prior | BX10: 212375.65 | BZ10: AHF_Med_paid_amt_er_curr | CC10: AHF_Med_paid_amt_er_prior | CD10: 298330.13 | CF10: aex_Tier2_Amb_Paid_Amt_curr | CI10: aex_Tier2_Amb_Paid_Amt_prior | CJ10: 0 | CL10: aex_OON_Util_inp_days_curr | CO10: aex_OON_Util_inp_days_prior | CP10: 0 | CR10: aex_Amb_Tier2_paid_amt_00_curr | CU10: aex_Amb_Tier2_paid_amt_00_prior | CV10: 0 | CX10: aex_oon_utlilization_tot_curr | DA10: aex_oon_utlilization_tot_prior | DB10: 0 | DD10: ahf_term_emp_plus_2_fund_paid_curr | DE10: 0 | DG10: ahf_term_emp_plus_2_fund_paid_prior | DH10: 0 | DP10: adf_term_emp_plus_2_fund_paid_curr | DQ10: 0 | DS10: adf_term_emp_plus_2_fund_paid_prior | DT10: 0 | DU10: N/A | DW10: Medicare_Billed_male_mem_65_69_curr | EA10: Medicare_Billed_male_mem_65_69_prior
A11: Med_office_visits_count_curr | D11: Med_office_visits_count_prior | G11: Med_claim_count_male_0_19_curr | J11: Med_claim_count_male_0_19_prior | M11: Dental_paid_amt_male_65_over_curr | P11: Dental_paid_amt_male_65_over_prior | Y11: Med_paid_amt_prim_off_visits_curr | AB11: Med_paid_amt_prim_off_visits_prior | AE11: Med_MDC_paid_01_curr | AH11: Med_MDC_paid_01_prior | AK11: Dental_other_paid_amt_curr | AN11: Dental_other_paid_amt_prior | BC11: MDC_CD_08 | BD11: 08 - Musculoskeletal/Connective | BE11: =LEFT(MDC_CD_08,2) -> 08 | BF11: =MID(MDC_CD_08,6,50) -> Musculoskeletal/Connective | BH11: HPD_paid_amt_coronary_artery_disease_curr | BK11: HPD_paid_amt_coronary_artery_disease_prior | BN11: AHF_Med_amb_surgery_count_curr | BQ11: AHF_Med_amb_surgery_count_prior | BR11: 525 | BT11: AHF_Med_fund_paid_amt_female_20_44_curr | BW11: AHF_Med_fund_paid_amt_female_20_44_prior | BX11: 133254.03 | BZ11: AHF_Med_fund_paid_amt_er_curr | CC11: AHF_Med_fund_paid_amt_er_prior | CD11: 69111.73 | CF11: aex_Tier3_Claimants_curr | CI11: aex_Tier3_Claimants_prior | CJ11: 0 | CL11: aex_Tier1_paid_amt_amb_visits_curr | CO11: aex_Tier1_paid_amt_amb_visits_prior | CP11: 0 | CR11: aex_inp_Tier2_admits_00_curr | CU11: aex_inp_Tier2_admits_00_prior | CV11: 0 | DD11: ahf_term_emp_plus_fam_fund_paid_curr | DE11: 0 | DG11: ahf_term_emp_plus_fam_fund_paid_prior | DH11: 0 | DP11: adf_term_emp_plus_fam_fund_paid_curr | DQ11: 0 | DS11: adf_term_emp_plus_fam_fund_paid_prior | DT11: 0 | DU11: N/A | DW11: Medicare_Billed_male_mem_70_74_curr | EA11: Medicare_Billed_male_mem_70_74_prior
A12: Med_er_visits_count_curr | D12: Med_er_visits_count_prior | G12: Med_paid_amt_male_0_19_curr | J12: Med_paid_amt_male_0_19_prior | M12: Dental_paid_amt_unknown_0_19_curr | P12: Dental_paid_amt_unknown_0_19_prior | Y12: Med_count_prim_off_visits_curr | AB12: Med_count_prim_off_visits_prior | AE12: Med_MDC_inp_paid_01_curr | AH12: Med_MDC_inp_paid_01_prior | AK12: Dental_other_svcs_curr | AN12: Dental_other_svcs_prior | BC12: MDC_CD_09 | BD12: 09 - Skin, Subcutaneous, Breast | BE12: =LEFT(MDC_CD_09,2) -> 09 | BF12: =MID(MDC_CD_09,6,50) -> Skin, Subcutaneous, Breast | BH12: HPD_number_claimants_diabetes_disease_curr | BK12: HPD_number_claimants_diabetes_disease_prior | BN12: AHF_Med_office_visits_count_curr | BQ12: AHF_Med_office_visits_count_prior | BR12: 3276 | BT12: AHF_Med_paid_amt_female_20_44_curr | BW12: AHF_Med_paid_amt_female_20_44_prior | BX12: 539556.46 | BZ12: AHF_Med_count_spec_phys_curr | CC12: AHF_Med_count_spec_phys_prior | CD12: 1345 | CF12: aex_Tier3_Paid_Amt_curr | CI12: aex_Tier3_Paid_Amt_prior | CJ12: 0 | CL12: aex_Tier1_Util_amb_visits_curr | CO12: aex_Tier1_Util_amb_visits_prior | CP12: 0 | CR12: aex_inp_Tier2_days_00_curr | CU12: aex_inp_Tier2_days_00_prior | CV12: 0 | DD12: ahf_term_total_fund_paid_curr | DE12: 0 | DG12: ahf_term_total_fund_paid_prior | DH12: 170.92 | DP12: adf_term_total_fund_paid_curr | DQ12: 0 | DS12: adf_term_total_fund_paid_prior | DT12: 0 | DU12: N/A | DW12: Medicare_Billed_male_mem_75_79_curr | EA12: Medicare_Billed_male_mem_75_79_prior
A13: Med_claim_count_curr | D13: Med_claim_count_prior | G13: Med_claim_count_male_20_44_curr | J13: Med_claim_count_male_20_44_prior | M13: Dental_paid_amt_unknown_20_44_curr | P13: Dental_paid_amt_unknown_20_44_prior | Y13: Med_paid_amt_inp_surgeries_curr | AB13: Med_paid_amt_inp_surgeries_prior | AE13: Med_MDC_amb_paid_01_curr | AH13: Med_MDC_amb_paid_01_prior | BC13: MDC_CD_10 | BD13: 10 - Endocrine, Metabolic | BE13: =LEFT(MDC_CD_10,2) -> 10 | BF13: =MID(MDC_CD_10,6,50) -> Endocrine, Metabolic | BH13: HPD_paid_amt_coronary_diabetes_curr | BK13: HPD_paid_amt_coronary_diabetes_prior | BN13: AHF_Med_primary_office_visits_count_curr | BQ13: AHF_Med_primary_office_visits_count_prior | BR13: 1361 | BT13: AHF_Med_claim_count_female_45_64_curr | BW13: AHF_Med_claim_count_female_45_64_prior | BX13: 663 | BZ13: AHF_Med_paid_amt_spec_phys_curr | CC13: AHF_Med_paid_amt_spec_phys_prior | CD13: 752038.93 | CF13: aex_Tier3_Inp_Paid_Amt_curr | CI13: aex_Tier3_Inp_Paid_Amt_prior | CJ13: 0 | CL13: aex_Tier2_paid_amt_amb_visits_curr | CO13: aex_Tier2_paid_amt_amb_visits_prior | CP13: 0 | CR13: aex_Amb_Tier2_claimants_00_curr | CU13: aex_Amb_Tier2_claimants_00_prior | CV13: 0 | DU13: N/A | DW13: Medicare_Billed_male_mem_80_84_curr | EA13: Medicare_Billed_male_mem_80_84_prior
A14: Med_claim_count_above_threshold_curr | D14: Med_claim_count_above_threshold_prior | G14: Med_paid_amt_male_20_44_curr | J14: Med_paid_amt_male_20_44_prior | M14: Dental_paid_amt_unknown_45_64_curr | P14: Dental_paid_amt_unknown_45_64_prior | Y14: Med_count_inp_surgeries_curr | AB14: Med_count_inp_surgeries_prior | AE14: Med_MDC_admits_01_curr | AH14: Med_MDC_admits_01_prior | BC14: MDC_CD_11 | BD14: 11 - Kidney, Urinary Tract | BE14: =LEFT(MDC_CD_11,2) -> 11 | BF14: =MID(MDC_CD_11,6,50) -> Kidney, Urinary Tract | BH14: HPD_number_claimants_low_back_curr | BK14: HPD_number_claimants_low_back_prior | BN14: AHF_Med_specialist_office_visits_count_curr | BQ14: AHF_Med_specialist_office_visits_count_prior | BR14: 1916 | BT14: AHF_Med_allowed_amt_female_45_64_curr | BW14: AHF_Med_allowed_amt_female_45_64_prior | BX14: 1681144.16 | BZ14: AHF_Med_fund_paid_amt_spec_phys_curr | CC14: AHF_Med_fund_paid_amt_spec_phys_prior | CD14: 264577.94 | CF14: aex_Tier3_Amb_Paid_Amt_curr | CI14: aex_Tier3_Amb_Paid_Amt_prior | CJ14: 0 | CL14: aex_Tier2_Util_amb_visits_curr | CO14: aex_Tier2_Util_amb_visits_prior | CP14: 0 | CR14: aex_inp_Tier3_paid_amt_00_curr | CU14: aex_inp_Tier3_paid_amt_00_prior | CV14: 0 | DU14: N/A | DW14: Medicare_Billed_male_mem_85_over_curr | EA14: Medicare_Billed_male_mem_85_over_prior
A15: Med_paid_amt_above_threshold_curr | D15: Med_paid_amt_above_threshold_prior | G15: Med_claim_count_male_45_64_curr | J15: Med_claim_count_male_45_64_prior | M15: Dental_paid_amt_unknown_65_over_curr | P15: Dental_paid_amt_unknown_65_over_prior | Y15: Med_paid_amt_amb_surgeries_curr | AB15: Med_paid_amt_amb_surgeries_prior | AE15: Med_MDC_days_01_curr | AH15: Med_MDC_days_01_prior | AQ15: ProvCurrentNetDent Vector Documentation - 6055 | AR15: ProvCurrentNetDent Vector DataMarkers - 6055 | AT15: DentalPriorClaim Prov Net Vector Documentation - 6055 | AU15: DentalPriorClaim Prov Net Vector DataMarkers - 6055 | BC15: MDC_CD_12 | BD15: 12 - Male Reproductive | BE15: =LEFT(MDC_CD_12,2) -> 12 | BF15: =MID(MDC_CD_12,6,50) -> Male Reproductive | BH15: HPD_paid_amt_low_back_curr | BK15: HPD_paid_amt_low_back_prior | BN15: AHF_Med_er_visits_count_curr | BQ15: AHF_Med_er_visits_count_prior | BR15: 216 | BT15: AHF_Med_emp_paid_amt_female_45_64_curr | BW15: AHF_Med_emp_paid_amt_female_45_64_prior | BX15: 323055 | BZ15: AHF_Med_count_prim_phys_curr | CC15: AHF_Med_count_prim_phys_prior | CD15: 972 | CF15: aex_OOC_Claimants_curr | CI15: aex_OOC_Claimants_prior | CJ15: 0 | CL15: aex_Tier3_paid_amt_amb_visits_curr | CO15: aex_Tier3_paid_amt_amb_visits_prior | CP15: 0 | CR15: aex_Amb_Tier3_paid_amt_00_curr | CU15: aex_Amb_Tier3_paid_amt_00_prior | CV15: 0 | DU15: N/A
A16: Med_inp_paid_amt_above_threshold_curr | D16: Med_inp_paid_amt_above_threshold_prior | G16: Med_paid_amt_male_45_64_curr | J16: Med_paid_amt_male_45_64_prior | Y16: Med_count_amb_surgeries_curr | AB16: Med_count_amb_surgeries_prior | AE16: Med_MDC_claimants_01_curr | AH16: Med_MDC_claimants_01_prior | AQ16: dental_tot_services_in_network_curr | AR16: Removed | AT16: dental_tot_services_in_network_prior | AU16: Removed | BC16: MDC_CD_13 | BD16: 13 - Female Reproductive | BE16: =LEFT(MDC_CD_13,2) -> 13 | BF16: =MID(MDC_CD_13,6,50) -> Female Reproductive | BH16: HPD_number_claimants_other_curr | BK16: HPD_number_claimants_other_prior | BN16: AHF_Med_in_network_paid_amt_curr | BQ16: AHF_Med_in_network_paid_amt_prior | BR16: 3666169.37 | BT16: AHF_Med_fund_paid_amt_female_45_64_curr | BW16: AHF_Med_fund_paid_amt_female_45_64_prior | BX16: 213472.89 | BZ16: AHF_Med_paid_amt_prim_phys_curr | CC16: AHF_Med_paid_amt_prim_phys_prior | CD16: 141937.02 | CF16: aex_OOC_Paid_Amt_curr | CI16: aex_OOC_Paid_Amt_prior | CJ16: 0 | CL16: aex_Tier3_Util_amb_visits_curr | CO16: aex_Tier3_Util_amb_visits_prior | CP16: 0 | CR16: aex_inp_Tier3_admits_00_curr | CU16: aex_inp_Tier3_admits_00_prior | CV16: 0 | DU16: N/A
A17: Med_amb_paid_amt_above_threshold_curr | D17: Med_amb_paid_amt_above_threshold_prior | G17: Med_claim_count_male_65_over_curr | J17: Med_claim_count_male_65_over_prior | Y17: Med_paid_amt_office_surgeries_curr | AB17: Med_paid_amt_office_surgeries_prior | AE17: Med_MDC_cd_02_curr | AH17: Med_MDC_cd_02_prior | AQ17: dental_net_avg_sub_charges_ppo_in_network_curr | AR17: Removed | AT17: dental_net_avg_sub_charges_ppo_in_network_prior | AU17: Removed | BC17: MDC_CD_14 | BD17: 14 - Pregnancy/Childbirth | BE17: =LEFT(MDC_CD_14,2) -> 14 | BF17: =MID(MDC_CD_14,6,50) -> Pregnancy/Childbirth | BH17: HPD_paid_amt_other_curr | BK17: HPD_paid_amt_other_prior | BN17: AHF_Med_fund_in_network_paid_amt_curr | BQ17: AHF_Med_fund_in_network_paid_amt_prior | BR17: 641974.99 | BT17: AHF_Med_paid_amt_female_45_64_curr | BW17: AHF_Med_paid_amt_female_45_64_prior | BX17: 1562907.07 | BZ17: AHF_Med_fund_paid_amt_prim_phys_curr | CC17: AHF_Med_fund_paid_amt_prim_phys_prior | CD17: 67491.84 | CF17: aex_OOC_Inp_Paid_Amt_curr | CI17: aex_OOC_Inp_Paid_Amt_prior | CJ17: 0 | CL17: aex_OON_paid_amt_amb_visits_curr | CO17: aex_OON_paid_amt_amb_visits_prior | CP17: 0 | CR17: aex_inp_Tier3_days_00_curr | CU17: aex_inp_Tier3_days_00_prior | CV17: 0 | DU17: N/A
A18: Med_par_admit_count_curr | D18: Med_par_admit_count_prior | G18: Med_paid_amt_male_65_over_curr | J18: Med_paid_amt_male_65_over_prior | Y18: Med_count_office_surgeries_curr | AB18: Med_count_office_surgeries_prior | AE18: Med_MDC_paid_02_curr | AH18: Med_MDC_paid_02_prior | AQ18: dental_sav_frm_negot_arrangements_ppo_in_network_curr | AR18: Removed | AT18: dental_sav_frm_negot_arrangements_ppo_in_network_prior | AU18: Removed | BC18: MDC_CD_15 | BD18: 15 - Newborns | BE18: =LEFT(MDC_CD_15,2) -> 15 | BF18: =MID(MDC_CD_15,6,50) -> Newborns | BH18: HPD_bob_prevalence_asthma_curr | BI18: 4.19 | BK18: HPD_bob_prevalence_asthma_prior | BL18: 4.19 | BT18: AHF_Med_claim_count_female_65_over_curr | BW18: AHF_Med_claim_count_female_65_over_prior | BX18: 77 | BZ18: AHF_Med_count_rad_curr | CC18: AHF_Med_count_rad_prior | CD18: 648 | CF18: aex_OOC_Amb_Paid_Amt_curr | CI18: aex_OOC_Amb_Paid_Amt_prior | CJ18: 0 | CL18: aex_OON_Util_amb_visits_curr | CO18: aex_OON_Util_amb_visits_prior | CP18: 0 | CR18: aex_Amb_Tier3_claimants_00_curr | CU18: aex_Amb_Tier3_claimants_00_prior | CV18: 0 | DU18: N/A
A19: Med_par_phys_office_visits_count_curr | D19: Med_par_phys_office_visits_count_prior | G19: Med_claim_count_unknown_0_19_curr | J19: Med_claim_count_unknown_0_19_prior | Y19: Med_paid_amt_med_visits_curr | AB19: Med_paid_amt_med_visits_prior | AE19: Med_MDC_inp_paid_02_curr | AH19: Med_MDC_inp_paid_02_prior | AQ19: dental_net_avg_sub_charges_ppo_max_in_network_curr | AR19: Removed | AT19: dental_net_avg_sub_charges_ppo_max_in_network_prior | AU19: Removed | BC19: MDC_CD_16 | BD19: 16 - Blood/Organs | BE19: =LEFT(MDC_CD_16,2) -> 16 | BF19: =MID(MDC_CD_16,6,50) -> Blood/Organs | BH19: HPD_bob_prevalence_heart_failure_curr | BI19: 1.57 | BK19: HPD_bob_prevalence_heart_failure_prior | BL19: 1.57 | BT19: AHF_Med_allowed_amt_female_65_over_curr | BW19: AHF_Med_allowed_amt_female_65_over_prior | BX19: 179686.43 | BZ19: AHF_Med_paid_amt_rad_curr | CC19: AHF_Med_paid_amt_rad_prior | CD19: 281429.46 | CF19: aex_TOT_Claimants_curr | CI19: aex_TOT_Claimants_prior | CJ19: 0 | CL19: aex_Tier1_paid_amt_er_visits_curr | CO19: aex_Tier1_paid_amt_er_visits_prior | CP19: 0 | CR19: aex_inp_OON_paid_amt_00_curr | CU19: aex_inp_OON_paid_amt_00_prior | CV19: 0 | DU19: N/A
A20: Med_phys_office_visits_count_curr | D20: Med_phys_office_visits_count_prior | G20: Med_paid_amt_unknown_0_19_curr | J20: Med_paid_amt_unknown_0_19_prior | Y20: Med_count_med_visits_curr | AB20: Med_count_med_visits_prior | AE20: Med_MDC_amb_paid_02_curr | AH20: Med_MDC_amb_paid_02_prior | AQ20: dental_sav_frm_negot_arrangements_ppo_max_in_network_curr | AR20: Removed | AT20: dental_sav_frm_negot_arrangements_ppo_max_in_network_prior | AU20: Removed | BC20: MDC_CD_17 | BD20: 17 - Other Neoplasms | BE20: =LEFT(MDC_CD_17,2) -> 17 | BF20: =MID(MDC_CD_17,6,50) -> Other Neoplasms | BH20: HPD_bob_prevalence_coronary_artery_disease_curr | BI20: 4.28 | BK20: HPD_bob_prevalence_coronary_artery_disease_prior | BL20: 4.28 | BT20: AHF_Med_emp_paid_amt_female_65_over_curr | BW20: AHF_Med_emp_paid_amt_female_65_over_prior | BX20: 48346.31 | BZ20: AHF_Med_fund_paid_amt_rad_curr | CC20: AHF_Med_fund_paid_amt_rad_prior | CD20: 99734.21 | CF20: aex_TOT_Paid_Amt_curr | CI20: aex_TOT_Paid_Amt_prior | CJ20: 0 | CL20: aex_Tier1_Util_er_visits_curr | CO20: aex_Tier1_Util_er_visits_prior | CP20: 0 | CR20: aex_Amb_OON_paid_amt_00_curr | CU20: aex_Amb_OON_paid_amt_00_prior | CV20: 0 | DU20: N/A
A21: Med_par_paid_amt_curr | D21: Med_par_paid_amt_prior | G21: Med_claim_count_unknown_20_44_curr | J21: Med_claim_count_unknown_20_44_prior | Y21: Med_paid_amt_rad_serv_curr | AB21: Med_paid_amt_rad_serv_prior | AE21: Med_MDC_admits_02_curr | AH21: Med_MDC_admits_02_prior | AQ21: dental_tot_services_out_network_curr | AR21: Removed | AT21: dental_tot_services_out_network_prior | AU21: Removed | BC21: MDC_CD_18 | BD21: 18 - Infectious-Parasitic | BE21: =LEFT(MDC_CD_18,2) -> 18 | BF21: =MID(MDC_CD_18,6,50) -> Infectious-Parasitic | BH21: HPD_bob_prevalence_diabetes_curr | BI21: 8.58 | BK21: HPD_bob_prevalence_diabetes_prior | BL21: 8.58 | BT21: AHF_Med_fund_paid_amt_female_65_over_curr | BW21: AHF_Med_fund_paid_amt_female_65_over_prior | BX21: 28222.47 | BZ21: AHF_Med_count_lab_curr | CC21: AHF_Med_count_lab_prior | CD21: 1210 | CF21: aex_TOT_Inp_Paid_Amt_curr | CI21: aex_TOT_Inp_Paid_Amt_prior | CJ21: 0 | CL21: aex_Tier2_paid_amt_er_visits_curr | CO21: aex_Tier2_paid_amt_er_visits_prior | CP21: 0 | CR21: aex_inp_OON_admits_00_curr | CU21: aex_inp_OON_admits_00_prior | CV21: 0 | DU21: N/A
A22: Med_allowed_amt_curr | D22: Med_allowed_amt_prior | G22: Med_paid_amt_unknown_20_44_curr | J22: Med_paid_amt_unknown_20_44_prior | Y22: Med_count_rad_serv_curr | AB22: Med_count_rad_serv_prior | AE22: Med_MDC_days_02_curr | AH22: Med_MDC_days_02_prior | AQ22: dental_net_avg_sub_charges_ppo_out_network_curr | AR22: Removed | AT22: dental_net_avg_sub_charges_ppo_out_network_prior | AU22: Removed | BC22: MDC_CD_19 | BD22: 19 - Mental Disorders | BE22: =LEFT(MDC_CD_19,2) -> 19 | BF22: =MID(MDC_CD_19,6,50) -> Mental Disorders | BH22: HPD_bob_prevalence_low_back_curr | BI22: 5.73 | BK22: HPD_bob_prevalence_low_back_prior | BL22: 5.73 | BT22: AHF_Med_paid_amt_female_65_over_curr | BW22: AHF_Med_paid_amt_female_65_over_prior | BX22: 152377.59 | BZ22: AHF_Med_paid_amt_lab_curr | CC22: AHF_Med_paid_amt_lab_prior | CD22: 213684.5 | CF22: aex_TOT_Amb_Paid_Amt_curr | CI22: aex_TOT_Amb_Paid_Amt_prior | CJ22: 0 | CL22: aex_Tier2_Util_er_visits_curr | CO22: aex_Tier2_Util_er_visits_prior | CP22: 0 | CR22: aex_inp_OON_days_00_curr | CU22: aex_inp_OON_days_00_prior | CV22: 0 | DU22: N/A
A23: Med_cob_amt_curr | D23: Med_cob_amt_prior | G23: Med_claim_count_unknown_45_64_curr | J23: Med_claim_count_unknown_45_64_prior | Y23: Med_paid_amt_lab_serv_curr | AB23: Med_paid_amt_lab_serv_prior | AE23: Med_MDC_claimants_02_curr | AH23: Med_MDC_claimants_02_prior | AQ23: dental_sav_frm_negot_arrangements_ppo_out_network_curr | AR23: Removed | AT23: dental_sav_frm_negot_arrangements_ppo_out_network_prior | AU23: Removed | BC23: MDC_CD_20 | BD23: 20 - Substance Disorders | BE23: =LEFT(MDC_CD_20,2) -> 20 | BF23: =MID(MDC_CD_20,6,50) -> Substance Disorders | BH23: HPD_bob_prevalence_other_curr | BI23: 142.36 | BK23: HPD_bob_prevalence_other_prior | BL23: 142.36 | BT23: AHF_Med_claim_count_male_0_19_curr | BW23: AHF_Med_claim_count_male_0_19_prior | BX23: 118 | BZ23: AHF_Med_fund_paid_amt_lab_curr | CC23: AHF_Med_fund_paid_amt_lab_prior | CD23: 82059.68 | CL23: aex_Tier3_paid_amt_er_visits_curr | CO23: aex_Tier3_paid_amt_er_visits_prior | CP23: 0 | CR23: aex_Amb_OON_claimants_00_curr | CU23: aex_Amb_OON_claimants_00_prior | CV23: 0 | DU23: N/A
A24: Med_deductible_amt_curr | D24: Med_deductible_amt_prior | G24: Med_paid_amt_unknown_45_64_curr | J24: Med_paid_amt_unknown_45_64_prior | Y24: Med_count_lab_serv_curr | AB24: Med_count_lab_serv_prior | AE24: Med_MDC_cd_03_curr | AH24: Med_MDC_cd_03_prior | AQ24: dental_net_avg_sub_charges_ppo_max_out_network_curr | AR24: Removed | AT24: dental_net_avg_sub_charges_ppo_max_out_network_prior | AU24: Removed | BC24: MDC_CD_21 | BD24: 21 - Injury and Poisoning | BE24: =LEFT(MDC_CD_21,2) -> 21 | BF24: =MID(MDC_CD_21,6,50) -> Injury and Poisoning | BT24: AHF_Med_allowed_amt_male_0_19_curr | BW24: AHF_Med_allowed_amt_male_0_19_prior | BX24: 116337.43 | BZ24: AHF_Med_count_home_health_curr | CC24: AHF_Med_count_home_health_prior | CD24: 89 | CL24: aex_Tier3_Util_er_visits_curr | CO24: aex_Tier3_Util_er_visits_prior | CP24: 0 | CR24: aex_Med_MDC_cd_01_curr | CU24: aex_Med_MDC_cd_01_prior | CV24: 1 | DU24: N/A
A25: Med_copay_amt_curr | D25: Med_copay_amt_prior | G25: Med_claim_count_unknown_65_over_curr | J25: Med_claim_count_unknown_65_over_prior | Y25: Med_paid_amt_home_health_curr | AB25: Med_paid_amt_home_health_prior | AE25: Med_MDC_paid_03_curr | AH25: Med_MDC_paid_03_prior | AQ25: dental_sav_frm_negot_arrangements_ppo_max_out_network_curr | AR25: Removed | AT25: dental_sav_frm_negot_arrangements_ppo_max_out_network_prior | AU25: Removed | BC25: MDC_CD_22 | BD25: 22 - Burns | BE25: =LEFT(MDC_CD_22,2) -> 22 | BF25: =MID(MDC_CD_22,6,50) -> Burns | BT25: AHF_Med_emp_paid_amt_male_0_19_curr | BW25: AHF_Med_emp_paid_amt_male_0_19_prior | BX25: 53044.61 | BZ25: AHF_Med_paid_amt_home_health_curr | CC25: AHF_Med_paid_amt_home_health_prior | CD25: 33183.09 | CL25: aex_OON_paid_amt_er_visits_curr | CO25: aex_OON_paid_amt_er_visits_prior | CP25: 0 | CR25: aex_inp_Tier1_paid_amt_01_curr | CU25: aex_inp_Tier1_paid_amt_01_prior | CV25: 0 | DU25: N/A
A26: Med_coinsurance_amt_curr | D26: Med_coinsurance_amt_prior | G26: Med_paid_amt_unknown_65_over_curr | J26: Med_paid_amt_unknown_65_over_prior | Y26: Med_count_home_health_curr | AB26: Med_count_home_health_prior | AE26: Med_MDC_inp_paid_03_curr | AH26: Med_MDC_inp_paid_03_prior | BC26: MDC_CD_23 | BD26: 23 - Selected Factors | BE26: =LEFT(MDC_CD_23,2) -> 23 | BF26: =MID(MDC_CD_23,6,50) -> Selected Factors | BT26: AHF_Med_fund_paid_amt_male_0_19_curr | BW26: AHF_Med_fund_paid_amt_male_0_19_prior | BX26: 28089.46 | BZ26: AHF_Med_fund_paid_amt_home_health_curr | CC26: AHF_Med_fund_paid_amt_home_health_prior | CD26: 12788.9 | CL26: aex_OON_Util_er_visits_curr | CO26: aex_OON_Util_er_visits_prior | CP26: 0 | CR26: aex_Amb_Tier1_paid_amt_01_curr | CU26: aex_Amb_Tier1_paid_amt_01_prior | CV26: 0 | DU26: N/A
A27: Dental_paid_amt_curr | D27: Dental_paid_amt_prior | G27: Med_billed_amt_female_0_19_curr | H27: 259255.48 | J27: Med_billed_amt_female_0_19_prior | K27: 221634.15 | Y27: Med_paid_amt_mental_health_curr | AB27: Med_paid_amt_mental_health_prior | AE27: Med_MDC_amb_paid_03_curr | AH27: Med_MDC_amb_paid_03_prior | BT27: AHF_Med_paid_amt_male_0_19_curr | BW27: AHF_Med_paid_amt_male_0_19_prior | BX27: 91510.43 | BZ27: AHF_Med_count_mental_health_curr | CC27: AHF_Med_count_mental_health_prior | CD27: 99 | CL27: aex_Tier1_paid_amt_spec_off_visits_curr | CO27: aex_Tier1_paid_amt_spec_off_visits_prior | CP27: 0 | CR27: aex_inp_Tier1_admits_01_curr | CU27: aex_inp_Tier1_admits_01_prior | CV27: 0 | DU27: N/A
A28: Dental_key_results_network_discount_amt_curr | D28: Dental_key_results_network_discount_amt_prior | G28: Med_billed_amt_female_20_44_curr | H28: 2408735.39 | J28: Med_billed_amt_female_20_44_prior | K28: 1666343.88 | Y28: Med_count_mental_health_curr | AB28: Med_count_mental_health_prior | AE28: Med_MDC_admits_03_curr | AH28: Med_MDC_admits_03_prior | AQ28: ProvNtwkExpDent Current Vector Documentation - 7123b Mar'08 | AR28: ProvNtwkExpDent Current Vector Documentation - 7123b Mar'08 | AT28: ProvNtwkExpDent Prior Vector Documentation - 7123b Mar'08 | AU28: ProvNtwkExpDent prior Vector Documentation - 7123b Mar'08 | BT28: AHF_Med_claim_count_male_20_44_curr | BW28: AHF_Med_claim_count_male_20_44_prior | BX28: 210 | BZ28: AHF_Med_paid_amt_mental_health_curr | CC28: AHF_Med_paid_amt_mental_health_prior | CD28: 42549.62 | CL28: aex_Tier1_Util_spec_off_visits_curr | CO28: aex_Tier1_Util_spec_off_visits_prior | CP28: 0 | CR28: aex_inp_Tier1_days_01_curr | CU28: aex_inp_Tier1_days_01_prior | CV28: 0 | DU28: N/A
A29: Dental_key_results_network_paid_amt_curr | D29: Dental_key_results_network_paid_amt_prior | G29: Med_billed_amt_female_45_64_curr | H29: 3340596.62 | J29: Med_billed_amt_female_45_64_prior | K29: 5325608.66 | Y29: Med_paid_amt_med_rx_curr | AB29: Med_paid_amt_med_rx_prior | AE29: Med_MDC_days_03_curr | AH29: Med_MDC_days_03_prior | AQ29: dent_tot_services_aetna_ppo_ntwk_curr | AT29: dent_tot_services_aetna_ppo_ntwk_prior | BT29: AHF_Med_allowed_amt_male_20_44_curr | BW29: AHF_Med_allowed_amt_male_20_44_prior | BX29: 276911.76 | BZ29: AHF_Med_fund_paid_amt_mental_health_curr | CC29: AHF_Med_fund_paid_amt_mental_health_prior | CD29: 21493.88 | CL29: aex_Tier2_paid_amt_spec_off_visits_curr | CO29: aex_Tier2_paid_amt_spec_off_visits_prior | CP29: 0 | CR29: aex_Amb_Tier1_claimants_01_curr | CU29: aex_Amb_Tier1_claimants_01_prior | CV29: 0 | DU29: N/A
A30: Dental_key_results_rc_savings_amt_curr | D30: Dental_key_results_rc_savings_amt_prior | G30: Med_billed_amt_female_65_over_curr | H30: 681048.47 | J30: Med_billed_amt_female_65_over_prior | K30: 496938.06 | Y30: Med_count_med_rx_curr | AB30: Med_count_med_rx_prior | AE30: Med_MDC_claimants_03_curr | AH30: Med_MDC_claimants_03_prior | AQ30: dent_net_avg_sub_charges_ppo_aetna_ppo_ntwk_curr | AT30: dent_net_avg_sub_charges_ppo_aetna_ppo_ntwk_prior | BT30: AHF_Med_emp_paid_amt_male_20_44_curr | BW30: AHF_Med_emp_paid_amt_male_20_44_prior | BX30: 100103.12 | BZ30: AHF_Med_count_medical_rx_curr | CC30: AHF_Med_count_medical_rx_prior | CD30: 556 | CL30: aex_Tier2_Util_spec_off_visits_curr | CO30: aex_Tier2_Util_spec_off_visits_prior | CP30: 0 | CR30: aex_inp_Tier2_paid_amt_01_curr | CU30: aex_inp_Tier2_paid_amt_01_prior | CV30: 0 | DU30: N/A
A31: Dental_cost_share_allowed_amt_curr | D31: Dental_cost_share_allowed_amt_prior | G31: Med_billed_amt_male_0_19_curr | H31: 254609.78 | J31: Med_billed_amt_male_0_19_prior | K31: 221954.52 | Y31: Med_paid_amt_misc_med_curr | AB31: Med_paid_amt_misc_med_prior | AE31: Med_MDC_cd_04_curr | AH31: Med_MDC_cd_04_prior | AQ31: dent_sav_frm_negot_arrangements_ppo_aetna_ppo_ntwk_curr | AT31: dent_sav_frm_negot_arrangements_ppo_aetna_ppo_ntwk_prior | BT31: AHF_Med_fund_paid_amt_male_20_44_curr | BW31: AHF_Med_fund_paid_amt_male_20_44_prior | BX31: 69246.63 | BZ31: AHF_Med_paid_amt_medical_rx_curr | CC31: AHF_Med_paid_amt_medical_rx_prior | CD31: 286597.52 | CL31: aex_Tier3_paid_amt_spec_off_visits_curr | CO31: aex_Tier3_paid_amt_spec_off_visits_prior | CP31: 0 | CR31: aex_Amb_Tier2_paid_amt_01_curr | CU31: aex_Amb_Tier2_paid_amt_01_prior | CV31: 0 | DU31: N/A
A32: Dental_cost_share_cob_amt_curr | D32: Dental_cost_share_cob_amt_prior | G32: Med_billed_amt_male_20_44_curr | H32: 1332332.14 | J32: Med_billed_amt_male_20_44_prior | K32: 1023283.26 | Y32: Med_count_misc_med_curr | AB32: Med_count_misc_med_prior | AE32: Med_MDC_paid_04_curr | AH32: Med_MDC_paid_04_prior | AQ32: dent_net_avg_sub_charges_ppo_max_aetna_ppo_ntwk_curr | AT32: dent_net_avg_sub_charges_ppo_max_aetna_ppo_ntwk_prior | BT32: AHF_Med_paid_amt_male_20_44_curr | BW32: AHF_Med_paid_amt_male_20_44_prior | BX32: 246213.25 | BZ32: AHF_Med_fund_paid_amt_medical_rx_curr | CC32: AHF_Med_fund_paid_amt_medical_rx_prior | CD32: 9004.47 | CL32: aex_Tier3_Util_spec_off_visits_curr | CO32: aex_Tier3_Util_spec_off_visits_prior | CP32: 0 | CR32: aex_inp_Tier2_admits_01_curr | CU32: aex_inp_Tier2_admits_01_prior | CV32: 0 | DU32: N/A
A33: Dental_cost_share_deductible_amt_curr | D33: Dental_cost_share_deductible_amt_prior | G33: Med_billed_amt_male_45_64_curr | H33: 2766092.08 | J33: Med_billed_amt_male_45_64_prior | K33: 2671622.81 | Y33: Med_paid_encounter_prim_phys_curr | AB33: Med_paid_encounter_prim_phys_prior | AE33: Med_MDC_inp_paid_04_curr | AH33: Med_MDC_inp_paid_04_prior | AQ33: dent_sav_frm_negot_arrangements_ppo_max_aetna_ppo_ntwk_curr | AT33: dent_sav_frm_negot_arrangements_ppo_max_aetna_ppo_ntwk_prior | BT33: AHF_Med_claim_count_male_45_64_curr | BW33: AHF_Med_claim_count_male_45_64_prior | BX33: 428 | BZ33: AHF_Med_count_medical_misc_curr | CC33: AHF_Med_count_medical_misc_prior | CD33: 0 | CL33: aex_OON_paid_amt_spec_off_visits_curr | CO33: aex_OON_paid_amt_spec_off_visits_prior | CP33: 0 | CR33: aex_inp_Tier2_days_01_curr | CU33: aex_inp_Tier2_days_01_prior | CV33: 0 | DU33: N/A
A34: Dental_cost_share_coins_amt_curr | D34: Dental_cost_share_coins_amt_prior | G34: Med_billed_amt_male_65_over_curr | H34: 839351.37 | J34: Med_billed_amt_male_65_over_prior | K34: 1037801.26 | Y34: Med_count_encounter_prim_phys_curr | AB34: Med_count_encounter_prim_phys_prior | AE34: Med_MDC_amb_paid_04_curr | AH34: Med_MDC_amb_paid_04_prior | AQ34: dent_tot_services_aetna_ppo_II_ntwk_curr | AT34: dent_tot_services_aetna_ppo_II_ntwk_prior | BT34: AHF_Med_allowed_amt_male_45_64_curr | BW34: AHF_Med_allowed_amt_male_45_64_prior | BX34: 771189.79 | BZ34: AHF_Med_paid_amt_medical_misc_curr | CC34: AHF_Med_paid_amt_medical_misc_prior | CD34: 0 | CL34: aex_OON_Util_spec_off_visits_curr | CO34: aex_OON_Util_spec_off_visits_prior | CP34: 0 | CR34: aex_Amb_Tier2_claimants_01_curr | CU34: aex_Amb_Tier2_claimants_01_prior | CV34: 0 | DU34: N/A
A35: Dental_employee_paid_amt_curr | D35: Dental_employee_paid_amt_prior | G35: Med_billed_amt_unknown_0_19_curr | H35: 0 | J35: Med_billed_amt_unknown_0_19_prior | K35: 0 | Y35: Med_paid_encounter_spec_phys_curr | AB35: Med_paid_encounter_spec_phys_prior | AE35: Med_MDC_admits_04_curr | AH35: Med_MDC_admits_04_prior | AQ35: dent_net_avg_sub_charges_ppo_aetna_ppo_II_ntwk_curr | AT35: dent_net_avg_sub_charges_ppo_aetna_ppo_II_ntwk_prior | BT35: AHF_Med_emp_paid_amt_male_45_64_curr | BW35: AHF_Med_emp_paid_amt_male_45_64_prior | BX35: 203746.82 | BZ35: AHF_Med_fund_paid_amt_medical_misc_curr | CC35: AHF_Med_fund_paid_amt_medical_misc_prior | CD35: 0 | CL35: aex_Tier1_paid_amt_other_spec_off_visits_curr | CO35: aex_Tier1_paid_amt_other_spec_off_visits_prior | CP35: 0 | CR35: aex_inp_Tier3_paid_amt_01_curr | CU35: aex_inp_Tier3_paid_amt_01_prior | CV35: 0 | DU35: N/A
A36: Dental_dependent_paid_amt_curr | D36: Dental_dependent_paid_amt_prior | G36: Med_billed_amt_unknown_20_44_curr | H36: 0 | J36: Med_billed_amt_unknown_20_44_prior | K36: 0 | Y36: Med_count_encounter_spec_phys_curr | AB36: Med_count_encounter_spec_phys_prior | AE36: Med_MDC_days_04_curr | AH36: Med_MDC_days_04_prior | AQ36: dent_sav_frm_negot_arrangements_ppo_aetna_ppo_II_ntwk_curr | AT36: dent_sav_frm_negot_arrangements_ppo_aetna_ppo_II_ntwk_prior | BT36: AHF_Med_fund_paid_amt_male_45_64_curr | BW36: AHF_Med_fund_paid_amt_male_45_64_prior | BX36: 131778.84 | BZ36: AHF_Med_count_total_curr | CC36: AHF_Med_count_total_prior | CD36: 2070 | CL36: aex_Tier1_Util_other_spec_off_visits_curr | CO36: aex_Tier1_Util_other_spec_off_visits_prior | CP36: 0 | CR36: aex_Amb_Tier3_paid_amt_01_curr | CU36: aex_Amb_Tier3_paid_amt_01_prior | CV36: 0 | DU36: N/A
A37: Med_hospital_paid_amt_curr | D37: Med_hospital_paid_amt_prior | G37: Med_billed_amt_unknown_45_64_curr | H37: 0 | J37: Med_billed_amt_unknown_45_64_prior | K37: 0 | Y37: Med_paid_encounter_lab_rad_curr | AB37: Med_paid_encounter_lab_rad_prior | AE37: Med_MDC_claimants_04_curr | AH37: Med_MDC_claimants_04_prior | AQ37: dent_net_avg_sub_charges_ppo_max_aetna_ppo_II_ntwk_curr | AT37: dent_net_avg_sub_charges_ppo_max_aetna_ppo_II_ntwk_prior | BT37: AHF_Med_paid_amt_male_45_64_curr | BW37: AHF_Med_paid_amt_male_45_64_prior | BX37: 666981.21 | BZ37: AHF_Med_paid_amt_total_curr | CC37: AHF_Med_paid_amt_total_prior | CD37: 3760132.35 | CL37: aex_Tier2_paid_amt_other_spec_off_visits_curr | CO37: aex_Tier2_paid_amt_other_spec_off_visits_prior | CP37: 0 | CR37: aex_inp_Tier3_admits_01_curr | CU37: aex_inp_Tier3_admits_01_prior | CV37: 0 | DU37: N/A
A38: Med_hospital_inp_paid_amt_curr | D38: Med_hospital_inp_paid_amt_prior | G38: Med_billed_amt_unknown_65_over_curr | H38: 0 | J38: Med_billed_amt_unknown_65_over_prior | K38: 0 | Y38: Med_count_encounter_lab_rad_curr | AB38: Med_count_encounter_lab_rad_prior | AE38: Med_MDC_cd_05_curr | AH38: Med_MDC_cd_05_prior | AQ38: dent_sav_frm_negot_arrangements_ppo_max_aetna_ppo_II_ntwk_curr | AT38: dent_sav_frm_negot_arrangements_ppo_max_aetna_ppo_II_ntwk_prior | BT38: AHF_Med_claim_count_male_65_over_curr | BW38: AHF_Med_claim_count_male_65_over_prior | BX38: 69 | BZ38: AHF_Med_fund_paid_amt_total_curr | CC38: AHF_Med_fund_paid_amt_total_prior | CD38: 658406.54 | CL38: aex_Tier2_Util_other_spec_off_visits_curr | CO38: aex_Tier2_Util_other_spec_off_visits_prior | CP38: 0 | CR38: aex_inp_Tier3_days_01_curr | CU38: aex_inp_Tier3_days_01_prior | CV38: 0 | DU38: N/A
A39: Med_hospital_amb_paid_amt_curr | D39: Med_hospital_amb_paid_amt_prior | Y39: Med_paid_encounter_other_curr | AB39: Med_paid_encounter_other_prior | AE39: Med_MDC_paid_05_curr | AH39: Med_MDC_paid_05_prior | AQ39: dent_tot_services_aetna_spec_ntwk_curr | AT39: dent_tot_services_aetna_spec_ntwk_prior | BT39: AHF_Med_allowed_amt_male_65_over_curr | BW39: AHF_Med_allowed_amt_male_65_over_prior | BX39: 458543.3 | CL39: aex_Tier3_paid_amt_other_spec_off_visits_curr | CO39: aex_Tier3_paid_amt_other_spec_off_visits_prior | CP39: 0 | CR39: aex_Amb_Tier3_claimants_01_curr | CU39: aex_Amb_Tier3_claimants_01_prior | CV39: 0 | DU39: N/A
A40: Med_billed_amt_curr | D40: Med_billed_amt_prior | Y40: Med_count_encounter_other_curr | AB40: Med_count_encounter_other_prior | AE40: Med_MDC_inp_paid_05_curr | AH40: Med_MDC_inp_paid_05_prior | AQ40: dent_net_avg_sub_charges_ppo_aetna_spec_ntwk_curr | AT40: dent_net_avg_sub_charges_ppo_aetna_spec_ntwk_prior | BT40: AHF_Med_emp_paid_amt_male_65_over_curr | BW40: AHF_Med_emp_paid_amt_male_65_over_prior | BX40: 46779.8 | CL40: aex_Tier3_Util_other_spec_off_visits_curr | CO40: aex_Tier3_Util_other_spec_off_visits_prior | CP40: 0 | CR40: aex_inp_OON_paid_amt_01_curr | CU40: aex_inp_OON_paid_amt_01_prior | CV40: 0 | DU40: N/A
A41: Med_inp_billed_amt_curr | D41: Med_inp_billed_amt_prior | Y41: Med_paid_other_curr | AB41: Med_paid_other_prior | AE41: Med_MDC_amb_paid_05_curr | AH41: Med_MDC_amb_paid_05_prior | AQ41: dent_sav_frm_negot_arrangements_ppo_aetna_spec_ntwk_curr | AT41: dent_sav_frm_negot_arrangements_ppo_aetna_spec_ntwk_prior | BT41: AHF_Med_fund_paid_amt_male_65_over_curr | BW41: AHF_Med_fund_paid_amt_male_65_over_prior | BX41: 22913.89 | CL41: aex_OON_paid_amt_other_spec_off_visits_curr | CO41: aex_OON_paid_amt_other_spec_off_visits_prior | CP41: 0 | CR41: aex_Amb_OON_paid_amt_01_curr | CU41: aex_Amb_OON_paid_amt_01_prior | CV41: 0 | DU41: N/A
A42: Med_amb_billed_amt_curr | D42: Med_amb_billed_amt_prior | Y42: Med_count_other_curr | AB42: Med_count_other_prior | AE42: Med_MDC_admits_05_curr | AH42: Med_MDC_admits_05_prior | AQ42: dent_net_avg_sub_charges_ppo_max_aetna_spec_ntwk_curr | AT42: dent_net_avg_sub_charges_ppo_max_aetna_spec_ntwk_prior | BT42: AHF_Med_paid_amt_male_65_over_curr | BW42: AHF_Med_paid_amt_male_65_over_prior | BX42: 415268.77 | CL42: aex_OON_Util_other_spec_off_visits_curr | CO42: aex_OON_Util_other_spec_off_visits_prior | CP42: 0 | CR42: aex_inp_OON_admits_01_curr | CU42: aex_inp_OON_admits_01_prior | CV42: 0 | DU42: N/A
